Workbook

Sheet IRCalibration
B8: Zero curve | F8: Short rate | G8: DF | H8: Fwd Rate | I8: beta(t) | J8: B(.) | K8: Fwd Start Swap | M8: A(.) | N8: 0 | O8: =N8+1 -> 1 | P8: 2 | Q8: 3 | R8: 4 | S8: 5 | T8: 6 | U8: 7 | V8: 8 | W8: 9 | X8: 10 | Y8: 11 | Z8: 12 | AA8: 13 | AB8: 14 | AC8: 15 | AD8: 16 | AE8: 17 | AF8: 18 | AG8: 19 | AH8: 20 | AI8: 21 | AJ8: 22 | AK8: 23 | AL8: 24 | AM8: 25 | AN8: 26 | AO8: 27 | AP8: 28 | AQ8: 29 | AR8: 30 | AS8: 31 | AT8: 32 | AU8: 33 | AV8: 34 | AW8: 35 | AX8: 36 | AY8: 37 | AZ8: 38 | BA8: 39 | BB8: 40
B9: =3/12 -> 0.25 | C9: 0.008 | E9: 0 | F9: =Cubic_SPline($B$9:$B$17,$C$9:$C$17,E9) -> 0.007500000298 | G9: =EXP(-F9*E9) -> 1 | H9: =F9 -> 0.007500000298 | I9: =H9+(IRVol*(1-EXP(-MeanRvs*E9))/MeanRvs/SQRT(2))^2 -> 0.007500000298 | J9: =(1-EXP(-MeanRvs*E9))/MeanRvs -> 0 | K9: =(SUM(G10:$G$49)*0.25*ParSwapRate-(G9-$G$49)) -> 0 | M9: 0 | N9: =IF(N$8>=$M9,OFFSET(DFcts,N$8,0,1,1)/OFFSET(DFcts,$M9,0,1,1)*EXP(OFFSET(BFactors,N$8-$M9,0,1,1)*OFFSET(FwdRates,$M9,0,1,1)-(IRVol^2)*(1-EXP(-2*MeanRvs*$M9*0.25))*OFFSET(BFactors,(N$8-$M9),0,1,1)^2/(4*MeanRvs)),"") -> 1 | O9: =IF(O$8>=$M9,OFFSET(DFcts,O$8,0,1,1)/OFFSET(DFcts,$M9,0,1,1)*EXP(OFFSET(BFactors,O$8-$M9,0,1,1)*OFFSET(FwdRates,$M9,0,1,1)-(IRVol^2)*(1-EXP(-2*MeanRvs*$M9*0.25))*OFFSET(BFactors,(O$8-$M9),0,1,1)^2/(4*MeanRvs)),"") -> 0.9998517676 | P9: 0.9994079684 | Q9: 0.9987481028 | R9: 0.9979393198 | S9: 0.9970064266 | T9: 0.9959685391 | U9: 0.9948378128 | V9: 0.9936156616 | W9: 0.9922957102 | X9: =IF(X$8>=$M9,OFFSET(DFcts,X$8,0,1,1)/OFFSET(DFcts,$M9,0,1,1)*EXP(OFFSET(BFactors,X$8-$M9,0,1,1)*OFFSET(FwdRates,$M9,0,1,1)-(IRVol^2)*(1-EXP(-2*MeanRvs*$M9*0.25))*OFFSET(BFactors,(X$8-$M9),0,1,1)^2/(4*MeanRvs)),"") -> 0.9908750895 | Y9: 0.9893502484 | Z9: 0.987714723 | AA9: 0.9859611249 | AB9: 0.9840882182 | AC9: 0.9820971192 | AD9: 0.9799896349 | AE9: 0.9777682454 | AF9: 0.9754361002 | AG9: 0.9729970103 | AH9: =IF(AH$8>=$M9,OFFSET(DFcts,AH$8,0,1,1)/OFFSET(DFcts,$M9,0,1,1)*EXP(OFFSET(BFactors,AH$8-$M9,0,1,1)*OFFSET(FwdRates,$M9,0,1,1)-(IRVol^2)*(1-EXP(-2*MeanRvs*$M9*0.25))*OFFSET(BFactors,(AH$8-$M9),0,1,1)^2/(4*MeanRvs)),"") -> 0.9704554325 | AI9: 0.9678159368 | AJ9: 0.9650814364 | AK9: 0.9622544217 | AL9: 0.9593374344 | AM9: 0.9563330652 | AN9: 0.953243951 | AO9: 0.9500727733 | AP9: 0.9468222553 | AQ9: 0.9434950856 | AR9: =IF(AR$8>=$M9,OFFSET(DFcts,AR$8,0,1,1)/OFFSET(DFcts,$M9,0,1,1)*EXP(OFFSET(BFactors,AR$8-$M9,0,1,1)*OFFSET(FwdRates,$M9,0,1,1)-(IRVol^2)*(1-EXP(-2*MeanRvs*$M9*0.25))*OFFSET(BFactors,(AR$8-$M9),0,1,1)^2/(4*MeanRvs)),"") -> 0.9400936739 | AS9: 0.9366203407 | AT9: 0.9330773864 | AU9: 0.9294670934 | AV9: 0.9257917079 | AW9: 0.9220534749 | AX9: 0.9182546015 | AY9: 0.9143972744 | AZ9: 0.9104836553 | BA9: 0.9065158808 | BB9: 0.9024960614
B10: =6/12 -> 0.5 | C10: 0.0085 | E10: =E9+0.25 -> 0.25 | F10: 0.00800000038 | G10: 0.9980019986 | H10: =-(LN(G10)-LN(G9))/(E10-E9) -> 0.00800000038 | I10: 0.008003048382 | J10: 0.2469008797 | K10: =(SUM(G11:$G$49)*0.25*ParSwapRate-(G10-$G$49)) -> -0.00171317063 | M10: =M9+1 -> 1 | O10: 1 | P10: 0.9997245017 | Q10: 0.9992271248 | R10: 0.9985751715 | S10: 0.9977936074 | T10: 0.9969017123 | U10: 0.9959118043 | V10: 0.9948254485 | W10: 0.993636406 | X10: 0.9923419406 | Y10: 0.9909386272 | Z10: 0.9894201167 | AA10: 0.9877791265 | AB10: 0.9860145311 | AC10: 0.9841275581 | AD10: 0.9821201243 | AE10: 0.9799948182 | AF10: 0.9777548973 | AG10: 0.97540428 | AH10: 0.9729475305 | AI10: 0.970389325 | AJ10: 0.9677326766 | AK10: 0.9649801725 | AL10: 0.9621344492 | AM10: 0.9591981901 | AN10: 0.9561741229 | AO10: 0.953065018 | AP10: 0.9498736859 | AQ10: 0.9466029001 | AR10: 0.9432551527 | AS10: 0.9398328444 | AT10: 0.9363383535 | AU10: 0.9327740389 | AV10: 0.929142221 | AW10: 0.9254452174 | AX10: 0.921685306 | AY10: 0.9178647424 | AZ10: 0.9139857556 | BA10: 0.9100505479 | BB10: 0.9060612937
B11: 1 | C11: 0.0092 | E11: 0.5 | F11: 0.008500000462 | G11: 0.9957590182 | H11: 0.009000000544 | I11: =H11+(IRVol*(1-EXP(-MeanRvs*E11))/MeanRvs/SQRT(2))^2 -> 0.009011893389 | J11: 0.487705755 | K11: =(SUM(G12:$G$49)*0.25*ParSwapRate-(G11-$G$49)) -> -0.003173021604 | M11: 2 | P11: 1 | Q11: 0.999798758 | R11: 0.9994338536 | S11: 0.9989304424 | T11: 0.9983080102 | U11: 0.9975790859 | V11: 0.9967454319 | W11: 0.9958009864 | X11: 0.9947431871 | Y11: 0.9935687737 | Z11: 0.9922715457 | AA11: 0.9908443562 | AB11: 0.9892862259 | AC11: 0.987598532 | AD11: 0.985783341 | AE11: 0.9838433919 | AF11: 0.9817820941 | AG11: 0.9796035195 | AH11: 0.9773123882 | AI11: 0.9749135326 | AJ11: 0.9724101136 | AK11: 0.9698048625 | AL11: 0.9671005583 | AM11: 0.9643000252 | AN11: 0.9614061303 | AO11: 0.9584217818 | AP11: 0.9553499263 | AQ11: 0.9521934714 | AR11: 0.9489550399 | AS11: 0.9456371606 | AT11: 0.942242338 | AU11: 0.9387730545 | AV11: 0.9352317526 | AW11: 0.9316208693 | AX11: 0.9279428001 | AY11: 0.9241999158 | AZ11: 0.9203945588 | BA11: 0.9165290423 | BB11: 0.91260565
B12: 2 | C12: 0.01 | E12: 0.75 | F12: 0.008895893624 | G12: 0.9933502876 | H12: 0.009687679948 | I12: 0.009713784967 | J12: 0.7225651367 | K12: =(SUM(G13:$G$49)*0.25*ParSwapRate-(G12-$G$49)) -> -0.004458165186 | M12: 3 | Q12: 1 | R12: 0.9998617035 | S12: 0.9995776681 | T12: 0.9991675542 | U12: 0.99864407 | V12: 0.998009149 | W12: 0.9972568851 | X12: 0.9963848682 | Y12: 0.9953899827 | Z12: 0.9942661601 | AA12: 0.9930063751 | AB12: 0.9916097757 | AC12: 0.9900778685 | AD12: 0.9884128488 | AE12: 0.986617584 | AF12: 0.9846956124 | AG12: 0.9826511354 | AH12: 0.980489004 | AI12: 0.9782141809 | AJ12: 0.9758299507 | AK12: 0.9733391655 | AL12: 0.9707447229 | AM12: 0.9680495644 | AN12: 0.9652566725 | AO12: 0.9623690692 | AP12: 0.9593898131 | AQ12: 0.9563219224 | AR12: 0.953168127 | AS12: 0.9499310606 | AT12: 0.9466133305 | AU12: 0.9432175203 | AV12: 0.9397461712 | AW12: 0.9362018175 | AX12: 0.9325869495 | AY12: 0.9289040314 | AZ12: 0.9251554968 | BA12: 0.9213437482 | BB12: 0.9174711569
B13: 3 | C13: 0.0106 | E13: 1 | F13: 0.009200000204 | G13: 0.9908421903 | H13: 0.01011231994 | I13: 0.01015759953 | J13: 0.9516258196 | K13: =(SUM(G14:$G$49)*0.25*ParSwapRate-(G13-$G$49)) -> -0.005634615458 | M13: 4 | R13: 1 | S13: 0.9998831894 | T13: 0.9996346132 | U13: 0.9992671373 | V13: 0.9987828478 | W13: 0.9981759801 | X13: 0.9974442615 | Y13: 0.9965847067 | Z13: 0.995591368 | AA13: 0.994457332 | AB13: 0.9931818615 | AC13: 0.9917665777 | AD13: 0.9902137892 | AE13: 0.9885264758 | AF13: 0.9867082871 | AG13: 0.9847635361 | AH13: 0.982697185 | AI13: 0.9805143067 | AJ13: 0.9782182908 | AK13: 0.9758120913 | AL13: 0.9732987058 | AM13: 0.9706811737 | AN13: 0.9679625739 | AO13: 0.9651460226 | AP13: 0.9622346712 | AQ13: 0.9592316281 | AR13: 0.9561397113 | AS13: 0.9529616402 | AT13: 0.9497001056 | AU13: 0.9463577732 | AV13: 0.9429372637 | AW13: 0.9394411895 | AX13: 0.935872117 | AY13: 0.9322325848 | AZ13: 0.928525099 | BA13: 0.9247521329 | BB13: 0.9209161269
B14: 5 | C14: 0.0119 | E14: 1.25 | F14: 0.009448636587 | G14: 0.9882586779 | H14: 0.01044318212 | I14: 0.01051221701 | J14: 1.175030974 | K14: =(SUM(G15:$G$49)*0.25*ParSwapRate-(G14-$G$49)) -> -0.006726043604 | M14: 5 | S14: 1 | T14: 0.9998993492 | U14: 0.999674614 | V14: 0.9993280293 | W14: 0.9988539703 | X14: 0.998250299 | Y14: 0.9975141585 | Z14: 0.9966397208 | AA14: 0.9956201842 | AB14: 0.994454924 | AC14: 0.9931456735 | AD14: 0.9916948515 | AE14: 0.9901055468 | AF14: 0.988381517 | AG14: 0.9865271821 | AH14: 0.9845476113 | AI14: 0.9824479829 | AJ14: 0.9802317875 | AK14: 0.9779020764 | AL14: 0.9754619432 | AM14: 0.9729145206 | AN14: 0.9702629795 | AO14: 0.9675105256 | AP14: 0.9646603982 | AQ14: 0.9617157917 | AR14: 0.9586796071 | AS14: 0.9555546448 | AT14: 0.9523436746 | AU14: 0.9490494391 | AV14: 0.9456746342 | AW14: 0.9422219454 | AX14: 0.9386940106 | AY14: 0.9350934378 | AZ14: 0.9314228007 | BA14: 0.927684639 | BB14: 0.9238814569
B15: 7 | C15: 0.0132 | E15: 1.5 | F15: 0.009657674228 | G15: 0.9856179133 | H15: 0.01070286244 | I15: 0.01079987378 | J15: 1.392920236 | K15: =(SUM(G16:$G$49)*0.25*ParSwapRate-(G15-$G$49)) -> -0.007750399552 | M15: 6 | T15: 1 | U15: 0.9999088305 | V15: 0.9996909951 | W15: 0.9993410088 | X15: 0.9988568679 | Y15: 0.9982358437 | Z15: 0.9974722283 | AA15: 0.9965593326 | AB15: 0.9954966443 | AC15: 0.9942860077 | AD15: 0.9929299507 | AE15: 0.9914316697 | AF15: 0.9897950283 | AG15: 0.9880245519 | AH15: 0.9861254138 | AI15: 0.9841028957 | AJ15: 0.9819605861 | AK15: 0.9797016322 | AL15: 0.9773292205 | AM15: 0.9748465752 | AN15: 0.972256956 | AO15: 0.9695636558 | AP15: 0.966769999 | AQ15: 0.9638792629 | AR15: 0.9608944289 | AS15: 0.9578183755 | AT15: 0.9546539486 | AU15: 0.9514039648 | AV15: 0.948071192 | AW15: 0.944658386 | AX15: 0.9411682529 | AY15: 0.9376034672 | AZ15: 0.9339666673 | BA15: 0.9302604555 | BB15: 0.9264873976
B16: 10 | C16: 0.015 | E16: 1.75 | F16: 0.009837874984 | G16: 0.9829310721 | H16: 0.01091907952 | I16: 0.01104794976 | J16: 1.605429792 | K16: =(SUM(G17:$G$49)*0.25*ParSwapRate-(G16-$G$49)) -> -0.00871868764 | M16: 7 | U16: 1 | V16: 0.9999077157 | W16: 0.999678665 | X16: 0.9993109799 | Y16: 0.9988020617 | Z16: 0.9981463249 | AA16: 0.997337195 | AB16: 0.9963742736 | AC16: 0.9952595171 | AD16: 0.9939955632 | AE16: 0.9925857164 | AF16: 0.991033947 | AG16: 0.9893448858 | AH16: 0.9875238104 | AI16: 0.9855761052 | AJ16: 0.9835054575 | AK16: 0.9813151097 | AL16: 0.9790083418 | AM16: 0.9765884689 | AN16: 0.9740588396 | AO16: 0.9714228338 | AP16: 0.9686838603 | AQ16: 0.9658452792 | AR16: 0.9629101517 | AS16: 0.9598814339 | AT16: 0.9567620473 | AU16: 0.9535548818 | AV16: 0.9502627769 | AW16: 0.9468885578 | AX16: 0.9434349982 | AY16: 0.9399048381 | AZ16: 0.9363007799 | BA16: 0.9326254878 | BB16: 0.9288815878
B17: 20 | C17: 0.02 | E17: 2 | F17: 0.009999999776 | G17: 0.9801986737 | H17: 0.01113487332 | I17: 0.01129916602 | J17: 1.812692469 | K17: =(SUM(G18:$G$49)*0.25*ParSwapRate-(G17-$G$49)) -> -0.009631257857 | M17: 8 | V17: 1 | W17: 0.9998987851 | X17: 0.9996542576 | Y17: 0.9992639528 | Z17: 0.9987224114 | AA17: 0.9980231785 | AB17: 0.9971659725 | AC17: 0.9961528654 | AD17: 0.9949866082 | AE17: 0.993670617 | AF17: 0.9922089718 | AG17: 0.9906064123 | AH17: 0.9888683239 | AI17: 0.9870001973 | AJ17: 0.9850058217 | AK17: 0.9828885387 | AL17: 0.9806517252 | AM17: 0.9782987908 | AN17: 0.9758331766 | AO17: 0.9732583526 | AP17: 0.9705778161 | AQ17: 0.967795013 | AR17: 0.9649130879 | AS17: 0.9619350777 | AT17: 0.9588639829 | AU17: 0.95570277 | AV17: 0.9524543532 | AW17: 0.9491216303 | AX17: 0.9457074456 | AY17: 0.9422146078 | AZ17: 0.938645886 | BA17: 0.9350040095 | BB17: 0.9312916673
E18: 2.25 | F18: 0.01015351347 | G18: 0.977413575 | H18: 0.01138162301 | I18: 0.01158460158 | J18: 2.014837812 | K18: =(SUM(G19:$G$49)*0.25*ParSwapRate-(G18-$G$49)) -> -0.01048077107 | M18: 9 | W18: 1 | X18: 0.9998932818 | Y18: 0.9996358489 | Z18: 0.9992223741 | AA18: 0.9986465266 | AB18: 0.9979081469 | AC18: 0.997009427 | AD18: 0.995953236 | AE18: 0.9947431064 | AF18: 0.9933832335 | AG18: 0.991878471 | AH18: 0.9902343178 | AI18: 0.9884563766 | AJ18: 0.9865485447 | AK18: 0.9845142689 | AL18: 0.9823570288 | AM18: 0.980080335 | AN18: 0.9776877271 | AO18: 0.9751827717 | AP18: 0.9725690605 | AQ18: 0.9698501318 | AR18: 0.9670292196 | AS18: 0.9641094482 | AT18: 0.9610939029 | AU18: 0.9579856333 | AV18: 0.9547876342 | AW18: 0.9515028821 | AX18: 0.948134298 | AY18: 0.9446847653 | AZ18: 0.9411571256 | BA18: 0.9375541791 | BB18: 0.9338786836
B19: Parameters | E19: 2.5 | F19: 0.01030269575 | G19: 0.9745721358 | H19: 0.01164533631 | I19: 0.01188998177 | J19: 2.211992169 | K19: =(SUM(G20:$G$49)*0.25*ParSwapRate-(G19-$G$49)) -> -0.01126337754 | M19: 10 | N19: =IF(N$8>=$M19,OFFSET(DFcts,N$8,0,1,1)/OFFSET(DFcts,$M19,0,1,1)*EXP(OFFSET(BFactors,N$8-$M19,0,1,1)*OFFSET(FwdRates,$M19,0,1,1)-(IRVol^2)*(1-EXP(-2*MeanRvs*$M19*0.25))*OFFSET(BFactors,(N$8-$M19),0,1,1)^2/(4*MeanRvs)),"") ->  | X19: =IF(X$8>=$M19,OFFSET(DFcts,X$8,0,1,1)/OFFSET(DFcts,$M19,0,1,1)*EXP(OFFSET(BFactors,X$8-$M19,0,1,1)*OFFSET(FwdRates,$M19,0,1,1)-(IRVol^2)*(1-EXP(-2*MeanRvs*$M19*0.25))*OFFSET(BFactors,(X$8-$M19),0,1,1)^2/(4*MeanRvs)),"") -> 1 | Y19: 0.9998870355 | Z19: 0.9996129154 | AA19: 0.9991714377 | AB19: 0.9985625681 | AC19: 0.9977886222 | AD19: 0.9968525911 | AE19: 0.995758127 | AF19: 0.9945095447 | AG19: 0.9931118158 | AH19: =IF(AH$8>=$M19,OFFSET(DFcts,AH$8,0,1,1)/OFFSET(DFcts,$M19,0,1,1)*EXP(OFFSET(BFactors,AH$8-$M19,0,1,1)*OFFSET(FwdRates,$M19,0,1,1)-(IRVol^2)*(1-EXP(-2*MeanRvs*$M19*0.25))*OFFSET(BFactors,(AH$8-$M19),0,1,1)^2/(4*MeanRvs)),"") -> 0.991570557 | AI19: 0.9898914876 | AJ19: 0.9880786176 | AK19: 0.9861355036 | AL19: 0.984065733 | AM19: 0.9818729221 | AN19: 0.979560714 | AO19: 0.9771327769 | AP19: 0.974592802 | AQ19: 0.9719444248 | AR19: =IF(AR$8>=$M19,OFFSET(DFcts,AR$8,0,1,1)/OFFSET(DFcts,$M19,0,1,1)*EXP(OFFSET(BFactors,AR$8-$M19,0,1,1)*OFFSET(FwdRates,$M19,0,1,1)-(IRVol^2)*(1-EXP(-2*MeanRvs*$M19*0.25))*OFFSET(BFactors,(AR$8-$M19),0,1,1)^2/(4*MeanRvs)),"") -> 0.9691909739 | AS19: 0.9663356658 | AT19: 0.9633816759 | AU19: 0.9603321416 | AV19: 0.9571901434 | AW19: 0.9539587415 | AX19: 0.9506409382 | AY19: 0.9472396964 | AZ19: 0.9437579353 | BA19: 0.9401985304 | BB19: 0.9365643132
B20: a | C20: 0.1 | E20: 2.75 | F20: 0.01045053003 | G20: 0.9716700785 | H20: 0.01192887276 | I20: 0.01221790058 | J20: 2.404278768 | K20: =(SUM(G21:$G$49)*0.25*ParSwapRate-(G20-$G$49)) -> -0.01197457436 | M20: 11 | Y20: 1 | Z20: 0.9998777679 | AA20: 0.9995828666 | AB20: 0.9991153905 | AC20: 0.9984777818 | AD20: 0.9976731563 | AE20: 0.99670529 | AF20: 0.9955786202 | AG20: 0.9942982408 | AH20: 0.9928698902 | AI20: 0.9912994087 | AJ20: 0.9895909234 | AK20: 0.9877481057 | AL20: 0.9857746556 | AM20: 0.9836743 | AN20: 0.9814507908 | AO20: 0.9791079028 | AP20: 0.9766494317 | AQ20: 0.9740791157 | AR20: 0.9714003833 | AS20: 0.9686165485 | AT20: 0.9657308818 | AU20: 0.9627466137 | AV20: 0.9596669159 | AW20: 0.9564949371 | AX20: 0.9532337666 | AY20: 0.9498864517 | AZ20: 0.9464559943 | BA20: 0.9429453503 | BB20: 0.9393574297
B21: vol | C21: 0.01 | E21: 3 | F21: 0.01059999969 | G21: 0.9687003037 | H21: 0.01224416597 | I21: 0.01258004195 | J21: 2.591817793 | K21: =(SUM(G22:$G$49)*0.25*ParSwapRate-(G21-$G$49)) -> -0.01260701027 | M21: 12 | Z21: 1 | AA21: 0.9998674255 | AB21: 0.9995566905 | AC21: 0.9990703664 | AD21: 0.9984116966 | AE21: 0.9975845844 | AF21: 0.9965935933 | AG21: 0.9954439432 | AH21: 0.9941414987 | AI21: 0.9926922258 | AJ21: 0.9911003739 | AK21: 0.9893697345 | AL21: 0.9875041257 | AM21: 0.9855073909 | AN21: 0.9833833963 | AO21: 0.9811360293 | AP21: 0.9787691965 | AQ21: 0.9762867449 | AR21: 0.9736922089 | AS21: 0.9709890063 | AT21: 0.9681805093 | AU21: 0.965270048 | AV21: 0.9622608911 | AW21: 0.9591562827 | AX21: 0.955959405 | AY21: 0.9526733965 | AZ21: 0.9493013477 | BA21: 0.9458463015 | BB21: 0.9423112526
E22: 3.25 | F22: 0.0107534774 | G22: 0.965654855 | H22: 0.0125952099 | I22: 0.01298016525 | J22: 2.774726464 | K22: =(SUM(G23:$G$49)*0.25*ParSwapRate-(G22-$G$49)) -> -0.01315244754 | M22: 13 | AA22: 1 | AB22: 0.9998631678 | AC22: 0.9995448592 | AD22: 0.9990484476 | AE22: 0.9983779655 | AF22: 0.9975381058 | AG22: 0.9965342177 | AH22: 0.995372296 | AI22: 0.9940584364 | AJ22: 0.9925970158 | AK22: 0.9909919505 | AL22: 0.9892471824 | AM22: 0.9873666766 | AN22: 0.9853544198 | AO22: 0.983214418 | AP22: 0.9809506948 | AQ22: 0.9785672121 | AR22: 0.976067617 | AS22: 0.9734554375 | AT22: 0.9707341542 | AU22: 0.9679072032 | AV22: 0.9649779572 | AW22: 0.9619497623 | AX22: 0.9588259005 | AY22: 0.9556096078 | AZ22: 0.9523040706 | BA22: 0.9489124252 | BB22: 0.9454377579
B23: Par Swap Rate | C23: =(1-G49)/SUM(G10:G49)/0.25 -> 0.01487440732 | E23: 3.5 | F23: 0.01091089356 | G23: 0.9625318452 | H23: 0.01295730366 | I23: 0.01339334929 | J23: 2.953119103 | K23: =(SUM(G24:$G$49)*0.25*ParSwapRate-(G23-$G$49)) -> -0.01360871038 | M23: 14 | AB23: 1 | AC23: 0.9998612536 | AD23: 0.999538369 | AE23: 0.9990355085 | AF23: 0.9983574951 | AG23: 0.997509809 | AH23: 0.9964985762 | AI23: 0.9953300247 | AJ23: 0.9940086608 | AK23: 0.9925385291 | AL23: 0.9909236978 | AM23: 0.9891682574 | AN23: 0.9872763183 | AO23: 0.985252009 | AP23: 0.9830994737 | AQ23: 0.9808227935 | AR23: 0.9784257319 | AS23: 0.9759119317 | AT23: 0.9732849857 | AU23: 0.9705484404 | AV23: 0.9677057771 | AW23: 0.9647604482 | AX23: 0.9617158398 | AY23: 0.9585752902 | AZ23: 0.9553420858 | BA23: 0.952019461 | BB23: 0.9486105979
E24: 3.75 | F24: 0.01107156831 | G24: 0.9593317016 | H24: 0.01332101476 | I24: 0.01380995473 | J24: 3.127107212 | K24: =(SUM(G25:$G$49)*0.25*ParSwapRate-(G24-$G$49)) -> -0.01397593937 | M24: 15 | AC24: 1 | AD24: 0.9998600386 | AE24: 0.999533978 | AF24: 0.9990267711 | AG24: 0.9983440289 | AH24: 0.9974920094 | AI24: 0.9964770735 | AJ24: 0.9953038587 | AK24: 0.9939765391 | AL24: 0.9924993117 | AM24: 0.9908763945 | AN24: 0.9891120241 | AO24: 0.9872104538 | AP24: 0.9851759515 | AQ24: 0.9830127202 | AR24: 0.9807246432 | AS24: 0.9783154807 | AT24: 0.9757889415 | AU24: 0.9731486859 | AV24: 0.9703983068 | AW24: 0.9675413664 | AX24: 0.9645813587 | AY24: 0.9615217276 | AZ24: 0.9583658632 | BA24: 0.9551171014 | BB24: 0.9517787238
E25: 4 | F25: 0.01123482037 | G25: 0.9560555303 | H25: 0.01368360136 | I25: 0.01422704572 | J25: 3.29679954 | K25: =(SUM(G26:$G$49)*0.25*ParSwapRate-(G25-$G$49)) -> -0.014254958 | M25: 16 | AD25: 1 | AE25: 0.9998595203 | AF25: 0.9995317017 | AG25: 0.9990222853 | AH25: 0.9983376609 | AI25: 0.9974843224 | AJ25: 0.996467039 | AK25: 0.9952901159 | AL25: 0.9939578801 | AM25: 0.9924746786 | AN25: 0.9908448763 | AO25: 0.9890728535 | AP25: 0.9871630038 | AQ25: 0.9851196548 | AR25: 0.982946812 | AS25: 0.980648356 | AT25: 0.9782281143 | AU25: 0.9756898638 | AV25: 0.9730373123 | AW25: 0.970274135 | AX25: 0.9674039367 | AY25: 0.9644302701 | AZ25: 0.9613566323 | BA25: 0.9581864639 | BB25: 0.9549231494
E26: 4.25 | F26: 0.01139996989 | G26: 0.9527050953 | H26: 0.01404236217 | I26: 0.01464173897 | J26: 3.462302149 | K26: =(SUM(G27:$G$49)*0.25*ParSwapRate-(G26-$G$49)) -> -0.01444725385 | M26: 17 | AE26: 1 | AF26: 0.9998597118 | AG26: 0.9995315829 | AH26: 0.9990221337 | AI26: 0.9983379904 | AJ26: 0.9974840544 | AK26: 0.9964647621 | AL26: 0.9952845715 | AM26: 0.9939479599 | AN26: 0.9924594216 | AO26: 0.9908234654 | AP26: 0.9890446128 | AQ26: 0.9871273175 | AR26: 0.9850757096 | AS26: 0.9828937925 | AT26: 0.9805855145 | AU26: 0.9781547722 | AV26: 0.9756053906 | AW26: 0.9729411605 | AX26: 0.9701658004 | AY26: 0.967282975 | AZ26: 0.9642962909 | BA26: 0.9612092965 | BB26: 0.9580254821
E27: 4.5 | F27: 0.01156633676 | G27: 0.9492828109 | H27: 0.0143945735 | I27: 0.01505114028 | J27: 3.623718484 | K27: =(SUM(G28:$G$49)*0.25*ParSwapRate-(G27-$G$49)) -> -0.01455497425 | M27: 18 | AF27: 1 | AG27: 0.9998606227 | AH27: 0.9995336513 | AI27: 0.999025843 | AJ27: 0.9983422308 | AK27: 0.9974873822 | AL27: 0.9964658866 | AM27: 0.9952823519 | AN27: 0.9939414027 | AO27: 0.9924476776 | AP27: 0.9908058268 | AQ27: 0.989020432 | AR27: 0.9870957495 | AS27: 0.9850359073 | AT27: 0.9828449768 | AU27: 0.980526976 | AV27: 0.9780858495 | AW27: 0.9755255064 | AX27: 0.972849781 | AY27: 0.9700624524 | AZ27: 0.9671672394 | BA27: 0.9641678009 | BB27: 0.9610677355
E28: 4.75 | F28: 0.01173324029 | G28: 0.9457917313 | H28: 0.01473750391 | I28: 0.01545235846 | J28: 3.781149435 | K28: =(SUM(G29:$G$49)*0.25*ParSwapRate-(G28-$G$49)) -> -0.0145809175 | M28: 19 | AG28: 1 | AH28: 0.9998622561 | AI28: 0.9995373903 | AJ28: 0.9990305657 | AK28: 0.9983464808 | AL28: 0.9974898554 | AM28: 0.9964654285 | AN28: 0.995277955 | AO28: 0.993932204 | AP28: 0.9924329552 | AQ28: 0.9907849192 | AR28: 0.9889924798 | AS28: 0.9870598911 | AT28: 0.9849913491 | AU28: 0.982790995 | AV28: 0.9804628951 | AW28: 0.9780110781 | AX28: 0.9754394968 | AY28: 0.9727520465 | AZ28: 0.9699525606 | BA28: 0.9670448106 | BB28: 0.9640325057
E29: 5 | F29: 0.01190000027 | G29: 0.9422355323 | H29: 0.01506843996 | I29: 0.01584253057 | J29: 3.934693403 | K29: =(SUM(G30:$G$49)*0.25*ParSwapRate-(G29-$G$49)) -> -0.0145285173 | M29: 20 | N29: =IF(N$8>=$M29,OFFSET(DFcts,N$8,0,1,1)/OFFSET(DFcts,$M29,0,1,1)*EXP(OFFSET(BFactors,N$8-$M29,0,1,1)*OFFSET(FwdRates,$M29,0,1,1)-(IRVol^2)*(1-EXP(-2*MeanRvs*$M29*0.25))*OFFSET(BFactors,(N$8-$M29),0,1,1)^2/(4*MeanRvs)),"") ->  | X29: =IF(X$8>=$M29,OFFSET(DFcts,X$8,0,1,1)/OFFSET(DFcts,$M29,0,1,1)*EXP(OFFSET(BFactors,X$8-$M29,0,1,1)*OFFSET(FwdRates,$M29,0,1,1)-(IRVol^2)*(1-EXP(-2*MeanRvs*$M29*0.25))*OFFSET(BFactors,(X$8-$M29),0,1,1)^2/(4*MeanRvs)),"") ->  | AH29: =IF(AH$8>=$M29,OFFSET(DFcts,AH$8,0,1,1)/OFFSET(DFcts,$M29,0,1,1)*EXP(OFFSET(BFactors,AH$8-$M29,0,1,1)*OFFSET(FwdRates,$M29,0,1,1)-(IRVol^2)*(1-EXP(-2*MeanRvs*$M29*0.25))*OFFSET(BFactors,(AH$8-$M29),0,1,1)^2/(4*MeanRvs)),"") -> 1 | AI29: 0.9998640815 | AJ29: 0.9995399269 | AK29: 0.9990323638 | AL29: 0.9983462422 | AM29: 0.9974864312 | AN29: 0.9964578163 | AO29: 0.9952652966 | AP29: 0.9939137821 | AQ29: 0.9924081127 | AR29: =IF(AR$8>=$M29,OFFSET(DFcts,AR$8,0,1,1)/OFFSET(DFcts,$M29,0,1,1)*EXP(OFFSET(BFactors,AR$8-$M29,0,1,1)*OFFSET(FwdRates,$M29,0,1,1)-(IRVol^2)*(1-EXP(-2*MeanRvs*$M29*0.25))*OFFSET(BFactors,(AR$8-$M29),0,1,1)^2/(4*MeanRvs)),"") -> 0.9907528004 | AS29: 0.9889522265 | AT29: 0.9870107128 | AU29: 0.984932525 | AV29: 0.9827218525 | AW29: 0.9803828455 | AX29: 0.9779195766 | AY29: 0.9753360592 | AZ29: 0.9726362432 | BA29: 0.9698240146 | BB29: 0.9669031952
E30: 5.25 | F30: 0.01206603936 | G30: 0.9386179922 | H30: 0.01538682101 | I30: 0.01622095611 | J30: 4.084446356 | K30: =(SUM(G31:$G$49)*0.25*ParSwapRate-(G30-$G$49)) -> -0.01440132378 | M30: 21 | AI30: 1 | AJ30: 0.9998642718 | AK30: 0.9995388709 | AL30: 0.9990287757 | AM30: 0.9983389847 | AN30: 0.9974745133 | AO30: 0.9964403906 | AP30: 0.9952416565 | AQ30: 0.9938832808 | AR30: 0.9923699042 | AS30: 0.9907060358 | AT30: 0.9888961242 | AU30: 0.9869445607 | AV30: 0.9848556591 | AW30: 0.9826336923 | AX30: 0.9802828545 | AY30: 0.9778072787 | AZ30: 0.9752110328 | BA30: 0.9724981191 | BB30: 0.9696724739
E31: 5.5 | F31: 0.01223119212 | G31: 0.9349412773 | H31: 0.01569940022 | I31: 0.01659425753 | J31: 4.230501896 | K31: =(SUM(G32:$G$49)*0.25*ParSwapRate-(G31-$G$49)) -> -0.01420128324 | M31: 22 | AJ31: 1 | AK31: 0.9998640668 | AL31: 0.9995371475 | AM31: 0.9990243688 | AN31: 0.9983308751 | AO31: 0.9974618252 | AP31: 0.996422389 | AQ31: 0.9952176664 | AR31: 0.9938524275 | AS31: 0.9923313102 | AT31: 0.9906588912 | AU31: 0.9888396885 | AV31: 0.9868781419 | AW31: 0.984778649 | AX31: 0.9825455272 | AY31: 0.9801830311 | AZ31: 0.977695349 | BA31: 0.9750866016 | BB31: 0.9723608421
E32: 5.75 | F32: 0.01239539614 | G32: 0.9312071462 | H32: 0.01600788456 | I32: 0.01696401972 | J32: 4.372951312 | K32: =(SUM(G33:$G$49)*0.25*ParSwapRate-(G32-$G$49)) -> -0.01392994076 | M32: 23 | AK32: 1 | AL32: 0.9998639495 | AM32: 0.9995357111 | AN32: 0.9990205569 | AO32: 0.9983237747 | AP32: 0.9974506641 | AQ32: 0.9964064548 | AR32: 0.995196047 | AS32: 0.9938242079 | AT32: 0.992295643 | AU32: 0.9906149989 | AV32: 0.9887868423 | AW32: 0.9868156973 | AX32: 0.9847060061 | AY32: 0.9824621473 | AZ32: 0.9800884313 | BA32: 0.9775890997 | BB32: 0.9749683246
E33: 6 | F33: 0.01255858898 | G33: 0.9274174104 | H33: 0.01631202431 | I33: 0.01732987901 | J33: 4.511883639 | K33: =(SUM(G34:$G$49)*0.25*ParSwapRate-(G33-$G$49)) -> -0.01358890097 | M33: 24 | AL33: 1 | AM33: 0.9998639202 | AN33: 0.9995345623 | AO33: 0.9990173416 | AP33: 0.9983176864 | AQ33: 0.997440956 | AR33: 0.9963921803 | AS33: 0.9951762563 | AT33: 0.9937980189 | AU33: 0.9922622438 | AV33: 0.9905736261 | AW33: 0.9887368175 | AX33: 0.9867563867 | AY33: 0.9846368378 | AZ33: 0.9823826054 | BA33: 0.9799980539 | BB33: 0.9774874766
E34: 6.25 | F34: 0.01272070821 | G34: 0.9235739319 | H34: 0.01661156974 | I34: 0.01769147944 | J34: 4.647385715 | K34: =(SUM(G35:$G$49)*0.25*ParSwapRate-(G34-$G$49)) -> -0.01317982624 | M34: 25 | AM34: 1 | AN34: 0.999863979 | AO34: 0.999533702 | AP34: 0.9990147247 | AQ34: 0.9983125348 | AR34: 0.9974322914 | AS34: 0.9963790211 | AT34: 0.9951576885 | AU34: 0.9937731986 | AV34: 0.9922303758 | AW34: 0.9905340004 | AX34: 0.988688769 | AY34: 0.9866993126 | AZ34: 0.9845701915 | BA34: 0.9823058945 | BB34: 0.9799108386
E35: 6.5 | F35: 0.0128816914 | G35: 0.9196786218 | H35: 0.01690627112 | I35: 0.01804847232 | J35: 4.779542232 | K35: =(SUM(G36:$G$49)*0.25*ParSwapRate-(G35-$G$49)) -> -0.01270443471 | M35: 26 | AN35: 1 | AO35: 0.9998641261 | AP35: 0.999533131 | AQ35: 0.9990126294 | AR35: 0.9983079084 | AS35: 0.9974241233 | AT35: 0.9963663683 | AU35: 0.995139678 | AV35: 0.9937490062 | AW35: 0.9921992625 | AX35: 0.9904952722 | AY35: 0.9886417945 | AZ35: 0.9866435167 | BA35: 0.9845050539 | BB35: 0.982230948
E36: 6.75 | F36: 0.01304147612 | G36: 0.9157334375 | H36: 0.01719587873 | I36: 0.01840051582 | J36: 4.908435794 | K36: =(SUM(G37:$G$49)*0.25*ParSwapRate-(G36-$G$49)) -> -0.01216449843 | M36: 27 | AO36: 1 | AP36: 0.9998643619 | AQ36: 0.9995327715 | AR36: 0.9990106425 | AS36: 0.9983032577 | AT36: 0.99741584 | AU36: 0.9963535531 | AV36: 0.9951214803 | AW36: 0.9937246607 | AX36: 0.9921680491 | AY36: 0.9904565334 | AZ36: 0.9885949292 | BA36: 0.9865879793 | BB36: 0.9844403516
E37: 7 | F37: 0.01319999993 | G37: 0.9117403809 | H37: 0.01748014284 | I37: 0.01874727462 | J37: 5.034146962 | K37: =(SUM(G38:$G$49)*0.25*ParSwapRate-(G37-$G$49)) -> -0.01156184131 | M37: 28 | AP37: 1 | AQ37: 0.9998646077 | AR37: 0.9995322089 | AS37: 0.9990082126 | AT37: 0.9982979687 | AU37: 0.9974067693 | AV37: 0.9963398269 | AW37: 0.9951023099 | AX37: 0.9936993025 | AY37: 0.992135822 | AZ37: 0.9904168132 | BA37: 0.9885471471 | BB37: 0.9865316195
E38: 7.25 | F38: 0.01335721128 | G38: 0.9077014248 | H38: 0.01775912903 | I38: 0.01908873478 | J38: 5.15675431 | K38: =(SUM(G39:$G$49)*0.25*ParSwapRate-(G38-$G$49)) -> -0.0108982654 | M38: 29 | AQ38: 1 | AR38: 0.9998646046 | AS38: 0.9995311226 | AT38: 0.9990050295 | AU38: 0.9982917443 | AV38: 0.9973966075 | AW38: 0.9963249163 | AX38: 0.9950818844 | AY38: 0.9936726585 | AZ38: 0.9921023128 | BA38: 0.9903758475 | BB38: 0.988498187
E39: 7.5 | F39: 0.0135131021 | G39: 0.9036182788 | H39: 0.01803393604 | I39: 0.01942592131 | J39: 5.276334473 | K39: =(SUM(G40:$G$49)*0.25*ParSwapRate-(G39-$G$49)) -> -0.01017531594 | M39: 30 | N39: =IF(N$8>=$M39,OFFSET(DFcts,N$8,0,1,1)/OFFSET(DFcts,$M39,0,1,1)*EXP(OFFSET(BFactors,N$8-$M39,0,1,1)*OFFSET(FwdRates,$M39,0,1,1)-(IRVol^2)*(1-EXP(-2*MeanRvs*$M39*0.25))*OFFSET(BFactors,(N$8-$M39),0,1,1)^2/(4*MeanRvs)),"") ->  | X39: =IF(X$8>=$M39,OFFSET(DFcts,X$8,0,1,1)/OFFSET(DFcts,$M39,0,1,1)*EXP(OFFSET(BFactors,X$8-$M39,0,1,1)*OFFSET(FwdRates,$M39,0,1,1)-(IRVol^2)*(1-EXP(-2*MeanRvs*$M39*0.25))*OFFSET(BFactors,(X$8-$M39),0,1,1)^2/(4*MeanRvs)),"") ->  | AH39: =IF(AH$8>=$M39,OFFSET(DFcts,AH$8,0,1,1)/OFFSET(DFcts,$M39,0,1,1)*EXP(OFFSET(BFactors,AH$8-$M39,0,1,1)*OFFSET(FwdRates,$M39,0,1,1)-(IRVol^2)*(1-EXP(-2*MeanRvs*$M39*0.25))*OFFSET(BFactors,(AH$8-$M39),0,1,1)^2/(4*MeanRvs)),"") ->  | AR39: =IF(AR$8>=$M39,OFFSET(DFcts,AR$8,0,1,1)/OFFSET(DFcts,$M39,0,1,1)*EXP(OFFSET(BFactors,AR$8-$M39,0,1,1)*OFFSET(FwdRates,$M39,0,1,1)-(IRVol^2)*(1-EXP(-2*MeanRvs*$M39*0.25))*OFFSET(BFactors,(AR$8-$M39),0,1,1)^2/(4*MeanRvs)),"") -> 1 | AS39: 0.9998645472 | AT39: 0.9995299674 | AU39: 0.9990018045 | AV39: 0.9982855257 | AW39: 0.997386556 | AX39: 0.9963102379 | AY39: 0.9950618473 | AZ39: 0.993646588 | BA39: 0.9920695898 | BB39: 0.9903359064
E40: 7.75 | F40: 0.01366767521 | G40: 0.8994925726 | H40: 0.01830486844 | I40: 0.0197590705 | J40: 5.39296219 | K40: =(SUM(G41:$G$49)*0.25*ParSwapRate-(G40-$G$49)) -> -0.0093944645 | M40: 31 | AS40: 1 | AT40: 0.9998645075 | AU40: 0.9995288883 | AV40: 0.9989987339 | AW40: 0.9982795959 | AX40: 0.9973769443 | AY40: 0.9962961836 | AZ40: 0.9950426471 | BA40: 0.993621594 | BB40: 0.9920382077
E41: 8 | F41: 0.01382093341 | G41: 0.8953259229 | H41: 0.01857193771 | I41: 0.02008813065 | J41: 5.506710359 | K41: =(SUM(G42:$G$49)*0.25*ParSwapRate-(G41-$G$49)) -> -0.008557175439 | M41: 32 | AT41: 1 | AU41: 0.9998644889 | AV41: 0.9995278722 | AW41: 0.9989958254 | AX41: 0.9982739447 | AY41: 0.9973677622 | AZ41: 0.9962827395 | BA41: 0.9950242651 | BB41: 0.9935976523
E42: 8.25 | F42: 0.01397287906 | G42: 0.8911199361 | H42: 0.01883513962 | I42: 0.02041303924 | J42: 5.617650075 | K42: =(SUM(G43:$G$49)*0.25*ParSwapRate-(G42-$G$49)) -> -0.007664908788 | M42: 33 | AU42: 1 | AV42: 0.9998644718 | AW42: 0.9995269175 | AX42: 0.9989930566 | AY42: 0.9982685472 | AZ42: 0.9973589782 | BA42: 0.9962698665 | BB42: 0.9950066546
E43: 8.5 | F43: 0.01412351634 | G43: 0.8868761903 | H43: 0.01909454687 | I43: 0.02073381517 | J43: 5.725850681 | K43: =(SUM(G44:$G$49)*0.25*ParSwapRate-(G43-$G$49)) -> -0.006719102473 | M43: 34 | AV43: 1 | AW43: 0.9998644941 | AX43: 0.9995260602 | AY43: 0.9989904798 | AZ43: 0.9982634671 | BA43: 0.9973506664 | BB43: 0.9962576483
E44: 8.75 | F44: 0.01427284669 | G44: 0.8825962698 | H44: 0.01935007853 | I44: 0.02105032805 | J44: 5.831379803 | K44: =(SUM(G45:$G$49)*0.25*ParSwapRate-(G44-$G$49)) -> -0.005721206042 | M44: 35 | AW44: 1 | AX44: 0.9998645171 | AY44: 0.9995252424 | AZ44: 0.9989880135 | BA44: 0.9982585995 | BB44: 0.9973426983
E45: 9 | F45: 0.01442087338 | G45: 0.8782817295 | H45: 0.01960180731 | I45: 0.02136260515 | J45: 5.934303403 | K45: =(SUM(G46:$G$49)*0.25*ParSwapRate-(G45-$G$49)) -> -0.004672645817 | M45: 36 | AX45: 1 | AY45: 0.9998645595 | AZ45: 0.9995244965 | BA45: 0.9989857028 | BB45: 0.9982540011
E46: 9.25 | F46: 0.0145675992 | G46: 0.8739341122 | H46: 0.01984972904 | I46: 0.02167060068 | J46: 6.034685809 | K46: =(SUM(G47:$G$49)*0.25*ParSwapRate-(G46-$G$49)) -> -0.003574841519 | M46: 37 | AY46: 1 | AZ46: 0.9998646173 | BA46: 0.9995238134 | BB46: 0.9989835334
E47: 9.5 | F47: 0.01471302699 | G47: 0.8695549444 | H47: 0.02009385501 | I47: 0.02197428788 | J47: 6.132589765 | K47: =(SUM(G48:$G$49)*0.25*ParSwapRate-(G47-$G$49)) -> -0.002429202295 | M47: 38 | AZ47: 1 | BA47: 0.9998646899 | BB47: 0.9995231919
E48: 9.75 | F48: 0.01485715954 | G48: 0.8651457358 | H48: 0.02033419643 | I48: 0.02227364326 | J48: 6.228076464 | K48: =(SUM(G49:$G$49)*0.25*ParSwapRate-(G48-$G$49)) -> -0.001237126258 | M48: 39 | BA48: 1 | BB48: 0.9998647772
E49: 10 | F49: 0.01499999966 | G49: 0.8607079793 | H49: 0.02057076456 | I49: 0.02256864657 | J49: 6.321205588 | K49: 0 | M49: 40 | BB49: 1

Sheet 15.1
B8: Trade Details | G8: DF | H8: Fixed Leg | I8: Floating Leg | J8: Fwd Start Swap | K8: Swaption EPE | L8: Swaption ENE
B9: Pay/Rec | C9: PAY | E9: 1 | F9: 0 | G9: =EXP(-Cubic_SPline(ZCTime,ZCRate,F9)*F9) -> 1 | J9: =(SwapRate*SUM(H10:$H$49)-SUM(I10:$I$49))*IF(PayRec="PAY",-1,1) -> 0 | K9: =MAX(J9,0) -> 0 | L9: =MIN(J9,0) -> 0
B10: Par Swap Rate | C10: =SUM(I10:I49)/SUM(H10:H49) -> 0.01487440732 | E10: =E9+1 -> 2 | F10: =F9+0.25 -> 0.25 | G10: =EXP(-Cubic_SPline(ZCTime,ZCRate,F10)*F10) -> 0.9980019986 | H10: =0.25*G10 -> 0.2495004996 | I10: =G9-G10 -> 0.001998001427 | J10: =(SwapRate*SUM(H11:$H$49)-SUM(I11:$I$49))*IF(PayRec="PAY",-1,1) -> 0.00171317063 | K10: =PriceSwaption($F$9:$F$49,$G$9:$G$49,E10,SwapRate,MeanRvs,IRVol,IF(PayRec="PAY",1,-1)) -> 0.01241326124 | L10: =-PriceSwaption($F$9:$F$49,$G$9:$G$49,E10,SwapRate,MeanRvs,IRVol,IF(PayRec="PAY",-1,1)) -> -0.01070009061
B11: Trade Swap Rate | C11: =C10 -> 0.01487440732 | E11: =E10+1 -> 3 | F11: =F10+0.25 -> 0.5 | G11: =EXP(-Cubic_SPline(ZCTime,ZCRate,F11)*F11) -> 0.9957590182 | H11: =0.25*G11 -> 0.2489397546 | I11: =G10-G11 -> 0.002242980333 | J11: =(SwapRate*SUM(H12:$H$49)-SUM(I12:$I$49))*IF(PayRec="PAY",-1,1) -> 0.003173021604 | K11: =PriceSwaption($F$9:$F$49,$G$9:$G$49,E11,SwapRate,MeanRvs,IRVol,IF(PayRec="PAY",1,-1)) -> 0.01747670665 | L11: =-PriceSwaption($F$9:$F$49,$G$9:$G$49,E11,SwapRate,MeanRvs,IRVol,IF(PayRec="PAY",-1,1)) -> -0.01430368505
E12: 4 | F12: 0.75 | G12: =EXP(-Cubic_SPline(ZCTime,ZCRate,F12)*F12) -> 0.9933502876 | H12: 0.2483375719 | I12: =G11-G12 -> 0.002408730615 | J12: =(SwapRate*SUM(H13:$H$49)-SUM(I13:$I$49))*IF(PayRec="PAY",-1,1) -> 0.004458165186 | K12: =PriceSwaption($F$9:$F$49,$G$9:$G$49,E12,SwapRate,MeanRvs,IRVol,IF(PayRec="PAY",1,-1)) -> 0.02113590941 | L12: =-PriceSwaption($F$9:$F$49,$G$9:$G$49,E12,SwapRate,MeanRvs,IRVol,IF(PayRec="PAY",-1,1)) -> -0.01667774422
E13: 5 | F13: 1 | G13: =EXP(-Cubic_SPline(ZCTime,ZCRate,F13)*F13) -> 0.9908421903 | H13: 0.2477105476 | I13: 0.00250809731 | J13: =(SwapRate*SUM(H14:$H$49)-SUM(I14:$I$49))*IF(PayRec="PAY",-1,1) -> 0.005634615458 | K13: =PriceSwaption($F$9:$F$49,$G$9:$G$49,E13,SwapRate,MeanRvs,IRVol,IF(PayRec="PAY",1,-1)) -> 0.02401286295 | L13: =-PriceSwaption($F$9:$F$49,$G$9:$G$49,E13,SwapRate,MeanRvs,IRVol,IF(PayRec="PAY",-1,1)) -> -0.01837824749
E14: 6 | F14: 1.25 | G14: =EXP(-Cubic_SPline(ZCTime,ZCRate,F14)*F14) -> 0.9882586779 | H14: 0.2470646695 | I14: 0.002583512382 | J14: =(SwapRate*SUM(H15:$H$49)-SUM(I15:$I$49))*IF(PayRec="PAY",-1,1) -> 0.006726043604 | K14: =PriceSwaption($F$9:$F$49,$G$9:$G$49,E14,SwapRate,MeanRvs,IRVol,IF(PayRec="PAY",1,-1)) -> 0.02635488111 | L14: =-PriceSwaption($F$9:$F$49,$G$9:$G$49,E14,SwapRate,MeanRvs,IRVol,IF(PayRec="PAY",-1,1)) -> -0.01962883751
E15: 7 | F15: 1.5 | G15: =EXP(-Cubic_SPline(ZCTime,ZCRate,F15)*F15) -> 0.9856179133 | H15: 0.2464044783 | I15: 0.002640764628 | J15: =(SwapRate*SUM(H16:$H$49)-SUM(I16:$I$49))*IF(PayRec="PAY",-1,1) -> 0.007750399552 | K15: =PriceSwaption($F$9:$F$49,$G$9:$G$49,E15,SwapRate,MeanRvs,IRVol,IF(PayRec="PAY",1,-1)) -> 0.02829572579 | L15: =-PriceSwaption($F$9:$F$49,$G$9:$G$49,E15,SwapRate,MeanRvs,IRVol,IF(PayRec="PAY",-1,1)) -> -0.02054532624
E16: 8 | F16: 1.75 | G16: =EXP(-Cubic_SPline(ZCTime,ZCRate,F16)*F16) -> 0.9829310721 | H16: 0.245732768 | I16: 0.002686841195 | J16: =(SwapRate*SUM(H17:$H$49)-SUM(I17:$I$49))*IF(PayRec="PAY",-1,1) -> 0.00871868764 | K16: =PriceSwaption($F$9:$F$49,$G$9:$G$49,E16,SwapRate,MeanRvs,IRVol,IF(PayRec="PAY",1,-1)) -> 0.02991725965 | L16: =-PriceSwaption($F$9:$F$49,$G$9:$G$49,E16,SwapRate,MeanRvs,IRVol,IF(PayRec="PAY",-1,1)) -> -0.02119857201
E17: 9 | F17: 2 | G17: =EXP(-Cubic_SPline(ZCTime,ZCRate,F17)*F17) -> 0.9801986737 | H17: 0.2450496684 | I17: 0.002732398365 | J17: =(SwapRate*SUM(H18:$H$49)-SUM(I18:$I$49))*IF(PayRec="PAY",-1,1) -> 0.009631257857 | K17: =PriceSwaption($F$9:$F$49,$G$9:$G$49,E17,SwapRate,MeanRvs,IRVol,IF(PayRec="PAY",1,-1)) -> 0.03127033568 | L17: =-PriceSwaption($F$9:$F$49,$G$9:$G$49,E17,SwapRate,MeanRvs,IRVol,IF(PayRec="PAY",-1,1)) -> -0.02163907782
E18: 10 | F18: 2.25 | G18: =EXP(-Cubic_SPline(ZCTime,ZCRate,F18)*F18) -> 0.977413575 | H18: 0.2443533938 | I18: 0.002785098697 | J18: =(SwapRate*SUM(H19:$H$49)-SUM(I19:$I$49))*IF(PayRec="PAY",-1,1) -> 0.01048077107 | K18: =PriceSwaption($F$9:$F$49,$G$9:$G$49,E18,SwapRate,MeanRvs,IRVol,IF(PayRec="PAY",1,-1)) -> 0.03238676816 | L18: =-PriceSwaption($F$9:$F$49,$G$9:$G$49,E18,SwapRate,MeanRvs,IRVol,IF(PayRec="PAY",-1,1)) -> -0.0219059971
E19: 11 | F19: 2.5 | G19: =EXP(-Cubic_SPline(ZCTime,ZCRate,F19)*F19) -> 0.9745721358 | H19: 0.2436430339 | I19: 0.002841439252 | J19: =(SwapRate*SUM(H20:$H$49)-SUM(I20:$I$49))*IF(PayRec="PAY",-1,1) -> 0.01126337754 | K19: =PriceSwaption($F$9:$F$49,$G$9:$G$49,E19,SwapRate,MeanRvs,IRVol,IF(PayRec="PAY",1,-1)) -> 0.0332910731 | L19: =-PriceSwaption($F$9:$F$49,$G$9:$G$49,E19,SwapRate,MeanRvs,IRVol,IF(PayRec="PAY",-1,1)) -> -0.02202769555
E20: 12 | F20: 2.75 | G20: =EXP(-Cubic_SPline(ZCTime,ZCRate,F20)*F20) -> 0.9716700785 | H20: 0.2429175196 | I20: 0.002902057317 | J20: =(SwapRate*SUM(H21:$H$49)-SUM(I21:$I$49))*IF(PayRec="PAY",-1,1) -> 0.01197457436 | K20: =PriceSwaption($F$9:$F$49,$G$9:$G$49,E20,SwapRate,MeanRvs,IRVol,IF(PayRec="PAY",1,-1)) -> 0.03400117778 | L20: =-PriceSwaption($F$9:$F$49,$G$9:$G$49,E20,SwapRate,MeanRvs,IRVol,IF(PayRec="PAY",-1,1)) -> -0.02202660342
E21: 13 | F21: 3 | G21: =EXP(-Cubic_SPline(ZCTime,ZCRate,F21)*F21) -> 0.9687003037 | H21: 0.2421750759 | I21: 0.002969774807 | J21: =(SwapRate*SUM(H22:$H$49)-SUM(I22:$I$49))*IF(PayRec="PAY",-1,1) -> 0.01260701027 | K21: =PriceSwaption($F$9:$F$49,$G$9:$G$49,E21,SwapRate,MeanRvs,IRVol,IF(PayRec="PAY",1,-1)) -> 0.03452897339 | L21: =-PriceSwaption($F$9:$F$49,$G$9:$G$49,E21,SwapRate,MeanRvs,IRVol,IF(PayRec="PAY",-1,1)) -> -0.02192196311
E22: 14 | F22: 3.25 | G22: =EXP(-Cubic_SPline(ZCTime,ZCRate,F22)*F22) -> 0.965654855 | H22: 0.2414137138 | I22: 0.00304544864 | J22: =(SwapRate*SUM(H23:$H$49)-SUM(I23:$I$49))*IF(PayRec="PAY",-1,1) -> 0.01315244754 | K22: =PriceSwaption($F$9:$F$49,$G$9:$G$49,E22,SwapRate,MeanRvs,IRVol,IF(PayRec="PAY",1,-1)) -> 0.03488261302 | L22: =-PriceSwaption($F$9:$F$49,$G$9:$G$49,E22,SwapRate,MeanRvs,IRVol,IF(PayRec="PAY",-1,1)) -> -0.02173016548
E23: 15 | F23: 3.5 | G23: =EXP(-Cubic_SPline(ZCTime,ZCRate,F23)*F23) -> 0.9625318452 | H23: 0.2406329613 | I23: 0.003123009844 | J23: =(SwapRate*SUM(H24:$H$49)-SUM(I24:$I$49))*IF(PayRec="PAY",-1,1) -> 0.01360871038 | K23: =PriceSwaption($F$9:$F$49,$G$9:$G$49,E23,SwapRate,MeanRvs,IRVol,IF(PayRec="PAY",1,-1)) -> 0.0350714138 | L23: =-PriceSwaption($F$9:$F$49,$G$9:$G$49,E23,SwapRate,MeanRvs,IRVol,IF(PayRec="PAY",-1,1)) -> -0.02146270342
E24: 16 | F24: 3.75 | G24: =EXP(-Cubic_SPline(ZCTime,ZCRate,F24)*F24) -> 0.9593317016 | H24: 0.2398329254 | I24: 0.003200143626 | J24: =(SwapRate*SUM(H25:$H$49)-SUM(I25:$I$49))*IF(PayRec="PAY",-1,1) -> 0.01397593937 | K24: =PriceSwaption($F$9:$F$49,$G$9:$G$49,E24,SwapRate,MeanRvs,IRVol,IF(PayRec="PAY",1,-1)) -> 0.03510426618 | L24: =-PriceSwaption($F$9:$F$49,$G$9:$G$49,E24,SwapRate,MeanRvs,IRVol,IF(PayRec="PAY",-1,1)) -> -0.0211283268
E25: 17 | F25: 4 | G25: =EXP(-Cubic_SPline(ZCTime,ZCRate,F25)*F25) -> 0.9560555303 | H25: 0.2390138826 | I25: 0.003276171222 | J25: =(SwapRate*SUM(H26:$H$49)-SUM(I26:$I$49))*IF(PayRec="PAY",-1,1) -> 0.014254958 | K25: =PriceSwaption($F$9:$F$49,$G$9:$G$49,E25,SwapRate,MeanRvs,IRVol,IF(PayRec="PAY",1,-1)) -> 0.03498907562 | L25: =-PriceSwaption($F$9:$F$49,$G$9:$G$49,E25,SwapRate,MeanRvs,IRVol,IF(PayRec="PAY",-1,1)) -> -0.02073411762
E26: 18 | F26: 4.25 | G26: =EXP(-Cubic_SPline(ZCTime,ZCRate,F26)*F26) -> 0.9527050953 | H26: 0.2381762738 | I26: 0.003350435058 | J26: =(SwapRate*SUM(H27:$H$49)-SUM(I27:$I$49))*IF(PayRec="PAY",-1,1) -> 0.01444725385 | K26: =PriceSwaption($F$9:$F$49,$G$9:$G$49,E26,SwapRate,MeanRvs,IRVol,IF(PayRec="PAY",1,-1)) -> 0.03473304006 | L26: =-PriceSwaption($F$9:$F$49,$G$9:$G$49,E26,SwapRate,MeanRvs,IRVol,IF(PayRec="PAY",-1,1)) -> -0.02028578621
E27: 19 | F27: 4.5 | G27: =EXP(-Cubic_SPline(ZCTime,ZCRate,F27)*F27) -> 0.9492828109 | H27: 0.2373207027 | I27: 0.003422284396 | J27: =(SwapRate*SUM(H28:$H$49)-SUM(I28:$I$49))*IF(PayRec="PAY",-1,1) -> 0.01455497425 | K27: =PriceSwaption($F$9:$F$49,$G$9:$G$49,E27,SwapRate,MeanRvs,IRVol,IF(PayRec="PAY",1,-1)) -> 0.03434286301 | L27: =-PriceSwaption($F$9:$F$49,$G$9:$G$49,E27,SwapRate,MeanRvs,IRVol,IF(PayRec="PAY",-1,1)) -> -0.01978788876
E28: 20 | F28: 4.75 | G28: =EXP(-Cubic_SPline(ZCTime,ZCRate,F28)*F28) -> 0.9457917313 | H28: 0.2364479328 | I28: 0.003491079609 | J28: =(SwapRate*SUM(H29:$H$49)-SUM(I29:$I$49))*IF(PayRec="PAY",-1,1) -> 0.0145809175 | K28: =PriceSwaption($F$9:$F$49,$G$9:$G$49,E28,SwapRate,MeanRvs,IRVol,IF(PayRec="PAY",1,-1)) -> 0.03382491239 | L28: =-PriceSwaption($F$9:$F$49,$G$9:$G$49,E28,SwapRate,MeanRvs,IRVol,IF(PayRec="PAY",-1,1)) -> -0.01924399488
E29: 21 | F29: 5 | G29: =EXP(-Cubic_SPline(ZCTime,ZCRate,F29)*F29) -> 0.9422355323 | H29: 0.2355588831 | I29: 0.003556198977 | J29: =(SwapRate*SUM(H30:$H$49)-SUM(I30:$I$49))*IF(PayRec="PAY",-1,1) -> 0.0145285173 | K29: =PriceSwaption($F$9:$F$49,$G$9:$G$49,E29,SwapRate,MeanRvs,IRVol,IF(PayRec="PAY",1,-1)) -> 0.03318533772 | L29: =-PriceSwaption($F$9:$F$49,$G$9:$G$49,E29,SwapRate,MeanRvs,IRVol,IF(PayRec="PAY",-1,1)) -> -0.01865682042
E30: 22 | F30: 5.25 | G30: =EXP(-Cubic_SPline(ZCTime,ZCRate,F30)*F30) -> 0.9386179922 | H30: 0.234654498 | I30: 0.003617540104 | J30: =(SwapRate*SUM(H31:$H$49)-SUM(I31:$I$49))*IF(PayRec="PAY",-1,1) -> 0.01440132378 | K30: =PriceSwaption($F$9:$F$49,$G$9:$G$49,E30,SwapRate,MeanRvs,IRVol,IF(PayRec="PAY",1,-1)) -> 0.03242985481 | L30: =-PriceSwaption($F$9:$F$49,$G$9:$G$49,E30,SwapRate,MeanRvs,IRVol,IF(PayRec="PAY",-1,1)) -> -0.01802853103
E31: 23 | F31: 5.5 | G31: =EXP(-Cubic_SPline(ZCTime,ZCRate,F31)*F31) -> 0.9349412773 | H31: 0.2337353193 | I31: 0.003676714881 | J31: =(SwapRate*SUM(H32:$H$49)-SUM(I32:$I$49))*IF(PayRec="PAY",-1,1) -> 0.01420128324 | K31: =PriceSwaption($F$9:$F$49,$G$9:$G$49,E31,SwapRate,MeanRvs,IRVol,IF(PayRec="PAY",1,-1)) -> 0.03156277696 | L31: =-PriceSwaption($F$9:$F$49,$G$9:$G$49,E31,SwapRate,MeanRvs,IRVol,IF(PayRec="PAY",-1,1)) -> -0.01736149371
E32: 24 | F32: 5.75 | G32: =EXP(-Cubic_SPline(ZCTime,ZCRate,F32)*F32) -> 0.9312071462 | H32: 0.2328017866 | I32: 0.003734131083 | J32: =(SwapRate*SUM(H33:$H$49)-SUM(I33:$I$49))*IF(PayRec="PAY",-1,1) -> 0.01392994076 | K32: =PriceSwaption($F$9:$F$49,$G$9:$G$49,E32,SwapRate,MeanRvs,IRVol,IF(PayRec="PAY",1,-1)) -> 0.03058779646 | L32: =-PriceSwaption($F$9:$F$49,$G$9:$G$49,E32,SwapRate,MeanRvs,IRVol,IF(PayRec="PAY",-1,1)) -> -0.01665785571
E33: 25 | F33: 6 | G33: =EXP(-Cubic_SPline(ZCTime,ZCRate,F33)*F33) -> 0.9274174104 | H33: 0.2318543526 | I33: 0.003789735866 | J33: =(SwapRate*SUM(H34:$H$49)-SUM(I34:$I$49))*IF(PayRec="PAY",-1,1) -> 0.01358890097 | K33: =PriceSwaption($F$9:$F$49,$G$9:$G$49,E33,SwapRate,MeanRvs,IRVol,IF(PayRec="PAY",1,-1)) -> 0.02950831343 | L33: =-PriceSwaption($F$9:$F$49,$G$9:$G$49,E33,SwapRate,MeanRvs,IRVol,IF(PayRec="PAY",-1,1)) -> -0.01591941246
E34: 26 | F34: 6.25 | G34: =EXP(-Cubic_SPline(ZCTime,ZCRate,F34)*F34) -> 0.9235739319 | H34: 0.230893483 | I34: 0.003843478446 | J34: =(SwapRate*SUM(H35:$H$49)-SUM(I35:$I$49))*IF(PayRec="PAY",-1,1) -> 0.01317982624 | K34: =PriceSwaption($F$9:$F$49,$G$9:$G$49,E34,SwapRate,MeanRvs,IRVol,IF(PayRec="PAY",1,-1)) -> 0.02832747664 | L34: =-PriceSwaption($F$9:$F$49,$G$9:$G$49,E34,SwapRate,MeanRvs,IRVol,IF(PayRec="PAY",-1,1)) -> -0.0151476504
E35: 27 | F35: 6.5 | G35: =EXP(-Cubic_SPline(ZCTime,ZCRate,F35)*F35) -> 0.9196786218 | H35: 0.2299196554 | I35: 0.003895310128 | J35: =(SwapRate*SUM(H36:$H$49)-SUM(I36:$I$49))*IF(PayRec="PAY",-1,1) -> 0.01270443471 | K35: =PriceSwaption($F$9:$F$49,$G$9:$G$49,E35,SwapRate,MeanRvs,IRVol,IF(PayRec="PAY",1,-1)) -> 0.02704821711 | L35: =-PriceSwaption($F$9:$F$49,$G$9:$G$49,E35,SwapRate,MeanRvs,IRVol,IF(PayRec="PAY",-1,1)) -> -0.0143437824
E36: 28 | F36: 6.75 | G36: =EXP(-Cubic_SPline(ZCTime,ZCRate,F36)*F36) -> 0.9157334375 | H36: 0.2289333594 | I36: 0.003945184322 | J36: =(SwapRate*SUM(H37:$H$49)-SUM(I37:$I$49))*IF(PayRec="PAY",-1,1) -> 0.01216449843 | K36: =PriceSwaption($F$9:$F$49,$G$9:$G$49,E36,SwapRate,MeanRvs,IRVol,IF(PayRec="PAY",1,-1)) -> 0.02567327601 | L36: =-PriceSwaption($F$9:$F$49,$G$9:$G$49,E36,SwapRate,MeanRvs,IRVol,IF(PayRec="PAY",-1,1)) -> -0.01350877758
E37: 29 | F37: 7 | G37: =EXP(-Cubic_SPline(ZCTime,ZCRate,F37)*F37) -> 0.9117403809 | H37: 0.2279350952 | I37: 0.003993056568 | J37: =(SwapRate*SUM(H38:$H$49)-SUM(I38:$I$49))*IF(PayRec="PAY",-1,1) -> 0.01156184131 | K37: =PriceSwaption($F$9:$F$49,$G$9:$G$49,E37,SwapRate,MeanRvs,IRVol,IF(PayRec="PAY",1,-1)) -> 0.02420522767 | L37: =-PriceSwaption($F$9:$F$49,$G$9:$G$49,E37,SwapRate,MeanRvs,IRVol,IF(PayRec="PAY",-1,1)) -> -0.01264338636
E38: 30 | F38: 7.25 | G38: =EXP(-Cubic_SPline(ZCTime,ZCRate,F38)*F38) -> 0.9077014248 | H38: 0.2269253562 | I38: 0.004038956089 | J38: =(SwapRate*SUM(H39:$H$49)-SUM(I39:$I$49))*IF(PayRec="PAY",-1,1) -> 0.0108982654 | K38: =PriceSwaption($F$9:$F$49,$G$9:$G$49,E38,SwapRate,MeanRvs,IRVol,IF(PayRec="PAY",1,-1)) -> 0.02264645506 | L38: =-PriceSwaption($F$9:$F$49,$G$9:$G$49,E38,SwapRate,MeanRvs,IRVol,IF(PayRec="PAY",-1,1)) -> -0.01174818966
E39: 31 | F39: 7.5 | G39: =EXP(-Cubic_SPline(ZCTime,ZCRate,F39)*F39) -> 0.9036182788 | H39: 0.2259045697 | I39: 0.004083146044 | J39: =(SwapRate*SUM(H40:$H$49)-SUM(I40:$I$49))*IF(PayRec="PAY",-1,1) -> 0.01017531594 | K39: =PriceSwaption($F$9:$F$49,$G$9:$G$49,E39,SwapRate,MeanRvs,IRVol,IF(PayRec="PAY",1,-1)) -> 0.02099902314 | L39: =-PriceSwaption($F$9:$F$49,$G$9:$G$49,E39,SwapRate,MeanRvs,IRVol,IF(PayRec="PAY",-1,1)) -> -0.0108237072
E40: 32 | F40: 7.75 | G40: =EXP(-Cubic_SPline(ZCTime,ZCRate,F40)*F40) -> 0.8994925726 | H40: 0.2248731432 | I40: 0.004125706165 | J40: =(SwapRate*SUM(H41:$H$49)-SUM(I41:$I$49))*IF(PayRec="PAY",-1,1) -> 0.0093944645 | K40: =PriceSwaption($F$9:$F$49,$G$9:$G$49,E40,SwapRate,MeanRvs,IRVol,IF(PayRec="PAY",1,-1)) -> 0.01926480562 | L40: =-PriceSwaption($F$9:$F$49,$G$9:$G$49,E40,SwapRate,MeanRvs,IRVol,IF(PayRec="PAY",-1,1)) -> -0.009870341123
E41: 33 | F41: 8 | G41: =EXP(-Cubic_SPline(ZCTime,ZCRate,F41)*F41) -> 0.8953259229 | H41: 0.2238314807 | I41: 0.004166649676 | J41: =(SwapRate*SUM(H42:$H$49)-SUM(I42:$I$49))*IF(PayRec="PAY",-1,1) -> 0.008557175439 | K41: =PriceSwaption($F$9:$F$49,$G$9:$G$49,E41,SwapRate,MeanRvs,IRVol,IF(PayRec="PAY",1,-1)) -> 0.01744553862 | L41: =-PriceSwaption($F$9:$F$49,$G$9:$G$49,E41,SwapRate,MeanRvs,IRVol,IF(PayRec="PAY",-1,1)) -> -0.008888363183
E42: 34 | F42: 8.25 | G42: =EXP(-Cubic_SPline(ZCTime,ZCRate,F42)*F42) -> 0.8911199361 | H42: 0.222779984 | I42: 0.004205986876 | J42: =(SwapRate*SUM(H43:$H$49)-SUM(I43:$I$49))*IF(PayRec="PAY",-1,1) -> 0.007664908788 | K42: =PriceSwaption($F$9:$F$49,$G$9:$G$49,E42,SwapRate,MeanRvs,IRVol,IF(PayRec="PAY",1,-1)) -> 0.01554283371 | L42: =-PriceSwaption($F$9:$F$49,$G$9:$G$49,E42,SwapRate,MeanRvs,IRVol,IF(PayRec="PAY",-1,1)) -> -0.007877924924
E43: 35 | F43: 8.5 | G43: =EXP(-Cubic_SPline(ZCTime,ZCRate,F43)*F43) -> 0.8868761903 | H43: 0.2217190476 | I43: 0.004243745738 | J43: =(SwapRate*SUM(H44:$H$49)-SUM(I44:$I$49))*IF(PayRec="PAY",-1,1) -> 0.006719102473 | K43: =PriceSwaption($F$9:$F$49,$G$9:$G$49,E43,SwapRate,MeanRvs,IRVol,IF(PayRec="PAY",1,-1)) -> 0.01355817683 | L43: =-PriceSwaption($F$9:$F$49,$G$9:$G$49,E43,SwapRate,MeanRvs,IRVol,IF(PayRec="PAY",-1,1)) -> -0.006839074361
E44: 36 | F44: 8.75 | G44: =EXP(-Cubic_SPline(ZCTime,ZCRate,F44)*F44) -> 0.8825962698 | H44: 0.2206490674 | I44: 0.004279920535 | J44: =(SwapRate*SUM(H45:$H$49)-SUM(I45:$I$49))*IF(PayRec="PAY",-1,1) -> 0.005721206042 | K44: =PriceSwaption($F$9:$F$49,$G$9:$G$49,E44,SwapRate,MeanRvs,IRVol,IF(PayRec="PAY",1,-1)) -> 0.0114929575 | L44: =-PriceSwaption($F$9:$F$49,$G$9:$G$49,E44,SwapRate,MeanRvs,IRVol,IF(PayRec="PAY",-1,1)) -> -0.005771751462
E45: 37 | F45: 9 | G45: =EXP(-Cubic_SPline(ZCTime,ZCRate,F45)*F45) -> 0.8782817295 | H45: 0.2195704324 | I45: 0.004314540271 | J45: =(SwapRate*SUM(H46:$H$49)-SUM(I46:$I$49))*IF(PayRec="PAY",-1,1) -> 0.004672645817 | K45: =PriceSwaption($F$9:$F$49,$G$9:$G$49,E45,SwapRate,MeanRvs,IRVol,IF(PayRec="PAY",1,-1)) -> 0.009348454931 | L45: =-PriceSwaption($F$9:$F$49,$G$9:$G$49,E45,SwapRate,MeanRvs,IRVol,IF(PayRec="PAY",-1,1)) -> -0.004675809114
E46: 38 | F46: 9.25 | G46: =EXP(-Cubic_SPline(ZCTime,ZCRate,F46)*F46) -> 0.8739341122 | H46: 0.2184835281 | I46: 0.004347617287 | J46: =(SwapRate*SUM(H47:$H$49)-SUM(I47:$I$49))*IF(PayRec="PAY",-1,1) -> 0.003574841519 | K46: =PriceSwaption($F$9:$F$49,$G$9:$G$49,E46,SwapRate,MeanRvs,IRVol,IF(PayRec="PAY",1,-1)) -> 0.007125854765 | L46: =-PriceSwaption($F$9:$F$49,$G$9:$G$49,E46,SwapRate,MeanRvs,IRVol,IF(PayRec="PAY",-1,1)) -> -0.003551013245
E47: 39 | F47: 9.5 | G47: =EXP(-Cubic_SPline(ZCTime,ZCRate,F47)*F47) -> 0.8695549444 | H47: 0.2173887361 | I47: 0.004379167831 | J47: =(SwapRate*SUM(H48:$H$49)-SUM(I48:$I$49))*IF(PayRec="PAY",-1,1) -> 0.002429202295 | K47: =PriceSwaption($F$9:$F$49,$G$9:$G$49,E47,SwapRate,MeanRvs,IRVol,IF(PayRec="PAY",1,-1)) -> 0.004826252424 | L47: =-PriceSwaption($F$9:$F$49,$G$9:$G$49,E47,SwapRate,MeanRvs,IRVol,IF(PayRec="PAY",-1,1)) -> -0.002397050129
E48: 40 | F48: 9.75 | G48: =EXP(-Cubic_SPline(ZCTime,ZCRate,F48)*F48) -> 0.8651457358 | H48: 0.216286434 | I48: 0.004409208553 | J48: =(SwapRate*SUM(H49:$H$49)-SUM(I49:$I$49))*IF(PayRec="PAY",-1,1) -> 0.001237126258 | K48: =PriceSwaption($F$9:$F$49,$G$9:$G$49,E48,SwapRate,MeanRvs,IRVol,IF(PayRec="PAY",1,-1)) -> 0.00245065791 | L48: =-PriceSwaption($F$9:$F$49,$G$9:$G$49,E48,SwapRate,MeanRvs,IRVol,IF(PayRec="PAY",-1,1)) -> -0.001213531652
E49: 41 | F49: 10 | G49: =EXP(-Cubic_SPline(ZCTime,ZCRate,F49)*F49) -> 0.8607079793 | H49: 0.2151769948 | I49: 0.004437756525 | J49: =(SwapRate*SUM(H$49:$H50)-SUM(I$49:$I50))*IF(PayRec="PAY",-1,1) -> 0.001237126258 | K49: 0 | L49: 0

Sheet 15.2
B9: Parameters
C10: Trade 1 | D10: Trade 2 | E10: Trade 3
B11: Mean | C11: 6 | D11: -10 | E11: 0
B12: Std Dev | C12: 10 | D12: 30 | E12: 0
B13: Correlation | C13: 0
B15: Stand-alone calculations
C16: Trade 1 | D16: Trade 2 | E16: Trade 3
B17: EPE | C17: =C11*NORMSDIST(C11/C12)+C12*NORMDIST(C11/C12,0,1,FALSE) -> 7.686727322 | D17: =D11*NORMSDIST(D11/D12)+D12*NORMDIST(D11/D12,0,1,FALSE) -> 7.627083429 | E17: =E11*NORMSDIST(E11/E12)+E12*NORMDIST(E11/E12,0,1,FALSE) -> 
B18: EPE 1 + EPE2 | C18: =C17+D17 -> 15.31381075
B20: Portfolio
B21: Mean | C21: =C11+D11+E11 -> -4
B22: Std Dev | C22: =SQRT(C12^2+D12^2+E12^2+2*Correlation*(C12*D12+C12*E12+D12*E12)) -> 31.6227766
B23: EE (total) | C23: =C21*NORMSDIST(C21/C22)+C22*NORMDIST(C21/C22,0,1,FALSE) -> 10.71645356
B25: EPE Allocation
C26: Trade 1 | D26: Trade 2 | E26: Trade 3
B27: Correlation | C27: =(C12+Correlation*(D12+E12))/C22 -> 0.316227766 | D27: =(D12+Correlation*(C12+E12))/C22 -> 0.9486832981 | E27: =(E12+Correlation*(C12+D12))/C22 -> 0
B28: Marginal EPE | C28: =C11*NORMSDIST(C21/C22)+C12*C27*NORMDIST(C21/C22,0,1,FALSE) -> 3.949543559 | D28: =D11*NORMSDIST(C21/C22)+D12*D27*NORMDIST(C21/C22,0,1,FALSE) -> 6.76691 | E28: =E11*NORMSDIST(C21/C22)+E12*E27*NORMDIST(C21/C22,0,1,FALSE) -> 0
B29: Total EPE | C29: =C28+D28+E28 -> 10.71645356
B30: Percentage | C30: =C28/TotalMargEPE -> 0.3685494961 | D30: =D28/TotalMargEPE -> 0.6314505039 | E30: =E28/TotalMargEPE -> 0
C34: Trade 1 | D34: Trade 2
B35: -100 | C35: =NORMDIST(B35,$C$11,$C$12,FALSE) -> 1.593111133e-26 | D35: =NORMDIST(B35,$D$11,$D$12,FALSE) -> 0.0001477282804
B36: =B35+5 -> -95 | C36: 2.816566544e-24 | D36: 0.0002402033255
B37: =B36+5 -> -90 | C37: 3.878111932e-22 | D37: 0.0003798662008
B38: -85 | C38: 4.158598979e-20 | D38: 0.0005842766831
B39: -80 | C39: 3.472962749e-18 | D39: 0.0008740629698
B40: -75 | C40: 2.258809403e-16 | D40: 0.001271754117
B41: -70 | C41: 1.14415649e-14 | D41: 0.001799698884
B42: -65 | C42: 4.513543677e-13 | D42: 0.002477038785 | F42: 0 | G42: =C28 -> 3.949543559 | H42: =D28 -> 6.76691 | I42: =C17 -> 7.686727322 | J42: =D17 -> 7.627083429
B43: -60 | C43: 1.386679994e-11 | D43: 0.003315904626 | F43: =MAX(C35:D95) -> 0.03969525475 | G43: =G42 -> 3.949543559 | H43: =H42 -> 6.76691 | I43: =I42 -> 7.686727322 | J43: =J42 -> 7.627083429
B44: -55 | C44: 3.317884244e-10 | D44: 0.004317253189
B45: -50 | C45: 6.1826205e-09 | D45: 0.005467002489
B46: -45 | C46: 8.972435162e-08 | D46: 0.006733289518
B47: -40 | C47: 1.014085207e-06 | D47: 0.008065690817
B48: -35 | C48: 8.926165718e-06 | D48: 0.009397062514
B49: -30 | C49: 6.119019301e-05 | D49: 0.01064826685
B50: -25 | C50: 0.0003266819056 | D50: 0.01173551089
B51: -20 | C51: 0.001358296923 | D51: 0.01257944092
B52: -15 | C52: 0.004398359598 | D52: 0.0131146572
B53: -10 | C53: 0.01109208347 | D53: 0.01329807601
B54: -5 | C54: 0.0217852177 | D54: 0.0131146572
B55: 0 | C55: 0.03332246029 | D55: 0.01257944092
B56: 5 | C56: 0.03969525475 | D56: 0.01173551089
B57: 10 | C57: 0.03682701403 | D57: 0.01064826685
B58: 15 | C58: 0.02660852499 | D58: 0.009397062514
B59: 20 | C59: 0.01497274656 | D59: 0.008065690817
B60: 25 | C60: 0.006561581477 | D60: 0.006733289518
B61: 30 | C61: 0.002239453029 | D61: 0.005467002489
B62: 35 | C62: 0.000595253242 | D62: 0.004317253189
B63: 40 | C63: 0.0001232219168 | D63: 0.003315904626
B64: 45 | C64: 1.986554714e-05 | D64: 0.002477038785
B65: 50 | C65: 2.494247129e-06 | D65: 0.001799698884
B66: 55 | C66: 2.438960746e-07 | D66: 0.001271754117
B67: 60 | C67: 1.857361845e-08 | D67: 0.0008740629698
B68: 65 | C68: 1.101576362e-09 | D68: 0.0005842766831
B69: 70 | C69: 5.088140282e-11 | D69: 0.0003798662008
B70: 75 | C70: 1.830332217e-12 | D70: 0.0002402033255
B71: 80 | C71: 5.127753637e-14 | D71: 0.0001477282804
B72: 85 | C72: 1.118795621e-15 | D72: 8.836586515e-05
B73: 90 | C73: 1.901081538e-17 | D73: 5.140929988e-05
B74: 95 | C74: 2.515805777e-19 | D74: 2.908942317e-05
B75: 100 | C75: 2.592864701e-21 | D75: 1.600902172e-05
B76: 105 | C76: 2.08117682e-23 | D76: 8.569011835e-06
B77: 110 | C77: 1.30096162e-25 | D77: 4.461007525e-06
B78: 115 | C78: 6.333537822e-28 | D78: 2.258766996e-06
B79: 120 | C79: 2.4013454e-30 | D79: 1.11236208e-06
B80: 125 | C80: 7.090702668e-33 | D80: 5.327913702e-07
B81: 130 | C81: 1.630610735e-35 | D81: 2.48201529e-07
B82: 135 | C82: 2.920368794e-38 | D82: 1.124573869e-07
B83: 140 | C83: 4.073347678e-41 | D83: 4.955731716e-08
B84: 145 | C84: 4.424779583e-44 | D84: 2.124045674e-08
B85: 150 | C85: 3.74333058e-47 | D85: 8.854339695e-09
B86: 155 | C86: 2.466329526e-50 | D86: 3.589920014e-09
B87: 160 | C87: 1.265524047e-53 | D87: 1.415629582e-09
B88: 165 | C88: 5.057269304e-57 | D88: 5.429386403e-10
B89: 170 | C89: 1.57393988e-60 | D89: 2.025294283e-10
B90: 175 | C90: 3.814930036e-64 | D90: 7.347875466e-11
B91: 180 | C91: 7.201308153e-68 | D91: 2.592816023e-11
B92: 185 | C92: 1.058674841e-71 | D92: 8.898522049e-12
B93: 190 | C93: 1.212104795e-75 | D93: 2.970300062e-12
B94: 195 | C94: 1.080796987e-79 | D94: 9.643152441e-13
B95: 200 | C95: 7.505410686e-84 | D95: 3.044906803e-13

Sheet 15.3
B8: Pay / Rec | C8: PAY | J8: 0 | K8: =J8+1 -> 1 | L8: =K8+1 -> 2 | M8: 3 | N8: 4 | O8: 5 | P8: 6 | Q8: 7 | R8: 8 | S8: 9 | T8: 10 | U8: 11 | V8: 12 | W8: 13 | X8: 14 | Y8: 15 | Z8: 16 | AA8: 17 | AB8: 18 | AC8: 19 | AD8: 20 | AE8: 21 | AF8: 22 | AG8: 23 | AH8: 24 | AI8: 25 | AJ8: 26 | AK8: 27 | AL8: 28 | AM8: 29 | AN8: 30 | AO8: 31 | AP8: 32 | AQ8: 33 | AR8: 34 | AS8: 35 | AT8: 36 | AU8: 37 | AV8: 38 | AW8: 39 | AX8: 40
B9: Swap Rate | C9: 0.015 | J9: 1 | K9: =IF(K$8>=$B12,IRCalibration!O9*FEXP(-OFFSET(BFactors,K$8-$B12,0,1,1)*$D12),"") -> 0.9980019919 | L9: =IF(L$8>=$B12,IRCalibration!P9*FEXP(-OFFSET(BFactors,L$8-$B12,0,1,1)*$D12),"") -> 0.9957589922 | M9: =IF(M$8>=$B12,IRCalibration!Q9*FEXP(-OFFSET(BFactors,M$8-$B12,0,1,1)*$D12),"") -> 0.9933502306 | N9: =IF(N$8>=$B12,IRCalibration!R9*FEXP(-OFFSET(BFactors,N$8-$B12,0,1,1)*$D12),"") -> 0.9908420917 | O9: =IF(O$8>=$B12,IRCalibration!S9*FEXP(-OFFSET(BFactors,O$8-$B12,0,1,1)*$D12),"") -> 0.988258528 | P9: =IF(P$8>=$B12,IRCalibration!T9*FEXP(-OFFSET(BFactors,P$8-$B12,0,1,1)*$D12),"") -> 0.9856177032 | Q9: =IF(Q$8>=$B12,IRCalibration!U9*FEXP(-OFFSET(BFactors,Q$8-$B12,0,1,1)*$D12),"") -> 0.9829307938 | R9: =IF(R$8>=$B12,IRCalibration!V9*FEXP(-OFFSET(BFactors,R$8-$B12,0,1,1)*$D12),"") -> 0.9801983199 | S9: =IF(S$8>=$B12,IRCalibration!W9*FEXP(-OFFSET(BFactors,S$8-$B12,0,1,1)*$D12),"") -> 0.9774131391 | T9: =IF(T$8>=$B12,IRCalibration!X9*FEXP(-OFFSET(BFactors,T$8-$B12,0,1,1)*$D12),"") -> 0.9745716119 | U9: =IF(U$8>=$B12,IRCalibration!Y9*FEXP(-OFFSET(BFactors,U$8-$B12,0,1,1)*$D12),"") -> 0.9716694614 | V9: =IF(V$8>=$B12,IRCalibration!Z9*FEXP(-OFFSET(BFactors,V$8-$B12,0,1,1)*$D12),"") -> 0.9686995887 | W9: =IF(W$8>=$B12,IRCalibration!AA9*FEXP(-OFFSET(BFactors,W$8-$B12,0,1,1)*$D12),"") -> 0.9656540382 | X9: =IF(X$8>=$B12,IRCalibration!AB9*FEXP(-OFFSET(BFactors,X$8-$B12,0,1,1)*$D12),"") -> 0.9625309229 | Y9: =IF(Y$8>=$B12,IRCalibration!AC9*FEXP(-OFFSET(BFactors,Y$8-$B12,0,1,1)*$D12),"") -> 0.9593306709 | Z9: =IF(Z$8>=$B12,IRCalibration!AD9*FEXP(-OFFSET(BFactors,Z$8-$B12,0,1,1)*$D12),"") -> 0.9560543886 | AA9: =IF(AA$8>=$B12,IRCalibration!AE9*FEXP(-OFFSET(BFactors,AA$8-$B12,0,1,1)*$D12),"") -> 0.9527038405 | AB9: =IF(AB$8>=$B12,IRCalibration!AF9*FEXP(-OFFSET(BFactors,AB$8-$B12,0,1,1)*$D12),"") -> 0.9492814413 | AC9: =IF(AC$8>=$B12,IRCalibration!AG9*FEXP(-OFFSET(BFactors,AC$8-$B12,0,1,1)*$D12),"") -> 0.9457902456 | AD9: =IF(AD$8>=$B12,IRCalibration!AH9*FEXP(-OFFSET(BFactors,AD$8-$B12,0,1,1)*$D12),"") -> 0.9422339295 | AE9: =IF(AE$8>=$B12,IRCalibration!AI9*FEXP(-OFFSET(BFactors,AE$8-$B12,0,1,1)*$D12),"") -> 0.9386162717 | AF9: =IF(AF$8>=$B12,IRCalibration!AJ9*FEXP(-OFFSET(BFactors,AF$8-$B12,0,1,1)*$D12),"") -> 0.9349394388 | AG9: =IF(AG$8>=$B12,IRCalibration!AK9*FEXP(-OFFSET(BFactors,AG$8-$B12,0,1,1)*$D12),"") -> 0.9312051897 | AH9: =IF(AH$8>=$B12,IRCalibration!AL9*FEXP(-OFFSET(BFactors,AH$8-$B12,0,1,1)*$D12),"") -> 0.927415336 | AI9: =IF(AI$8>=$B12,IRCalibration!AM9*FEXP(-OFFSET(BFactors,AI$8-$B12,0,1,1)*$D12),"") -> 0.9235717402 | AJ9: =IF(AJ$8>=$B12,IRCalibration!AN9*FEXP(-OFFSET(BFactors,AJ$8-$B12,0,1,1)*$D12),"") -> 0.9196763134 | AK9: =IF(AK$8>=$B12,IRCalibration!AO9*FEXP(-OFFSET(BFactors,AK$8-$B12,0,1,1)*$D12),"") -> 0.9157310134 | AL9: =IF(AL$8>=$B12,IRCalibration!AP9*FEXP(-OFFSET(BFactors,AL$8-$B12,0,1,1)*$D12),"") -> 0.9117378422 | AM9: =IF(AM$8>=$B12,IRCalibration!AQ9*FEXP(-OFFSET(BFactors,AM$8-$B12,0,1,1)*$D12),"") -> 0.9076987727 | AN9: =IF(AN$8>=$B12,IRCalibration!AR9*FEXP(-OFFSET(BFactors,AN$8-$B12,0,1,1)*$D12),"") -> 0.9036155147 | AO9: =IF(AO$8>=$B12,IRCalibration!AS9*FEXP(-OFFSET(BFactors,AO$8-$B12,0,1,1)*$D12),"") -> 0.8994896982 | AP9: =IF(AP$8>=$B12,IRCalibration!AT9*FEXP(-OFFSET(BFactors,AP$8-$B12,0,1,1)*$D12),"") -> 0.8953229399 | AQ9: =IF(AQ$8>=$B12,IRCalibration!AU9*FEXP(-OFFSET(BFactors,AQ$8-$B12,0,1,1)*$D12),"") -> 0.8911168461 | AR9: =IF(AR$8>=$B12,IRCalibration!AV9*FEXP(-OFFSET(BFactors,AR$8-$B12,0,1,1)*$D12),"") -> 0.8868729955 | AS9: =IF(AS$8>=$B12,IRCalibration!AW9*FEXP(-OFFSET(BFactors,AS$8-$B12,0,1,1)*$D12),"") -> 0.8825929721 | AT9: =IF(AT$8>=$B12,IRCalibration!AX9*FEXP(-OFFSET(BFactors,AT$8-$B12,0,1,1)*$D12),"") -> 0.8782783311 | AU9: =IF(AU$8>=$B12,IRCalibration!AY9*FEXP(-OFFSET(BFactors,AU$8-$B12,0,1,1)*$D12),"") -> 0.8739306153 | AV9: =IF(AV$8>=$B12,IRCalibration!AZ9*FEXP(-OFFSET(BFactors,AV$8-$B12,0,1,1)*$D12),"") -> 0.8695513511 | AW9: =IF(AW$8>=$B12,IRCalibration!BA9*FEXP(-OFFSET(BFactors,AW$8-$B12,0,1,1)*$D12),"") -> 0.8651420486 | AX9: =IF(AX$8>=$B12,IRCalibration!BB9*FEXP(-OFFSET(BFactors,AX$8-$B12,0,1,1)*$D12),"") -> 0.8607042004
K10: 1 | L10: =IF(L$8>=$B13,IRCalibration!P10*FEXP(-OFFSET(BFactors,L$8-$B13,0,1,1)*$D13),"") -> 0.9968457909 | M10: =IF(M$8>=$B13,IRCalibration!Q10*FEXP(-OFFSET(BFactors,M$8-$B13,0,1,1)*$D13),"") -> 0.9935515578 | N10: =IF(N$8>=$B13,IRCalibration!R10*FEXP(-OFFSET(BFactors,N$8-$B13,0,1,1)*$D13),"") -> 0.9901834261 | O10: =IF(O$8>=$B13,IRCalibration!S10*FEXP(-OFFSET(BFactors,O$8-$B13,0,1,1)*$D13),"") -> 0.9867649224 | P10: =IF(P$8>=$B13,IRCalibration!T10*FEXP(-OFFSET(BFactors,P$8-$B13,0,1,1)*$D13),"") -> 0.983313722 | Q10: =IF(Q$8>=$B13,IRCalibration!U10*FEXP(-OFFSET(BFactors,Q$8-$B13,0,1,1)*$D13),"") -> 0.9798404821 | R10: =IF(R$8>=$B13,IRCalibration!V10*FEXP(-OFFSET(BFactors,R$8-$B13,0,1,1)*$D13),"") -> 0.9763452184 | S10: =IF(S$8>=$B13,IRCalibration!W10*FEXP(-OFFSET(BFactors,S$8-$B13,0,1,1)*$D13),"") -> 0.9728203278 | T10: =IF(T$8>=$B13,IRCalibration!X10*FEXP(-OFFSET(BFactors,T$8-$B13,0,1,1)*$D13),"") -> 0.9692617217 | U10: =IF(U$8>=$B13,IRCalibration!Y10*FEXP(-OFFSET(BFactors,U$8-$B13,0,1,1)*$D13),"") -> 0.9656646972 | V10: =IF(V$8>=$B13,IRCalibration!Z10*FEXP(-OFFSET(BFactors,V$8-$B13,0,1,1)*$D13),"") -> 0.962021769 | W10: =IF(W$8>=$B13,IRCalibration!AA10*FEXP(-OFFSET(BFactors,W$8-$B13,0,1,1)*$D13),"") -> 0.9583246289 | X10: =IF(X$8>=$B13,IRCalibration!AB10*FEXP(-OFFSET(BFactors,X$8-$B13,0,1,1)*$D13),"") -> 0.9545710156 | Y10: =IF(Y$8>=$B13,IRCalibration!AC10*FEXP(-OFFSET(BFactors,Y$8-$B13,0,1,1)*$D13),"") -> 0.9507609729 | Z10: =IF(Z$8>=$B13,IRCalibration!AD10*FEXP(-OFFSET(BFactors,Z$8-$B13,0,1,1)*$D13),"") -> 0.9468952214 | AA10: =IF(AA$8>=$B13,IRCalibration!AE10*FEXP(-OFFSET(BFactors,AA$8-$B13,0,1,1)*$D13),"") -> 0.9429751358 | AB10: =IF(AB$8>=$B13,IRCalibration!AF10*FEXP(-OFFSET(BFactors,AB$8-$B13,0,1,1)*$D13),"") -> 0.9390027356 | AC10: =IF(AC$8>=$B13,IRCalibration!AG10*FEXP(-OFFSET(BFactors,AC$8-$B13,0,1,1)*$D13),"") -> 0.9349806734 | AD10: =IF(AD$8>=$B13,IRCalibration!AH10*FEXP(-OFFSET(BFactors,AD$8-$B13,0,1,1)*$D13),"") -> 0.9309122145 | AE10: =IF(AE$8>=$B13,IRCalibration!AI10*FEXP(-OFFSET(BFactors,AE$8-$B13,0,1,1)*$D13),"") -> 0.9268007239 | AF10: =IF(AF$8>=$B13,IRCalibration!AJ10*FEXP(-OFFSET(BFactors,AF$8-$B13,0,1,1)*$D13),"") -> 0.9226479737 | AG10: =IF(AG$8>=$B13,IRCalibration!AK10*FEXP(-OFFSET(BFactors,AG$8-$B13,0,1,1)*$D13),"") -> 0.9184553364 | AH10: =IF(AH$8>=$B13,IRCalibration!AL10*FEXP(-OFFSET(BFactors,AH$8-$B13,0,1,1)*$D13),"") -> 0.9142242398 | AI10: =IF(AI$8>=$B13,IRCalibration!AM10*FEXP(-OFFSET(BFactors,AI$8-$B13,0,1,1)*$D13),"") -> 0.9099561649 | AJ10: =IF(AJ$8>=$B13,IRCalibration!AN10*FEXP(-OFFSET(BFactors,AJ$8-$B13,0,1,1)*$D13),"") -> 0.9056526443 | AK10: =IF(AK$8>=$B13,IRCalibration!AO10*FEXP(-OFFSET(BFactors,AK$8-$B13,0,1,1)*$D13),"") -> 0.9013152597 | AL10: =IF(AL$8>=$B13,IRCalibration!AP10*FEXP(-OFFSET(BFactors,AL$8-$B13,0,1,1)*$D13),"") -> 0.89694564 | AM10: =IF(AM$8>=$B13,IRCalibration!AQ10*FEXP(-OFFSET(BFactors,AM$8-$B13,0,1,1)*$D13),"") -> 0.8925453888 | AN10: =IF(AN$8>=$B13,IRCalibration!AR10*FEXP(-OFFSET(BFactors,AN$8-$B13,0,1,1)*$D13),"") -> 0.8881158547 | AO10: =IF(AO$8>=$B13,IRCalibration!AS10*FEXP(-OFFSET(BFactors,AO$8-$B13,0,1,1)*$D13),"") -> 0.8836583123 | AP10: =IF(AP$8>=$B13,IRCalibration!AT10*FEXP(-OFFSET(BFactors,AP$8-$B13,0,1,1)*$D13),"") -> 0.8791740275 | AQ10: =IF(AQ$8>=$B13,IRCalibration!AU10*FEXP(-OFFSET(BFactors,AQ$8-$B13,0,1,1)*$D13),"") -> 0.8746642605 | AR10: =IF(AR$8>=$B13,IRCalibration!AV10*FEXP(-OFFSET(BFactors,AR$8-$B13,0,1,1)*$D13),"") -> 0.8701302487 | AS10: =IF(AS$8>=$B13,IRCalibration!AW10*FEXP(-OFFSET(BFactors,AS$8-$B13,0,1,1)*$D13),"") -> 0.8655732396 | AT10: =IF(AT$8>=$B13,IRCalibration!AX10*FEXP(-OFFSET(BFactors,AT$8-$B13,0,1,1)*$D13),"") -> 0.8609944569 | AU10: =IF(AU$8>=$B13,IRCalibration!AY10*FEXP(-OFFSET(BFactors,AU$8-$B13,0,1,1)*$D13),"") -> 0.8563951168 | AV10: =IF(AV$8>=$B13,IRCalibration!AZ10*FEXP(-OFFSET(BFactors,AV$8-$B13,0,1,1)*$D13),"") -> 0.8517764244 | AW10: =IF(AW$8>=$B13,IRCalibration!BA10*FEXP(-OFFSET(BFactors,AW$8-$B13,0,1,1)*$D13),"") -> 0.847139573 | AX10: =IF(AX$8>=$B13,IRCalibration!BB10*FEXP(-OFFSET(BFactors,AX$8-$B13,0,1,1)*$D13),"") -> 0.8424857439
C11: Time | D11: Spot rate | E11: FS Swap | F11: Running DF | G11: Swap MtM | L11: 1 | M11: =IF(M$8>=$B14,IRCalibration!Q11*FEXP(-OFFSET(BFactors,M$8-$B14,0,1,1)*$D14),"") -> 0.9983832863 | N11: =IF(N$8>=$B14,IRCalibration!R11*FEXP(-OFFSET(BFactors,N$8-$B14,0,1,1)*$D14),"") -> 0.9966408009 | O11: =IF(O$8>=$B14,IRCalibration!S11*FEXP(-OFFSET(BFactors,O$8-$B14,0,1,1)*$D14),"") -> 0.9947972262 | P11: =IF(P$8>=$B14,IRCalibration!T11*FEXP(-OFFSET(BFactors,P$8-$B14,0,1,1)*$D14),"") -> 0.9928714705 | Q11: =IF(Q$8>=$B14,IRCalibration!U11*FEXP(-OFFSET(BFactors,Q$8-$B14,0,1,1)*$D14),"") -> 0.9908754343 | R11: =IF(R$8>=$B14,IRCalibration!V11*FEXP(-OFFSET(BFactors,R$8-$B14,0,1,1)*$D14),"") -> 0.9888102812 | S11: =IF(S$8>=$B14,IRCalibration!W11*FEXP(-OFFSET(BFactors,S$8-$B14,0,1,1)*$D14),"") -> 0.9866694226 | T11: =IF(T$8>=$B14,IRCalibration!X11*FEXP(-OFFSET(BFactors,T$8-$B14,0,1,1)*$D14),"") -> 0.9844497703 | U11: =IF(U$8>=$B14,IRCalibration!Y11*FEXP(-OFFSET(BFactors,U$8-$B14,0,1,1)*$D14),"") -> 0.9821475657 | V11: =IF(V$8>=$B14,IRCalibration!Z11*FEXP(-OFFSET(BFactors,V$8-$B14,0,1,1)*$D14),"") -> 0.9797561691 | W11: =IF(W$8>=$B14,IRCalibration!AA11*FEXP(-OFFSET(BFactors,W$8-$B14,0,1,1)*$D14),"") -> 0.9772680409 | X11: =IF(X$8>=$B14,IRCalibration!AB11*FEXP(-OFFSET(BFactors,X$8-$B14,0,1,1)*$D14),"") -> 0.9746817538 | Y11: =IF(Y$8>=$B14,IRCalibration!AC11*FEXP(-OFFSET(BFactors,Y$8-$B14,0,1,1)*$D14),"") -> 0.9719982086 | Z11: =IF(Z$8>=$B14,IRCalibration!AD11*FEXP(-OFFSET(BFactors,Z$8-$B14,0,1,1)*$D14),"") -> 0.969218983 | AA11: =IF(AA$8>=$B14,IRCalibration!AE11*FEXP(-OFFSET(BFactors,AA$8-$B14,0,1,1)*$D14),"") -> 0.9663463117 | AB11: =IF(AB$8>=$B14,IRCalibration!AF11*FEXP(-OFFSET(BFactors,AB$8-$B14,0,1,1)*$D14),"") -> 0.9633830819 | AC11: =IF(AC$8>=$B14,IRCalibration!AG11*FEXP(-OFFSET(BFactors,AC$8-$B14,0,1,1)*$D14),"") -> 0.9603328236 | AD11: =IF(AD$8>=$B14,IRCalibration!AH11*FEXP(-OFFSET(BFactors,AD$8-$B14,0,1,1)*$D14),"") -> 0.957199693 | AE11: =IF(AE$8>=$B14,IRCalibration!AI11*FEXP(-OFFSET(BFactors,AE$8-$B14,0,1,1)*$D14),"") -> 0.9539879461 | AF11: =IF(AF$8>=$B14,IRCalibration!AJ11*FEXP(-OFFSET(BFactors,AF$8-$B14,0,1,1)*$D14),"") -> 0.9507001957 | AG11: =IF(AG$8>=$B14,IRCalibration!AK11*FEXP(-OFFSET(BFactors,AG$8-$B14,0,1,1)*$D14),"") -> 0.9473386324 | AH11: =IF(AH$8>=$B14,IRCalibration!AL11*FEXP(-OFFSET(BFactors,AH$8-$B14,0,1,1)*$D14),"") -> 0.9439054927 | AI11: =IF(AI$8>=$B14,IRCalibration!AM11*FEXP(-OFFSET(BFactors,AI$8-$B14,0,1,1)*$D14),"") -> 0.9404030568 | AJ11: =IF(AJ$8>=$B14,IRCalibration!AN11*FEXP(-OFFSET(BFactors,AJ$8-$B14,0,1,1)*$D14),"") -> 0.9368336471 | AK11: =IF(AK$8>=$B14,IRCalibration!AO11*FEXP(-OFFSET(BFactors,AK$8-$B14,0,1,1)*$D14),"") -> 0.9331996259 | AL11: =IF(AL$8>=$B14,IRCalibration!AP11*FEXP(-OFFSET(BFactors,AL$8-$B14,0,1,1)*$D14),"") -> 0.9295033937 | AM11: =IF(AM$8>=$B14,IRCalibration!AQ11*FEXP(-OFFSET(BFactors,AM$8-$B14,0,1,1)*$D14),"") -> 0.9257473142 | AN11: =IF(AN$8>=$B14,IRCalibration!AR11*FEXP(-OFFSET(BFactors,AN$8-$B14,0,1,1)*$D14),"") -> 0.9219334756 | AO11: =IF(AO$8>=$B14,IRCalibration!AS11*FEXP(-OFFSET(BFactors,AO$8-$B14,0,1,1)*$D14),"") -> 0.9180638773 | AP11: =IF(AP$8>=$B14,IRCalibration!AT11*FEXP(-OFFSET(BFactors,AP$8-$B14,0,1,1)*$D14),"") -> 0.9141404982 | AQ11: =IF(AQ$8>=$B14,IRCalibration!AU11*FEXP(-OFFSET(BFactors,AQ$8-$B14,0,1,1)*$D14),"") -> 0.9101652992 | AR11: =IF(AR$8>=$B14,IRCalibration!AV11*FEXP(-OFFSET(BFactors,AR$8-$B14,0,1,1)*$D14),"") -> 0.906140206 | AS11: =IF(AS$8>=$B14,IRCalibration!AW11*FEXP(-OFFSET(BFactors,AS$8-$B14,0,1,1)*$D14),"") -> 0.9020671428 | AT11: =IF(AT$8>=$B14,IRCalibration!AX11*FEXP(-OFFSET(BFactors,AT$8-$B14,0,1,1)*$D14),"") -> 0.8979479978 | AU11: =IF(AU$8>=$B14,IRCalibration!AY11*FEXP(-OFFSET(BFactors,AU$8-$B14,0,1,1)*$D14),"") -> 0.8937846397 | AV11: =IF(AV$8>=$B14,IRCalibration!AZ11*FEXP(-OFFSET(BFactors,AV$8-$B14,0,1,1)*$D14),"") -> 0.8895789139 | AW11: =IF(AW$8>=$B14,IRCalibration!BA11*FEXP(-OFFSET(BFactors,AW$8-$B14,0,1,1)*$D14),"") -> 0.8853326427 | AX11: =IF(AX$8>=$B14,IRCalibration!BB11*FEXP(-OFFSET(BFactors,AX$8-$B14,0,1,1)*$D14),"") -> 0.8810476243
B12: 0 | C12: 0 | D12: =[0]!FwdRates -> 0.007500000298 | E12: =(SUM(OFFSET($K$9,0,B12,1,40-B12))*0.25*SwapRate-OFFSET($J$9,0,B12,1,1)+OFFSET($J$9,0,40,1,1))*IF(PayRec="PAY",-1,1) -> -0.001172080555 | F12: =1 -> 1 | G12: =(SUM(OFFSET(J9,0,$B12+1,1,40-$B12))*0.25*SwapRate-(OFFSET(J9,0,B12,1,1)-AX9))*F12*IF(PayRec="PAY",-1,1) -> -0.001172080555 | M12: 1 | N12: =IF(N$8>=$B15,IRCalibration!R12*FEXP(-OFFSET(BFactors,N$8-$B15,0,1,1)*$D15),"") -> 0.9990736418 | O12: =IF(O$8>=$B15,IRCalibration!S12*FEXP(-OFFSET(BFactors,O$8-$B15,0,1,1)*$D15),"") -> 0.9980220401 | P12: =IF(P$8>=$B15,IRCalibration!T12*FEXP(-OFFSET(BFactors,P$8-$B15,0,1,1)*$D15),"") -> 0.9968646045 | Q12: =IF(Q$8>=$B15,IRCalibration!U12*FEXP(-OFFSET(BFactors,Q$8-$B15,0,1,1)*$D15),"") -> 0.995613754 | R12: =IF(R$8>=$B15,IRCalibration!V12*FEXP(-OFFSET(BFactors,R$8-$B15,0,1,1)*$D15),"") -> 0.9942711379 | S12: =IF(S$8>=$B15,IRCalibration!W12*FEXP(-OFFSET(BFactors,S$8-$B15,0,1,1)*$D15),"") -> 0.9928305975 | T12: =IF(T$8>=$B15,IRCalibration!X12*FEXP(-OFFSET(BFactors,T$8-$B15,0,1,1)*$D15),"") -> 0.9912894704 | U12: =IF(U$8>=$B15,IRCalibration!Y12*FEXP(-OFFSET(BFactors,U$8-$B15,0,1,1)*$D15),"") -> 0.9896444009 | V12: =IF(V$8>=$B15,IRCalibration!Z12*FEXP(-OFFSET(BFactors,V$8-$B15,0,1,1)*$D15),"") -> 0.9878891093 | W12: =IF(W$8>=$B15,IRCalibration!AA12*FEXP(-OFFSET(BFactors,W$8-$B15,0,1,1)*$D15),"") -> 0.9860163825 | X12: =IF(X$8>=$B15,IRCalibration!AB12*FEXP(-OFFSET(BFactors,X$8-$B15,0,1,1)*$D15),"") -> 0.9840251518 | Y12: =IF(Y$8>=$B15,IRCalibration!AC12*FEXP(-OFFSET(BFactors,Y$8-$B15,0,1,1)*$D15),"") -> 0.98191669 | Z12: =IF(Z$8>=$B15,IRCalibration!AD12*FEXP(-OFFSET(BFactors,Z$8-$B15,0,1,1)*$D15),"") -> 0.9796929499 | AA12: =IF(AA$8>=$B15,IRCalibration!AE12*FEXP(-OFFSET(BFactors,AA$8-$B15,0,1,1)*$D15),"") -> 0.9773565461 | AB12: =IF(AB$8>=$B15,IRCalibration!AF12*FEXP(-OFFSET(BFactors,AB$8-$B15,0,1,1)*$D15),"") -> 0.9749107521 | AC12: =IF(AC$8>=$B15,IRCalibration!AG12*FEXP(-OFFSET(BFactors,AC$8-$B15,0,1,1)*$D15),"") -> 0.9723594918 | AD12: =IF(AD$8>=$B15,IRCalibration!AH12*FEXP(-OFFSET(BFactors,AD$8-$B15,0,1,1)*$D15),"") -> 0.9697073247 | AE12: =IF(AE$8>=$B15,IRCalibration!AI12*FEXP(-OFFSET(BFactors,AE$8-$B15,0,1,1)*$D15),"") -> 0.9669589131 | AF12: =IF(AF$8>=$B15,IRCalibration!AJ12*FEXP(-OFFSET(BFactors,AF$8-$B15,0,1,1)*$D15),"") -> 0.9641172547 | AG12: =IF(AG$8>=$B15,IRCalibration!AK12*FEXP(-OFFSET(BFactors,AG$8-$B15,0,1,1)*$D15),"") -> 0.9611849163 | AH12: =IF(AH$8>=$B15,IRCalibration!AL12*FEXP(-OFFSET(BFactors,AH$8-$B15,0,1,1)*$D15),"") -> 0.9581645083 | AI12: =IF(AI$8>=$B15,IRCalibration!AM12*FEXP(-OFFSET(BFactors,AI$8-$B15,0,1,1)*$D15),"") -> 0.9550586825 | AJ12: =IF(AJ$8>=$B15,IRCalibration!AN12*FEXP(-OFFSET(BFactors,AJ$8-$B15,0,1,1)*$D15),"") -> 0.9518701299 | AK12: =IF(AK$8>=$B15,IRCalibration!AO12*FEXP(-OFFSET(BFactors,AK$8-$B15,0,1,1)*$D15),"") -> 0.9486015791 | AL12: =IF(AL$8>=$B15,IRCalibration!AP12*FEXP(-OFFSET(BFactors,AL$8-$B15,0,1,1)*$D15),"") -> 0.9452557941 | AM12: =IF(AM$8>=$B15,IRCalibration!AQ12*FEXP(-OFFSET(BFactors,AM$8-$B15,0,1,1)*$D15),"") -> 0.9418354981 | AN12: =IF(AN$8>=$B15,IRCalibration!AR12*FEXP(-OFFSET(BFactors,AN$8-$B15,0,1,1)*$D15),"") -> 0.9383431303 | AO12: =IF(AO$8>=$B15,IRCalibration!AS12*FEXP(-OFFSET(BFactors,AO$8-$B15,0,1,1)*$D15),"") -> 0.9347810357 | AP12: =IF(AP$8>=$B15,IRCalibration!AT12*FEXP(-OFFSET(BFactors,AP$8-$B15,0,1,1)*$D15),"") -> 0.9311515338 | AQ12: =IF(AQ$8>=$B15,IRCalibration!AU12*FEXP(-OFFSET(BFactors,AQ$8-$B15,0,1,1)*$D15),"") -> 0.9274569219 | AR12: =IF(AR$8>=$B15,IRCalibration!AV12*FEXP(-OFFSET(BFactors,AR$8-$B15,0,1,1)*$D15),"") -> 0.9236994566 | AS12: =IF(AS$8>=$B15,IRCalibration!AW12*FEXP(-OFFSET(BFactors,AS$8-$B15,0,1,1)*$D15),"") -> 0.9198813891 | AT12: =IF(AT$8>=$B15,IRCalibration!AX12*FEXP(-OFFSET(BFactors,AT$8-$B15,0,1,1)*$D15),"") -> 0.916004929 | AU12: =IF(AU$8>=$B15,IRCalibration!AY12*FEXP(-OFFSET(BFactors,AU$8-$B15,0,1,1)*$D15),"") -> 0.9120722618 | AV12: =IF(AV$8>=$B15,IRCalibration!AZ12*FEXP(-OFFSET(BFactors,AV$8-$B15,0,1,1)*$D15),"") -> 0.9080855448 | AW12: =IF(AW$8>=$B15,IRCalibration!BA12*FEXP(-OFFSET(BFactors,AW$8-$B15,0,1,1)*$D15),"") -> 0.9040469069 | AX12: =IF(AX$8>=$B15,IRCalibration!BB12*FEXP(-OFFSET(BFactors,AX$8-$B15,0,1,1)*$D15),"") -> 0.8999584482
B13: =B12+1 -> 1 | C13: =C12+0.25 -> 0.25 | D13: =D12*Param1+NORMSINV(RAND())*IRVol*Param2+IRCalibration!I10-IRCalibration!I9*Param1 -> 0.01167934919 | E13: 0.0005724188036 | F13: =F12*EXP(-0.25*D13) -> 0.9970844213 | G13: 0.02228526593 | N13: 1 | O13: =IF(O$8>=$B16,IRCalibration!S13*FEXP(-OFFSET(BFactors,O$8-$B16,0,1,1)*$D16),"") -> 0.9963172012 | P13: =IF(P$8>=$B16,IRCalibration!T13*FEXP(-OFFSET(BFactors,P$8-$B16,0,1,1)*$D16),"") -> 0.9926046327 | Q13: =IF(Q$8>=$B16,IRCalibration!U13*FEXP(-OFFSET(BFactors,Q$8-$B16,0,1,1)*$D16),"") -> 0.9888732136 | R13: =IF(R$8>=$B16,IRCalibration!V13*FEXP(-OFFSET(BFactors,R$8-$B16,0,1,1)*$D16),"") -> 0.9851230999 | S13: =IF(S$8>=$B16,IRCalibration!W13*FEXP(-OFFSET(BFactors,S$8-$B16,0,1,1)*$D16),"") -> 0.9813467466 | T13: =IF(T$8>=$B16,IRCalibration!X13*FEXP(-OFFSET(BFactors,T$8-$B16,0,1,1)*$D16),"") -> 0.9775401461 | U13: =IF(U$8>=$B16,IRCalibration!Y13*FEXP(-OFFSET(BFactors,U$8-$B16,0,1,1)*$D16),"") -> 0.9736986615 | V13: =IF(V$8>=$B16,IRCalibration!Z13*FEXP(-OFFSET(BFactors,V$8-$B16,0,1,1)*$D16),"") -> 0.9698148428 | W13: =IF(W$8>=$B16,IRCalibration!AA13*FEXP(-OFFSET(BFactors,W$8-$B16,0,1,1)*$D16),"") -> 0.9658804048 | X13: =IF(X$8>=$B16,IRCalibration!AB13*FEXP(-OFFSET(BFactors,X$8-$B16,0,1,1)*$D16),"") -> 0.9618931521 | Y13: =IF(Y$8>=$B16,IRCalibration!AC13*FEXP(-OFFSET(BFactors,Y$8-$B16,0,1,1)*$D16),"") -> 0.9578532024 | Z13: =IF(Z$8>=$B16,IRCalibration!AD13*FEXP(-OFFSET(BFactors,Z$8-$B16,0,1,1)*$D16),"") -> 0.9537613457 | AA13: =IF(AA$8>=$B16,IRCalibration!AE13*FEXP(-OFFSET(BFactors,AA$8-$B16,0,1,1)*$D16),"") -> 0.94961902 | AB13: =IF(AB$8>=$B16,IRCalibration!AF13*FEXP(-OFFSET(BFactors,AB$8-$B16,0,1,1)*$D16),"") -> 0.9454283037 | AC13: =IF(AC$8>=$B16,IRCalibration!AG13*FEXP(-OFFSET(BFactors,AC$8-$B16,0,1,1)*$D16),"") -> 0.9411919018 | AD13: =IF(AD$8>=$B16,IRCalibration!AH13*FEXP(-OFFSET(BFactors,AD$8-$B16,0,1,1)*$D16),"") -> 0.9369131271 | AE13: =IF(AE$8>=$B16,IRCalibration!AI13*FEXP(-OFFSET(BFactors,AE$8-$B16,0,1,1)*$D16),"") -> 0.9325953826 | AF13: =IF(AF$8>=$B16,IRCalibration!AJ13*FEXP(-OFFSET(BFactors,AF$8-$B16,0,1,1)*$D16),"") -> 0.9282404603 | AG13: =IF(AG$8>=$B16,IRCalibration!AK13*FEXP(-OFFSET(BFactors,AG$8-$B16,0,1,1)*$D16),"") -> 0.9238497426 | AH13: =IF(AH$8>=$B16,IRCalibration!AL13*FEXP(-OFFSET(BFactors,AH$8-$B16,0,1,1)*$D16),"") -> 0.9194246611 | AI13: =IF(AI$8>=$B16,IRCalibration!AM13*FEXP(-OFFSET(BFactors,AI$8-$B16,0,1,1)*$D16),"") -> 0.9149666951 | AJ13: =IF(AJ$8>=$B16,IRCalibration!AN13*FEXP(-OFFSET(BFactors,AJ$8-$B16,0,1,1)*$D16),"") -> 0.9104773697 | AK13: =IF(AK$8>=$B16,IRCalibration!AO13*FEXP(-OFFSET(BFactors,AK$8-$B16,0,1,1)*$D16),"") -> 0.9059582542 | AL13: =IF(AL$8>=$B16,IRCalibration!AP13*FEXP(-OFFSET(BFactors,AL$8-$B16,0,1,1)*$D16),"") -> 0.9014109606 | AM13: =IF(AM$8>=$B16,IRCalibration!AQ13*FEXP(-OFFSET(BFactors,AM$8-$B16,0,1,1)*$D16),"") -> 0.8968370706 | AN13: =IF(AN$8>=$B16,IRCalibration!AR13*FEXP(-OFFSET(BFactors,AN$8-$B16,0,1,1)*$D16),"") -> 0.8922379056 | AO13: =IF(AO$8>=$B16,IRCalibration!AS13*FEXP(-OFFSET(BFactors,AO$8-$B16,0,1,1)*$D16),"") -> 0.8876147087 | AP13: =IF(AP$8>=$B16,IRCalibration!AT13*FEXP(-OFFSET(BFactors,AP$8-$B16,0,1,1)*$D16),"") -> 0.8829687111 | AQ13: =IF(AQ$8>=$B16,IRCalibration!AU13*FEXP(-OFFSET(BFactors,AQ$8-$B16,0,1,1)*$D16),"") -> 0.8783011351 | AR13: =IF(AR$8>=$B16,IRCalibration!AV13*FEXP(-OFFSET(BFactors,AR$8-$B16,0,1,1)*$D16),"") -> 0.8736131773 | AS13: =IF(AS$8>=$B16,IRCalibration!AW13*FEXP(-OFFSET(BFactors,AS$8-$B16,0,1,1)*$D16),"") -> 0.8689060417 | AT13: =IF(AT$8>=$B16,IRCalibration!AX13*FEXP(-OFFSET(BFactors,AT$8-$B16,0,1,1)*$D16),"") -> 0.8641809063 | AU13: =IF(AU$8>=$B16,IRCalibration!AY13*FEXP(-OFFSET(BFactors,AU$8-$B16,0,1,1)*$D16),"") -> 0.8594389392 | AV13: =IF(AV$8>=$B16,IRCalibration!AZ13*FEXP(-OFFSET(BFactors,AV$8-$B16,0,1,1)*$D16),"") -> 0.8546812958 | AW13: =IF(AW$8>=$B16,IRCalibration!BA13*FEXP(-OFFSET(BFactors,AW$8-$B16,0,1,1)*$D16),"") -> 0.8499091176 | AX13: =IF(AX$8>=$B16,IRCalibration!BB13*FEXP(-OFFSET(BFactors,AX$8-$B16,0,1,1)*$D16),"") -> 0.8451235331
B14: 2 | C14: 0.5 | D14: =D13*Param1+NORMSINV(RAND())*IRVol*Param2+IRCalibration!I11-IRCalibration!I10*Param1 -> 0.005738156398 | E14: 0.002063515354 | F14: 0.9956550902 | G14: -0.01604380598 | O14: 1 | P14: =IF(P$8>=$B17,IRCalibration!T14*FEXP(-OFFSET(BFactors,P$8-$B17,0,1,1)*$D17),"") -> 0.9952652615 | Q14: =IF(Q$8>=$B17,IRCalibration!U14*FEXP(-OFFSET(BFactors,Q$8-$B17,0,1,1)*$D17),"") -> 0.9905435158 | R14: =IF(R$8>=$B17,IRCalibration!V14*FEXP(-OFFSET(BFactors,R$8-$B17,0,1,1)*$D17),"") -> 0.9858341272 | S14: =IF(S$8>=$B17,IRCalibration!W14*FEXP(-OFFSET(BFactors,S$8-$B17,0,1,1)*$D17),"") -> 0.9811287791 | T14: =IF(T$8>=$B17,IRCalibration!X14*FEXP(-OFFSET(BFactors,T$8-$B17,0,1,1)*$D17),"") -> 0.9764227338 | U14: =IF(U$8>=$B17,IRCalibration!Y14*FEXP(-OFFSET(BFactors,U$8-$B17,0,1,1)*$D17),"") -> 0.9717106572 | V14: =IF(V$8>=$B17,IRCalibration!Z14*FEXP(-OFFSET(BFactors,V$8-$B17,0,1,1)*$D17),"") -> 0.9669844423 | W14: =IF(W$8>=$B17,IRCalibration!AA14*FEXP(-OFFSET(BFactors,W$8-$B17,0,1,1)*$D17),"") -> 0.9622351911 | X14: =IF(X$8>=$B17,IRCalibration!AB14*FEXP(-OFFSET(BFactors,X$8-$B17,0,1,1)*$D17),"") -> 0.9574601083 | Y14: =IF(Y$8>=$B17,IRCalibration!AC14*FEXP(-OFFSET(BFactors,Y$8-$B17,0,1,1)*$D17),"") -> 0.9526587197 | Z14: =IF(Z$8>=$B17,IRCalibration!AD14*FEXP(-OFFSET(BFactors,Z$8-$B17,0,1,1)*$D17),"") -> 0.9478312306 | AA14: =IF(AA$8>=$B17,IRCalibration!AE14*FEXP(-OFFSET(BFactors,AA$8-$B17,0,1,1)*$D17),"") -> 0.9429784998 | AB14: =IF(AB$8>=$B17,IRCalibration!AF14*FEXP(-OFFSET(BFactors,AB$8-$B17,0,1,1)*$D17),"") -> 0.9381020287 | AC14: =IF(AC$8>=$B17,IRCalibration!AG14*FEXP(-OFFSET(BFactors,AC$8-$B17,0,1,1)*$D17),"") -> 0.9332039463 | AD14: =IF(AD$8>=$B17,IRCalibration!AH14*FEXP(-OFFSET(BFactors,AD$8-$B17,0,1,1)*$D17),"") -> 0.9282869878 | AE14: =IF(AE$8>=$B17,IRCalibration!AI14*FEXP(-OFFSET(BFactors,AE$8-$B17,0,1,1)*$D17),"") -> 0.9233539804 | AF14: =IF(AF$8>=$B17,IRCalibration!AJ14*FEXP(-OFFSET(BFactors,AF$8-$B17,0,1,1)*$D17),"") -> 0.9184061604 | AG14: =IF(AG$8>=$B17,IRCalibration!AK14*FEXP(-OFFSET(BFactors,AG$8-$B17,0,1,1)*$D17),"") -> 0.9134443666 | AH14: =IF(AH$8>=$B17,IRCalibration!AL14*FEXP(-OFFSET(BFactors,AH$8-$B17,0,1,1)*$D17),"") -> 0.908469495 | AI14: =IF(AI$8>=$B17,IRCalibration!AM14*FEXP(-OFFSET(BFactors,AI$8-$B17,0,1,1)*$D17),"") -> 0.9034824973 | AJ14: =IF(AJ$8>=$B17,IRCalibration!AN14*FEXP(-OFFSET(BFactors,AJ$8-$B17,0,1,1)*$D17),"") -> 0.8984843787 | AK14: =IF(AK$8>=$B17,IRCalibration!AO14*FEXP(-OFFSET(BFactors,AK$8-$B17,0,1,1)*$D17),"") -> 0.8934761964 | AL14: =IF(AL$8>=$B17,IRCalibration!AP14*FEXP(-OFFSET(BFactors,AL$8-$B17,0,1,1)*$D17),"") -> 0.8884590575 | AM14: =IF(AM$8>=$B17,IRCalibration!AQ14*FEXP(-OFFSET(BFactors,AM$8-$B17,0,1,1)*$D17),"") -> 0.8834340474 | AN14: =IF(AN$8>=$B17,IRCalibration!AR14*FEXP(-OFFSET(BFactors,AN$8-$B17,0,1,1)*$D17),"") -> 0.8784020032 | AO14: =IF(AO$8>=$B17,IRCalibration!AS14*FEXP(-OFFSET(BFactors,AO$8-$B17,0,1,1)*$D17),"") -> 0.8733636935 | AP14: =IF(AP$8>=$B17,IRCalibration!AT14*FEXP(-OFFSET(BFactors,AP$8-$B17,0,1,1)*$D17),"") -> 0.868319884 | AQ14: =IF(AQ$8>=$B17,IRCalibration!AU14*FEXP(-OFFSET(BFactors,AQ$8-$B17,0,1,1)*$D17),"") -> 0.86327134 | AR14: =IF(AR$8>=$B17,IRCalibration!AV14*FEXP(-OFFSET(BFactors,AR$8-$B17,0,1,1)*$D17),"") -> 0.85821881 | AS14: =IF(AS$8>=$B17,IRCalibration!AW14*FEXP(-OFFSET(BFactors,AS$8-$B17,0,1,1)*$D17),"") -> 0.8531630585 | AT14: =IF(AT$8>=$B17,IRCalibration!AX14*FEXP(-OFFSET(BFactors,AT$8-$B17,0,1,1)*$D17),"") -> 0.8481048325 | AU14: =IF(AU$8>=$B17,IRCalibration!AY14*FEXP(-OFFSET(BFactors,AU$8-$B17,0,1,1)*$D17),"") -> 0.8430448779 | AV14: =IF(AV$8>=$B17,IRCalibration!AZ14*FEXP(-OFFSET(BFactors,AV$8-$B17,0,1,1)*$D17),"") -> 0.8379839357 | AW14: =IF(AW$8>=$B17,IRCalibration!BA14*FEXP(-OFFSET(BFactors,AW$8-$B17,0,1,1)*$D17),"") -> 0.832922742 | AX14: =IF(AX$8>=$B17,IRCalibration!BB14*FEXP(-OFFSET(BFactors,AX$8-$B17,0,1,1)*$D17),"") -> 0.8278620276
B15: 3 | C15: 0.75 | D15: =D14*Param1+NORMSINV(RAND())*IRVol*Param2+IRCalibration!I12-IRCalibration!I11*Param1 -> 0.003193509048 | E15: 0.003379817146 | F15: 0.994860499 | G15: -0.03283884932 | P15: 1 | Q15: =IF(Q$8>=$B18,IRCalibration!U15*FEXP(-OFFSET(BFactors,Q$8-$B18,0,1,1)*$D18),"") -> 0.9980309087 | R15: =IF(R$8>=$B18,IRCalibration!V15*FEXP(-OFFSET(BFactors,R$8-$B18,0,1,1)*$D18),"") -> 0.9959857091 | S15: =IF(S$8>=$B18,IRCalibration!W15*FEXP(-OFFSET(BFactors,S$8-$B18,0,1,1)*$D18),"") -> 0.9938582101 | T15: =IF(T$8>=$B18,IRCalibration!X15*FEXP(-OFFSET(BFactors,T$8-$B18,0,1,1)*$D18),"") -> 0.9916457228 | U15: =IF(U$8>=$B18,IRCalibration!Y15*FEXP(-OFFSET(BFactors,U$8-$B18,0,1,1)*$D18),"") -> 0.9893448603 | V15: =IF(V$8>=$B18,IRCalibration!Z15*FEXP(-OFFSET(BFactors,V$8-$B18,0,1,1)*$D18),"") -> 0.9869493118 | W15: =IF(W$8>=$B18,IRCalibration!AA15*FEXP(-OFFSET(BFactors,W$8-$B18,0,1,1)*$D18),"") -> 0.9844518397 | X15: =IF(X$8>=$B18,IRCalibration!AB15*FEXP(-OFFSET(BFactors,X$8-$B18,0,1,1)*$D18),"") -> 0.9818513449 | Y15: =IF(Y$8>=$B18,IRCalibration!AC15*FEXP(-OFFSET(BFactors,Y$8-$B18,0,1,1)*$D18),"") -> 0.9791490552 | Z15: =IF(Z$8>=$B18,IRCalibration!AD15*FEXP(-OFFSET(BFactors,Z$8-$B18,0,1,1)*$D18),"") -> 0.9763468632 | AA15: =IF(AA$8>=$B18,IRCalibration!AE15*FEXP(-OFFSET(BFactors,AA$8-$B18,0,1,1)*$D18),"") -> 0.9734473073 | AB15: =IF(AB$8>=$B18,IRCalibration!AF15*FEXP(-OFFSET(BFactors,AB$8-$B18,0,1,1)*$D18),"") -> 0.970453567 | AC15: =IF(AC$8>=$B18,IRCalibration!AG15*FEXP(-OFFSET(BFactors,AC$8-$B18,0,1,1)*$D18),"") -> 0.9673694547 | AD15: =IF(AD$8>=$B18,IRCalibration!AH15*FEXP(-OFFSET(BFactors,AD$8-$B18,0,1,1)*$D18),"") -> 0.964199399 | AE15: =IF(AE$8>=$B18,IRCalibration!AI15*FEXP(-OFFSET(BFactors,AE$8-$B18,0,1,1)*$D18),"") -> 0.9609479151 | AF15: =IF(AF$8>=$B18,IRCalibration!AJ15*FEXP(-OFFSET(BFactors,AF$8-$B18,0,1,1)*$D18),"") -> 0.9576178498 | AG15: =IF(AG$8>=$B18,IRCalibration!AK15*FEXP(-OFFSET(BFactors,AG$8-$B18,0,1,1)*$D18),"") -> 0.9542116119 | AH15: =IF(AH$8>=$B18,IRCalibration!AL15*FEXP(-OFFSET(BFactors,AH$8-$B18,0,1,1)*$D18),"") -> 0.9507316443 | AI15: =IF(AI$8>=$B18,IRCalibration!AM15*FEXP(-OFFSET(BFactors,AI$8-$B18,0,1,1)*$D18),"") -> 0.9471804226 | AJ15: =IF(AJ$8>=$B18,IRCalibration!AN15*FEXP(-OFFSET(BFactors,AJ$8-$B18,0,1,1)*$D18),"") -> 0.943560454 | AK15: =IF(AK$8>=$B18,IRCalibration!AO15*FEXP(-OFFSET(BFactors,AK$8-$B18,0,1,1)*$D18),"") -> 0.9398742751 | AL15: =IF(AL$8>=$B18,IRCalibration!AP15*FEXP(-OFFSET(BFactors,AL$8-$B18,0,1,1)*$D18),"") -> 0.9361244514 | AM15: =IF(AM$8>=$B18,IRCalibration!AQ15*FEXP(-OFFSET(BFactors,AM$8-$B18,0,1,1)*$D18),"") -> 0.9323135017 | AN15: =IF(AN$8>=$B18,IRCalibration!AR15*FEXP(-OFFSET(BFactors,AN$8-$B18,0,1,1)*$D18),"") -> 0.9284436581 | AO15: =IF(AO$8>=$B18,IRCalibration!AS15*FEXP(-OFFSET(BFactors,AO$8-$B18,0,1,1)*$D18),"") -> 0.924517055 | AP15: =IF(AP$8>=$B18,IRCalibration!AT15*FEXP(-OFFSET(BFactors,AP$8-$B18,0,1,1)*$D18),"") -> 0.920535798 | AQ15: =IF(AQ$8>=$B18,IRCalibration!AU15*FEXP(-OFFSET(BFactors,AQ$8-$B18,0,1,1)*$D18),"") -> 0.9165019669 | AR15: =IF(AR$8>=$B18,IRCalibration!AV15*FEXP(-OFFSET(BFactors,AR$8-$B18,0,1,1)*$D18),"") -> 0.9124175985 | AS15: =IF(AS$8>=$B18,IRCalibration!AW15*FEXP(-OFFSET(BFactors,AS$8-$B18,0,1,1)*$D18),"") -> 0.9082847215 | AT15: =IF(AT$8>=$B18,IRCalibration!AX15*FEXP(-OFFSET(BFactors,AT$8-$B18,0,1,1)*$D18),"") -> 0.9041053215 | AU15: =IF(AU$8>=$B18,IRCalibration!AY15*FEXP(-OFFSET(BFactors,AU$8-$B18,0,1,1)*$D18),"") -> 0.8998813582 | AV15: =IF(AV$8>=$B18,IRCalibration!AZ15*FEXP(-OFFSET(BFactors,AV$8-$B18,0,1,1)*$D18),"") -> 0.8956147624 | AW15: =IF(AW$8>=$B18,IRCalibration!BA15*FEXP(-OFFSET(BFactors,AW$8-$B18,0,1,1)*$D18),"") -> 0.8913074354 | AX15: =IF(AX$8>=$B18,IRCalibration!BB15*FEXP(-OFFSET(BFactors,AX$8-$B18,0,1,1)*$D18),"") -> 0.8869612495
B16: 4 | C16: 1 | D16: =D15*Param1+NORMSINV(RAND())*IRVol*Param2+IRCalibration!I13-IRCalibration!I12*Param1 -> 0.01447040094 | E16: 0.004587336077 | F16: 0.9912679935 | G16: 0.02985623405 | Q16: 1 | R16: =IF(R$8>=$B19,IRCalibration!V16*FEXP(-OFFSET(BFactors,R$8-$B19,0,1,1)*$D19),"") -> 0.9981306422 | S16: =IF(S$8>=$B19,IRCalibration!W16*FEXP(-OFFSET(BFactors,S$8-$B19,0,1,1)*$D19),"") -> 0.9961722279 | T16: =IF(T$8>=$B19,IRCalibration!X16*FEXP(-OFFSET(BFactors,T$8-$B19,0,1,1)*$D19),"") -> 0.9941222665 | U16: =IF(U$8>=$B19,IRCalibration!Y16*FEXP(-OFFSET(BFactors,U$8-$B19,0,1,1)*$D19),"") -> 0.9919775582 | V16: =IF(V$8>=$B19,IRCalibration!Z16*FEXP(-OFFSET(BFactors,V$8-$B19,0,1,1)*$D19),"") -> 0.989731962 | W16: =IF(W$8>=$B19,IRCalibration!AA16*FEXP(-OFFSET(BFactors,W$8-$B19,0,1,1)*$D19),"") -> 0.9873783967 | X16: =IF(X$8>=$B19,IRCalibration!AB16*FEXP(-OFFSET(BFactors,X$8-$B19,0,1,1)*$D19),"") -> 0.9849159279 | Y16: =IF(Y$8>=$B19,IRCalibration!AC16*FEXP(-OFFSET(BFactors,Y$8-$B19,0,1,1)*$D19),"") -> 0.9823459497 | Z16: =IF(Z$8>=$B19,IRCalibration!AD16*FEXP(-OFFSET(BFactors,Z$8-$B19,0,1,1)*$D19),"") -> 0.979670518 | AA16: =IF(AA$8>=$B19,IRCalibration!AE16*FEXP(-OFFSET(BFactors,AA$8-$B19,0,1,1)*$D19),"") -> 0.9768923325 | AB16: =IF(AB$8>=$B19,IRCalibration!AF16*FEXP(-OFFSET(BFactors,AB$8-$B19,0,1,1)*$D19),"") -> 0.9740147325 | AC16: =IF(AC$8>=$B19,IRCalibration!AG16*FEXP(-OFFSET(BFactors,AC$8-$B19,0,1,1)*$D19),"") -> 0.9710416889 | AD16: =IF(AD$8>=$B19,IRCalibration!AH16*FEXP(-OFFSET(BFactors,AD$8-$B19,0,1,1)*$D19),"") -> 0.9679777881 | AE16: =IF(AE$8>=$B19,IRCalibration!AI16*FEXP(-OFFSET(BFactors,AE$8-$B19,0,1,1)*$D19),"") -> 0.9648277007 | AF16: =IF(AF$8>=$B19,IRCalibration!AJ16*FEXP(-OFFSET(BFactors,AF$8-$B19,0,1,1)*$D19),"") -> 0.961594419 | AG16: =IF(AG$8>=$B19,IRCalibration!AK16*FEXP(-OFFSET(BFactors,AG$8-$B19,0,1,1)*$D19),"") -> 0.9582804923 | AH16: =IF(AH$8>=$B19,IRCalibration!AL16*FEXP(-OFFSET(BFactors,AH$8-$B19,0,1,1)*$D19),"") -> 0.9548885002 | AI16: =IF(AI$8>=$B19,IRCalibration!AM16*FEXP(-OFFSET(BFactors,AI$8-$B19,0,1,1)*$D19),"") -> 0.9514210519 | AJ16: =IF(AJ$8>=$B19,IRCalibration!AN16*FEXP(-OFFSET(BFactors,AJ$8-$B19,0,1,1)*$D19),"") -> 0.9478807847 | AK16: =IF(AK$8>=$B19,IRCalibration!AO16*FEXP(-OFFSET(BFactors,AK$8-$B19,0,1,1)*$D19),"") -> 0.9442703627 | AL16: =IF(AL$8>=$B19,IRCalibration!AP16*FEXP(-OFFSET(BFactors,AL$8-$B19,0,1,1)*$D19),"") -> 0.9405924754 | AM16: =IF(AM$8>=$B19,IRCalibration!AQ16*FEXP(-OFFSET(BFactors,AM$8-$B19,0,1,1)*$D19),"") -> 0.9368497623 | AN16: =IF(AN$8>=$B19,IRCalibration!AR16*FEXP(-OFFSET(BFactors,AN$8-$B19,0,1,1)*$D19),"") -> 0.9330445721 | AO16: =IF(AO$8>=$B19,IRCalibration!AS16*FEXP(-OFFSET(BFactors,AO$8-$B19,0,1,1)*$D19),"") -> 0.9291791523 | AP16: =IF(AP$8>=$B19,IRCalibration!AT16*FEXP(-OFFSET(BFactors,AP$8-$B19,0,1,1)*$D19),"") -> 0.925255718 | AQ16: =IF(AQ$8>=$B19,IRCalibration!AU16*FEXP(-OFFSET(BFactors,AQ$8-$B19,0,1,1)*$D19),"") -> 0.921276456 | AR16: =IF(AR$8>=$B19,IRCalibration!AV16*FEXP(-OFFSET(BFactors,AR$8-$B19,0,1,1)*$D19),"") -> 0.917243507 | AS16: =IF(AS$8>=$B19,IRCalibration!AW16*FEXP(-OFFSET(BFactors,AS$8-$B19,0,1,1)*$D19),"") -> 0.9131590008 | AT16: =IF(AT$8>=$B19,IRCalibration!AX16*FEXP(-OFFSET(BFactors,AT$8-$B19,0,1,1)*$D19),"") -> 0.909025021 | AU16: =IF(AU$8>=$B19,IRCalibration!AY16*FEXP(-OFFSET(BFactors,AU$8-$B19,0,1,1)*$D19),"") -> 0.904843623 | AV16: =IF(AV$8>=$B19,IRCalibration!AZ16*FEXP(-OFFSET(BFactors,AV$8-$B19,0,1,1)*$D19),"") -> 0.9006168303 | AW16: =IF(AW$8>=$B19,IRCalibration!BA16*FEXP(-OFFSET(BFactors,AW$8-$B19,0,1,1)*$D19),"") -> 0.8963466346 | AX16: =IF(AX$8>=$B19,IRCalibration!BB16*FEXP(-OFFSET(BFactors,AX$8-$B19,0,1,1)*$D19),"") -> 0.8920349959
B17: 5 | C17: 1.25 | D17: =D16*Param1+NORMSINV(RAND())*IRVol*Param2+IRCalibration!I14-IRCalibration!I13*Param1 -> 0.01881437154 | E17: 0.005709741847 | F17: 0.9866164205 | G17: 0.05163880924 | R17: 1 | S17: =IF(S$8>=$B20,IRCalibration!W17*FEXP(-OFFSET(BFactors,S$8-$B20,0,1,1)*$D20),"") -> 0.9962580057 | T17: =IF(T$8>=$B20,IRCalibration!X17*FEXP(-OFFSET(BFactors,T$8-$B20,0,1,1)*$D20),"") -> 0.9924770659 | U17: =IF(U$8>=$B20,IRCalibration!Y17*FEXP(-OFFSET(BFactors,U$8-$B20,0,1,1)*$D20),"") -> 0.9886529938 | V17: =IF(V$8>=$B20,IRCalibration!Z17*FEXP(-OFFSET(BFactors,V$8-$B20,0,1,1)*$D20),"") -> 0.9847787154 | W17: =IF(W$8>=$B20,IRCalibration!AA17*FEXP(-OFFSET(BFactors,W$8-$B20,0,1,1)*$D20),"") -> 0.9808462802 | X17: =IF(X$8>=$B20,IRCalibration!AB17*FEXP(-OFFSET(BFactors,X$8-$B20,0,1,1)*$D20),"") -> 0.9768538942 | Y17: =IF(Y$8>=$B20,IRCalibration!AC17*FEXP(-OFFSET(BFactors,Y$8-$B20,0,1,1)*$D20),"") -> 0.9728020891 | Z17: =IF(Z$8>=$B20,IRCalibration!AD17*FEXP(-OFFSET(BFactors,Z$8-$B20,0,1,1)*$D20),"") -> 0.9686920562 | AA17: =IF(AA$8>=$B20,IRCalibration!AE17*FEXP(-OFFSET(BFactors,AA$8-$B20,0,1,1)*$D20),"") -> 0.9645256243 | AB17: =IF(AB$8>=$B20,IRCalibration!AF17*FEXP(-OFFSET(BFactors,AB$8-$B20,0,1,1)*$D20),"") -> 0.9603052519 | AC17: =IF(AC$8>=$B20,IRCalibration!AG17*FEXP(-OFFSET(BFactors,AC$8-$B20,0,1,1)*$D20),"") -> 0.9560340154 | AD17: =IF(AD$8>=$B20,IRCalibration!AH17*FEXP(-OFFSET(BFactors,AD$8-$B20,0,1,1)*$D20),"") -> 0.9517155904 | AE17: =IF(AE$8>=$B20,IRCalibration!AI17*FEXP(-OFFSET(BFactors,AE$8-$B20,0,1,1)*$D20),"") -> 0.9473537267 | AF17: =IF(AF$8>=$B20,IRCalibration!AJ17*FEXP(-OFFSET(BFactors,AF$8-$B20,0,1,1)*$D20),"") -> 0.9429505214 | AG17: =IF(AG$8>=$B20,IRCalibration!AK17*FEXP(-OFFSET(BFactors,AG$8-$B20,0,1,1)*$D20),"") -> 0.9385076396 | AH17: =IF(AH$8>=$B20,IRCalibration!AL17*FEXP(-OFFSET(BFactors,AH$8-$B20,0,1,1)*$D20),"") -> 0.9340267814 | AI17: =IF(AI$8>=$B20,IRCalibration!AM17*FEXP(-OFFSET(BFactors,AI$8-$B20,0,1,1)*$D20),"") -> 0.929509681 | AJ17: =IF(AJ$8>=$B20,IRCalibration!AN17*FEXP(-OFFSET(BFactors,AJ$8-$B20,0,1,1)*$D20),"") -> 0.9249581058 | AK17: =IF(AK$8>=$B20,IRCalibration!AO17*FEXP(-OFFSET(BFactors,AK$8-$B20,0,1,1)*$D20),"") -> 0.9203738552 | AL17: =IF(AL$8>=$B20,IRCalibration!AP17*FEXP(-OFFSET(BFactors,AL$8-$B20,0,1,1)*$D20),"") -> 0.9157587596 | AM17: =IF(AM$8>=$B20,IRCalibration!AQ17*FEXP(-OFFSET(BFactors,AM$8-$B20,0,1,1)*$D20),"") -> 0.9111146071 | AN17: =IF(AN$8>=$B20,IRCalibration!AR17*FEXP(-OFFSET(BFactors,AN$8-$B20,0,1,1)*$D20),"") -> 0.9064429106 | AO17: =IF(AO$8>=$B20,IRCalibration!AS17*FEXP(-OFFSET(BFactors,AO$8-$B20,0,1,1)*$D20),"") -> 0.9017450929 | AP17: =IF(AP$8>=$B20,IRCalibration!AT17*FEXP(-OFFSET(BFactors,AP$8-$B20,0,1,1)*$D20),"") -> 0.8970225546 | AQ17: =IF(AQ$8>=$B20,IRCalibration!AU17*FEXP(-OFFSET(BFactors,AQ$8-$B20,0,1,1)*$D20),"") -> 0.8922766784 | AR17: =IF(AR$8>=$B20,IRCalibration!AV17*FEXP(-OFFSET(BFactors,AR$8-$B20,0,1,1)*$D20),"") -> 0.8875088116 | AS17: =IF(AS$8>=$B20,IRCalibration!AW17*FEXP(-OFFSET(BFactors,AS$8-$B20,0,1,1)*$D20),"") -> 0.882720301 | AT17: =IF(AT$8>=$B20,IRCalibration!AX17*FEXP(-OFFSET(BFactors,AT$8-$B20,0,1,1)*$D20),"") -> 0.8779124587 | AU17: =IF(AU$8>=$B20,IRCalibration!AY17*FEXP(-OFFSET(BFactors,AU$8-$B20,0,1,1)*$D20),"") -> 0.8730865798 | AV17: =IF(AV$8>=$B20,IRCalibration!AZ17*FEXP(-OFFSET(BFactors,AV$8-$B20,0,1,1)*$D20),"") -> 0.8682439387 | AW17: =IF(AW$8>=$B20,IRCalibration!BA17*FEXP(-OFFSET(BFactors,AW$8-$B20,0,1,1)*$D20),"") -> 0.8633857896 | AX17: =IF(AX$8>=$B20,IRCalibration!BB17*FEXP(-OFFSET(BFactors,AX$8-$B20,0,1,1)*$D20),"") -> 0.8585133667
B18: 6 | C18: 1.5 | D18: =D17*Param1+NORMSINV(RAND())*IRVol*Param2+IRCalibration!I15-IRCalibration!I14*Param1 -> 0.007613792118 | E18: 0.006764983417 | F18: 0.9847402336 | G18: -0.00783071519 | S18: 1 | T18: =IF(T$8>=$B21,IRCalibration!X18*FEXP(-OFFSET(BFactors,T$8-$B21,0,1,1)*$D21),"") -> 0.9950019468 | U18: =IF(U$8>=$B21,IRCalibration!Y18*FEXP(-OFFSET(BFactors,U$8-$B21,0,1,1)*$D21),"") -> 0.9899993882 | V18: =IF(V$8>=$B21,IRCalibration!Z18*FEXP(-OFFSET(BFactors,V$8-$B21,0,1,1)*$D21),"") -> 0.9849843401 | W18: =IF(W$8>=$B21,IRCalibration!AA18*FEXP(-OFFSET(BFactors,W$8-$B21,0,1,1)*$D21),"") -> 0.9799479946 | X18: =IF(X$8>=$B21,IRCalibration!AB18*FEXP(-OFFSET(BFactors,X$8-$B21,0,1,1)*$D21),"") -> 0.9748877428 | Y18: =IF(Y$8>=$B21,IRCalibration!AC18*FEXP(-OFFSET(BFactors,Y$8-$B21,0,1,1)*$D21),"") -> 0.969803319 | Z18: =IF(Z$8>=$B21,IRCalibration!AD18*FEXP(-OFFSET(BFactors,Z$8-$B21,0,1,1)*$D21),"") -> 0.9646951294 | AA18: =IF(AA$8>=$B21,IRCalibration!AE18*FEXP(-OFFSET(BFactors,AA$8-$B21,0,1,1)*$D21),"") -> 0.9595642264 | AB18: =IF(AB$8>=$B21,IRCalibration!AF18*FEXP(-OFFSET(BFactors,AB$8-$B21,0,1,1)*$D21),"") -> 0.9544122978 | AC18: =IF(AC$8>=$B21,IRCalibration!AG18*FEXP(-OFFSET(BFactors,AC$8-$B21,0,1,1)*$D21),"") -> 0.9492416519 | AD18: =IF(AD$8>=$B21,IRCalibration!AH18*FEXP(-OFFSET(BFactors,AD$8-$B21,0,1,1)*$D21),"") -> 0.9440551964 | AE18: =IF(AE$8>=$B21,IRCalibration!AI18*FEXP(-OFFSET(BFactors,AE$8-$B21,0,1,1)*$D21),"") -> 0.9388559161 | AF18: =IF(AF$8>=$B21,IRCalibration!AJ18*FEXP(-OFFSET(BFactors,AF$8-$B21,0,1,1)*$D21),"") -> 0.9336451626 | AG18: =IF(AG$8>=$B21,IRCalibration!AK18*FEXP(-OFFSET(BFactors,AG$8-$B21,0,1,1)*$D21),"") -> 0.9284238703 | AH18: =IF(AH$8>=$B21,IRCalibration!AL18*FEXP(-OFFSET(BFactors,AH$8-$B21,0,1,1)*$D21),"") -> 0.9231930193 | AI18: =IF(AI$8>=$B21,IRCalibration!AM18*FEXP(-OFFSET(BFactors,AI$8-$B21,0,1,1)*$D21),"") -> 0.9179536348 | AJ18: =IF(AJ$8>=$B21,IRCalibration!AN18*FEXP(-OFFSET(BFactors,AJ$8-$B21,0,1,1)*$D21),"") -> 0.9127067856 | AK18: =IF(AK$8>=$B21,IRCalibration!AO18*FEXP(-OFFSET(BFactors,AK$8-$B21,0,1,1)*$D21),"") -> 0.9074535833 | AL18: =IF(AL$8>=$B21,IRCalibration!AP18*FEXP(-OFFSET(BFactors,AL$8-$B21,0,1,1)*$D21),"") -> 0.9021951807 | AM18: =IF(AM$8>=$B21,IRCalibration!AQ18*FEXP(-OFFSET(BFactors,AM$8-$B21,0,1,1)*$D21),"") -> 0.8969326999 | AN18: =IF(AN$8>=$B21,IRCalibration!AR18*FEXP(-OFFSET(BFactors,AN$8-$B21,0,1,1)*$D21),"") -> 0.8916670026 | AO18: =IF(AO$8>=$B21,IRCalibration!AS18*FEXP(-OFFSET(BFactors,AO$8-$B21,0,1,1)*$D21),"") -> 0.8863988739 | AP18: =IF(AP$8>=$B21,IRCalibration!AT18*FEXP(-OFFSET(BFactors,AP$8-$B21,0,1,1)*$D21),"") -> 0.8811290888 | AQ18: =IF(AQ$8>=$B21,IRCalibration!AU18*FEXP(-OFFSET(BFactors,AQ$8-$B21,0,1,1)*$D21),"") -> 0.875858416 | AR18: =IF(AR$8>=$B21,IRCalibration!AV18*FEXP(-OFFSET(BFactors,AR$8-$B21,0,1,1)*$D21),"") -> 0.8705876011 | AS18: =IF(AS$8>=$B21,IRCalibration!AW18*FEXP(-OFFSET(BFactors,AS$8-$B21,0,1,1)*$D21),"") -> 0.8653174008 | AT18: =IF(AT$8>=$B21,IRCalibration!AX18*FEXP(-OFFSET(BFactors,AT$8-$B21,0,1,1)*$D21),"") -> 0.8600485489 | AU18: =IF(AU$8>=$B21,IRCalibration!AY18*FEXP(-OFFSET(BFactors,AU$8-$B21,0,1,1)*$D21),"") -> 0.854781774 | AV18: =IF(AV$8>=$B21,IRCalibration!AZ18*FEXP(-OFFSET(BFactors,AV$8-$B21,0,1,1)*$D21),"") -> 0.8495177953 | AW18: =IF(AW$8>=$B21,IRCalibration!BA18*FEXP(-OFFSET(BFactors,AW$8-$B21,0,1,1)*$D21),"") -> 0.8442573235 | AX18: =IF(AX$8>=$B21,IRCalibration!BB18*FEXP(-OFFSET(BFactors,AX$8-$B21,0,1,1)*$D21),"") -> 0.8390010603
B19: 7 | C19: 1.75 | D19: =D18*Param1+NORMSINV(RAND())*IRVol*Param2+IRCalibration!I16-IRCalibration!I15*Param1 -> 0.007204561271 | E19: 0.007764064461 | F19: 0.9829681746 | G19: -0.00960729241 | T19: 1 | U19: =IF(U$8>=$B22,IRCalibration!Y19*FEXP(-OFFSET(BFactors,U$8-$B22,0,1,1)*$D22),"") -> 0.9947577686 | V19: =IF(V$8>=$B22,IRCalibration!Z19*FEXP(-OFFSET(BFactors,V$8-$B22,0,1,1)*$D22),"") -> 0.989509043 | W19: =IF(W$8>=$B22,IRCalibration!AA19*FEXP(-OFFSET(BFactors,W$8-$B22,0,1,1)*$D22),"") -> 0.984244898 | X19: =IF(X$8>=$B22,IRCalibration!AB19*FEXP(-OFFSET(BFactors,X$8-$B22,0,1,1)*$D22),"") -> 0.9789626381 | Y19: =IF(Y$8>=$B22,IRCalibration!AC19*FEXP(-OFFSET(BFactors,Y$8-$B22,0,1,1)*$D22),"") -> 0.9736619201 | Z19: =IF(Z$8>=$B22,IRCalibration!AD19*FEXP(-OFFSET(BFactors,Z$8-$B22,0,1,1)*$D22),"") -> 0.9683430734 | AA19: =IF(AA$8>=$B22,IRCalibration!AE19*FEXP(-OFFSET(BFactors,AA$8-$B22,0,1,1)*$D22),"") -> 0.9630070738 | AB19: =IF(AB$8>=$B22,IRCalibration!AF19*FEXP(-OFFSET(BFactors,AB$8-$B22,0,1,1)*$D22),"") -> 0.9576555321 | AC19: =IF(AC$8>=$B22,IRCalibration!AG19*FEXP(-OFFSET(BFactors,AC$8-$B22,0,1,1)*$D22),"") -> 0.9522906792 | AD19: =IF(AD$8>=$B22,IRCalibration!AH19*FEXP(-OFFSET(BFactors,AD$8-$B22,0,1,1)*$D22),"") -> 0.9469153444 | AE19: =IF(AE$8>=$B22,IRCalibration!AI19*FEXP(-OFFSET(BFactors,AE$8-$B22,0,1,1)*$D22),"") -> 0.9415324316 | AF19: =IF(AF$8>=$B22,IRCalibration!AJ19*FEXP(-OFFSET(BFactors,AF$8-$B22,0,1,1)*$D22),"") -> 0.9361432044 | AG19: =IF(AG$8>=$B22,IRCalibration!AK19*FEXP(-OFFSET(BFactors,AG$8-$B22,0,1,1)*$D22),"") -> 0.9307485067 | AH19: =IF(AH$8>=$B22,IRCalibration!AL19*FEXP(-OFFSET(BFactors,AH$8-$B22,0,1,1)*$D22),"") -> 0.9253492277 | AI19: =IF(AI$8>=$B22,IRCalibration!AM19*FEXP(-OFFSET(BFactors,AI$8-$B22,0,1,1)*$D22),"") -> 0.9199463011 | AJ19: =IF(AJ$8>=$B22,IRCalibration!AN19*FEXP(-OFFSET(BFactors,AJ$8-$B22,0,1,1)*$D22),"") -> 0.9145407039 | AK19: =IF(AK$8>=$B22,IRCalibration!AO19*FEXP(-OFFSET(BFactors,AK$8-$B22,0,1,1)*$D22),"") -> 0.9091334554 | AL19: =IF(AL$8>=$B22,IRCalibration!AP19*FEXP(-OFFSET(BFactors,AL$8-$B22,0,1,1)*$D22),"") -> 0.9037256162 | AM19: =IF(AM$8>=$B22,IRCalibration!AQ19*FEXP(-OFFSET(BFactors,AM$8-$B22,0,1,1)*$D22),"") -> 0.8983182157 | AN19: =IF(AN$8>=$B22,IRCalibration!AR19*FEXP(-OFFSET(BFactors,AN$8-$B22,0,1,1)*$D22),"") -> 0.8929120231 | AO19: =IF(AO$8>=$B22,IRCalibration!AS19*FEXP(-OFFSET(BFactors,AO$8-$B22,0,1,1)*$D22),"") -> 0.8875077308 | AP19: =IF(AP$8>=$B22,IRCalibration!AT19*FEXP(-OFFSET(BFactors,AP$8-$B22,0,1,1)*$D22),"") -> 0.8821060215 | AQ19: =IF(AQ$8>=$B22,IRCalibration!AU19*FEXP(-OFFSET(BFactors,AQ$8-$B22,0,1,1)*$D22),"") -> 0.8767075723 | AR19: =IF(AR$8>=$B22,IRCalibration!AV19*FEXP(-OFFSET(BFactors,AR$8-$B22,0,1,1)*$D22),"") -> 0.8713130379 | AS19: =IF(AS$8>=$B22,IRCalibration!AW19*FEXP(-OFFSET(BFactors,AS$8-$B22,0,1,1)*$D22),"") -> 0.8659230845 | AT19: =IF(AT$8>=$B22,IRCalibration!AX19*FEXP(-OFFSET(BFactors,AT$8-$B22,0,1,1)*$D22),"") -> 0.8605383567 | AU19: =IF(AU$8>=$B22,IRCalibration!AY19*FEXP(-OFFSET(BFactors,AU$8-$B22,0,1,1)*$D22),"") -> 0.8551594941 | AV19: =IF(AV$8>=$B22,IRCalibration!AZ19*FEXP(-OFFSET(BFactors,AV$8-$B22,0,1,1)*$D22),"") -> 0.8497871283 | AW19: =IF(AW$8>=$B22,IRCalibration!BA19*FEXP(-OFFSET(BFactors,AW$8-$B22,0,1,1)*$D22),"") -> 0.8444218832 | AX19: =IF(AX$8>=$B22,IRCalibration!BB19*FEXP(-OFFSET(BFactors,AX$8-$B22,0,1,1)*$D22),"") -> 0.8390643747
B20: 8 | C20: 2 | D20: =D19*Param1+NORMSINV(RAND())*IRVol*Param2+IRCalibration!I17-IRCalibration!I16*Param1 -> 0.01477421658 | E20: 0.008707334274 | F20: 0.9793442252 | G20: 0.0292422948 | U20: 1 | V20: =IF(V$8>=$B23,IRCalibration!Z20*FEXP(-OFFSET(BFactors,V$8-$B23,0,1,1)*$D23),"") -> 0.9942633398 | W20: =IF(W$8>=$B23,IRCalibration!AA20*FEXP(-OFFSET(BFactors,W$8-$B23,0,1,1)*$D23),"") -> 0.9885261444 | X20: =IF(X$8>=$B23,IRCalibration!AB20*FEXP(-OFFSET(BFactors,X$8-$B23,0,1,1)*$D23),"") -> 0.9827853814 | Y20: =IF(Y$8>=$B23,IRCalibration!AC20*FEXP(-OFFSET(BFactors,Y$8-$B23,0,1,1)*$D23),"") -> 0.9770403886 | Z20: =IF(Z$8>=$B23,IRCalibration!AD20*FEXP(-OFFSET(BFactors,Z$8-$B23,0,1,1)*$D23),"") -> 0.9712911832 | AA20: =IF(AA$8>=$B23,IRCalibration!AE20*FEXP(-OFFSET(BFactors,AA$8-$B23,0,1,1)*$D23),"") -> 0.9655384346 | AB20: =IF(AB$8>=$B23,IRCalibration!AF20*FEXP(-OFFSET(BFactors,AB$8-$B23,0,1,1)*$D23),"") -> 0.9597834517 | AC20: =IF(AC$8>=$B23,IRCalibration!AG20*FEXP(-OFFSET(BFactors,AC$8-$B23,0,1,1)*$D23),"") -> 0.9540281669 | AD20: =IF(AD$8>=$B23,IRCalibration!AH20*FEXP(-OFFSET(BFactors,AD$8-$B23,0,1,1)*$D23),"") -> 0.9482751132 | AE20: =IF(AE$8>=$B23,IRCalibration!AI20*FEXP(-OFFSET(BFactors,AE$8-$B23,0,1,1)*$D23),"") -> 0.9425268991 | AF20: =IF(AF$8>=$B23,IRCalibration!AJ20*FEXP(-OFFSET(BFactors,AF$8-$B23,0,1,1)*$D23),"") -> 0.9367844927 | AG20: =IF(AG$8>=$B23,IRCalibration!AK20*FEXP(-OFFSET(BFactors,AG$8-$B23,0,1,1)*$D23),"") -> 0.9310484458 | AH20: =IF(AH$8>=$B23,IRCalibration!AL20*FEXP(-OFFSET(BFactors,AH$8-$B23,0,1,1)*$D23),"") -> 0.9253193599 | AI20: =IF(AI$8>=$B23,IRCalibration!AM20*FEXP(-OFFSET(BFactors,AI$8-$B23,0,1,1)*$D23),"") -> 0.9195978853 | AJ20: =IF(AJ$8>=$B23,IRCalibration!AN20*FEXP(-OFFSET(BFactors,AJ$8-$B23,0,1,1)*$D23),"") -> 0.9138847196 | AK20: =IF(AK$8>=$B23,IRCalibration!AO20*FEXP(-OFFSET(BFactors,AK$8-$B23,0,1,1)*$D23),"") -> 0.9081806072 | AL20: =IF(AL$8>=$B23,IRCalibration!AP20*FEXP(-OFFSET(BFactors,AL$8-$B23,0,1,1)*$D23),"") -> 0.9024863379 | AM20: =IF(AM$8>=$B23,IRCalibration!AQ20*FEXP(-OFFSET(BFactors,AM$8-$B23,0,1,1)*$D23),"") -> 0.8968026748 | AN20: =IF(AN$8>=$B23,IRCalibration!AR20*FEXP(-OFFSET(BFactors,AN$8-$B23,0,1,1)*$D23),"") -> 0.8911301252 | AO20: =IF(AO$8>=$B23,IRCalibration!AS20*FEXP(-OFFSET(BFactors,AO$8-$B23,0,1,1)*$D23),"") -> 0.8854691249 | AP20: =IF(AP$8>=$B23,IRCalibration!AT20*FEXP(-OFFSET(BFactors,AP$8-$B23,0,1,1)*$D23),"") -> 0.8798201045 | AQ20: =IF(AQ$8>=$B23,IRCalibration!AU20*FEXP(-OFFSET(BFactors,AQ$8-$B23,0,1,1)*$D23),"") -> 0.8741834939 | AR20: =IF(AR$8>=$B23,IRCalibration!AV20*FEXP(-OFFSET(BFactors,AR$8-$B23,0,1,1)*$D23),"") -> 0.8685597052 | AS20: =IF(AS$8>=$B23,IRCalibration!AW20*FEXP(-OFFSET(BFactors,AS$8-$B23,0,1,1)*$D23),"") -> 0.8629491669 | AT20: =IF(AT$8>=$B23,IRCalibration!AX20*FEXP(-OFFSET(BFactors,AT$8-$B23,0,1,1)*$D23),"") -> 0.8573522903 | AU20: =IF(AU$8>=$B23,IRCalibration!AY20*FEXP(-OFFSET(BFactors,AU$8-$B23,0,1,1)*$D23),"") -> 0.8517694867 | AV20: =IF(AV$8>=$B23,IRCalibration!AZ20*FEXP(-OFFSET(BFactors,AV$8-$B23,0,1,1)*$D23),"") -> 0.8462011641 | AW20: =IF(AW$8>=$B23,IRCalibration!BA20*FEXP(-OFFSET(BFactors,AW$8-$B23,0,1,1)*$D23),"") -> 0.840647727 | AX20: =IF(AX$8>=$B23,IRCalibration!BB20*FEXP(-OFFSET(BFactors,AX$8-$B23,0,1,1)*$D23),"") -> 0.8351095769
B21: 9 | C21: 2.25 | D21: =D20*Param1+NORMSINV(RAND())*IRVol*Param2+IRCalibration!I18-IRCalibration!I17*Param1 -> 0.01986146986 | E21: 0.009587452766 | F21: 0.9744934741 | G21: 0.05293886808 | V21: 1 | W21: =IF(W$8>=$B24,IRCalibration!AA21*FEXP(-OFFSET(BFactors,W$8-$B24,0,1,1)*$D24),"") -> 0.9936993738 | X21: =IF(X$8>=$B24,IRCalibration!AB21*FEXP(-OFFSET(BFactors,X$8-$B24,0,1,1)*$D24),"") -> 0.9874131638 | Y21: =IF(Y$8>=$B24,IRCalibration!AC21*FEXP(-OFFSET(BFactors,Y$8-$B24,0,1,1)*$D24),"") -> 0.981140271 | Z21: =IF(Z$8>=$B24,IRCalibration!AD21*FEXP(-OFFSET(BFactors,Z$8-$B24,0,1,1)*$D24),"") -> 0.974880288 | AA21: =IF(AA$8>=$B24,IRCalibration!AE21*FEXP(-OFFSET(BFactors,AA$8-$B24,0,1,1)*$D24),"") -> 0.968633469 | AB21: =IF(AB$8>=$B24,IRCalibration!AF21*FEXP(-OFFSET(BFactors,AB$8-$B24,0,1,1)*$D24),"") -> 0.9624007166 | AC21: =IF(AC$8>=$B24,IRCalibration!AG21*FEXP(-OFFSET(BFactors,AC$8-$B24,0,1,1)*$D24),"") -> 0.9561835631 | AD21: =IF(AD$8>=$B24,IRCalibration!AH21*FEXP(-OFFSET(BFactors,AD$8-$B24,0,1,1)*$D24),"") -> 0.9499841477 | AE21: =IF(AE$8>=$B24,IRCalibration!AI21*FEXP(-OFFSET(BFactors,AE$8-$B24,0,1,1)*$D24),"") -> 0.9438046881 | AF21: =IF(AF$8>=$B24,IRCalibration!AJ21*FEXP(-OFFSET(BFactors,AF$8-$B24,0,1,1)*$D24),"") -> 0.9376457639 | AG21: =IF(AG$8>=$B24,IRCalibration!AK21*FEXP(-OFFSET(BFactors,AG$8-$B24,0,1,1)*$D24),"") -> 0.9315075451 | AH21: =IF(AH$8>=$B24,IRCalibration!AL21*FEXP(-OFFSET(BFactors,AH$8-$B24,0,1,1)*$D24),"") -> 0.9253902583 | AI21: =IF(AI$8>=$B24,IRCalibration!AM21*FEXP(-OFFSET(BFactors,AI$8-$B24,0,1,1)*$D24),"") -> 0.9192941861 | AJ21: =IF(AJ$8>=$B24,IRCalibration!AN21*FEXP(-OFFSET(BFactors,AJ$8-$B24,0,1,1)*$D24),"") -> 0.913219666 | AK21: =IF(AK$8>=$B24,IRCalibration!AO21*FEXP(-OFFSET(BFactors,AK$8-$B24,0,1,1)*$D24),"") -> 0.9071670888 | AL21: =IF(AL$8>=$B24,IRCalibration!AP21*FEXP(-OFFSET(BFactors,AL$8-$B24,0,1,1)*$D24),"") -> 0.9011368974 | AM21: =IF(AM$8>=$B24,IRCalibration!AQ21*FEXP(-OFFSET(BFactors,AM$8-$B24,0,1,1)*$D24),"") -> 0.8951295151 | AN21: =IF(AN$8>=$B24,IRCalibration!AR21*FEXP(-OFFSET(BFactors,AN$8-$B24,0,1,1)*$D24),"") -> 0.8891451169 | AO21: =IF(AO$8>=$B24,IRCalibration!AS21*FEXP(-OFFSET(BFactors,AO$8-$B24,0,1,1)*$D24),"") -> 0.8831838129 | AP21: =IF(AP$8>=$B24,IRCalibration!AT21*FEXP(-OFFSET(BFactors,AP$8-$B24,0,1,1)*$D24),"") -> 0.8772457159 | AQ21: =IF(AQ$8>=$B24,IRCalibration!AU21*FEXP(-OFFSET(BFactors,AQ$8-$B24,0,1,1)*$D24),"") -> 0.8713309443 | AR21: =IF(AR$8>=$B24,IRCalibration!AV21*FEXP(-OFFSET(BFactors,AR$8-$B24,0,1,1)*$D24),"") -> 0.8654396062 | AS21: =IF(AS$8>=$B24,IRCalibration!AW21*FEXP(-OFFSET(BFactors,AS$8-$B24,0,1,1)*$D24),"") -> 0.8595718325 | AT21: =IF(AT$8>=$B24,IRCalibration!AX21*FEXP(-OFFSET(BFactors,AT$8-$B24,0,1,1)*$D24),"") -> 0.8537277441 | AU21: =IF(AU$8>=$B24,IRCalibration!AY21*FEXP(-OFFSET(BFactors,AU$8-$B24,0,1,1)*$D24),"") -> 0.8479074681 | AV21: =IF(AV$8>=$B24,IRCalibration!AZ21*FEXP(-OFFSET(BFactors,AV$8-$B24,0,1,1)*$D24),"") -> 0.842111135 | AW21: =IF(AW$8>=$B24,IRCalibration!BA21*FEXP(-OFFSET(BFactors,AW$8-$B24,0,1,1)*$D24),"") -> 0.8363388785 | AX21: =IF(AX$8>=$B24,IRCalibration!BB21*FEXP(-OFFSET(BFactors,AX$8-$B24,0,1,1)*$D24),"") -> 0.8305908353
B22: 10 | C22: 2.5 | D22: =D21*Param1+NORMSINV(RAND())*IRVol*Param2+IRCalibration!I19-IRCalibration!I18*Param1 -> 0.02083021138 | E22: 0.0104005691 | F22: 0.9694319384 | G22: 0.05599174854 | W22: 1 | X22: =IF(X$8>=$B25,IRCalibration!AB22*FEXP(-OFFSET(BFactors,X$8-$B25,0,1,1)*$D25),"") -> 0.9928566996 | Y22: =IF(Y$8>=$B25,IRCalibration!AC22*FEXP(-OFFSET(BFactors,Y$8-$B25,0,1,1)*$D25),"") -> 0.9857564171 | Z22: =IF(Z$8>=$B25,IRCalibration!AD22*FEXP(-OFFSET(BFactors,Z$8-$B25,0,1,1)*$D25),"") -> 0.978697913 | AA22: =IF(AA$8>=$B25,IRCalibration!AE22*FEXP(-OFFSET(BFactors,AA$8-$B25,0,1,1)*$D25),"") -> 0.9716806336 | AB22: =IF(AB$8>=$B25,IRCalibration!AF22*FEXP(-OFFSET(BFactors,AB$8-$B25,0,1,1)*$D25),"") -> 0.9647046944 | AC22: =IF(AC$8>=$B25,IRCalibration!AG22*FEXP(-OFFSET(BFactors,AC$8-$B25,0,1,1)*$D25),"") -> 0.9577708596 | AD22: =IF(AD$8>=$B25,IRCalibration!AH22*FEXP(-OFFSET(BFactors,AD$8-$B25,0,1,1)*$D25),"") -> 0.9508805156 | AE22: =IF(AE$8>=$B25,IRCalibration!AI22*FEXP(-OFFSET(BFactors,AE$8-$B25,0,1,1)*$D25),"") -> 0.9440351412 | AF22: =IF(AF$8>=$B25,IRCalibration!AJ22*FEXP(-OFFSET(BFactors,AF$8-$B25,0,1,1)*$D25),"") -> 0.9372345911 | AG22: =IF(AG$8>=$B25,IRCalibration!AK22*FEXP(-OFFSET(BFactors,AG$8-$B25,0,1,1)*$D25),"") -> 0.930478328 | AH22: =IF(AH$8>=$B25,IRCalibration!AL22*FEXP(-OFFSET(BFactors,AH$8-$B25,0,1,1)*$D25),"") -> 0.9237658896 | AI22: =IF(AI$8>=$B25,IRCalibration!AM22*FEXP(-OFFSET(BFactors,AI$8-$B25,0,1,1)*$D25),"") -> 0.9170968873 | AJ22: =IF(AJ$8>=$B25,IRCalibration!AN22*FEXP(-OFFSET(BFactors,AJ$8-$B25,0,1,1)*$D25),"") -> 0.9104710041 | AK22: =IF(AK$8>=$B25,IRCalibration!AO22*FEXP(-OFFSET(BFactors,AK$8-$B25,0,1,1)*$D25),"") -> 0.9038879932 | AL22: =IF(AL$8>=$B25,IRCalibration!AP22*FEXP(-OFFSET(BFactors,AL$8-$B25,0,1,1)*$D25),"") -> 0.8973476757 | AM22: =IF(AM$8>=$B25,IRCalibration!AQ22*FEXP(-OFFSET(BFactors,AM$8-$B25,0,1,1)*$D25),"") -> 0.8908498691 | AN22: =IF(AN$8>=$B25,IRCalibration!AR22*FEXP(-OFFSET(BFactors,AN$8-$B25,0,1,1)*$D25),"") -> 0.8843941589 | AO22: =IF(AO$8>=$B25,IRCalibration!AS22*FEXP(-OFFSET(BFactors,AO$8-$B25,0,1,1)*$D25),"") -> 0.8779800826 | AP22: =IF(AP$8>=$B25,IRCalibration!AT22*FEXP(-OFFSET(BFactors,AP$8-$B25,0,1,1)*$D25),"") -> 0.871607195 | AQ22: =IF(AQ$8>=$B25,IRCalibration!AU22*FEXP(-OFFSET(BFactors,AQ$8-$B25,0,1,1)*$D25),"") -> 0.865275072 | AR22: =IF(AR$8>=$B25,IRCalibration!AV22*FEXP(-OFFSET(BFactors,AR$8-$B25,0,1,1)*$D25),"") -> 0.858983294 | AS22: =IF(AS$8>=$B25,IRCalibration!AW22*FEXP(-OFFSET(BFactors,AS$8-$B25,0,1,1)*$D25),"") -> 0.8527314782 | AT22: =IF(AT$8>=$B25,IRCalibration!AX22*FEXP(-OFFSET(BFactors,AT$8-$B25,0,1,1)*$D25),"") -> 0.8465192457 | AU22: =IF(AU$8>=$B25,IRCalibration!AY22*FEXP(-OFFSET(BFactors,AU$8-$B25,0,1,1)*$D25),"") -> 0.8403462379 | AV22: =IF(AV$8>=$B25,IRCalibration!AZ22*FEXP(-OFFSET(BFactors,AV$8-$B25,0,1,1)*$D25),"") -> 0.8342121124 | AW22: =IF(AW$8>=$B25,IRCalibration!BA22*FEXP(-OFFSET(BFactors,AW$8-$B25,0,1,1)*$D25),"") -> 0.828116543 | AX22: =IF(AX$8>=$B25,IRCalibration!BB22*FEXP(-OFFSET(BFactors,AX$8-$B25,0,1,1)*$D25),"") -> 0.8220592194
B23: 11 | C23: 2.75 | D23: =D22*Param1+NORMSINV(RAND())*IRVol*Param2+IRCalibration!I20-IRCalibration!I19*Param1 -> 0.02280622281 | E23: 0.01114217906 | F23: 0.9639203953 | G23: 0.06311060765 | X23: 1 | Y23: =IF(Y$8>=$B26,IRCalibration!AC23*FEXP(-OFFSET(BFactors,Y$8-$B26,0,1,1)*$D26),"") -> 0.9920987251 | Z23: =IF(Z$8>=$B26,IRCalibration!AD23*FEXP(-OFFSET(BFactors,Z$8-$B26,0,1,1)*$D26),"") -> 0.9842677328 | AA23: =IF(AA$8>=$B26,IRCalibration!AE23*FEXP(-OFFSET(BFactors,AA$8-$B26,0,1,1)*$D26),"") -> 0.9765056148 | AB23: =IF(AB$8>=$B26,IRCalibration!AF23*FEXP(-OFFSET(BFactors,AB$8-$B26,0,1,1)*$D26),"") -> 0.9688116586 | AC23: =IF(AC$8>=$B26,IRCalibration!AG23*FEXP(-OFFSET(BFactors,AC$8-$B26,0,1,1)*$D26),"") -> 0.9611858241 | AD23: =IF(AD$8>=$B26,IRCalibration!AH23*FEXP(-OFFSET(BFactors,AD$8-$B26,0,1,1)*$D26),"") -> 0.9536287147 | AE23: =IF(AE$8>=$B26,IRCalibration!AI23*FEXP(-OFFSET(BFactors,AE$8-$B26,0,1,1)*$D26),"") -> 0.9461410437 | AF23: =IF(AF$8>=$B26,IRCalibration!AJ23*FEXP(-OFFSET(BFactors,AF$8-$B26,0,1,1)*$D26),"") -> 0.9387219141 | AG23: =IF(AG$8>=$B26,IRCalibration!AK23*FEXP(-OFFSET(BFactors,AG$8-$B26,0,1,1)*$D26),"") -> 0.9313700577 | AH23: =IF(AH$8>=$B26,IRCalibration!AL23*FEXP(-OFFSET(BFactors,AH$8-$B26,0,1,1)*$D26),"") -> 0.9240843026 | AI23: =IF(AI$8>=$B26,IRCalibration!AM23*FEXP(-OFFSET(BFactors,AI$8-$B26,0,1,1)*$D26),"") -> 0.9168635707 | AJ23: =IF(AJ$8>=$B26,IRCalibration!AN23*FEXP(-OFFSET(BFactors,AJ$8-$B26,0,1,1)*$D26),"") -> 0.9097068756 | AK23: =IF(AK$8>=$B26,IRCalibration!AO23*FEXP(-OFFSET(BFactors,AK$8-$B26,0,1,1)*$D26),"") -> 0.9026133197 | AL23: =IF(AL$8>=$B26,IRCalibration!AP23*FEXP(-OFFSET(BFactors,AL$8-$B26,0,1,1)*$D26),"") -> 0.8955820921 | AM23: =IF(AM$8>=$B26,IRCalibration!AQ23*FEXP(-OFFSET(BFactors,AM$8-$B26,0,1,1)*$D26),"") -> 0.8886123962 | AN23: =IF(AN$8>=$B26,IRCalibration!AR23*FEXP(-OFFSET(BFactors,AN$8-$B26,0,1,1)*$D26),"") -> 0.8817032216 | AO23: =IF(AO$8>=$B26,IRCalibration!AS23*FEXP(-OFFSET(BFactors,AO$8-$B26,0,1,1)*$D26),"") -> 0.8748535272 | AP23: =IF(AP$8>=$B26,IRCalibration!AT23*FEXP(-OFFSET(BFactors,AP$8-$B26,0,1,1)*$D26),"") -> 0.8680623069 | AQ23: =IF(AQ$8>=$B26,IRCalibration!AU23*FEXP(-OFFSET(BFactors,AQ$8-$B26,0,1,1)*$D26),"") -> 0.861328592 | AR23: =IF(AR$8>=$B26,IRCalibration!AV23*FEXP(-OFFSET(BFactors,AR$8-$B26,0,1,1)*$D26),"") -> 0.8546514343 | AS23: =IF(AS$8>=$B26,IRCalibration!AW23*FEXP(-OFFSET(BFactors,AS$8-$B26,0,1,1)*$D26),"") -> 0.8480299384 | AT23: =IF(AT$8>=$B26,IRCalibration!AX23*FEXP(-OFFSET(BFactors,AT$8-$B26,0,1,1)*$D26),"") -> 0.8414632278 | AU23: =IF(AU$8>=$B26,IRCalibration!AY23*FEXP(-OFFSET(BFactors,AU$8-$B26,0,1,1)*$D26),"") -> 0.8349504609 | AV23: =IF(AV$8>=$B26,IRCalibration!AZ23*FEXP(-OFFSET(BFactors,AV$8-$B26,0,1,1)*$D26),"") -> 0.8284908269 | AW23: =IF(AW$8>=$B26,IRCalibration!BA23*FEXP(-OFFSET(BFactors,AW$8-$B26,0,1,1)*$D26),"") -> 0.8220835449 | AX23: =IF(AX$8>=$B26,IRCalibration!BB23*FEXP(-OFFSET(BFactors,AX$8-$B26,0,1,1)*$D26),"") -> 0.8157278634
B24: 12 | C24: 3 | D24: =D23*Param1+NORMSINV(RAND())*IRVol*Param2+IRCalibration!I21-IRCalibration!I20*Param1 -> 0.02506228761 | E24: 0.01180492987 | F24: 0.9578997638 | G24: 0.07065906976 | Y24: 1 | Z24: =IF(Z$8>=$B27,IRCalibration!AD24*FEXP(-OFFSET(BFactors,Z$8-$B27,0,1,1)*$D27),"") -> 0.9918338765 | AA24: =IF(AA$8>=$B27,IRCalibration!AE24*FEXP(-OFFSET(BFactors,AA$8-$B27,0,1,1)*$D27),"") -> 0.9837467959 | AB24: =IF(AB$8>=$B27,IRCalibration!AF24*FEXP(-OFFSET(BFactors,AB$8-$B27,0,1,1)*$D27),"") -> 0.9757377943 | AC24: =IF(AC$8>=$B27,IRCalibration!AG24*FEXP(-OFFSET(BFactors,AC$8-$B27,0,1,1)*$D27),"") -> 0.9678065885 | AD24: =IF(AD$8>=$B27,IRCalibration!AH24*FEXP(-OFFSET(BFactors,AD$8-$B27,0,1,1)*$D27),"") -> 0.9599535452 | AE24: =IF(AE$8>=$B27,IRCalibration!AI24*FEXP(-OFFSET(BFactors,AE$8-$B27,0,1,1)*$D27),"") -> 0.9521791443 | AF24: =IF(AF$8>=$B27,IRCalibration!AJ24*FEXP(-OFFSET(BFactors,AF$8-$B27,0,1,1)*$D27),"") -> 0.944482248 | AG24: =IF(AG$8>=$B27,IRCalibration!AK24*FEXP(-OFFSET(BFactors,AG$8-$B27,0,1,1)*$D27),"") -> 0.936861349 | AH24: =IF(AH$8>=$B27,IRCalibration!AL24*FEXP(-OFFSET(BFactors,AH$8-$B27,0,1,1)*$D27),"") -> 0.9293150417 | AI24: =IF(AI$8>=$B27,IRCalibration!AM24*FEXP(-OFFSET(BFactors,AI$8-$B27,0,1,1)*$D27),"") -> 0.9218420192 | AJ24: =IF(AJ$8>=$B27,IRCalibration!AN24*FEXP(-OFFSET(BFactors,AJ$8-$B27,0,1,1)*$D27),"") -> 0.9144410712 | AK24: =IF(AK$8>=$B27,IRCalibration!AO24*FEXP(-OFFSET(BFactors,AK$8-$B27,0,1,1)*$D27),"") -> 0.9071110814 | AL24: =IF(AL$8>=$B27,IRCalibration!AP24*FEXP(-OFFSET(BFactors,AL$8-$B27,0,1,1)*$D27),"") -> 0.8998510252 | AM24: =IF(AM$8>=$B27,IRCalibration!AQ24*FEXP(-OFFSET(BFactors,AM$8-$B27,0,1,1)*$D27),"") -> 0.892659896 | AN24: =IF(AN$8>=$B27,IRCalibration!AR24*FEXP(-OFFSET(BFactors,AN$8-$B27,0,1,1)*$D27),"") -> 0.8855364777 | AO24: =IF(AO$8>=$B27,IRCalibration!AS24*FEXP(-OFFSET(BFactors,AO$8-$B27,0,1,1)*$D27),"") -> 0.8784795276 | AP24: =IF(AP$8>=$B27,IRCalibration!AT24*FEXP(-OFFSET(BFactors,AP$8-$B27,0,1,1)*$D27),"") -> 0.8714878428 | AQ24: =IF(AQ$8>=$B27,IRCalibration!AU24*FEXP(-OFFSET(BFactors,AQ$8-$B27,0,1,1)*$D27),"") -> 0.8645602625 | AR24: =IF(AR$8>=$B27,IRCalibration!AV24*FEXP(-OFFSET(BFactors,AR$8-$B27,0,1,1)*$D27),"") -> 0.8576956508 | AS24: =IF(AS$8>=$B27,IRCalibration!AW24*FEXP(-OFFSET(BFactors,AS$8-$B27,0,1,1)*$D27),"") -> 0.8508929295 | AT24: =IF(AT$8>=$B27,IRCalibration!AX24*FEXP(-OFFSET(BFactors,AT$8-$B27,0,1,1)*$D27),"") -> 0.8441510436 | AU24: =IF(AU$8>=$B27,IRCalibration!AY24*FEXP(-OFFSET(BFactors,AU$8-$B27,0,1,1)*$D27),"") -> 0.8374689776 | AV24: =IF(AV$8>=$B27,IRCalibration!AZ24*FEXP(-OFFSET(BFactors,AV$8-$B27,0,1,1)*$D27),"") -> 0.8308457508 | AW24: =IF(AW$8>=$B27,IRCalibration!BA24*FEXP(-OFFSET(BFactors,AW$8-$B27,0,1,1)*$D27),"") -> 0.824280417 | AX24: =IF(AX$8>=$B27,IRCalibration!BB24*FEXP(-OFFSET(BFactors,AX$8-$B27,0,1,1)*$D27),"") -> 0.8177720634
B25: 13 | C25: 3.25 | D25: =D24*Param1+NORMSINV(RAND())*IRVol*Param2+IRCalibration!I22-IRCalibration!I21*Param1 -> 0.02848105628 | E25: 0.01238058197 | F25: 0.9511034889 | G25: 0.0820723907 | Z25: 1 | AA25: =IF(AA$8>=$B28,IRCalibration!AE25*FEXP(-OFFSET(BFactors,AA$8-$B28,0,1,1)*$D28),"") -> 0.9903525012 | AB25: =IF(AB$8>=$B28,IRCalibration!AF25*FEXP(-OFFSET(BFactors,AB$8-$B28,0,1,1)*$D28),"") -> 0.9808452669 | AC25: =IF(AC$8>=$B28,IRCalibration!AG25*FEXP(-OFFSET(BFactors,AC$8-$B28,0,1,1)*$D28),"") -> 0.9714758103 | AD25: =IF(AD$8>=$B28,IRCalibration!AH25*FEXP(-OFFSET(BFactors,AD$8-$B28,0,1,1)*$D28),"") -> 0.9622423707 | AE25: =IF(AE$8>=$B28,IRCalibration!AI25*FEXP(-OFFSET(BFactors,AE$8-$B28,0,1,1)*$D28),"") -> 0.9531433683 | AF25: =IF(AF$8>=$B28,IRCalibration!AJ25*FEXP(-OFFSET(BFactors,AF$8-$B28,0,1,1)*$D28),"") -> 0.9441756715 | AG25: =IF(AG$8>=$B28,IRCalibration!AK25*FEXP(-OFFSET(BFactors,AG$8-$B28,0,1,1)*$D28),"") -> 0.9353358514 | AH25: =IF(AH$8>=$B28,IRCalibration!AL25*FEXP(-OFFSET(BFactors,AH$8-$B28,0,1,1)*$D28),"") -> 0.9266206514 | AI25: =IF(AI$8>=$B28,IRCalibration!AM25*FEXP(-OFFSET(BFactors,AI$8-$B28,0,1,1)*$D28),"") -> 0.9180269813 | AJ25: =IF(AJ$8>=$B28,IRCalibration!AN25*FEXP(-OFFSET(BFactors,AJ$8-$B28,0,1,1)*$D28),"") -> 0.909551912 | AK25: =IF(AK$8>=$B28,IRCalibration!AO25*FEXP(-OFFSET(BFactors,AK$8-$B28,0,1,1)*$D28),"") -> 0.90119267 | AL25: =IF(AL$8>=$B28,IRCalibration!AP25*FEXP(-OFFSET(BFactors,AL$8-$B28,0,1,1)*$D28),"") -> 0.8929466322 | AM25: =IF(AM$8>=$B28,IRCalibration!AQ25*FEXP(-OFFSET(BFactors,AM$8-$B28,0,1,1)*$D28),"") -> 0.8848112511 | AN25: =IF(AN$8>=$B28,IRCalibration!AR25*FEXP(-OFFSET(BFactors,AN$8-$B28,0,1,1)*$D28),"") -> 0.8767838263 | AO25: =IF(AO$8>=$B28,IRCalibration!AS25*FEXP(-OFFSET(BFactors,AO$8-$B28,0,1,1)*$D28),"") -> 0.8688616855 | AP25: =IF(AP$8>=$B28,IRCalibration!AT25*FEXP(-OFFSET(BFactors,AP$8-$B28,0,1,1)*$D28),"") -> 0.8610422476 | AQ25: =IF(AQ$8>=$B28,IRCalibration!AU25*FEXP(-OFFSET(BFactors,AQ$8-$B28,0,1,1)*$D28),"") -> 0.8533230235 | AR25: =IF(AR$8>=$B28,IRCalibration!AV25*FEXP(-OFFSET(BFactors,AR$8-$B28,0,1,1)*$D28),"") -> 0.8457015973 | AS25: =IF(AS$8>=$B28,IRCalibration!AW25*FEXP(-OFFSET(BFactors,AS$8-$B28,0,1,1)*$D28),"") -> 0.8381756559 | AT25: =IF(AT$8>=$B28,IRCalibration!AX25*FEXP(-OFFSET(BFactors,AT$8-$B28,0,1,1)*$D28),"") -> 0.8307429539 | AU25: =IF(AU$8>=$B28,IRCalibration!AY25*FEXP(-OFFSET(BFactors,AU$8-$B28,0,1,1)*$D28),"") -> 0.8234013277 | AV25: =IF(AV$8>=$B28,IRCalibration!AZ25*FEXP(-OFFSET(BFactors,AV$8-$B28,0,1,1)*$D28),"") -> 0.8161486894 | AW25: =IF(AW$8>=$B28,IRCalibration!BA25*FEXP(-OFFSET(BFactors,AW$8-$B28,0,1,1)*$D28),"") -> 0.8089830248 | AX25: =IF(AX$8>=$B28,IRCalibration!BB25*FEXP(-OFFSET(BFactors,AX$8-$B28,0,1,1)*$D28),"") -> 0.8019023906
B26: 14 | C26: 3.5 | D26: =D25*Param1+NORMSINV(RAND())*IRVol*Param2+IRCalibration!I23-IRCalibration!I22*Param1 -> 0.0315664354 | E26: 0.01286695767 | F26: 0.9436272906 | G26: 0.09100470508 | AA26: 1 | AB26: =IF(AB$8>=$B29,IRCalibration!AF26*FEXP(-OFFSET(BFactors,AB$8-$B29,0,1,1)*$D29),"") -> 0.9932374482 | AC26: =IF(AC$8>=$B29,IRCalibration!AG26*FEXP(-OFFSET(BFactors,AC$8-$B29,0,1,1)*$D29),"") -> 0.9864969269 | AD26: =IF(AD$8>=$B29,IRCalibration!AH26*FEXP(-OFFSET(BFactors,AD$8-$B29,0,1,1)*$D29),"") -> 0.9797808657 | AE26: =IF(AE$8>=$B29,IRCalibration!AI26*FEXP(-OFFSET(BFactors,AE$8-$B29,0,1,1)*$D29),"") -> 0.9730917438 | AF26: =IF(AF$8>=$B29,IRCalibration!AJ26*FEXP(-OFFSET(BFactors,AF$8-$B29,0,1,1)*$D29),"") -> 0.9664303218 | AG26: =IF(AG$8>=$B29,IRCalibration!AK26*FEXP(-OFFSET(BFactors,AG$8-$B29,0,1,1)*$D29),"") -> 0.9597969122 | AH26: =IF(AH$8>=$B29,IRCalibration!AL26*FEXP(-OFFSET(BFactors,AH$8-$B29,0,1,1)*$D29),"") -> 0.9531918629 | AI26: =IF(AI$8>=$B29,IRCalibration!AM26*FEXP(-OFFSET(BFactors,AI$8-$B29,0,1,1)*$D29),"") -> 0.9466155573 | AJ26: =IF(AJ$8>=$B29,IRCalibration!AN26*FEXP(-OFFSET(BFactors,AJ$8-$B29,0,1,1)*$D29),"") -> 0.9400684153 | AK26: =IF(AK$8>=$B29,IRCalibration!AO26*FEXP(-OFFSET(BFactors,AK$8-$B29,0,1,1)*$D29),"") -> 0.9335508928 | AL26: =IF(AL$8>=$B29,IRCalibration!AP26*FEXP(-OFFSET(BFactors,AL$8-$B29,0,1,1)*$D29),"") -> 0.9270634822 | AM26: =IF(AM$8>=$B29,IRCalibration!AQ26*FEXP(-OFFSET(BFactors,AM$8-$B29,0,1,1)*$D29),"") -> 0.9206066396 | AN26: =IF(AN$8>=$B29,IRCalibration!AR26*FEXP(-OFFSET(BFactors,AN$8-$B29,0,1,1)*$D29),"") -> 0.9141805506 | AO26: =IF(AO$8>=$B29,IRCalibration!AS26*FEXP(-OFFSET(BFactors,AO$8-$B29,0,1,1)*$D29),"") -> 0.9077853217 | AP26: =IF(AP$8>=$B29,IRCalibration!AT26*FEXP(-OFFSET(BFactors,AP$8-$B29,0,1,1)*$D29),"") -> 0.9014210492 | AQ26: =IF(AQ$8>=$B29,IRCalibration!AU26*FEXP(-OFFSET(BFactors,AQ$8-$B29,0,1,1)*$D29),"") -> 0.8950878246 | AR26: =IF(AR$8>=$B29,IRCalibration!AV26*FEXP(-OFFSET(BFactors,AR$8-$B29,0,1,1)*$D29),"") -> 0.8887857187 | AS26: =IF(AS$8>=$B29,IRCalibration!AW26*FEXP(-OFFSET(BFactors,AS$8-$B29,0,1,1)*$D29),"") -> 0.8825148164 | AT26: =IF(AT$8>=$B29,IRCalibration!AX26*FEXP(-OFFSET(BFactors,AT$8-$B29,0,1,1)*$D29),"") -> 0.8762751838 | AU26: =IF(AU$8>=$B29,IRCalibration!AY26*FEXP(-OFFSET(BFactors,AU$8-$B29,0,1,1)*$D29),"") -> 0.8700668862 | AV26: =IF(AV$8>=$B29,IRCalibration!AZ26*FEXP(-OFFSET(BFactors,AV$8-$B29,0,1,1)*$D29),"") -> 0.8638899852 | AW26: =IF(AW$8>=$B29,IRCalibration!BA26*FEXP(-OFFSET(BFactors,AW$8-$B29,0,1,1)*$D29),"") -> 0.8577445396 | AX26: =IF(AX$8>=$B29,IRCalibration!BB26*FEXP(-OFFSET(BFactors,AX$8-$B29,0,1,1)*$D29),"") -> 0.851630606
B27: 15 | C27: 3.75 | D27: =D26*Param1+NORMSINV(RAND())*IRVol*Param2+IRCalibration!I24-IRCalibration!I23*Param1 -> 0.03264285993 | E27: 0.01326419562 | F27: 0.9359579534 | G27: 0.09144235733 | AB27: 1 | AC27: =IF(AC$8>=$B30,IRCalibration!AG27*FEXP(-OFFSET(BFactors,AC$8-$B30,0,1,1)*$D30),"") -> 0.9914533314 | AD27: =IF(AD$8>=$B30,IRCalibration!AH27*FEXP(-OFFSET(BFactors,AD$8-$B30,0,1,1)*$D30),"") -> 0.9829998907 | AE27: =IF(AE$8>=$B30,IRCalibration!AI27*FEXP(-OFFSET(BFactors,AE$8-$B30,0,1,1)*$D30),"") -> 0.9746399526 | AF27: =IF(AF$8>=$B30,IRCalibration!AJ27*FEXP(-OFFSET(BFactors,AF$8-$B30,0,1,1)*$D30),"") -> 0.9663721269 | AG27: =IF(AG$8>=$B30,IRCalibration!AK27*FEXP(-OFFSET(BFactors,AG$8-$B30,0,1,1)*$D30),"") -> 0.95819464 | AH27: =IF(AH$8>=$B30,IRCalibration!AL27*FEXP(-OFFSET(BFactors,AH$8-$B30,0,1,1)*$D30),"") -> 0.9501058178 | AI27: =IF(AI$8>=$B30,IRCalibration!AM27*FEXP(-OFFSET(BFactors,AI$8-$B30,0,1,1)*$D30),"") -> 0.9421040843 | AJ27: =IF(AJ$8>=$B30,IRCalibration!AN27*FEXP(-OFFSET(BFactors,AJ$8-$B30,0,1,1)*$D30),"") -> 0.9341879592 | AK27: =IF(AK$8>=$B30,IRCalibration!AO27*FEXP(-OFFSET(BFactors,AK$8-$B30,0,1,1)*$D30),"") -> 0.9263560564 | AL27: =IF(AL$8>=$B30,IRCalibration!AP27*FEXP(-OFFSET(BFactors,AL$8-$B30,0,1,1)*$D30),"") -> 0.9186070817 | AM27: =IF(AM$8>=$B30,IRCalibration!AQ27*FEXP(-OFFSET(BFactors,AM$8-$B30,0,1,1)*$D30),"") -> 0.9109397589 | AN27: =IF(AN$8>=$B30,IRCalibration!AR27*FEXP(-OFFSET(BFactors,AN$8-$B30,0,1,1)*$D30),"") -> 0.9033525975 | AO27: =IF(AO$8>=$B30,IRCalibration!AS27*FEXP(-OFFSET(BFactors,AO$8-$B30,0,1,1)*$D30),"") -> 0.8958440805 | AP27: =IF(AP$8>=$B30,IRCalibration!AT27*FEXP(-OFFSET(BFactors,AP$8-$B30,0,1,1)*$D30),"") -> 0.8884127327 | AQ27: =IF(AQ$8>=$B30,IRCalibration!AU27*FEXP(-OFFSET(BFactors,AQ$8-$B30,0,1,1)*$D30),"") -> 0.8810571231 | AR27: =IF(AR$8>=$B30,IRCalibration!AV27*FEXP(-OFFSET(BFactors,AR$8-$B30,0,1,1)*$D30),"") -> 0.8737758483 | AS27: =IF(AS$8>=$B30,IRCalibration!AW27*FEXP(-OFFSET(BFactors,AS$8-$B30,0,1,1)*$D30),"") -> 0.8665675653 | AT27: =IF(AT$8>=$B30,IRCalibration!AX27*FEXP(-OFFSET(BFactors,AT$8-$B30,0,1,1)*$D30),"") -> 0.8594309577 | AU27: =IF(AU$8>=$B30,IRCalibration!AY27*FEXP(-OFFSET(BFactors,AU$8-$B30,0,1,1)*$D30),"") -> 0.8523647513 | AV27: =IF(AV$8>=$B30,IRCalibration!AZ27*FEXP(-OFFSET(BFactors,AV$8-$B30,0,1,1)*$D30),"") -> 0.8453677111 | AW27: =IF(AW$8>=$B30,IRCalibration!BA27*FEXP(-OFFSET(BFactors,AW$8-$B30,0,1,1)*$D30),"") -> 0.8384386396 | AX27: =IF(AX$8>=$B30,IRCalibration!BB27*FEXP(-OFFSET(BFactors,AX$8-$B30,0,1,1)*$D30),"") -> 0.8315763769
B28: 16 | C28: 4 | D28: =D27*Param1+NORMSINV(RAND())*IRVol*Param2+IRCalibration!I25-IRCalibration!I24*Param1 -> 0.03869435222 | E28: 0.01357311737 | F28: 0.9269475335 | G28: 0.1092531942 | AC28: 1 | AD28: =IF(AD$8>=$B31,IRCalibration!AH28*FEXP(-OFFSET(BFactors,AD$8-$B31,0,1,1)*$D31),"") -> 0.9906745849 | AE28: =IF(AE$8>=$B31,IRCalibration!AI28*FEXP(-OFFSET(BFactors,AE$8-$B31,0,1,1)*$D31),"") -> 0.9814757778 | AF28: =IF(AF$8>=$B31,IRCalibration!AJ28*FEXP(-OFFSET(BFactors,AF$8-$B31,0,1,1)*$D31),"") -> 0.9724010624 | AG28: =IF(AG$8>=$B31,IRCalibration!AK28*FEXP(-OFFSET(BFactors,AG$8-$B31,0,1,1)*$D31),"") -> 0.9634475729 | AH28: =IF(AH$8>=$B31,IRCalibration!AL28*FEXP(-OFFSET(BFactors,AH$8-$B31,0,1,1)*$D31),"") -> 0.9546125808 | AI28: =IF(AI$8>=$B31,IRCalibration!AM28*FEXP(-OFFSET(BFactors,AI$8-$B31,0,1,1)*$D31),"") -> 0.9458934912 | AJ28: =IF(AJ$8>=$B31,IRCalibration!AN28*FEXP(-OFFSET(BFactors,AJ$8-$B31,0,1,1)*$D31),"") -> 0.9372878399 | AK28: =IF(AK$8>=$B31,IRCalibration!AO28*FEXP(-OFFSET(BFactors,AK$8-$B31,0,1,1)*$D31),"") -> 0.9287932896 | AL28: =IF(AL$8>=$B31,IRCalibration!AP28*FEXP(-OFFSET(BFactors,AL$8-$B31,0,1,1)*$D31),"") -> 0.9204076269 | AM28: =IF(AM$8>=$B31,IRCalibration!AQ28*FEXP(-OFFSET(BFactors,AM$8-$B31,0,1,1)*$D31),"") -> 0.912128687 | AN28: =IF(AN$8>=$B31,IRCalibration!AR28*FEXP(-OFFSET(BFactors,AN$8-$B31,0,1,1)*$D31),"") -> 0.9039541201 | AO28: =IF(AO$8>=$B31,IRCalibration!AS28*FEXP(-OFFSET(BFactors,AO$8-$B31,0,1,1)*$D31),"") -> 0.8958815791 | AP28: =IF(AP$8>=$B31,IRCalibration!AT28*FEXP(-OFFSET(BFactors,AP$8-$B31,0,1,1)*$D31),"") -> 0.887908787 | AQ28: =IF(AQ$8>=$B31,IRCalibration!AU28*FEXP(-OFFSET(BFactors,AQ$8-$B31,0,1,1)*$D31),"") -> 0.8800335386 | AR28: =IF(AR$8>=$B31,IRCalibration!AV28*FEXP(-OFFSET(BFactors,AR$8-$B31,0,1,1)*$D31),"") -> 0.8722536824 | AS28: =IF(AS$8>=$B31,IRCalibration!AW28*FEXP(-OFFSET(BFactors,AS$8-$B31,0,1,1)*$D31),"") -> 0.8645671532 | AT28: =IF(AT$8>=$B31,IRCalibration!AX28*FEXP(-OFFSET(BFactors,AT$8-$B31,0,1,1)*$D31),"") -> 0.8569719364 | AU28: =IF(AU$8>=$B31,IRCalibration!AY28*FEXP(-OFFSET(BFactors,AU$8-$B31,0,1,1)*$D31),"") -> 0.8494660841 | AV28: =IF(AV$8>=$B31,IRCalibration!AZ28*FEXP(-OFFSET(BFactors,AV$8-$B31,0,1,1)*$D31),"") -> 0.8420477096 | AW28: =IF(AW$8>=$B31,IRCalibration!BA28*FEXP(-OFFSET(BFactors,AW$8-$B31,0,1,1)*$D31),"") -> 0.8347149864 | AX28: =IF(AX$8>=$B31,IRCalibration!BB28*FEXP(-OFFSET(BFactors,AX$8-$B31,0,1,1)*$D31),"") -> 0.8274661467
B29: 17 | C29: 4.25 | D29: =D28*Param1+NORMSINV(RAND())*IRVol*Param2+IRCalibration!I26-IRCalibration!I25*Param1 -> 0.02691418993 | E29: 0.01379520862 | F29: 0.9207314591 | G29: 0.06344711522 | AD29: 1 | AE29: =IF(AE$8>=$B32,IRCalibration!AI29*FEXP(-OFFSET(BFactors,AE$8-$B32,0,1,1)*$D32),"") -> 0.9917471006 | AF29: =IF(AF$8>=$B32,IRCalibration!AJ29*FEXP(-OFFSET(BFactors,AF$8-$B32,0,1,1)*$D32),"") -> 0.9835747839 | AG29: =IF(AG$8>=$B32,IRCalibration!AK29*FEXP(-OFFSET(BFactors,AG$8-$B32,0,1,1)*$D32),"") -> 0.9754818852 | AH29: =IF(AH$8>=$B32,IRCalibration!AL29*FEXP(-OFFSET(BFactors,AH$8-$B32,0,1,1)*$D32),"") -> 0.9674673088 | AI29: =IF(AI$8>=$B32,IRCalibration!AM29*FEXP(-OFFSET(BFactors,AI$8-$B32,0,1,1)*$D32),"") -> 0.9595300275 | AJ29: =IF(AJ$8>=$B32,IRCalibration!AN29*FEXP(-OFFSET(BFactors,AJ$8-$B32,0,1,1)*$D32),"") -> 0.9516690824 | AK29: =IF(AK$8>=$B32,IRCalibration!AO29*FEXP(-OFFSET(BFactors,AK$8-$B32,0,1,1)*$D32),"") -> 0.9438835828 | AL29: =IF(AL$8>=$B32,IRCalibration!AP29*FEXP(-OFFSET(BFactors,AL$8-$B32,0,1,1)*$D32),"") -> 0.9361727056 | AM29: =IF(AM$8>=$B32,IRCalibration!AQ29*FEXP(-OFFSET(BFactors,AM$8-$B32,0,1,1)*$D32),"") -> 0.9285356211 | AN29: =IF(AN$8>=$B32,IRCalibration!AR29*FEXP(-OFFSET(BFactors,AN$8-$B32,0,1,1)*$D32),"") -> 0.9209712574 | AO29: =IF(AO$8>=$B32,IRCalibration!AS29*FEXP(-OFFSET(BFactors,AO$8-$B32,0,1,1)*$D32),"") -> 0.9134784936 | AP29: =IF(AP$8>=$B32,IRCalibration!AT29*FEXP(-OFFSET(BFactors,AP$8-$B32,0,1,1)*$D32),"") -> 0.9060562298 | AQ29: =IF(AQ$8>=$B32,IRCalibration!AU29*FEXP(-OFFSET(BFactors,AQ$8-$B32,0,1,1)*$D32),"") -> 0.898703391 | AR29: =IF(AR$8>=$B32,IRCalibration!AV29*FEXP(-OFFSET(BFactors,AR$8-$B32,0,1,1)*$D32),"") -> 0.8914189114 | AS29: =IF(AS$8>=$B32,IRCalibration!AW29*FEXP(-OFFSET(BFactors,AS$8-$B32,0,1,1)*$D32),"") -> 0.8842017686 | AT29: =IF(AT$8>=$B32,IRCalibration!AX29*FEXP(-OFFSET(BFactors,AT$8-$B32,0,1,1)*$D32),"") -> 0.87705095 | AU29: =IF(AU$8>=$B32,IRCalibration!AY29*FEXP(-OFFSET(BFactors,AU$8-$B32,0,1,1)*$D32),"") -> 0.8699654704 | AV29: =IF(AV$8>=$B32,IRCalibration!AZ29*FEXP(-OFFSET(BFactors,AV$8-$B32,0,1,1)*$D32),"") -> 0.8629443685 | AW29: =IF(AW$8>=$B32,IRCalibration!BA29*FEXP(-OFFSET(BFactors,AW$8-$B32,0,1,1)*$D32),"") -> 0.8559867071 | AX29: =IF(AX$8>=$B32,IRCalibration!BB29*FEXP(-OFFSET(BFactors,AX$8-$B32,0,1,1)*$D32),"") -> 0.8490915733
B30: 18 | C30: 4.5 | D30: =D29*Param1+NORMSINV(RAND())*IRVol*Param2+IRCalibration!I27-IRCalibration!I26*Param1 -> 0.0341994511 | E30: 0.01393261483 | F30: 0.9128928885 | G30: 0.08531263754 | AE30: 1 | AF30: =IF(AF$8>=$B33,IRCalibration!AJ30*FEXP(-OFFSET(BFactors,AF$8-$B33,0,1,1)*$D33),"") -> 0.9905291415 | AG30: =IF(AG$8>=$B33,IRCalibration!AK30*FEXP(-OFFSET(BFactors,AG$8-$B33,0,1,1)*$D33),"") -> 0.981188706 | AH30: =IF(AH$8>=$B33,IRCalibration!AL30*FEXP(-OFFSET(BFactors,AH$8-$B33,0,1,1)*$D33),"") -> 0.9719758211 | AI30: =IF(AI$8>=$B33,IRCalibration!AM30*FEXP(-OFFSET(BFactors,AI$8-$B33,0,1,1)*$D33),"") -> 0.9628877446 | AJ30: =IF(AJ$8>=$B33,IRCalibration!AN30*FEXP(-OFFSET(BFactors,AJ$8-$B33,0,1,1)*$D33),"") -> 0.9539218617 | AK30: =IF(AK$8>=$B33,IRCalibration!AO30*FEXP(-OFFSET(BFactors,AK$8-$B33,0,1,1)*$D33),"") -> 0.9450756824 | AL30: =IF(AL$8>=$B33,IRCalibration!AP30*FEXP(-OFFSET(BFactors,AL$8-$B33,0,1,1)*$D33),"") -> 0.9363468387 | AM30: =IF(AM$8>=$B33,IRCalibration!AQ30*FEXP(-OFFSET(BFactors,AM$8-$B33,0,1,1)*$D33),"") -> 0.9277330087 | AN30: =IF(AN$8>=$B33,IRCalibration!AR30*FEXP(-OFFSET(BFactors,AN$8-$B33,0,1,1)*$D33),"") -> 0.9192316795 | AO30: =IF(AO$8>=$B33,IRCalibration!AS30*FEXP(-OFFSET(BFactors,AO$8-$B33,0,1,1)*$D33),"") -> 0.9108403392 | AP30: =IF(AP$8>=$B33,IRCalibration!AT30*FEXP(-OFFSET(BFactors,AP$8-$B33,0,1,1)*$D33),"") -> 0.9025565454 | AQ30: =IF(AQ$8>=$B33,IRCalibration!AU30*FEXP(-OFFSET(BFactors,AQ$8-$B33,0,1,1)*$D33),"") -> 0.8943779279 | AR30: =IF(AR$8>=$B33,IRCalibration!AV30*FEXP(-OFFSET(BFactors,AR$8-$B33,0,1,1)*$D33),"") -> 0.8863021702 | AS30: =IF(AS$8>=$B33,IRCalibration!AW30*FEXP(-OFFSET(BFactors,AS$8-$B33,0,1,1)*$D33),"") -> 0.8783270431 | AT30: =IF(AT$8>=$B33,IRCalibration!AX30*FEXP(-OFFSET(BFactors,AT$8-$B33,0,1,1)*$D33),"") -> 0.8704503691 | AU30: =IF(AU$8>=$B33,IRCalibration!AY30*FEXP(-OFFSET(BFactors,AU$8-$B33,0,1,1)*$D33),"") -> 0.8626700383 | AV30: =IF(AV$8>=$B33,IRCalibration!AZ30*FEXP(-OFFSET(BFactors,AV$8-$B33,0,1,1)*$D33),"") -> 0.854984004 | AW30: =IF(AW$8>=$B33,IRCalibration!BA30*FEXP(-OFFSET(BFactors,AW$8-$B33,0,1,1)*$D33),"") -> 0.847390281 | AX30: =IF(AX$8>=$B33,IRCalibration!BB30*FEXP(-OFFSET(BFactors,AX$8-$B33,0,1,1)*$D33),"") -> 0.8398869447
B31: 19 | C31: 4.75 | D31: =D30*Param1+NORMSINV(RAND())*IRVol*Param2+IRCalibration!I28-IRCalibration!I27*Param1 -> 0.03738848252 | E31: 0.01398813254 | F31: 0.9043997238 | G31: 0.09152515929 | AF31: 1 | AG31: =IF(AG$8>=$B34,IRCalibration!AK31*FEXP(-OFFSET(BFactors,AG$8-$B34,0,1,1)*$D34),"") -> 0.9913005677 | AH31: =IF(AH$8>=$B34,IRCalibration!AL31*FEXP(-OFFSET(BFactors,AH$8-$B34,0,1,1)*$D34),"") -> 0.9826974714 | AI31: =IF(AI$8>=$B34,IRCalibration!AM31*FEXP(-OFFSET(BFactors,AI$8-$B34,0,1,1)*$D34),"") -> 0.9741892434 | AJ31: =IF(AJ$8>=$B34,IRCalibration!AN31*FEXP(-OFFSET(BFactors,AJ$8-$B34,0,1,1)*$D34),"") -> 0.9657744903 | AK31: =IF(AK$8>=$B34,IRCalibration!AO31*FEXP(-OFFSET(BFactors,AK$8-$B34,0,1,1)*$D34),"") -> 0.9574518929 | AL31: =IF(AL$8>=$B34,IRCalibration!AP31*FEXP(-OFFSET(BFactors,AL$8-$B34,0,1,1)*$D34),"") -> 0.9492202062 | AM31: =IF(AM$8>=$B34,IRCalibration!AQ31*FEXP(-OFFSET(BFactors,AM$8-$B34,0,1,1)*$D34),"") -> 0.9410781843 | AN31: =IF(AN$8>=$B34,IRCalibration!AR31*FEXP(-OFFSET(BFactors,AN$8-$B34,0,1,1)*$D34),"") -> 0.9330243423 | AO31: =IF(AO$8>=$B34,IRCalibration!AS31*FEXP(-OFFSET(BFactors,AO$8-$B34,0,1,1)*$D34),"") -> 0.9250571522 | AP31: =IF(AP$8>=$B34,IRCalibration!AT31*FEXP(-OFFSET(BFactors,AP$8-$B34,0,1,1)*$D34),"") -> 0.9171751141 | AQ31: =IF(AQ$8>=$B34,IRCalibration!AU31*FEXP(-OFFSET(BFactors,AQ$8-$B34,0,1,1)*$D34),"") -> 0.9093767611 | AR31: =IF(AR$8>=$B34,IRCalibration!AV31*FEXP(-OFFSET(BFactors,AR$8-$B34,0,1,1)*$D34),"") -> 0.9016606425 | AS31: =IF(AS$8>=$B34,IRCalibration!AW31*FEXP(-OFFSET(BFactors,AS$8-$B34,0,1,1)*$D34),"") -> 0.8940253592 | AT31: =IF(AT$8>=$B34,IRCalibration!AX31*FEXP(-OFFSET(BFactors,AT$8-$B34,0,1,1)*$D34),"") -> 0.8864695293 | AU31: =IF(AU$8>=$B34,IRCalibration!AY31*FEXP(-OFFSET(BFactors,AU$8-$B34,0,1,1)*$D34),"") -> 0.878991806 | AV31: =IF(AV$8>=$B34,IRCalibration!AZ31*FEXP(-OFFSET(BFactors,AV$8-$B34,0,1,1)*$D34),"") -> 0.8715908743 | AW31: =IF(AW$8>=$B34,IRCalibration!BA31*FEXP(-OFFSET(BFactors,AW$8-$B34,0,1,1)*$D34),"") -> 0.8642654512 | AX31: =IF(AX$8>=$B34,IRCalibration!BB31*FEXP(-OFFSET(BFactors,AX$8-$B34,0,1,1)*$D34),"") -> 0.8570142856
B32: 20 | C32: 5 | D32: =D31*Param1+NORMSINV(RAND())*IRVol*Param2+IRCalibration!I29-IRCalibration!I28*Param1 -> 0.03301359488 | E32: 0.01396519373 | F32: 0.8969660709 | G32: 0.07357694694 | AG32: 1 | AH32: =IF(AH$8>=$B35,IRCalibration!AL32*FEXP(-OFFSET(BFactors,AH$8-$B35,0,1,1)*$D35),"") -> 0.9913696912 | AI32: =IF(AI$8>=$B35,IRCalibration!AM32*FEXP(-OFFSET(BFactors,AI$8-$B35,0,1,1)*$D35),"") -> 0.9828316512 | AJ32: =IF(AJ$8>=$B35,IRCalibration!AN32*FEXP(-OFFSET(BFactors,AJ$8-$B35,0,1,1)*$D35),"") -> 0.9743846871 | AK32: =IF(AK$8>=$B35,IRCalibration!AO32*FEXP(-OFFSET(BFactors,AK$8-$B35,0,1,1)*$D35),"") -> 0.9660276682 | AL32: =IF(AL$8>=$B35,IRCalibration!AP32*FEXP(-OFFSET(BFactors,AL$8-$B35,0,1,1)*$D35),"") -> 0.9577595266 | AM32: =IF(AM$8>=$B35,IRCalibration!AQ32*FEXP(-OFFSET(BFactors,AM$8-$B35,0,1,1)*$D35),"") -> 0.9495791821 | AN32: =IF(AN$8>=$B35,IRCalibration!AR32*FEXP(-OFFSET(BFactors,AN$8-$B35,0,1,1)*$D35),"") -> 0.9414853028 | AO32: =IF(AO$8>=$B35,IRCalibration!AS32*FEXP(-OFFSET(BFactors,AO$8-$B35,0,1,1)*$D35),"") -> 0.9334765031 | AP32: =IF(AP$8>=$B35,IRCalibration!AT32*FEXP(-OFFSET(BFactors,AP$8-$B35,0,1,1)*$D35),"") -> 0.9255514165 | AQ32: =IF(AQ$8>=$B35,IRCalibration!AU32*FEXP(-OFFSET(BFactors,AQ$8-$B35,0,1,1)*$D35),"") -> 0.917708701 | AR32: =IF(AR$8>=$B35,IRCalibration!AV32*FEXP(-OFFSET(BFactors,AR$8-$B35,0,1,1)*$D35),"") -> 0.9099470223 | AS32: =IF(AS$8>=$B35,IRCalibration!AW32*FEXP(-OFFSET(BFactors,AS$8-$B35,0,1,1)*$D35),"") -> 0.9022650904 | AT32: =IF(AT$8>=$B35,IRCalibration!AX32*FEXP(-OFFSET(BFactors,AT$8-$B35,0,1,1)*$D35),"") -> 0.8946616256 | AU32: =IF(AU$8>=$B35,IRCalibration!AY32*FEXP(-OFFSET(BFactors,AU$8-$B35,0,1,1)*$D35),"") -> 0.8871353762 | AV32: =IF(AV$8>=$B35,IRCalibration!AZ32*FEXP(-OFFSET(BFactors,AV$8-$B35,0,1,1)*$D35),"") -> 0.8796851166 | AW32: =IF(AW$8>=$B35,IRCalibration!BA32*FEXP(-OFFSET(BFactors,AW$8-$B35,0,1,1)*$D35),"") -> 0.8723096469 | AX32: =IF(AX$8>=$B35,IRCalibration!BB32*FEXP(-OFFSET(BFactors,AX$8-$B35,0,1,1)*$D35),"") -> 0.8650077938
B33: 21 | C33: 5.25 | D33: =D32*Param1+NORMSINV(RAND())*IRVol*Param2+IRCalibration!I30-IRCalibration!I29*Param1 -> 0.03799129051 | E33: 0.01386734695 | F33: 0.8884871755 | G33: 0.08449559214 | AH33: 1 | AI33: =IF(AI$8>=$B36,IRCalibration!AM33*FEXP(-OFFSET(BFactors,AI$8-$B36,0,1,1)*$D36),"") -> 0.9918621161 | AJ33: =IF(AJ$8>=$B36,IRCalibration!AN33*FEXP(-OFFSET(BFactors,AJ$8-$B36,0,1,1)*$D36),"") -> 0.9837951561 | AK33: =IF(AK$8>=$B36,IRCalibration!AO33*FEXP(-OFFSET(BFactors,AK$8-$B36,0,1,1)*$D36),"") -> 0.9757988071 | AL33: =IF(AL$8>=$B36,IRCalibration!AP33*FEXP(-OFFSET(BFactors,AL$8-$B36,0,1,1)*$D36),"") -> 0.9678727859 | AM33: =IF(AM$8>=$B36,IRCalibration!AQ33*FEXP(-OFFSET(BFactors,AM$8-$B36,0,1,1)*$D36),"") -> 0.9600167653 | AN33: =IF(AN$8>=$B36,IRCalibration!AR33*FEXP(-OFFSET(BFactors,AN$8-$B36,0,1,1)*$D36),"") -> 0.952230133 | AO33: =IF(AO$8>=$B36,IRCalibration!AS33*FEXP(-OFFSET(BFactors,AO$8-$B36,0,1,1)*$D36),"") -> 0.9445121924 | AP33: =IF(AP$8>=$B36,IRCalibration!AT33*FEXP(-OFFSET(BFactors,AP$8-$B36,0,1,1)*$D36),"") -> 0.9368622381 | AQ33: =IF(AQ$8>=$B36,IRCalibration!AU33*FEXP(-OFFSET(BFactors,AQ$8-$B36,0,1,1)*$D36),"") -> 0.9292795615 | AR33: =IF(AR$8>=$B36,IRCalibration!AV33*FEXP(-OFFSET(BFactors,AR$8-$B36,0,1,1)*$D36),"") -> 0.9217634361 | AS33: =IF(AS$8>=$B36,IRCalibration!AW33*FEXP(-OFFSET(BFactors,AS$8-$B36,0,1,1)*$D36),"") -> 0.9143131551 | AT33: =IF(AT$8>=$B36,IRCalibration!AX33*FEXP(-OFFSET(BFactors,AT$8-$B36,0,1,1)*$D36),"") -> 0.9069279977 | AU33: =IF(AU$8>=$B36,IRCalibration!AY33*FEXP(-OFFSET(BFactors,AU$8-$B36,0,1,1)*$D36),"") -> 0.899607249 | AV33: =IF(AV$8>=$B36,IRCalibration!AZ33*FEXP(-OFFSET(BFactors,AV$8-$B36,0,1,1)*$D36),"") -> 0.8923501981 | AW33: =IF(AW$8>=$B36,IRCalibration!BA33*FEXP(-OFFSET(BFactors,AW$8-$B36,0,1,1)*$D36),"") -> 0.8851561392 | AX33: =IF(AX$8>=$B36,IRCalibration!BB33*FEXP(-OFFSET(BFactors,AX$8-$B36,0,1,1)*$D36),"") -> 0.8780243732
B34: 22 | C34: 5.5 | D34: =D33*Param1+NORMSINV(RAND())*IRVol*Param2+IRCalibration!I31-IRCalibration!I30*Param1 -> 0.03483748757 | E34: 0.01369653694 | F34: 0.8807826099 | G34: 0.07110941303 | AI34: 1 | AJ34: =IF(AJ$8>=$B37,IRCalibration!AN34*FEXP(-OFFSET(BFactors,AJ$8-$B37,0,1,1)*$D37),"") -> 0.9924169283 | AK34: =IF(AK$8>=$B37,IRCalibration!AO34*FEXP(-OFFSET(BFactors,AK$8-$B37,0,1,1)*$D37),"") -> 0.9848815353 | AL34: =IF(AL$8>=$B37,IRCalibration!AP34*FEXP(-OFFSET(BFactors,AL$8-$B37,0,1,1)*$D37),"") -> 0.9773944168 | AM34: =IF(AM$8>=$B37,IRCalibration!AQ34*FEXP(-OFFSET(BFactors,AM$8-$B37,0,1,1)*$D37),"") -> 0.9699560911 | AN34: =IF(AN$8>=$B37,IRCalibration!AR34*FEXP(-OFFSET(BFactors,AN$8-$B37,0,1,1)*$D37),"") -> 0.9625667572 | AO34: =IF(AO$8>=$B37,IRCalibration!AS34*FEXP(-OFFSET(BFactors,AO$8-$B37,0,1,1)*$D37),"") -> 0.9552264982 | AP34: =IF(AP$8>=$B37,IRCalibration!AT34*FEXP(-OFFSET(BFactors,AP$8-$B37,0,1,1)*$D37),"") -> 0.9479353584 | AQ34: =IF(AQ$8>=$B37,IRCalibration!AU34*FEXP(-OFFSET(BFactors,AQ$8-$B37,0,1,1)*$D37),"") -> 0.9406933508 | AR34: =IF(AR$8>=$B37,IRCalibration!AV34*FEXP(-OFFSET(BFactors,AR$8-$B37,0,1,1)*$D37),"") -> 0.9335004422 | AS34: =IF(AS$8>=$B37,IRCalibration!AW34*FEXP(-OFFSET(BFactors,AS$8-$B37,0,1,1)*$D37),"") -> 0.9263565935 | AT34: =IF(AT$8>=$B37,IRCalibration!AX34*FEXP(-OFFSET(BFactors,AT$8-$B37,0,1,1)*$D37),"") -> 0.9192617259 | AU34: =IF(AU$8>=$B37,IRCalibration!AY34*FEXP(-OFFSET(BFactors,AU$8-$B37,0,1,1)*$D37),"") -> 0.9122157421 | AV34: =IF(AV$8>=$B37,IRCalibration!AZ34*FEXP(-OFFSET(BFactors,AV$8-$B37,0,1,1)*$D37),"") -> 0.9052185253 | AW34: =IF(AW$8>=$B37,IRCalibration!BA34*FEXP(-OFFSET(BFactors,AW$8-$B37,0,1,1)*$D37),"") -> 0.8982699417 | AX34: =IF(AX$8>=$B37,IRCalibration!BB34*FEXP(-OFFSET(BFactors,AX$8-$B37,0,1,1)*$D37),"") -> 0.8913698424
B35: 23 | C35: 5.75 | D35: =D34*Param1+NORMSINV(RAND())*IRVol*Param2+IRCalibration!I32-IRCalibration!I31*Param1 -> 0.03455461026 | E35: 0.01345430727 | F35: 0.8732066053 | G35: 0.06629843743 | AJ35: 1 | AK35: =IF(AK$8>=$B38,IRCalibration!AO35*FEXP(-OFFSET(BFactors,AK$8-$B38,0,1,1)*$D38),"") -> 0.9924325243 | AL35: =IF(AL$8>=$B38,IRCalibration!AP35*FEXP(-OFFSET(BFactors,AL$8-$B38,0,1,1)*$D38),"") -> 0.9849112606 | AM35: =IF(AM$8>=$B38,IRCalibration!AQ35*FEXP(-OFFSET(BFactors,AM$8-$B38,0,1,1)*$D38),"") -> 0.9774369005 | AN35: =IF(AN$8>=$B38,IRCalibration!AR35*FEXP(-OFFSET(BFactors,AN$8-$B38,0,1,1)*$D38),"") -> 0.970009803 | AO35: =IF(AO$8>=$B38,IRCalibration!AS35*FEXP(-OFFSET(BFactors,AO$8-$B38,0,1,1)*$D38),"") -> 0.9626302008 | AP35: =IF(AP$8>=$B38,IRCalibration!AT35*FEXP(-OFFSET(BFactors,AP$8-$B38,0,1,1)*$D38),"") -> 0.955298278 | AQ35: =IF(AQ$8>=$B38,IRCalibration!AU35*FEXP(-OFFSET(BFactors,AQ$8-$B38,0,1,1)*$D38),"") -> 0.9480141786 | AR35: =IF(AR$8>=$B38,IRCalibration!AV35*FEXP(-OFFSET(BFactors,AR$8-$B38,0,1,1)*$D38),"") -> 0.9407779919 | AS35: =IF(AS$8>=$B38,IRCalibration!AW35*FEXP(-OFFSET(BFactors,AS$8-$B38,0,1,1)*$D38),"") -> 0.9335897933 | AT35: =IF(AT$8>=$B38,IRCalibration!AX35*FEXP(-OFFSET(BFactors,AT$8-$B38,0,1,1)*$D38),"") -> 0.926449611 | AU35: =IF(AU$8>=$B38,IRCalibration!AY35*FEXP(-OFFSET(BFactors,AU$8-$B38,0,1,1)*$D38),"") -> 0.9193574477 | AV35: =IF(AV$8>=$B38,IRCalibration!AZ35*FEXP(-OFFSET(BFactors,AV$8-$B38,0,1,1)*$D38),"") -> 0.9123132802 | AW35: =IF(AW$8>=$B38,IRCalibration!BA35*FEXP(-OFFSET(BFactors,AW$8-$B38,0,1,1)*$D38),"") -> 0.9053170618 | AX35: =IF(AX$8>=$B38,IRCalibration!BB35*FEXP(-OFFSET(BFactors,AX$8-$B38,0,1,1)*$D38),"") -> 0.898368725
B36: 24 | C36: 6 | D36: =D35*Param1+NORMSINV(RAND())*IRVol*Param2+IRCalibration!I33-IRCalibration!I32*Param1 -> 0.0325432703 | E36: 0.01314226109 | F36: 0.8661311769 | G36: 0.05712068476 | AK36: 1 | AL36: =IF(AL$8>=$B39,IRCalibration!AP36*FEXP(-OFFSET(BFactors,AL$8-$B39,0,1,1)*$D39),"") -> 0.9933342026 | AM36: =IF(AM$8>=$B39,IRCalibration!AQ36*FEXP(-OFFSET(BFactors,AM$8-$B39,0,1,1)*$D39),"") -> 0.9866788724 | AN36: =IF(AN$8>=$B39,IRCalibration!AR36*FEXP(-OFFSET(BFactors,AN$8-$B39,0,1,1)*$D39),"") -> 0.9800356124 | AO36: =IF(AO$8>=$B39,IRCalibration!AS36*FEXP(-OFFSET(BFactors,AO$8-$B39,0,1,1)*$D39),"") -> 0.9734058594 | AP36: =IF(AP$8>=$B39,IRCalibration!AT36*FEXP(-OFFSET(BFactors,AP$8-$B39,0,1,1)*$D39),"") -> 0.9667909632 | AQ36: =IF(AQ$8>=$B39,IRCalibration!AU36*FEXP(-OFFSET(BFactors,AQ$8-$B39,0,1,1)*$D39),"") -> 0.9601921959 | AR36: =IF(AR$8>=$B39,IRCalibration!AV36*FEXP(-OFFSET(BFactors,AR$8-$B39,0,1,1)*$D39),"") -> 0.9536107386 | AS36: =IF(AS$8>=$B39,IRCalibration!AW36*FEXP(-OFFSET(BFactors,AS$8-$B39,0,1,1)*$D39),"") -> 0.9470477235 | AT36: =IF(AT$8>=$B39,IRCalibration!AX36*FEXP(-OFFSET(BFactors,AT$8-$B39,0,1,1)*$D39),"") -> 0.940504201 | AU36: =IF(AU$8>=$B39,IRCalibration!AY36*FEXP(-OFFSET(BFactors,AU$8-$B39,0,1,1)*$D39),"") -> 0.9339811632 | AV36: =IF(AV$8>=$B39,IRCalibration!AZ36*FEXP(-OFFSET(BFactors,AV$8-$B39,0,1,1)*$D39),"") -> 0.9274795435 | AW36: =IF(AW$8>=$B39,IRCalibration!BA36*FEXP(-OFFSET(BFactors,AW$8-$B39,0,1,1)*$D39),"") -> 0.9210002208 | AX36: =IF(AX$8>=$B39,IRCalibration!BB36*FEXP(-OFFSET(BFactors,AX$8-$B39,0,1,1)*$D39),"") -> 0.914544023
B37: 25 | C37: 6.25 | D37: =D36*Param1+NORMSINV(RAND())*IRVol*Param2+IRCalibration!I34-IRCalibration!I33*Param1 -> 0.0302786689 | E37: 0.01276205932 | F37: 0.8595996042 | G37: 0.04787146172 | AL37: 1 | AM37: =IF(AM$8>=$B40,IRCalibration!AQ37*FEXP(-OFFSET(BFactors,AM$8-$B40,0,1,1)*$D40),"") -> 0.9920514119 | AN37: =IF(AN$8>=$B40,IRCalibration!AR37*FEXP(-OFFSET(BFactors,AN$8-$B40,0,1,1)*$D40),"") -> 0.9841624246 | AO37: =IF(AO$8>=$B40,IRCalibration!AS37*FEXP(-OFFSET(BFactors,AO$8-$B40,0,1,1)*$D40),"") -> 0.976333063 | AP37: =IF(AP$8>=$B40,IRCalibration!AT37*FEXP(-OFFSET(BFactors,AP$8-$B40,0,1,1)*$D40),"") -> 0.9685632986 | AQ37: =IF(AQ$8>=$B40,IRCalibration!AU37*FEXP(-OFFSET(BFactors,AQ$8-$B40,0,1,1)*$D40),"") -> 0.9608530586 | AR37: =IF(AR$8>=$B40,IRCalibration!AV37*FEXP(-OFFSET(BFactors,AR$8-$B40,0,1,1)*$D40),"") -> 0.9532022126 | AS37: =IF(AS$8>=$B40,IRCalibration!AW37*FEXP(-OFFSET(BFactors,AS$8-$B40,0,1,1)*$D40),"") -> 0.9456106141 | AT37: =IF(AT$8>=$B40,IRCalibration!AX37*FEXP(-OFFSET(BFactors,AT$8-$B40,0,1,1)*$D40),"") -> 0.9380780676 | AU37: =IF(AU$8>=$B40,IRCalibration!AY37*FEXP(-OFFSET(BFactors,AU$8-$B40,0,1,1)*$D40),"") -> 0.9306043511 | AV37: =IF(AV$8>=$B40,IRCalibration!AZ37*FEXP(-OFFSET(BFactors,AV$8-$B40,0,1,1)*$D40),"") -> 0.9231892157 | AW37: =IF(AW$8>=$B40,IRCalibration!BA37*FEXP(-OFFSET(BFactors,AW$8-$B40,0,1,1)*$D40),"") -> 0.9158323893 | AX37: =IF(AX$8>=$B40,IRCalibration!BB37*FEXP(-OFFSET(BFactors,AX$8-$B40,0,1,1)*$D40),"") -> 0.9085335795
B38: 26 | C38: 6.5 | D38: =D37*Param1+NORMSINV(RAND())*IRVol*Param2+IRCalibration!I35-IRCalibration!I34*Param1 -> 0.03021561728 | E38: 0.01231541871 | F38: 0.8531307344 | G38: 0.04438871079 | AM38: 1 | AN38: =IF(AN$8>=$B41,IRCalibration!AR38*FEXP(-OFFSET(BFactors,AN$8-$B41,0,1,1)*$D41),"") -> 0.9918538214 | AO38: =IF(AO$8>=$B41,IRCalibration!AS38*FEXP(-OFFSET(BFactors,AO$8-$B41,0,1,1)*$D41),"") -> 0.9837741887 | AP38: =IF(AP$8>=$B41,IRCalibration!AT38*FEXP(-OFFSET(BFactors,AP$8-$B41,0,1,1)*$D41),"") -> 0.9757609438 | AQ38: =IF(AQ$8>=$B41,IRCalibration!AU38*FEXP(-OFFSET(BFactors,AQ$8-$B41,0,1,1)*$D41),"") -> 0.9678138829 | AR38: =IF(AR$8>=$B41,IRCalibration!AV38*FEXP(-OFFSET(BFactors,AR$8-$B41,0,1,1)*$D41),"") -> 0.9599327431 | AS38: =IF(AS$8>=$B41,IRCalibration!AW38*FEXP(-OFFSET(BFactors,AS$8-$B41,0,1,1)*$D41),"") -> 0.9521172447 | AT38: =IF(AT$8>=$B41,IRCalibration!AX38*FEXP(-OFFSET(BFactors,AT$8-$B41,0,1,1)*$D41),"") -> 0.9443670582 | AU38: =IF(AU$8>=$B41,IRCalibration!AY38*FEXP(-OFFSET(BFactors,AU$8-$B41,0,1,1)*$D41),"") -> 0.9366818279 | AV38: =IF(AV$8>=$B41,IRCalibration!AZ38*FEXP(-OFFSET(BFactors,AV$8-$B41,0,1,1)*$D41),"") -> 0.9290611711 | AW38: =IF(AW$8>=$B41,IRCalibration!BA38*FEXP(-OFFSET(BFactors,AW$8-$B41,0,1,1)*$D41),"") -> 0.9215046822 | AX38: =IF(AX$8>=$B41,IRCalibration!BB38*FEXP(-OFFSET(BFactors,AX$8-$B41,0,1,1)*$D41),"") -> 0.9140119359
B39: 27 | C39: 6.75 | D39: =D38*Param1+NORMSINV(RAND())*IRVol*Param2+IRCalibration!I36-IRCalibration!I35*Param1 -> 0.02653851164 | E39: 0.01180410995 | F39: 0.8474892647 | G39: 0.03301920474 | AN39: 1 | AO39: =IF(AO$8>=$B42,IRCalibration!AS39*FEXP(-OFFSET(BFactors,AO$8-$B42,0,1,1)*$D42),"") -> 0.9936189602 | AP39: =IF(AP$8>=$B42,IRCalibration!AT39*FEXP(-OFFSET(BFactors,AP$8-$B42,0,1,1)*$D42),"") -> 0.9872345489 | AQ39: =IF(AQ$8>=$B42,IRCalibration!AU39*FEXP(-OFFSET(BFactors,AQ$8-$B42,0,1,1)*$D42),"") -> 0.9808488672 | AR39: =IF(AR$8>=$B42,IRCalibration!AV39*FEXP(-OFFSET(BFactors,AR$8-$B42,0,1,1)*$D42),"") -> 0.9744638887 | AS39: =IF(AS$8>=$B42,IRCalibration!AW39*FEXP(-OFFSET(BFactors,AS$8-$B42,0,1,1)*$D42),"") -> 0.9680815037 | AT39: =IF(AT$8>=$B42,IRCalibration!AX39*FEXP(-OFFSET(BFactors,AT$8-$B42,0,1,1)*$D42),"") -> 0.9617034872 | AU39: =IF(AU$8>=$B42,IRCalibration!AY39*FEXP(-OFFSET(BFactors,AU$8-$B42,0,1,1)*$D42),"") -> 0.9553315242 | AV39: =IF(AV$8>=$B42,IRCalibration!AZ39*FEXP(-OFFSET(BFactors,AV$8-$B42,0,1,1)*$D42),"") -> 0.9489672105 | AW39: =IF(AW$8>=$B42,IRCalibration!BA39*FEXP(-OFFSET(BFactors,AW$8-$B42,0,1,1)*$D42),"") -> 0.9426120583 | AX39: =IF(AX$8>=$B42,IRCalibration!BB39*FEXP(-OFFSET(BFactors,AX$8-$B42,0,1,1)*$D42),"") -> 0.936267501
B40: 28 | C40: 7 | D40: =D39*Param1+NORMSINV(RAND())*IRVol*Param2+IRCalibration!I37-IRCalibration!I36*Param1 -> 0.03177317506 | E40: 0.01122995564 | F40: 0.8407840744 | G40: 0.04096940618 | AO40: 1 | AP40: =IF(AP$8>=$B43,IRCalibration!AT40*FEXP(-OFFSET(BFactors,AP$8-$B43,0,1,1)*$D43),"") -> 0.9938569505 | AQ40: =IF(AQ$8>=$B43,IRCalibration!AU40*FEXP(-OFFSET(BFactors,AQ$8-$B43,0,1,1)*$D43),"") -> 0.9877007094 | AR40: =IF(AR$8>=$B43,IRCalibration!AV40*FEXP(-OFFSET(BFactors,AR$8-$B43,0,1,1)*$D43),"") -> 0.9815336913 | AS40: =IF(AS$8>=$B43,IRCalibration!AW40*FEXP(-OFFSET(BFactors,AS$8-$B43,0,1,1)*$D43),"") -> 0.975358212 | AT40: =IF(AT$8>=$B43,IRCalibration!AX40*FEXP(-OFFSET(BFactors,AT$8-$B43,0,1,1)*$D43),"") -> 0.9691764576 | AU40: =IF(AU$8>=$B43,IRCalibration!AY40*FEXP(-OFFSET(BFactors,AU$8-$B43,0,1,1)*$D43),"") -> 0.9629905096 | AV40: =IF(AV$8>=$B43,IRCalibration!AZ40*FEXP(-OFFSET(BFactors,AV$8-$B43,0,1,1)*$D43),"") -> 0.9568023467 | AW40: =IF(AW$8>=$B43,IRCalibration!BA40*FEXP(-OFFSET(BFactors,AW$8-$B43,0,1,1)*$D43),"") -> 0.9506138507 | AX40: =IF(AX$8>=$B43,IRCalibration!BB40*FEXP(-OFFSET(BFactors,AX$8-$B43,0,1,1)*$D43),"") -> 0.9444268113
B41: 29 | C41: 7.25 | D41: =D40*Param1+NORMSINV(RAND())*IRVol*Param2+IRCalibration!I38-IRCalibration!I37*Param1 -> 0.03257991247 | E41: 0.01059475658 | F41: 0.83396372 | G41: 0.03894591055 | AP41: 1 | AQ41: =IF(AQ$8>=$B44,IRCalibration!AU41*FEXP(-OFFSET(BFactors,AQ$8-$B44,0,1,1)*$D44),"") -> 0.9957835168 | AR41: =IF(AR$8>=$B44,IRCalibration!AV41*FEXP(-OFFSET(BFactors,AR$8-$B44,0,1,1)*$D44),"") -> 0.9914853789 | AS41: =IF(AS$8>=$B44,IRCalibration!AW41*FEXP(-OFFSET(BFactors,AS$8-$B44,0,1,1)*$D44),"") -> 0.98710975 | AT41: =IF(AT$8>=$B44,IRCalibration!AX41*FEXP(-OFFSET(BFactors,AT$8-$B44,0,1,1)*$D44),"") -> 0.9826606373 | AU41: =IF(AU$8>=$B44,IRCalibration!AY41*FEXP(-OFFSET(BFactors,AU$8-$B44,0,1,1)*$D44),"") -> 0.9781419163 | AV41: =IF(AV$8>=$B44,IRCalibration!AZ41*FEXP(-OFFSET(BFactors,AV$8-$B44,0,1,1)*$D44),"") -> 0.9735573309 | AW41: =IF(AW$8>=$B44,IRCalibration!BA41*FEXP(-OFFSET(BFactors,AW$8-$B44,0,1,1)*$D44),"") -> 0.9689104984 | AX41: =IF(AX$8>=$B44,IRCalibration!BB41*FEXP(-OFFSET(BFactors,AX$8-$B44,0,1,1)*$D44),"") -> 0.9642049142
B42: 30 | C42: 7.5 | D42: =D41*Param1+NORMSINV(RAND())*IRVol*Param2+IRCalibration!I39-IRCalibration!I38*Param1 -> 0.02537839083 | E42: 0.009900056771 | F42: 0.8286893054 | G42: 0.02282895108 | AQ42: 1 | AR42: =IF(AR$8>=$B45,IRCalibration!AV42*FEXP(-OFFSET(BFactors,AR$8-$B45,0,1,1)*$D45),"") -> 0.9944132694 | AS42: =IF(AS$8>=$B45,IRCalibration!AW42*FEXP(-OFFSET(BFactors,AS$8-$B45,0,1,1)*$D45),"") -> 0.988791247 | AT42: =IF(AT$8>=$B45,IRCalibration!AX42*FEXP(-OFFSET(BFactors,AT$8-$B45,0,1,1)*$D45),"") -> 0.9831370456 | AU42: =IF(AU$8>=$B45,IRCalibration!AY42*FEXP(-OFFSET(BFactors,AU$8-$B45,0,1,1)*$D45),"") -> 0.9774536452 | AV42: =IF(AV$8>=$B45,IRCalibration!AZ42*FEXP(-OFFSET(BFactors,AV$8-$B45,0,1,1)*$D45),"") -> 0.9717438954 | AW42: =IF(AW$8>=$B45,IRCalibration!BA42*FEXP(-OFFSET(BFactors,AW$8-$B45,0,1,1)*$D45),"") -> 0.9660105219 | AX42: =IF(AX$8>=$B45,IRCalibration!BB42*FEXP(-OFFSET(BFactors,AX$8-$B45,0,1,1)*$D45),"") -> 0.9602561317
B43: 31 | C43: 7.75 | D43: =D42*Param1+NORMSINV(RAND())*IRVol*Param2+IRCalibration!I40-IRCalibration!I39*Param1 -> 0.02440826911 | E43: 0.009147326609 | F43: 0.8236479844 | G43: 0.01883185908 | AR43: 1 | AS43: =IF(AS$8>=$B46,IRCalibration!AW43*FEXP(-OFFSET(BFactors,AS$8-$B46,0,1,1)*$D46),"") -> 0.9954174381 | AT43: =IF(AT$8>=$B46,IRCalibration!AX43*FEXP(-OFFSET(BFactors,AT$8-$B46,0,1,1)*$D46),"") -> 0.9907636925 | AU43: =IF(AU$8>=$B46,IRCalibration!AY43*FEXP(-OFFSET(BFactors,AU$8-$B46,0,1,1)*$D46),"") -> 0.9860427888 | AV43: =IF(AV$8>=$B46,IRCalibration!AZ43*FEXP(-OFFSET(BFactors,AV$8-$B46,0,1,1)*$D46),"") -> 0.9812586063 | AW43: =IF(AW$8>=$B46,IRCalibration!BA43*FEXP(-OFFSET(BFactors,AW$8-$B46,0,1,1)*$D46),"") -> 0.9764148832 | AX43: =IF(AX$8>=$B46,IRCalibration!BB43*FEXP(-OFFSET(BFactors,AX$8-$B46,0,1,1)*$D46),"") -> 0.9715152221
B44: 32 | C44: 8 | D44: =D43*Param1+NORMSINV(RAND())*IRVol*Param2+IRCalibration!I41-IRCalibration!I40*Param1 -> 0.016564723 | E44: 0.0083380293 | F44: 0.820244162 | G44: 0.005239829194 | AS44: 1 | AT44: =IF(AT$8>=$B47,IRCalibration!AX44*FEXP(-OFFSET(BFactors,AT$8-$B47,0,1,1)*$D47),"") -> 0.995808928 | AU44: =IF(AU$8>=$B47,IRCalibration!AY44*FEXP(-OFFSET(BFactors,AU$8-$B47,0,1,1)*$D47),"") -> 0.9915326948 | AV44: =IF(AV$8>=$B47,IRCalibration!AZ44*FEXP(-OFFSET(BFactors,AV$8-$B47,0,1,1)*$D47),"") -> 0.9871756721 | AW44: =IF(AW$8>=$B47,IRCalibration!BA44*FEXP(-OFFSET(BFactors,AW$8-$B47,0,1,1)*$D47),"") -> 0.982742083 | AX44: =IF(AX$8>=$B47,IRCalibration!BB44*FEXP(-OFFSET(BFactors,AX$8-$B47,0,1,1)*$D47),"") -> 0.9782360066
B45: 33 | C45: 8.25 | D45: =D44*Param1+NORMSINV(RAND())*IRVol*Param2+IRCalibration!I42-IRCalibration!I41*Param1 -> 0.02214167479 | E45: 0.007473623768 | F45: 0.8157163105 | G45: 0.01149107458 | AT45: 1 | AU45: =IF(AU$8>=$B48,IRCalibration!AY45*FEXP(-OFFSET(BFactors,AU$8-$B48,0,1,1)*$D48),"") -> 0.995064983 | AV45: =IF(AV$8>=$B48,IRCalibration!AZ45*FEXP(-OFFSET(BFactors,AV$8-$B48,0,1,1)*$D48),"") -> 0.9900691697 | AW45: =IF(AW$8>=$B48,IRCalibration!BA45*FEXP(-OFFSET(BFactors,AW$8-$B48,0,1,1)*$D48),"") -> 0.9850164432 | AX45: =IF(AX$8>=$B48,IRCalibration!BB45*FEXP(-OFFSET(BFactors,AX$8-$B48,0,1,1)*$D48),"") -> 0.9799105355
B46: 34 | C46: 8.5 | D46: =D45*Param1+NORMSINV(RAND())*IRVol*Param2+IRCalibration!I43-IRCalibration!I42*Param1 -> 0.01805396601 | E46: 0.00655554687 | F46: 0.8120428781 | G46: 0.005160110691 | AU46: 1 | AV46: =IF(AV$8>=$B49,IRCalibration!AZ46*FEXP(-OFFSET(BFactors,AV$8-$B49,0,1,1)*$D49),"") -> 0.9943970012 | AW46: =IF(AW$8>=$B49,IRCalibration!BA46*FEXP(-OFFSET(BFactors,AW$8-$B49,0,1,1)*$D49),"") -> 0.9887559387 | AX46: =IF(AX$8>=$B49,IRCalibration!BB46*FEXP(-OFFSET(BFactors,AX$8-$B49,0,1,1)*$D49),"") -> 0.9830801845
B47: 35 | C47: 8.75 | D47: =D46*Param1+NORMSINV(RAND())*IRVol*Param2+IRCalibration!I44-IRCalibration!I43*Param1 -> 0.01646148365 | E47: 0.005585247117 | F47: 0.8087078875 | G47: 0.002633060474 | AV47: 1 | AW47: =IF(AW$8>=$B50,IRCalibration!BA47*FEXP(-OFFSET(BFactors,AW$8-$B50,0,1,1)*$D50),"") -> 0.9942893737 | AX47: =IF(AX$8>=$B50,IRCalibration!BB47*FEXP(-OFFSET(BFactors,AX$8-$B50,0,1,1)*$D50),"") -> 0.9885437973
B48: 36 | C48: 9 | D48: =D47*Param1+NORMSINV(RAND())*IRVol*Param2+IRCalibration!I45-IRCalibration!I44*Param1 -> 0.01948854761 | E48: 0.004564149842 | F48: 0.8047773349 | G48: 0.00424659695 | AW48: 1 | AX48: =IF(AX$8>=$B51,IRCalibration!BB48*FEXP(-OFFSET(BFactors,AX$8-$B51,0,1,1)*$D51),"") -> 0.9926369777
B49: 37 | C49: 9.25 | D49: =D48*Param1+NORMSINV(RAND())*IRVol*Param2+IRCalibration!I46-IRCalibration!I45*Param1 -> 0.02220852306 | E49: 0.003493673807 | F49: 0.800321487 | G49: 0.004639016547 | AX49: 1
B50: 38 | C50: 9.5 | D50: =D49*Param1+NORMSINV(RAND())*IRVol*Param2+IRCalibration!I47-IRCalibration!I46*Param1 -> 0.02264720152 | E50: 0.002375227246 | F50: 0.7958030299 | G50: 0.003199588425
B51: 39 | C51: 9.75 | D51: =D50*Param1+NORMSINV(RAND())*IRVol*Param2+IRCalibration!I48-IRCalibration!I47*Param1 -> 0.02938397149 | E51: 0.001210207392 | F51: 0.7899784862 | G51: 0.002876022224
B52: 40 | C52: 10 | D52: =D51*Param1+NORMSINV(RAND())*IRVol*Param2+IRCalibration!I49-IRCalibration!I48*Param1 -> 0.02757195492 | E52: 0 | F52: 0.7845518976
A54: Param1 | B54: =EXP(-MeanRvs*0.25) -> 0.975309912
A55: Param2 | B55: =SQRT((1-EXP(-2*MeanRvs*0.25))/(2*MeanRvs)) -> 0.4938146186
E56: Check | F56: Fwd | G56: Short rate simulations
B57: 0 | E57: =AVERAGE(G57:ALR57) ->  | F57: 0.007500000298
B58: 0.25 | E58: =AVERAGE(G58:ALR58) ->  | F58: 0.00800000038
B59: 0.5 | F59: 0.009000000544
B60: 0.75 | F60: 0.009655867728
B61: 1 | F61: 0.01014413216
B62: 1.25 | F62: 0.0107672291
B63: 1.5 | F63: 0.01145368437
B64: 1.75 | F64: 0.01214656557
B65: 2 | F65: 0.01283251901
B66: 2.25 | F66: 0.01349838809
B67: 2.5 | F67: 0.01413174034
B68: 2.75 | F68: 0.01471989097
B69: 3 | F69: 0.01524998707
B70: 3.25 | F70: 0.0157200077
B71: 3.5 | F71: 0.01616703422
B72: 3.75 | F72: 0.01660733736
B73: 4 | F73: 0.01704808614
B74: 4.25 | F74: 0.01749636857
B75: 4.5 | F75: 0.01795931736
B76: 4.75 | F76: 0.01844408081
B77: 5 | F77: 0.01895777115
B78: 5.25 | F78: 0.01949583731
B79: 5.5 | F79: 0.02001419377
B80: 5.75 | F80: 0.02049601911
B81: 6 | F81: 0.02093514707
B82: 6.25 | F82: 0.02132528566
B83: 6.5 | F83: 0.02166021367
B84: 6.75 | F84: 0.02193373107
B85: 7 | F85: 0.02213958498
B86: 7.25 | F86: 0.02228139119
B87: 7.5 | F87: 0.02239479954
B88: 7.75 | F88: 0.02249100112
B89: 8 | F89: 0.02257181472
B90: 8.25 | F90: 0.02263904252
B91: 8.5 | F91: 0.02269478992
B92: 8.75 | F92: 0.02274073897
B93: 9 | F93: 0.02277892461
B94: 9.25 | F94: 0.02281116086
B95: 9.5 | F95: 0.02283940165
B96: 9.75 | F96: 0.02286550354
B97: 10 | F97: 0.02289137909
C98: EPE | D98: ENE | E98: axis | F98: PFE (5%) | G98: PFE (95%) | H98: EFV
B99: 0 | C99: =SUMIF(I99:ALT99,">=0")/1000 -> 0 | D99: =SUMIF(I99:ALT99,"<0")/1000 -> 0 | E99: 0 | F99: =SMALL(I99:ALT99,50) ->  | G99: =SMALL(I99:ALT99,950) ->  | H99: =C99+D99 -> 0
B100: 0.25 | C100: =SUMIF(I100:ALT100,">=0")/1000 -> 0 | D100: =SUMIF(I100:ALT100,"<0")/1000 -> 0 | E100: 0 | F100: =SMALL(I100:ALT100,50) ->  | G100: =SMALL(I100:ALT100,950) ->  | H100: =C100+D100 -> 0
B101: 0.5 | C101: 0 | D101: 0 | E101: 0 | H101: 0
B102: 0.75 | C102: 0 | D102: 0 | E102: 0 | H102: 0
B103: 1 | C103: 0 | D103: 0 | E103: 0 | H103: 0
B104: 1.25 | C104: 0 | D104: 0 | E104: 0 | H104: 0
B105: 1.5 | C105: 0 | D105: 0 | E105: 0 | H105: 0
B106: 1.75 | C106: 0 | D106: 0 | E106: 0 | H106: 0
B107: 2 | C107: 0 | D107: 0 | E107: 0 | H107: 0
B108: 2.25 | C108: 0 | D108: 0 | E108: 0 | H108: 0
B109: 2.5 | C109: 0 | D109: 0 | E109: 0 | H109: 0
B110: 2.75 | C110: 0 | D110: 0 | E110: 0 | H110: 0
B111: 3 | C111: 0 | D111: 0 | E111: 0 | H111: 0
B112: 3.25 | C112: 0 | D112: 0 | E112: 0 | H112: 0
B113: 3.5 | C113: 0 | D113: 0 | E113: 0 | H113: 0
B114: 3.75 | C114: 0 | D114: 0 | E114: 0 | H114: 0
B115: 4 | C115: 0 | D115: 0 | E115: 0 | H115: 0
B116: 4.25 | C116: 0 | D116: 0 | E116: 0 | H116: 0
B117: 4.5 | C117: 0 | D117: 0 | E117: 0 | H117: 0
B118: 4.75 | C118: 0 | D118: 0 | E118: 0 | H118: 0
B119: 5 | C119: 0 | D119: 0 | E119: 0 | H119: 0
B120: 5.25 | C120: 0 | D120: 0 | E120: 0 | H120: 0
B121: 5.5 | C121: 0 | D121: 0 | E121: 0 | H121: 0
B122: 5.75 | C122: 0 | D122: 0 | E122: 0 | H122: 0
B123: 6 | C123: 0 | D123: 0 | E123: 0 | H123: 0
B124: 6.25 | C124: 0 | D124: 0 | E124: 0 | H124: 0
B125: 6.5 | C125: 0 | D125: 0 | E125: 0 | H125: 0
B126: 6.75 | C126: 0 | D126: 0 | E126: 0 | H126: 0
B127: 7 | C127: 0 | D127: 0 | E127: 0 | H127: 0
B128: 7.25 | C128: 0 | D128: 0 | E128: 0 | H128: 0
B129: 7.5 | C129: 0 | D129: 0 | E129: 0 | H129: 0
B130: 7.75 | C130: 0 | D130: 0 | E130: 0 | H130: 0
B131: 8 | C131: 0 | D131: 0 | E131: 0 | H131: 0
B132: 8.25 | C132: 0 | D132: 0 | E132: 0 | H132: 0
B133: 8.5 | C133: 0 | D133: 0 | E133: 0 | H133: 0
B134: 8.75 | C134: 0 | D134: 0 | E134: 0 | H134: 0
B135: 9 | C135: 0 | D135: 0 | E135: 0 | H135: 0
B136: 9.25 | C136: 0 | D136: 0 | E136: 0 | H136: 0
B137: 9.5 | C137: 0 | D137: 0 | E137: 0 | H137: 0
B138: 9.75 | C138: 0 | D138: 0 | E138: 0 | H138: 0
B139: 10 | C139: 0 | D139: 0 | E139: 0 | H139: 0

Sheet 15.5
B9: Trade Details | F9: EPE | G9: ENE | H9: EFV | I9: =IF(PFEQuantile<>"","PFE "&TEXT(PFEQuantile,"0%"),"") -> PFE 95% | J9: =IF(PFEQuantile<>"","PFE "&TEXT(1-PFEQuantile,"0%"),"") -> PFE 5% | JA9: EPE (swaption) | JB9: ENE (swaption)
B10: Product Type | C10: SWAP | E10: =ExposureSimulation(IRCalibration!B9:C17,Rate,IRVol,MeanRvs,StartTime,EndTime,PayRec,FixedFreq,FloatFreq,Collateralised,MPR,Threshold1,Threshold2,InitialMargin,Simulations,Seed,ProductType,PFEQuantile) -> 0 | F10: 5.041540102e-18 | G10: 0 | H10: 5.041540102e-18 | I10: 5.041540102e-18 | J10: 5.041540102e-18 | K10: 5.041540102e-18 | L10: 5.041540102e-18 | M10: 5.041540102e-18 | N10: 5.041540102e-18 | O10: 5.041540102e-18 | P10: 5.041540102e-18 | Q10: 5.041540102e-18 | R10: 5.041540102e-18 | S10: 5.041540102e-18 | T10: 5.041540102e-18 | U10: 5.041540102e-18 | V10: 5.041540102e-18 | W10: 5.041540102e-18 | X10: 5.041540102e-18 | Y10: 5.041540102e-18 | Z10: 5.041540102e-18 | AA10: 5.041540102e-18 | AB10: 5.041540102e-18 | AC10: 5.041540102e-18 | AD10: 5.041540102e-18 | AE10: 5.041540102e-18 | AF10: 5.041540102e-18 | AG10: 5.041540102e-18 | AH10: 5.041540102e-18 | AI10: 5.041540102e-18 | AJ10: 5.041540102e-18 | AK10: 5.041540102e-18 | AL10: 5.041540102e-18 | AM10: 5.041540102e-18 | AN10: 5.041540102e-18 | AO10: 5.041540102e-18 | AP10: 5.041540102e-18 | AQ10: 5.041540102e-18 | AR10: 5.041540102e-18 | AS10: 5.041540102e-18 | AT10: 5.041540102e-18 | AU10: 5.041540102e-18 | AV10: 5.041540102e-18 | AW10: 5.041540102e-18 | AX10: 5.041540102e-18 | AY10: 5.041540102e-18 | AZ10: 5.041540102e-18 | BA10: 5.041540102e-18 | BB10: 5.041540102e-18 | BC10: 5.041540102e-18 | BD10: 5.041540102e-18 | BE10: 5.041540102e-18 | BF10: 5.041540102e-18 | BG10: 5.041540102e-18 | BH10: 5.041540102e-18 | BI10: 5.041540102e-18 | BJ10: 5.041540102e-18 | BK10: 5.041540102e-18 | BL10: 5.041540102e-18 | BM10: 5.041540102e-18 | BN10: 5.041540102e-18 | BO10: 5.041540102e-18 | BP10: 5.041540102e-18 | BQ10: 5.041540102e-18 | BR10: 5.041540102e-18 | BS10: 5.041540102e-18 | BT10: 5.041540102e-18 | BU10: 5.041540102e-18 | BV10: 5.041540102e-18 | BW10: 5.041540102e-18 | BX10: 5.041540102e-18 | BY10: 5.041540102e-18 | BZ10: 5.041540102e-18 | CA10: 5.041540102e-18 | CB10: 5.041540102e-18 | CC10: 5.041540102e-18 | CD10: 5.041540102e-18 | CE10: 5.041540102e-18 | CF10: 5.041540102e-18 | CG10: 5.041540102e-18 | CH10: 5.041540102e-18 | CI10: 5.041540102e-18 | CJ10: 5.041540102e-18 | CK10: 5.041540102e-18 | CL10: 5.041540102e-18 | CM10: 5.041540102e-18 | CN10: 5.041540102e-18 | CO10: 5.041540102e-18 | CP10: 5.041540102e-18 | CQ10: 5.041540102e-18 | CR10: 5.041540102e-18 | CS10: 5.041540102e-18 | CT10: 5.041540102e-18 | CU10: 5.041540102e-18 | CV10: 5.041540102e-18 | CW10: 5.041540102e-18 | CX10: 5.041540102e-18 | CY10: 5.041540102e-18 | CZ10: 5.041540102e-18 | DA10: 5.041540102e-18 | DB10: 5.041540102e-18 | DC10: 5.041540102e-18 | DD10: 5.041540102e-18 | DE10: 5.041540102e-18 | DF10: 5.041540102e-18 | DG10: 5.041540102e-18 | DH10: 5.041540102e-18 | DI10: 5.041540102e-18 | DJ10: 5.041540102e-18 | DK10: 5.041540102e-18 | DL10: 5.041540102e-18 | DM10: 5.041540102e-18 | DN10: 5.041540102e-18 | DO10: 5.041540102e-18 | DP10: 5.041540102e-18 | DQ10: 5.041540102e-18 | DR10: 5.041540102e-18 | DS10: 5.041540102e-18 | DT10: 5.041540102e-18 | DU10: 5.041540102e-18 | DV10: 5.041540102e-18 | DW10: 5.041540102e-18 | DX10: 5.041540102e-18 | DY10: 5.041540102e-18 | DZ10: 5.041540102e-18 | EA10: 5.041540102e-18 | EB10: 5.041540102e-18 | EC10: 5.041540102e-18 | ED10: 5.041540102e-18 | EE10: 5.041540102e-18 | EF10: 5.041540102e-18 | EG10: 5.041540102e-18 | EH10: 5.041540102e-18 | EI10: 5.041540102e-18 | EJ10: 5.041540102e-18 | EK10: 5.041540102e-18 | EL10: 5.041540102e-18 | EM10: 5.041540102e-18 | EN10: 5.041540102e-18 | EO10: 5.041540102e-18 | EP10: 5.041540102e-18 | EQ10: 5.041540102e-18 | ER10: 5.041540102e-18 | ES10: 5.041540102e-18 | ET10: 5.041540102e-18 | EU10: 5.041540102e-18 | EV10: 5.041540102e-18 | EW10: 5.041540102e-18 | EX10: 5.041540102e-18 | EY10: 5.041540102e-18 | EZ10: 5.041540102e-18 | FA10: 5.041540102e-18 | FB10: 5.041540102e-18 | FC10: 5.041540102e-18 | FD10: 5.041540102e-18 | FE10: 5.041540102e-18 | FF10: 5.041540102e-18 | FG10: 5.041540102e-18 | FH10: 5.041540102e-18 | FI10: 5.041540102e-18 | FJ10: 5.041540102e-18 | FK10: 5.041540102e-18 | FL10: 5.041540102e-18 | FM10: 5.041540102e-18 | FN10: 5.041540102e-18 | FO10: 5.041540102e-18 | FP10: 5.041540102e-18 | FQ10: 5.041540102e-18 | FR10: 5.041540102e-18 | FS10: 5.041540102e-18 | FT10: 5.041540102e-18 | FU10: 5.041540102e-18 | FV10: 5.041540102e-18 | FW10: 5.041540102e-18 | FX10: 5.041540102e-18 | FY10: 5.041540102e-18 | FZ10: 5.041540102e-18 | GA10: 5.041540102e-18 | GB10: 5.041540102e-18 | GC10: 5.041540102e-18 | GD10: 5.041540102e-18 | GE10: 5.041540102e-18 | GF10: 5.041540102e-18 | GG10: 5.041540102e-18 | GH10: 5.041540102e-18 | GI10: 5.041540102e-18 | GJ10: 5.041540102e-18 | GK10: 5.041540102e-18 | GL10: 5.041540102e-18 | GM10: 5.041540102e-18 | GN10: 5.041540102e-18 | GO10: 5.041540102e-18 | GP10: 5.041540102e-18 | GQ10: 5.041540102e-18 | GR10: 5.041540102e-18 | GS10: 5.041540102e-18 | GT10: 5.041540102e-18 | GU10: 5.041540102e-18 | GV10: 5.041540102e-18 | GW10: 5.041540102e-18 | GX10: 5.041540102e-18 | GY10: 5.041540102e-18 | GZ10: 5.041540102e-18 | HA10: 5.041540102e-18 | HB10: 5.041540102e-18 | HC10: 5.041540102e-18 | HD10: 5.041540102e-18 | HE10: 5.041540102e-18 | HF10: 5.041540102e-18 | HG10: 5.041540102e-18 | HH10: 5.041540102e-18 | HI10: 5.041540102e-18 | HJ10: 5.041540102e-18 | HK10: 5.041540102e-18 | HL10: 5.041540102e-18 | HM10: 5.041540102e-18 | HN10: 5.041540102e-18 | HO10: 5.041540102e-18 | HP10: 5.041540102e-18 | HQ10: 5.041540102e-18 | HR10: 5.041540102e-18 | HS10: 5.041540102e-18 | HT10: 5.041540102e-18 | HU10: 5.041540102e-18 | HV10: 5.041540102e-18 | HW10: 5.041540102e-18 | HX10: 5.041540102e-18 | HY10: 5.041540102e-18 | HZ10: 5.041540102e-18 | IA10: 5.041540102e-18 | IB10: 5.041540102e-18 | IC10: 5.041540102e-18 | ID10: 5.041540102e-18 | IE10: 5.041540102e-18 | IF10: 5.041540102e-18 | IG10: 5.041540102e-18 | IH10: 5.041540102e-18 | II10: 5.041540102e-18 | IJ10: 5.041540102e-18 | IK10: 5.041540102e-18 | IL10: 5.041540102e-18 | IM10: 5.041540102e-18 | IN10: 5.041540102e-18 | IO10: 5.041540102e-18 | IP10: 5.041540102e-18 | IQ10: 5.041540102e-18 | IR10: 5.041540102e-18 | IS10: 5.041540102e-18 | IT10: 5.041540102e-18 | IU10: 5.041540102e-18 | IV10: 5.041540102e-18 | IW10: 5.041540102e-18 | IX10: 5.041540102e-18 | IY10: 5.041540102e-18 | IZ10: 5.041540102e-18
B11: Pay/Rec | C11: PAY | E11: 0.25 | F11: 0.01268462135 | G11: -0.01096123811 | H11: 0.001723383245 | I11: 0.05004703304 | J11: -0.0483022462 | K11: 0.009234531767 | L11: -0.004888304269 | M11: -0.03115168296 | N11: 0.03437933478 | O11: 0.002382499854 | P11: 0.002018192461 | Q11: 0.01019930048 | R11: -0.005869123358 | S11: 0.009362154692 | T11: -0.005017930736 | U11: 0.0699251533 | V11: -0.07093875128 | W11: -0.03187761648 | X11: 0.03505458305 | Y11: 0.04025213872 | Z11: -0.03750273627 | AA11: -0.02640650381 | AB11: 0.02993987168 | AC11: 0.005211526137 | AD11: -0.0008207407862 | AE11: -0.02849719389 | AF11: 0.03190135675 | AG11: -0.01072307634 | AH11: 0.01494379652 | AI11: 0.03930197853 | AJ11: -0.03646943736 | AK11: 0.02662965961 | AL11: -0.02289913337 | AM11: 0.007269386358 | AN11: -0.002896899354 | AO11: 0.01976545525 | AP11: -0.01570856059 | AQ11: -0.00435946305 | AR11: 0.008713492397 | AS11: -0.02978854322 | AT11: 0.03310857292 | AU11: 0.01158709088 | AV11: -0.007283667276 | AW11: 0.005239773525 | AX11: -0.000849175916 | AY11: -0.02162809541 | AZ11: 0.02542396347 | BA11: -0.02597369698 | BB11: 0.0295327258 | BC11: -0.05601835 | BD11: 0.05693592744 | BE11: -0.01268300657 | BF11: 0.01684549067 | BG11: 0.02347757047 | BH11: -0.01958345689 | BI11: 0.003219009186 | BJ11: 0.001180583974 | BK11: -0.01695335801 | BL11: 0.02096131772 | BM11: 0.0020511965 | BN11: 0.002349507764 | BO11: 0.0008919772806 | BP11: 0.00350688286 | BQ11: 0.01945289967 | BR11: -0.01538376189 | BS11: 0.006275364816 | BT11: -0.001892867704 | BU11: -0.02899356477 | BV11: 0.03236577834 | BW11: -0.02755805414 | BX11: 0.03102133013 | BY11: -0.004080594765 | BZ11: 0.008438497268 | CA11: 0.03704288487 | CB11: -0.0340216334 | CC11: -0.04655756738 | CD11: 0.0484912501 | CE11: 0.01951288106 | CF11: -0.01544607527 | CG11: -0.03696716998 | CH11: 0.03975992077 | CI11: -0.04726981114 | CJ11: 0.04913276575 | CK11: 0.02538053879 | CL11: -0.02158238148 | CM11: -0.02716618699 | CN11: 0.030653611 | CO11: -0.0138103916 | CP11: 0.01793574946 | CQ11: -0.02096978029 | CR11: 0.02479820677 | CS11: 0.03240850217 | CT11: -0.02903925392 | CU11: -0.003881214763 | CV11: 0.008241784326 | CW11: -0.01225712159 | CX11: 0.01643294226 | CY11: -0.01474571603 | CZ11: 0.01883827019 | DA11: -0.01301330651 | DB11: 0.01716518715 | DC11: -0.03935951364 | DD11: 0.0419543612 | DE11: 0.01294590453 | DF11: -0.008672883197 | DG11: -0.02752564982 | DH11: 0.03099093422 | DI11: 0.02448459963 | DJ11: -0.02064020324 | DK11: 0.01890873097 | DL11: -0.01481881694 | DM11: -0.01593846813 | DN11: 0.01998656502 | DO11: 0.01061500648 | DP11: -0.006292388865 | DQ11: 0.03621991217 | DR11: -0.03313303501 | DS11: 0.05553297321 | DT11: -0.05443373707 | DU11: 0.001820228518 | DV11: 0.002580342184 | DW11: -0.03174963112 | DX11: 0.03493560875 | DY11: -0.02407914664 | DZ11: 0.02774609531 | EA11: 0.0235755538 | EB11: -0.01968617306 | EC11: -0.04481406774 | ED11: 0.04691687605 | EE11: 0.003176443145 | EF11: 0.001223242972 | EG11: -0.01625780285 | EH11: 0.02029349916 | EI11: 0.01177952275 | EJ11: -0.007480151172 | EK11: 0.008709445425 | EL11: -0.004355357854 | EM11: -0.06804011156 | EN11: 0.06743249096 | EO11: -0.05450077498 | EP11: 0.05559241867 | EQ11: 0.03571881735 | ER11: -0.03259279463 | ES11: 0.05397376383 | ET11: -0.05267868155 | EU11: -0.02165951492 | EV11: 0.02545380712 | EW11: 0.05185311571 | EX11: -0.05030182067 | EY11: 0.02838064726 | EZ11: -0.02475115583 | FA11: -0.01228342319 | FB11: 0.01645843119 | FC11: 0.003234376018 | FD11: 0.001165182607 | FE11: -0.001697721357 | FF11: 0.006081911903 | FG11: 0.02510264714 | FH11: -0.02128994546 | FI11: 0.007478791019 | FJ11: -0.003108692618 | FK11: -0.005968617309 | FL11: 0.01029705175 | FM11: 0.08048183557 | FN11: -0.08340632671 | FO11: 0.03872945159 | FP11: -0.03584789393 | FQ11: -0.01151184668 | FR11: 0.01571009511 | FS11: -0.0223025022 | FT11: 0.02606410652 | FU11: 0.01294766754 | FV11: -0.008674688364 | FW11: -0.009321777292 | FX11: 0.01357920159 | FY11: -0.02076542803 | FZ11: 0.02460378251 | GA11: -0.01200375098 | GB11: 0.01618732652 | GC11: -0.01449765387 | GD11: 0.01859908465 | GE11: 0.01217786916 | GF11: -0.007887151077 | GG11: -0.04460366414 | GH11: 0.04672649628 | GI11: 0.03851219097 | GJ11: -0.03561224473 | GK11: -0.05117734883 | GL11: 0.05263547804 | GM11: 0.0315107906 | GN11: -0.02808016227 | GO11: 0.009471792898 | GP11: -0.005129319254 | GQ11: 0.008077382861 | GR11: -0.003714650517 | GS11: 0.001071978452 | GT11: 0.003327360152 | GU11: -0.02043108529 | GV11: 0.02428550031 | GW11: -0.02026878222 | GX11: 0.0241309118 | GY11: 0.01651290492 | GZ11: -0.01233963874 | HA11: 0.002080417834 | HB11: 0.002320295024 | HC11: 0.01311590457 | HD11: -0.008846980779 | HE11: -0.01934006289 | HF11: 0.02324530549 | HG11: 0.04746504227 | HH11: -0.04542040375 | HI11: 0.001712681773 | HJ11: 0.002687786989 | HK11: -0.01662784437 | HL11: 0.02064890841 | HM11: -0.005583380536 | HN11: 0.009918445361 | HO11: 0.05187665652 | HP11: -0.05032814168 | HQ11: 0.01608762126 | HR11: -0.01190093714 | HS11: 0.05862378889 | HT11: -0.05793162579 | HU11: -0.01359864832 | HV11: 0.01773118062 | HW11: 0.03942795205 | HX11: -0.03660630486 | HY11: 0.00905447639 | HZ11: -0.004705484183 | IA11: -0.01240475857 | IB11: 0.01657599881 | IC11: -0.01180523547 | ID11: 0.0159947933 | IE11: -0.04957901971 | IF11: 0.05120616066 | IG11: 0.02110940923 | IH11: -0.01710774069 | II11: -0.003280409224 | IJ11: 0.007648500262 | IK11: 0.04295699644 | IL11: -0.04045656855 | IM11: -0.003771394011 | IN11: 0.008133396239 | IO11: 0.007329168288 | IP11: -0.00295735325 | IQ11: 0.03033472981 | IR11: -0.02682662806 | IS11: -0.01829640487 | IT11: 0.02224799762 | IU11: 0.03155320211 | IV11: -0.02812542986 | IW11: 0.01086654052 | IX11: -0.006548685551 | IY11: 0.009190247612 | IZ11: -0.004843333417
B12: Rate | C12: ='15.1'!C10 -> 0.01487440732 | E12: 0.5 | F12: 0.01762888543 | G12: -0.01444656335 | H12: 0.003182322078 | I12: 0.06774459363 | J12: -0.06463080683 | K12: 0.01961300705 | L12: -0.01168377642 | M12: -0.03899669983 | N12: 0.04514332397 | O12: 0.04661449178 | P12: -0.04048970552 | Q12: -0.02993575151 | R12: 0.03693880844 | S12: -0.008630096639 | T12: 0.01666978722 | U12: 0.1221238611 | V12: -0.1323785748 | W12: -0.007044552066 | X12: 0.01508595914 | Y12: 0.03416992534 | Z12: -0.0270946783 | AA12: -0.03419617736 | AB12: 0.04077078086 | AC12: 0.02467026201 | AD12: -0.01694344314 | AE12: -0.01277561275 | AF12: 0.02063353755 | AG12: -0.02954295226 | AH12: 0.03651639403 | AI12: -0.001023808103 | AJ12: 0.009219265737 | AK12: -0.01471868034 | AL12: 0.02258387469 | AM12: 0.02754247716 | AN12: -0.01996481194 | AO12: 0.04485381683 | AP12: -0.03862200299 | AQ12: -0.01084246951 | AR12: 0.01880053725 | AS12: -0.06318339082 | AT12: 0.06659729877 | AU12: 0.02860795228 | AV12: -0.02109872896 | AW12: 0.0488505689 | AX12: -0.04296844302 | AY12: -0.009858452183 | AZ12: 0.01782770019 | BA12: 0.006076564068 | BB12: 0.002131492738 | BC12: -0.0847030915 | BD12: 0.08464433377 | BE12: -0.09400737145 | BF12: 0.09256367627 | BG12: 0.0005790118026 | BH12: 0.007621509414 | BI12: -0.001834865331 | BJ12: 0.01000453573 | BK12: -0.03116310966 | BL12: 0.03800147557 | BM12: -0.07631763493 | BN12: 0.07799690008 | BO12: 0.009160935802 | BP12: -0.0009809687058 | BQ12: 0.04757688472 | BR12: -0.04161910685 | BS12: 0.04956302486 | BT12: -0.04376170178 | BU12: -0.05894450423 | BV12: 0.06291882854 | BW12: 0.003300590227 | BX12: 0.004904324951 | BY12: 0.01076499873 | BZ12: -0.002602836923 | CA12: 0.05560900588 | CB12: -0.0506614384 | CC12: 0.01395247538 | CD12: -0.005811849717 | CE12: -0.001053140156 | CF12: 0.009239405325 | CG12: -0.1104932757 | CH12: 0.1055725789 | CI12: -0.02614880219 | CJ12: 0.03326471459 | CK12: 0.002160918772 | CL12: 0.006046485332 | CM12: 0.005163741363 | CN12: 0.003045287686 | CO12: 0.005872617027 | CP12: 0.002333993044 | CQ12: -0.02590025571 | CR12: 0.03309461146 | CS12: 0.06670980782 | CT12: -0.06330914641 | CU12: 0.0245969643 | CV12: -0.01685019701 | CW12: -0.01299182034 | CX12: 0.02086393083 | CY12: 0.0004977415083 | CZ12: 0.007690513267 | DA12: -0.02305961203 | DB12: 0.03044669058 | DC12: -0.01001295514 | DD12: 0.01795703988 | DE12: 0.0190413644 | DF12: -0.01109708903 | DG12: 0.02540922774 | DH12: -0.01765678486 | DI12: 0.02055658141 | DJ12: -0.01268448097 | DK12: 0.05925351126 | DL12: -0.05468970264 | DM12: -0.01739221114 | DN12: 0.025072079 | DO12: -0.007639935159 | DP12: 0.01570638111 | DQ12: 0.05455019616 | DR12: -0.04946541494 | DS12: 0.0726036494 | DT12: -0.07033351637 | DU12: 0.02573858284 | DV12: -0.01805682167 | DW12: -0.08556745267 | DX12: 0.085512076 | DY12: -0.02883379152 | DZ12: 0.03582211198 | EA12: 0.03988679354 | EB12: -0.03321362803 | EC12: -0.01614941244 | ED12: 0.02383939971 | EE12: -0.04111438322 | EF12: 0.04718599464 | EG12: 0.01043115081 | EH12: -0.002257778595 | EI12: 0.05411562936 | EJ12: -0.04885989768 | EK12: -0.02990666271 | EL12: 0.0369076108 | EM12: -0.02931828387 | EN12: 0.03615913869 | EO12: -0.03861474198 | EP12: 0.04472003143 | EQ12: 0.02927819057 | ER12: -0.02186344999 | ES12: 0.07546089145 | ET12: -0.0736916681 | EU12: -0.02061142708 | EV12: 0.02811795663 | EW12: 0.06823974104 | EX12: -0.06520694729 | EY12: 0.04634633253 | EZ12: -0.04029750794 | FA12: 0.05695636591 | FB12: -0.05193478048 | FC12: 0.009133694094 | FD12: -0.0009544444904 | FE12: 0.01912135917 | FF12: -0.01116044304 | FG12: -0.0006745093134 | FH12: 0.008866640084 | FI12: 0.03286844259 | FJ12: -0.02561294204 | FK12: -0.03946673395 | FL12: 0.04565614372 | FM12: 0.07467026443 | FN12: -0.07295345711 | FO12: 0.02724405305 | FP12: -0.01971692331 | FQ12: 0.05901901056 | FR12: -0.05426598866 | FS12: -0.007900467899 | FT12: 0.01592750401 | FU12: 0.03270253219 | FV12: -0.02545018813 | FW12: -0.03772718105 | FX12: 0.04405890089 | FY12: -0.01884787512 | FZ12: 0.02644817559 | GA12: 0.0157813206 | GB12: -0.00771101789 | GC12: -0.02360489673 | GD12: 0.03095658339 | GE12: -0.01426521574 | GF12: 0.02212492444 | GG12: -0.07669820664 | GH12: 0.07804078061 | GI12: 0.0364304738 | GJ12: -0.02952154124 | GK12: -0.0326429555 | GL12: 0.03927119501 | GM12: 0.03180216818 | GN12: -0.02453786016 | GO12: 0.001363703788 | GP12: 0.006837424152 | GQ12: -0.02838218974 | GR12: 0.03548621535 | GS12: 0.0288907881 | GT12: -0.02137435559 | GU12: -0.02914136977 | GV12: 0.03611746416 | GW12: -0.02845866983 | GX12: 0.03548315331 | GY12: 0.005561702027 | GZ12: 0.002641790882 | HA12: -0.002942388463 | HB12: 0.01109584546 | HC12: 0.00328600289 | HD12: 0.004921673604 | HE12: 0.03055140263 | HF12: -0.02308458656 | HG12: 0.06196080992 | HH12: -0.0579343308 | HI12: 0.01137330409 | HJ12: -0.003223864434 | HK12: -0.01240161972 | HL12: 0.02028970252 | HM12: 0.01972118057 | HN12: -0.01177545316 | HO12: 0.1197214898 | HP12: -0.1289582622 | HQ12: 0.006631397959 | HR12: 0.001566157906 | HS12: 0.07845206673 | HT12: -0.07727951617 | HU12: -0.01029648986 | HV12: 0.01826102907 | HW12: 0.06754898169 | HX12: -0.06432490931 | HY12: -0.02968773935 | HZ12: 0.03670496805 | IA12: 0.06764598468 | IB12: -0.06411795718 | IC12: -0.03739260712 | ID12: 0.04374510845 | IE12: -0.03489695125 | IF12: 0.04134462137 | IG12: 0.009061716175 | IH12: -0.0008894212266 | II12: 0.01922386912 | IJ12: -0.0112643035 | IK12: 0.04536058501 | IL12: -0.0392697346 | IM12: 0.002623685438 | IN12: 0.005580800189 | IO12: -0.0007260255528 | IP12: 0.008910294829 | IQ12: 0.01920554368 | IR12: -0.01129062502 | IS12: -0.03155787599 | IT12: 0.03836283311 | IU12: 0.01356513146 | IV12: -0.005481471997 | IW12: -0.01480572354 | IX12: 0.02264231561 | IY12: -0.006847475776 | IZ12: 0.01493143201
B13: Start | C13: 0 | E13: 0.75 | F13: 0.0214090832 | G13: -0.01696338712 | H13: 0.004445696088 | I13: 0.08107883249 | J13: -0.07690289554 | K13: 0.00748770841 | L13: 0.004130614063 | M13: -0.07167104434 | N13: 0.07674695984 | O13: 0.04670343796 | P13: -0.03717955569 | Q13: -0.03585576562 | R13: 0.04556139961 | S13: -0.03620125805 | T13: 0.04594486093 | U13: 0.1417564977 | V13: -0.1571514459 | W13: -0.06108993889 | X13: 0.06788313701 | Y13: 0.02216489296 | Z13: -0.01094225384 | AA13: -0.01127153581 | AB13: 0.02248563607 | AC13: 0.04984262564 | AD13: -0.04056583397 | AE13: -0.03442322783 | AF13: 0.04418440101 | AG13: -0.05580824934 | AH13: 0.06328611441 | AI13: 0.006900975298 | AJ13: 0.004719393545 | AK13: -0.00902910215 | AL13: 0.02042183795 | AM13: 0.03104819771 | AN13: -0.02021282984 | AO13: 0.04091213301 | AP13: -0.03089535418 | AQ13: 0.01946963154 | AR13: -0.008027955431 | AS13: -0.1278292772 | AT13: 0.12136344 | AU13: 0.08234133917 | AV13: -0.0780392433 | AW13: 0.06538581774 | AX13: -0.05823714747 | AY13: 0.03022602635 | AZ13: -0.01919526261 | BA13: 0.03113950762 | BB13: -0.02018473379 | BC13: -0.006636874689 | BD13: 0.01794415542 | BE13: -0.06444154669 | BF13: 0.07042097704 | BG13: -0.03877608632 | BH13: 0.04837339015 | BI13: -0.02020492159 | BJ13: 0.0310926722 | BK13: 0.01029374534 | BL13: 0.001329669273 | BM13: -0.02748825896 | BN13: 0.03771984457 | BO13: -0.04193046437 | BP13: 0.05117992176 | BQ13: 0.07615560407 | BR13: -0.07088272727 | BS13: 0.09609352764 | BT13: -0.09493193489 | BU13: -0.07156880993 | BV13: 0.07656076295 | BW13: -0.01487380491 | BX13: 0.02598511069 | BY13: 0.03946606547 | BZ13: -0.02914129056 | CA13: 0.04208969286 | CB13: -0.03227646599 | CC13: 0.009834875891 | CD13: 0.001784934539 | CE13: 0.01334476388 | CF13: -0.001791184411 | CG13: -0.1137293271 | CH13: 0.1101596447 | CI13: -0.02201229276 | CJ13: 0.03262926009 | CK13: 0.02273977466 | CL13: -0.01146951688 | CM13: 0.03915750581 | CN13: -0.02872264682 | CO13: 0.04640071657 | CP13: -0.03662703953 | CQ13: -0.0525877683 | CR13: 0.06043453672 | CS13: 0.04241199039 | CT13: -0.03265368097 | CU13: 0.04630785772 | CV13: -0.0366339448 | CW13: -0.009170479978 | CX13: 0.02051185462 | CY13: -0.004148442323 | CZ13: 0.01564766345 | DA13: -0.004362449299 | DB13: 0.01583785385 | DC13: -0.01457810291 | DD13: 0.02566120919 | DE13: 0.04995381393 | DF13: -0.04069695653 | DG13: 0.01229560381 | DH13: -0.0007134506674 | DI13: -0.01281809252 | DJ13: 0.02412887087 | DK13: 0.05941881388 | DL13: -0.05154474573 | DM13: -0.02225532195 | DN13: 0.032945596 | DO13: -0.02730921434 | DP13: 0.03775655334 | DQ13: 0.07356967586 | DR13: -0.06799815747 | DS13: 0.0773765987 | DT13: -0.07278415221 | DU13: 0.01606599923 | DV13: -0.004578286547 | DW13: -0.06566374338 | DX13: 0.07140485935 | DY13: -0.01542958764 | DZ13: 0.02646421707 | EA13: 0.06460328543 | EB13: -0.05738822255 | EC13: 0.01018235741 | ED13: 0.001446145067 | EE13: 0.003534881841 | EF13: 0.008075584956 | EG13: 0.01902188721 | EH13: -0.007578872967 | EI13: 0.05067174176 | EJ13: -0.04164280088 | EK13: -0.05453973431 | EL13: 0.06226588693 | EM13: 4.436238185e-05 | EN13: 0.01149441267 | EO13: 0.01562169718 | EP13: -0.004021273621 | EQ13: -0.002799720029 | ER13: 0.01438737512 | ES13: 0.02950662116 | ET13: -0.01879359654 | EU13: -0.05185755453 | EV13: 0.05981284441 | EW13: 0.06009124228 | EX13: -0.05253808274 | EY13: 0.05010245618 | EZ13: -0.04104516877 | FA13: 0.09070814598 | FB13: -0.08820977366 | FC13: 0.06512677186 | FD13: -0.05769224163 | FE13: 0.02353832505 | FF13: -0.01228539875 | FG13: -0.01585702012 | FH13: 0.02700858518 | FI13: 0.05146560223 | FJ13: -0.04241237767 | FK13: -0.03545063032 | FL13: 0.04510755337 | FM13: 0.06420772503 | FN13: -0.05748344746 | FO13: 0.03386714105 | FP13: -0.02329400508 | FQ13: 0.04529342425 | FR13: -0.0356276669 | FS13: 0.0557224887 | FT13: -0.04683819195 | FU13: 0.05924744968 | FV13: -0.05117564261 | FW13: -0.03407232004 | FX13: 0.04384501949 | FY13: -0.1042598906 | FZ13: 0.1035951064 | GA13: 0.02478721484 | GB13: -0.01356476633 | GC13: -0.01461839314 | GD13: 0.0257174365 | GE13: 0.01118243451 | GF13: 0.0004142552387 | GG13: -0.1131303399 | GH13: 0.1098974009 | GI13: -0.02342506189 | GJ13: 0.0343054725 | GK13: -0.02185508755 | GL13: 0.03245949773 | GM13: 0.01612354679 | GN13: -0.004670376963 | GO13: 0.01413085693 | GP13: -0.002586457766 | GQ13: -0.06332048158 | GR13: 0.0699022803 | GS13: 0.001200624181 | GT13: 0.01041040088 | GU13: -0.04723930134 | GV13: 0.05569711178 | GW13: -0.01155226369 | GX13: 0.02277120502 | GY13: -0.01867533689 | GZ13: 0.02968784618 | HA13: -0.02548890877 | HB13: 0.03604977773 | HC13: 0.02852011772 | HD13: -0.01749971724 | HE13: 0.001761254427 | HF13: 0.009847547674 | HG13: 0.06091888851 | HH13: -0.05342517941 | HI13: -0.02591729546 | HJ13: 0.03648641592 | HK13: 0.00571666902 | HL13: 0.005907773095 | HM13: 0.01171288505 | HN13: -0.0001310548072 | HO13: 0.1304959101 | HP13: -0.141172036 | HQ13: 0.03220524283 | HR13: -0.02141174222 | HS13: 0.07680254096 | HT13: -0.07216810768 | HU13: 0.02718397603 | HV13: -0.01601811456 | HW13: 0.06789091527 | HX13: -0.06145996164 | HY13: 0.05025022835 | HZ13: -0.04080677261 | IA13: 0.08459870375 | IB13: -0.08088751092 | IC13: -0.07680322427 | ID13: 0.08118031109 | IE13: -0.037177987 | IF13: 0.04654884853 | IG13: 0.005758094521 | IH13: 0.005866764074 | II13: 0.02053369412 | IJ13: -0.009165139507 | IK13: 0.06819489685 | IL13: -0.06169140434 | IM13: -0.01095171758 | IN13: 0.02226146607 | IO13: -0.03983110163 | IP13: 0.04926751223 | IQ13: 0.003740886872 | IR13: 0.007886961623 | IS13: -0.005088183132 | IT13: 0.01653203417 | IU13: 0.02830593722 | IV13: -0.01733337021 | IW13: -0.0137331566 | IX13: 0.02492830825 | IY13: -0.04006738552 | IZ13: 0.04946584562
B14: End | C14: 10 | E14: 1 | F14: 0.02417994778 | G14: -0.01852529838 | H14: 0.005654649397 | I14: 0.0897014461 | J14: -0.08427030168 | K14: 0.03850179192 | L14: -0.02490213209 | M14: -0.08714160654 | N14: 0.0918869257 | O14: 0.05500746908 | P14: -0.04327448532 | Q14: -0.04152064127 | R14: 0.05352023313 | S14: -0.05214875096 | T14: 0.06301705123 | U14: 0.0843841668 | V14: -0.07952357137 | W14: -0.02365142957 | X14: 0.03711734812 | Y14: -0.01985683897 | Z14: 0.034035454 | AA14: 0.03110494629 | AB14: -0.01678651568 | AC14: -0.02145618166 | AD14: 0.03551226732 | AE14: 0.02254675325 | AF14: -0.007907077696 | AG14: -0.05276157487 | AH14: 0.06327372801 | AI14: 0.03206650089 | AJ14: -0.01805429355 | AK14: -0.007555230855 | AL14: 0.02208115323 | AM14: 0.03900849999 | AN14: -0.02553699927 | AO14: 0.02679147143 | AP14: -0.01260564909 | AQ14: 0.02707573122 | AR14: -0.01272064475 | AS14: -0.05811926571 | AT14: 0.06732283635 | AU14: 0.08465649293 | AV14: -0.07802101046 | AW14: 0.09381221018 | AX14: -0.08918647224 | AY14: 0.03297315763 | AZ14: -0.01891114701 | BA14: 0.03188019214 | BB14: -0.01778434234 | BC14: 0.006773243568 | BD14: 0.007999412583 | BE14: -0.04214577159 | BF14: 0.05364511835 | BG14: -0.05075597784 | BH14: 0.06189020887 | BI14: 0.005468733415 | BJ14: 0.009303554296 | BK14: 0.07224988758 | BL14: -0.06218756416 | BM14: 0.02770036588 | BN14: -0.01318448402 | BO14: -0.06527063215 | BP14: 0.07438523811 | BQ14: 0.07743289073 | BR14: -0.06950545115 | BS14: 0.07752649877 | BT14: -0.06969647839 | BU14: -0.06385285002 | BV14: 0.0724944878 | BW14: -0.06398985176 | BX14: 0.07325330101 | BY14: 0.05865619474 | BZ14: -0.04714015174 | CA14: 0.06990268498 | CB14: -0.06055248923 | CC14: 0.06350715694 | CD14: -0.05227367032 | CE14: 0.04571988171 | CF14: -0.03271109522 | CG14: -0.04702376137 | CH14: 0.05758605059 | CI14: -0.02927568529 | CJ14: 0.04230793276 | CK14: 0.0320578437 | CL14: -0.0180572416 | CM14: 0.02164923058 | CN14: -0.007106049503 | CO14: 0.02557354754 | CP14: -0.0112130935 | CQ14: -0.06161210818 | CR14: 0.07089650385 | CS14: 0.03698766266 | CT14: -0.02357707342 | CU14: 0.05442706501 | CV14: -0.04249029089 | CW14: 0.02793271372 | CX14: -0.01354425524 | CY14: -0.02450107398 | CZ14: 0.03811302559 | DA14: -0.07350577526 | DB14: 0.08130273343 | DC14: -0.03098570663 | DD14: 0.04396580834 | DE14: 0.0448997586 | DF14: -0.03199934396 | DG14: 0.01006898412 | DH14: 0.004704770256 | DI14: 0.02840817458 | DJ14: -0.01416638384 | DK14: 0.06962844939 | DL14: -0.06025758687 | DM14: -0.02912936631 | DN14: 0.04228751124 | DO14: -0.03285915031 | DP14: 0.04579996743 | DQ14: 0.05494716204 | DR14: -0.04353479392 | DS14: 0.1232104434 | DT14: -0.1280546627 | DU14: -0.01649667205 | DV14: 0.03072629214 | DW14: -0.05321872645 | DX14: 0.06328245025 | DY14: 0.04227730081 | DZ14: -0.02864423797 | EA14: 0.07398817423 | EB14: -0.06530958594 | EC14: -0.001014414257 | ED14: 0.01567441543 | EE14: -0.02266917424 | EF14: 0.03636684444 | EG14: -0.002496888079 | EH14: 0.0171728849 | EI14: 0.03335549285 | EJ14: -0.01960206499 | EK14: -0.04551135858 | EL14: 0.05699355702 | EM14: -0.0266821845 | EN14: 0.03992720923 | EO14: 0.0002786346137 | EP14: 0.01439458602 | EQ14: 0.01117097529 | ER14: 0.003577839752 | ES14: 0.05624187534 | ET14: -0.04496985421 | EU14: -0.06967804699 | EV14: 0.07776835201 | EW14: 0.06815413761 | EX14: -0.05880382058 | EY14: 0.06102444187 | EZ14: -0.05023633486 | FA14: 0.04598708777 | FB14: -0.03340958065 | FC14: 0.09607993057 | FD14: -0.09160204286 | FE14: 0.03427700062 | FF14: -0.02039494496 | FG14: 0.02157666788 | FH14: -0.007016973842 | FI14: 0.04781993106 | FJ14: -0.03525020948 | FK14: -0.0484871248 | FL14: 0.05959874299 | FM14: 0.1026721209 | FN14: -0.1013125516 | FO14: 0.06831034955 | FP14: -0.05847566627 | FQ14: 0.07037868026 | FR14: -0.06085116709 | FS14: 0.1251276781 | FT14: -0.1282465049 | FU14: 0.06467989717 | FV14: -0.05432045159 | FW14: -0.03100139058 | FX14: 0.04392541999 | FY14: -0.1076601955 | FZ14: 0.1081560715 | GA14: 0.02247061502 | GB14: -0.007969222701 | GC14: 0.02769066504 | GD14: -0.01325904677 | GE14: 0.01140631328 | GF14: 0.003358333831 | GG14: -0.08208858952 | GH14: 0.08720059778 | GI14: -0.029556024 | GJ14: 0.0430051328 | GK14: -0.02536356537 | GL14: 0.03868624688 | GM14: -0.03728991035 | GN14: 0.05021020631 | GO14: 0.04738556985 | GP14: -0.03450930245 | GQ14: -0.05238231896 | GR14: 0.0630013491 | GS14: 0.01792291433 | GT14: -0.0032840007 | GU14: -0.09071306306 | GV14: 0.09508005203 | GW14: 0.003217082233 | GX14: 0.01151939653 | GY14: -0.007155754718 | GZ14: 0.02169515036 | HA14: -0.09213616434 | HB14: 0.09673491834 | HC14: 0.04782540196 | HD14: -0.0350696545 | HE14: -0.04560232693 | HF14: 0.05744944648 | HG14: 0.09681604625 | HH14: -0.09339816654 | HI14: -0.0613784929 | HJ14: 0.07115116639 | HK14: 0.06854815387 | HL14: -0.05801053785 | HM14: 0.01869385803 | HN14: -0.004070095684 | HO14: 0.08061826429 | HP14: -0.07462266558 | HQ14: 0.0009659568095 | HR14: 0.01379449764 | HS14: 0.0725754608 | HT14: -0.06423777369 | HU14: 0.06670792062 | HV14: -0.05606005286 | HW14: 0.01722895638 | HX14: -0.002705684399 | HY14: 0.05361219753 | HZ14: -0.04141603695 | IA14: 0.09526993408 | IB14: -0.09121091068 | IC14: -0.07433534527 | ID14: 0.08148054179 | IE14: -0.01612235851 | IF14: 0.03004916912 | IG14: 0.05510423108 | IH14: -0.04309669551 | II14: 0.01828030886 | IJ14: -0.003656205224 | IK14: 0.05557331384 | IL14: -0.04420283139 | IM14: -0.03628575212 | IN14: 0.04896267284 | IO14: -0.07565856257 | IP14: 0.08314678254 | IQ14: 0.001848612285 | IR14: 0.01291897677 | IS14: 0.02157299449 | IT14: -0.006934469493 | IU14: 0.03134171164 | IV14: -0.0173499634 | IW14: -0.02320255792 | IX14: 0.03690390856 | IY14: -0.04752145772 | IZ14: 0.05893210016
B15: Fixed Freq | C15: Q | E15: 1.25 | F15: 0.02639626212 | G15: -0.01966940192 | H15: 0.006726860194 | I15: 0.097044828 | J15: -0.09077879728 | K15: 0.03233555818 | L15: -0.01536310268 | M15: -0.111759344 | N15: 0.113074748 | O15: 0.08298718799 | P15: -0.07296481248 | Q15: -0.0119980329 | R15: 0.02904500597 | S15: -0.04702546873 | T15: 0.06099481793 | U15: 0.09989658377 | V15: -0.09660887821 | W15: -0.003977956631 | X15: 0.02136780059 | Y15: -0.03465366266 | Z15: 0.05057247039 | AA15: 0.01778230911 | AB15: -0.0001000073836 | AC15: 0.001010058812 | AD15: 0.01667553821 | AE15: 0.02224589887 | AF15: -0.0046377104 | AG15: -0.0508186973 | AH15: 0.06403390452 | AI15: 0.005037549693 | AJ15: 0.0126923108 | AK15: -0.07650302499 | AL15: 0.0866491816 | AM15: 0.1009647173 | AN15: -0.0946241087 | AO15: 0.009773570251 | AP15: 0.007942254715 | AQ15: -0.03115060085 | AR15: 0.04721255852 | AS15: -0.1058276997 | AT15: 0.1081559547 | AU15: 0.09721996884 | AV15: -0.09098395833 | AW15: 0.08761654164 | AX15: -0.07913045498 | AY15: 0.06776702197 | AZ15: -0.05426767524 | BA15: 0.0237577083 | BB15: -0.006318696305 | BC15: -0.05990999114 | BD15: 0.07191497511 | BE15: -0.03991037298 | BF15: 0.05423431837 | BG15: 0.02813560928 | BH15: -0.01068397586 | BI15: 0.01619072064 | BJ15: 0.001496754675 | BK15: 0.1254118061 | BL15: -0.1253602483 | BM15: 0.0003111036036 | BN15: 0.0172685138 | BO15: -0.04093726104 | BP15: 0.0555776415 | BQ15: 0.04559301532 | BR15: -0.0301739234 | BS15: 0.01718417484 | BT15: 0.0002955128564 | BU15: -0.05268538912 | BV15: 0.06530875886 | BW15: -0.08433762362 | BX15: 0.09243582606 | BY15: 0.06570802442 | BZ15: -0.05232840501 | CA15: 0.06252349815 | CB15: -0.04922266367 | CC15: 0.1212243901 | CD15: -0.1199223865 | CE15: 0.0259577313 | CF15: -0.008657277244 | CG15: -0.02383779182 | CH15: 0.0395699252 | CI15: -0.01067870963 | CJ15: 0.02775339863 | CK15: 0.05186325122 | CL15: -0.03656550868 | CM15: -0.0003919200785 | CN15: 0.01804151906 | CO15: 0.02456753452 | CP15: -0.007188630385 | CQ15: -0.05012378002 | CR15: 0.06337606643 | CS15: 0.01758660804 | CT15: -7.553619714e-05 | CU15: 0.06397046217 | CV15: -0.05042607757 | CW15: 0.03243598251 | CX15: -0.01529287234 | CY15: -0.02702225528 | CZ15: 0.04318225744 | DA15: -0.06928560511 | DB15: 0.07995172527 | DC15: -0.04759853821 | DD15: 0.06147041169 | DE15: 0.04075840198 | DF15: -0.02454065318 | DG15: 0.002644683848 | DH15: 0.01504004048 | DI15: 0.04400379564 | DJ15: -0.0278484237 | DK15: 0.1274202212 | DL15: -0.1303281426 | DM15: -0.0715500301 | DN15: 0.08201611405 | DO15: -0.05269187997 | DP15: 0.06608757825 | DQ15: 0.0347033921 | DR15: -0.01824527322 | DS15: 0.07819759557 | DT15: -0.06859985571 | DU15: -0.02442003914 | DV15: 0.04097644404 | DW15: -0.03219341413 | DX15: 0.04729261328 | DY15: 0.08003009781 | DZ15: -0.06813778734 | EA15: 0.08577258232 | EB15: -0.07676024782 | EC15: -0.05171894834 | ED15: 0.06527915525 | EE15: -0.003976402063 | EF15: 0.02143763644 | EG15: 0.0213147756 | EH15: -0.0037544782 | EI15: 0.04965929047 | EJ15: -0.03440100233 | EK15: -0.04208424042 | EL15: 0.05649980541 | EM15: -0.02122803194 | EN15: 0.0376281234 | EO15: -0.0198648048 | EP15: 0.03647646695 | EQ15: 0.01482274948 | ER15: 0.002834893971 | ES15: 0.06469696366 | ET15: -0.05179034825 | EU15: -0.09545531692 | EV15: 0.1009153729 | EW15: 0.08236428046 | EX15: -0.07298322437 | EY15: 0.05780633013 | EZ15: -0.04372381603 | FA15: 0.04982542956 | FB15: -0.03473119444 | FC15: 0.05348773734 | FD15: -0.0388058839 | FE15: 0.009283420059 | FF15: 0.008440513956 | FG15: -0.001333277068 | FH15: 0.01895472647 | FI15: 0.03295339977 | FJ15: -0.01617017512 | FK15: -0.03346336139 | FL15: 0.04877271928 | FM15: 0.05849843201 | FN15: -0.04523297789 | FO15: 0.0652399838 | FP15: -0.05214784791 | FQ15: 0.05547483483 | FR15: -0.04098561812 | FS15: 0.123441872 | FT15: -0.124340793 | FU15: 0.07567922636 | FV15: -0.06437906726 | FW15: -0.05591848778 | FX15: 0.06861425264 | FY15: -0.1117859632 | FZ15: 0.1129241234 | GA15: -0.03236589446 | GB15: 0.04839332779 | GC15: 0.03423498739 | GD15: -0.01714774169 | GE15: 0.04487744801 | GF15: -0.02866195585 | GG15: -0.04648362807 | GH15: 0.05957380105 | GI15: -0.08577857632 | GJ15: 0.09448832374 | GK15: -0.03519920747 | GL15: 0.05033274626 | GM15: -0.03299560684 | GN15: 0.04893337426 | GO15: 0.07699714378 | GP15: -0.06524673187 | GQ15: -0.06692517001 | GR15: 0.07784447377 | GS15: 0.03823810923 | GT15: -0.02158874733 | GU15: -0.08644242409 | GV15: 0.09356120399 | GW15: 0.01302852875 | GX15: 0.004706035116 | GY15: 0.01246951521 | GZ15: 0.005249895823 | HA15: -0.1174848227 | HB15: 0.1183713297 | HC15: 0.04626982119 | HD15: -0.03044020261 | HE15: -0.04520360412 | HF15: 0.05963170504 | HG15: 0.1188291698 | HH15: -0.1196006774 | HI15: -0.0833954756 | HJ15: 0.0918629436 | HK15: 0.0771560776 | HL15: -0.06526731117 | HM15: -0.01687187842 | HN15: 0.03393689374 | HO15: 0.04164154207 | HP15: -0.02637805722 | HQ15: 0.03067497839 | HR15: -0.01356579905 | HS15: 0.09487568493 | HT15: -0.08878711434 | HU15: 0.1170300971 | HV15: -0.1147867195 | HW15: -0.03733682022 | HX15: 0.05348050162 | HY15: 0.09196031869 | HZ15: -0.08330617996 | IA15: 0.1064536891 | IB15: -0.1030429164 | IC15: -0.07137063375 | ID15: 0.08118384738 | IE15: -0.01899916485 | IF15: 0.03552754431 | IG15: 0.02386478029 | IH15: -0.006494972931 | II15: 0.04035424573 | IJ15: -0.02388013626 | IK15: 0.08143223874 | IL15: -0.07156524393 | IM15: -0.09333882314 | IN15: 0.1000884986 | IO15: -0.06021585287 | IP15: 0.07231314331 | IQ15: -0.00559749519 | IR15: 0.02313843912 | IS15: -0.004078456372 | IT15: 0.02156398516 | IU15: 0.0153044581 | IV15: 0.002324985087 | IW15: -0.05785766129 | IX15: 0.07064376667 | IY15: -0.1140451681 | IZ15: 0.1160266637
B16: Float Freq | C16: Q | E16: 1.5 | F16: 0.02836744092 | G16: -0.02061572871 | H16: 0.00775171221 | I16: 0.1039764001 | J16: -0.09689637889 | K16: 0.01775849307 | L16: 0.002615268182 | M16: -0.1448144969 | N16: 0.1385125854 | O16: 0.07001162243 | P16: -0.05510728667 | Q16: -0.007118825233 | R16: 0.02707624533 | S16: -0.05083007616 | T16: 0.06661521453 | U16: 0.05222094183 | V16: -0.0359893174 | W16: 0.006899281602 | X16: 0.01353587444 | Y16: -0.06136250432 | Z16: 0.0766071129 | AA16: 0.02642245328 | AB16: -0.006157877284 | AC16: -0.004214782593 | AD16: 0.02451702857 | AE16: 0.02025885716 | AF16: 0.0001709772781 | AG16: -0.05730731966 | AH16: 0.0718449152 | AI16: 0.01519587318 | AJ16: 0.005245288223 | AK16: -0.07668784797 | AL16: 0.08872716121 | AM16: 0.09321523384 | AN16: -0.08286571469 | AO16: -0.02302082911 | AP16: 0.04264471971 | AQ16: -0.06121640079 | AR16: 0.076254191 | AS16: -0.1418392929 | AT16: 0.1360025881 | AU16: 0.09913361893 | AV16: -0.09126284865 | AW16: 0.0758870943 | AX16: -0.06254609635 | AY16: 0.07465993282 | AZ16: -0.05968617683 | BA16: 0.03342599532 | BB16: -0.01364157824 | BC16: -0.071687578 | BD16: 0.08389217647 | BE16: 0.00257052779 | BF16: 0.01767382809 | BG16: 0.05987280952 | BH16: -0.0419945715 | BI16: -0.03087632405 | BJ16: 0.04947272336 | BK16: 0.1077163359 | BL16: -0.1007571558 | BM16: -0.03054230594 | BN16: 0.04892416595 | BO16: -0.04793477753 | BP16: 0.06409258603 | BQ16: 0.06785405251 | BR16: -0.05277236969 | BS16: 0.01049993554 | BT16: 0.009986773298 | BU16: -0.01158394877 | BV16: 0.03100591929 | BW16: 0.01518987522 | BX16: 0.005368315873 | BY16: 0.02443174163 | BZ16: -0.004365146127 | CA16: 0.08634625628 | CB16: -0.07490908523 | CC16: 0.1251526573 | CD16: -0.1235884694 | CE16: 0.02961188698 | CF16: -0.009687737853 | CG16: -0.02067796158 | CH16: 0.03924842156 | CI16: 0.02788413758 | CJ16: -0.007489159251 | CK16: 0.06205382704 | CL16: -0.04531257312 | CM16: 0.006167372913 | CN16: 0.01431161365 | CO16: 0.0006892377199 | CP16: 0.01975602619 | CQ16: 0.0008205768218 | CR16: 0.01938022785 | CS16: -0.03551375057 | CT16: 0.05443052116 | CU16: 0.09700688096 | CV16: -0.08736643988 | CW16: 0.03694620229 | CX16: -0.01727816035 | CY16: 0.008078941356 | CZ16: 0.01238981941 | DA16: -0.04774810548 | DB16: 0.06372898459 | DC16: -0.0092480581 | DD16: 0.02904172749 | DE16: 0.02943925088 | DF16: -0.00962559204 | DG16: 0.04422890693 | DH16: -0.02506708819 | DI16: 0.08222112404 | DJ16: -0.0686205577 | DK16: 0.122250763 | DL16: -0.1219321516 | DM16: -0.03444341741 | DN16: 0.05213222943 | DO16: -0.0414123208 | DP16: 0.05849553954 | DQ16: 0.0538871405 | DR16: -0.03663259023 | DS16: 0.08653353271 | DT16: -0.07638394035 | DU16: -0.002193799304 | DV16: 0.02248680757 | DW16: -0.01393379646 | DX16: 0.03320075563 | DY16: 0.07205810267 | DZ16: -0.05638423418 | EA16: 0.03512457565 | EB16: -0.01599008449 | EC16: -0.05688864139 | ED16: 0.07199248375 | EE16: -0.02201094093 | EF16: 0.04113828204 | EG16: -0.01344074043 | EH16: 0.03333151665 | EI16: 0.0472826719 | EJ16: -0.02902423817 | EK16: -0.06792852577 | EL16: 0.08096863259 | EM16: -0.02205822332 | EN16: 0.04096508297 | EO16: -0.04559213239 | EP16: 0.06224830037 | EQ16: 0.0270736707 | ER16: -0.00699667436 | ES16: 0.09253497304 | ET16: -0.0826575037 | EU16: -0.06708592576 | EV16: 0.07971858678 | EW16: 0.07795756391 | EX16: -0.06522235766 | EY16: 0.0901210957 | EZ16: -0.0793425908 | FA16: 0.06161038258 | FB16: -0.04534027214 | FC16: 0.06816523698 | FD16: -0.05291665597 | FE16: -0.004840215587 | FF16: 0.02515834115 | FG16: -0.002920626111 | FH16: 0.02322261973 | FI16: 0.04201960912 | FJ16: -0.02315017319 | FK16: 0.0009840092628 | FL16: 0.01926098692 | FM16: 0.0765634177 | FN16: -0.06391168566 | FO16: 0.106277209 | FP16: -0.09956909609 | FQ16: 0.01602448913 | FR16: 0.004324593606 | FS16: 0.0865747037 | FT16: -0.07539357403 | FU16: 0.09521756035 | FV16: -0.0857070827 | FW16: -0.09297934953 | FX16: 0.1012629678 | FY16: -0.09412395803 | FZ16: 0.1007608189 | GA16: -0.05890824711 | GB16: 0.07437626982 | GC16: -0.004134911402 | GD16: 0.02438071957 | GE16: 0.03643621878 | GF16: -0.01683219195 | GG16: -0.08801514987 | GH16: 0.09599319354 | GI16: -0.09129330737 | GJ16: 0.1007068654 | GK16: -0.03106777525 | GL16: 0.04908117522 | GM16: -0.05907849465 | GN16: 0.0744611701 | GO16: 0.1175235199 | GP16: -0.1131982777 | GQ16: -0.05944348589 | GR16: 0.07363591993 | GS16: 0.04694347652 | GT16: -0.02823813517 | GU16: -0.07370607371 | GV16: 0.08507284788 | GW16: -0.02019487701 | GX16: 0.03950304676 | GY16: -0.01222437175 | GZ16: 0.03212720823 | HA16: -0.1318558921 | HB16: 0.1302308898 | HC16: 0.06217194339 | HD16: -0.04547585676 | HE16: -0.008559554121 | HF16: 0.02849306164 | HG16: 0.06257836312 | HH16: -0.04734279761 | HI16: -0.07126524043 | HJ16: 0.08377014272 | HK16: 0.05047766685 | HL16: -0.0322896171 | HM16: -0.03756722519 | HN16: 0.05562545869 | HO16: 0.007816661846 | HP16: 0.0127592251 | HQ16: 0.01732991099 | HR16: 0.003068265797 | HS16: 0.08894435194 | HT16: -0.07913786717 | HU16: 0.1310815151 | HV16: -0.1319046166 | HW16: -0.01612370724 | HX16: 0.03615316769 | HY16: 0.1155419592 | HZ16: -0.110966439 | IA16: 0.08247229615 | IB16: -0.07086094001 | IC16: -0.07431373304 | ID16: 0.08558328419 | IE16: -0.03274826487 | IF16: 0.05062377116 | IG16: 0.03343819913 | IH16: -0.01375753362 | II16: 0.03953904637 | IJ16: -0.02023165379 | IK16: 0.06396386318 | IL16: -0.04839697636 | IM16: -0.116019828 | IN16: 0.1193114737 | IO16: -0.0667285267 | IP16: 0.07993428634 | IQ16: 0.03213347584 | IR16: -0.01223106739 | IS16: 0.0135535025 | IT16: 0.006946109021 | IU16: -0.01080715335 | IV16: 0.0309842847 | IW16: -0.05194546798 | IX16: 0.06775083594 | IY16: -0.09252238663 | IZ16: 0.1006758089
E17: 1.75 | F17: 0.0299579555 | G17: -0.02125934381 | H17: 0.008698611694 | I17: 0.1079146884 | J17: -0.1002129669 | K17: 0.01429652718 | L17: 0.008775174743 | M17: -0.115659604 | N17: 0.1181826526 | O17: 0.08331678454 | P17: -0.06862310196 | Q17: -0.007321964677 | R17: 0.0297802564 | S17: -0.0228191708 | T17: 0.0439932857 | U17: 0.07717357429 | V17: -0.06321786892 | W17: -0.02273090271 | X17: 0.04410963041 | Y17: -0.02492193425 | Z17: 0.04639781638 | AA17: 0.06309144009 | AB17: -0.04301409789 | AC17: 0.01876765358 | AD17: 0.004265205429 | AE17: 0.05019730979 | AF17: -0.02868796634 | AG17: -0.03448601007 | AH17: 0.05421266083 | AI17: 0.01672690405 | AJ17: 0.006317261665 | AK17: -0.05813572084 | AL17: 0.07507437077 | AM17: 0.09266090469 | AN17: -0.08012017766 | AO17: -0.006561226385 | AP17: 0.02942855081 | AQ17: -0.0460529241 | AR17: 0.06517420978 | AS17: -0.1166299653 | AT17: 0.1185743847 | AU17: 0.06172592467 | AV17: -0.04361301357 | AW17: 0.07389409697 | AX17: -0.05781155128 | AY17: 0.04844379331 | AZ17: -0.02747351303 | BA17: 0.0679465338 | BB17: -0.04904390727 | BC17: -0.06415853398 | BD17: 0.07951886964 | BE17: -0.0327967077 | BF17: 0.0527672364 | BG17: 0.07787469969 | BH17: -0.06006316696 | BI17: -0.006331209172 | BJ17: 0.02897573945 | BK17: 0.08072081214 | BL17: -0.06532240286 | BM17: 0.002499271477 | BN17: 0.02040116148 | BO17: -0.03387010758 | BP17: 0.05392216614 | BQ17: 0.05038318427 | BR17: -0.03024143829 | BS17: 0.009726836568 | BT17: 0.01340859321 | BU17: 0.01636796634 | BV17: 0.006842284289 | BW17: 0.02230500329 | BX17: 0.0008655593424 | BY17: -0.0003409156172 | BZ17: 0.02346023197 | CA17: 0.07640777496 | CB17: -0.06063380499 | CC17: 0.1128469604 | CD17: -0.1059383164 | CE17: 0.04486926463 | CF17: -0.02337880004 | CG17: -0.04203291878 | CH17: 0.06046535173 | CI17: 0.01875454903 | CJ17: 0.004380199361 | CK17: 0.0446198435 | CL17: -0.02332457837 | CM17: 0.01553418883 | CN17: 0.007547582215 | CO17: 0.02683593291 | CP17: -0.004076195973 | CQ17: -0.0101392071 | CR17: 0.0322696744 | CS17: -0.01836176809 | CT17: 0.04080602155 | CU17: 0.07131427801 | CV17: -0.05411219955 | CW17: 0.0519983331 | CX17: -0.0309412684 | CY17: 0.001131766399 | CZ17: 0.02175779573 | DA17: -0.02919720678 | DB17: 0.04960837897 | DC17: 0.008806358968 | DD17: 0.01424108856 | DE17: 0.05500027096 | DF17: -0.03483162523 | DG17: 0.03946729523 | DH17: -0.01735663799 | DI17: 0.03852564282 | DJ17: -0.01667466015 | DK17: 0.1717456376 | DL17: -0.1930457475 | DM17: -0.02206291743 | DN17: 0.04329345441 | DO17: -0.03133057835 | DP17: 0.05177753816 | DQ17: 0.05939295422 | DR17: -0.04034726662 | DS17: 0.07513097185 | DT17: -0.06013292418 | DU17: 0.0213727125 | DV17: 0.001655564702 | DW17: -0.009414098576 | DX17: 0.03147426779 | DY17: 0.06065331359 | DZ17: -0.04092608961 | EA17: 0.004816003825 | EB17: 0.01841583569 | EC17: -0.07238265551 | ED17: 0.08694596509 | EE17: -0.05640834021 | EF17: 0.07401751084 | EG17: 0.009758442483 | EH17: 0.01333729357 | EI17: 0.06206201609 | EJ17: -0.04309509079 | EK17: -0.06320615481 | EL17: 0.07892754131 | EM17: 0.01059389901 | EN17: 0.01248957957 | EO17: -0.01142748591 | EP17: 0.03359898649 | EQ17: -0.04454180496 | ER17: 0.0646695227 | ES17: 0.07483113051 | ET17: -0.05887421566 | EU17: -0.01208305723 | EV17: 0.03385179725 | EW17: 0.04727846011 | EX17: -0.02704165834 | EY17: 0.07260350997 | EZ17: -0.05595201773 | FA17: 0.02137717018 | FB17: 0.001368210666 | FC17: 0.1059206285 | FD17: -0.09684649653 | FE17: 0.04652263988 | FF17: -0.02499244693 | FG17: 0.007700204397 | FH17: 0.01538103453 | FI17: 0.05538175265 | FJ17: -0.03534152271 | FK17: 0.02538707222 | FL17: -0.00225532806 | FM17: 0.08447175317 | FN17: -0.07128383462 | FO17: 0.1054183347 | FP17: -0.09668595663 | FQ17: 0.02195190931 | FR17: 0.000828438313 | FS17: 0.04409231437 | FT17: -0.02336118983 | FU17: 0.06209656941 | FV17: -0.04367707246 | FW17: -0.09033884159 | FX17: 0.100672844 | FY17: -0.05440021092 | FZ17: 0.07044674523 | GA17: -0.0613483572 | GB17: 0.07845479256 | GC17: 0.03051197096 | GD17: -0.00776964886 | GE17: 0.05212902991 | GF17: -0.03123599208 | GG17: -0.08463936097 | GH17: 0.09491696969 | GI17: -0.1018897868 | GJ17: 0.1105050293 | GK17: -0.02761829095 | GL17: 0.04830643278 | GM17: -0.09597498189 | GN17: 0.1067202105 | GO17: 0.1235031769 | GP17: -0.1196877224 | GQ17: -0.08761276198 | GR17: 0.09851868508 | GS17: 0.06214638256 | GT17: -0.04260442328 | GU17: -0.06264779064 | GV17: 0.07782859358 | GW17: -0.05586304664 | GX17: 0.07365896787 | GY17: -0.02115349785 | GZ17: 0.04297373981 | HA17: -0.1434099644 | HB17: 0.1392148972 | HC17: 0.0582304762 | HD17: -0.03850813068 | HE17: 0.02732983592 | HF17: -0.00433211893 | HG17: 0.08203709273 | HH17: -0.06823838146 | HI17: -0.06894385619 | HJ17: 0.08368650928 | HK17: 0.04367280182 | HL17: -0.02223210771 | HM17: -0.008889301386 | HN17: 0.03144259129 | HO17: 0.008657682374 | HP17: 0.01454160078 | HQ17: 0.02532825746 | HR17: -0.002527903476 | HS17: 0.09175306333 | HT17: -0.08054025635 | HU17: 0.1505299338 | HV17: -0.1583976683 | HW17: 0.01226594978 | HX17: 0.01082925903 | HY17: 0.1176127609 | HZ17: -0.1121711923 | IA17: 0.1085114826 | IB17: -0.1017321845 | IC17: -0.08088205689 | ID17: 0.09261649138 | IE17: -0.02742424029 | IF17: 0.04815825161 | IG17: 0.01371747371 | IH17: 0.009357060767 | II17: 0.05137271649 | IJ17: -0.03052879037 | IK17: 0.07244753709 | IL17: -0.05591507003 | IM17: -0.0757602928 | IN17: 0.08907375079 | IO17: -0.03064821955 | IP17: 0.050884067 | IQ17: 0.03194393162 | IR17: -0.009403308751 | IS17: -0.03394715175 | IT17: 0.05460496448 | IU17: -0.0355782404 | IV17: 0.05658176133 | IW17: -0.05673789935 | IX17: 0.07392555944 | IY17: -0.1233712741 | IZ17: 0.1255223357
B18: Collateralised | C18: NO | E18: 2 | F18: 0.03152935422 | G18: -0.02195677105 | H18: 0.009572583172 | I18: 0.1127816197 | J18: -0.1047219532 | K18: 0.0005577881226 | L18: 0.02492930113 | M18: -0.1193453323 | N18: 0.1217498495 | O18: 0.06713543665 | P18: -0.0471475559 | Q18: 0.004190924849 | R18: 0.02114863619 | S18: 0.009280849557 | T18: 0.01617768466 | U18: 0.06036866641 | V18: -0.04065457915 | W18: -0.01918057552 | X18: 0.04310009524 | Y18: -0.02825991994 | Z18: 0.05164983906 | AA18: 0.0496452918 | AB18: -0.02579501736 | AC18: -0.02488052079 | AD18: 0.04897154288 | AE18: 0.04050706871 | AF18: -0.01584654635 | AG18: -0.03696528306 | AH18: 0.05848341821 | AI18: 0.02236088691 | AJ18: 0.003031062055 | AK18: -0.03814782748 | AL18: 0.05980346635 | AM18: 0.05658672173 | AN18: -0.03494859018 | AO18: -0.03815536387 | AP18: 0.06118932324 | AQ18: -0.03849677977 | AR18: 0.06055984158 | AS18: -0.116593419 | AT18: 0.1194357178 | AU18: 0.03115033357 | AV18: -0.006779711801 | AW18: 0.07043567294 | AX18: -0.05146142088 | AY18: 0.02606473043 | AZ18: -0.0009497566937 | BA18: 0.0997417389 | BB18: -0.08488591095 | BC18: -0.09975343516 | BD18: 0.1094223353 | BE18: -0.02172215458 | BF18: 0.04503672276 | BG18: 0.04286454688 | BH18: -0.01855831635 | BI18: -0.01004659004 | BJ18: 0.03485529798 | BK18: 0.08185006825 | BL18: -0.06459212156 | BM18: -0.04787559021 | BN18: 0.06880355872 | BO18: -0.03066907421 | BP18: 0.05320902572 | BQ18: 0.0725922323 | BR18: -0.05355355897 | BS18: -0.003840299375 | BT18: 0.02942043701 | BU18: -0.01386234516 | BV18: 0.03792943038 | BW18: 0.01216203087 | BX18: 0.01338035922 | BY18: 0.01734697365 | BZ18: 0.008119422537 | CA18: 0.04152362346 | CB18: -0.01807127602 | CC18: 0.08279196815 | CD18: -0.06619686953 | CE18: 0.03019241034 | CF18: -0.005208584789 | CG18: -0.06529230605 | CH18: 0.08189758362 | CI18: 0.04874110253 | CJ18: -0.02425842466 | CK18: 0.01208734505 | CL18: 0.0134782108 | CM18: 0.01376483789 | CN18: 0.01178739934 | CO18: 0.02408806954 | CP18: 0.001246745798 | CQ18: 0.02056713707 | CR18: 0.005103587846 | CS18: -0.0124970497 | CT18: 0.03754781989 | CU18: 0.05829554832 | CV18: -0.03670720243 | CW18: 0.03052720656 | CX18: -0.00546002918 | CY18: 0.0156597989 | CZ18: 0.009913826347 | DA18: -0.007148123271 | DB18: 0.03173145974 | DC18: 0.0235337647 | DD18: 0.0020741547 | DE18: 0.07133819711 | DF18: -0.05120230567 | DG18: 0.01663466183 | DH18: 0.008880536284 | DI18: 0.02013676416 | DJ18: 0.005227250798 | DK18: 0.1648221092 | DL18: -0.1832400948 | DM18: -0.03712984192 | DN18: 0.05893580721 | DO18: -0.03152489768 | DP18: 0.05409682719 | DQ18: 0.05984985861 | DR18: -0.03851485955 | DS18: 0.02665986506 | DT18: -0.002073063406 | DU18: 0.03586739499 | DV18: -0.01086998353 | DW18: 0.01513833677 | DX18: 0.01047687224 | DY18: 0.02913679505 | DZ18: -0.004133982372 | EA18: 0.01697248601 | EB18: 0.008446806417 | EC18: -0.05437352779 | ED18: 0.07366359494 | EE18: -0.0344798536 | EF18: 0.05688323719 | EG18: 0.03403904166 | EH18: -0.008965650011 | EI18: 0.02047875092 | EJ18: 0.00481091857 | EK18: -0.1116378029 | EL18: 0.1186996667 | EM18: 0.004417536181 | EN18: 0.02090881046 | EO18: -0.01625262432 | EP18: 0.04038309168 | EQ18: -0.06392354229 | ER18: 0.08346213356 | ES18: 0.1114791036 | ET18: -0.1029755212 | EU18: 0.007011852216 | EV18: 0.018308385 | EW18: 0.05427191313 | EX18: -0.03254094743 | EY18: 0.05641296816 | EZ18: -0.03478224356 | FA18: -0.01266020528 | FB18: 0.03812508868 | FC18: 0.08997547198 | FD18: -0.07494769346 | FE18: 0.07153734735 | FF18: -0.05064310598 | FG18: -0.02682794117 | FH18: 0.05062346963 | FI18: 0.09364597323 | FJ18: -0.07822236583 | FK18: 0.004550175077 | FL18: 0.0207953094 | FM18: 0.1159209496 | FN18: -0.1100961832 | FO18: 0.1004035121 | FP18: -0.0885786055 | FQ18: 0.0002360623232 | FR18: 0.02538453257 | FS18: 0.05472179344 | FT18: -0.03290200886 | FU18: 0.09787025099 | FV18: -0.08485627818 | FW18: -0.09801413624 | FX18: 0.1079286283 | FY18: -0.08584255692 | FZ18: 0.09744303051 | GA18: -0.08794176753 | GB18: 0.1019900746 | GC18: 0.05143027217 | GD18: -0.02760865411 | GE18: 0.02636240436 | GF18: -0.001162776806 | GG18: -0.07049297718 | GH18: 0.08523592561 | GI18: -0.05462301415 | GJ18: 0.07374297314 | GK18: -0.1129697705 | GL18: 0.1203388142 | GM18: -0.125705179 | GN18: 0.1304843101 | GO18: 0.1326945847 | GP18: -0.1312336089 | GQ18: -0.1052754867 | GR18: 0.1134564506 | GS18: 0.07100172607 | GT18: -0.05047954957 | GU18: -0.06020353794 | GV18: 0.07758731262 | GW18: -0.07238367129 | GX18: 0.08930857931 | GY18: -0.03735917597 | GZ18: 0.05989686431 | HA18: -0.1154535783 | HB18: 0.119689248 | HC18: 0.04818919183 | HD18: -0.02488445406 | HE18: 0.03344185928 | HF18: -0.008175955799 | HG18: 0.1022522941 | HH18: -0.09185098983 | HI18: -0.03101272909 | HJ18: 0.05323878764 | HK18: 0.07657586146 | HL18: -0.05718376994 | HM18: 0.01874499365 | HN18: 0.006807817916 | HO18: -0.006599020412 | HP18: 0.03244680062 | HQ18: 0.01477690131 | HR18: 0.01075796203 | HS18: 0.09886973692 | HT18: -0.08777744239 | HU18: 0.1804648951 | HV18: -0.2045074703 | HW18: -0.03189949372 | HX18: 0.05568527197 | HY18: 0.1406241577 | HZ18: -0.1427243492 | IA18: 0.08050627257 | IB18: -0.06433814806 | IC18: -0.06739002886 | ID18: 0.08335005483 | IE18: -0.01624652749 | IF18: 0.04022379503 | IG18: 0.04374633733 | IH18: -0.01966217513 | II18: 0.04355322036 | IJ18: -0.01953790662 | IK18: 0.04724285681 | IL18: -0.02445588514 | IM18: -0.06299694174 | IN18: 0.08029530561 | IO18: -0.001850760586 | IP18: 0.02676390386 | IQ18: 0.0009214123098 | IR18: 0.02454499926 | IS18: -0.0735240551 | IT18: 0.09066953626 | IU18: -0.02216508631 | IV18: 0.04645029136 | IW18: -0.06788319321 | IX18: 0.08503997639 | IY18: -0.1471826103 | IZ18: 0.14312677
B19: MPR | C19: 10 | E19: 2.25 | F19: 0.03248935109 | G19: -0.02206173388 | H19: 0.01042761721 | I19: 0.1149499081 | J19: -0.1051439352 | K19: 0.003022777518 | L19: 0.02475274215 | M19: -0.1667090621 | N19: 0.1545584484 | O19: 0.06427648442 | P19: -0.04167966068 | Q19: 0.04492012004 | R19: -0.0176854218 | S19: 0.04093656811 | T19: -0.01329687472 | U19: 0.0301711318 | V19: -0.003757656671 | W19: -0.02952359296 | X19: 0.05449261796 | Y19: 0.007160642466 | Z19: 0.02053415436 | AA19: -0.008290787842 | AB19: 0.03571104488 | AC19: -0.03094082755 | AD19: 0.05653121365 | AE19: 0.05696219652 | AF19: -0.03146999664 | AG19: -0.03355811548 | AH19: 0.05742514244 | AI19: 0.04190215371 | AJ19: -0.01519154557 | AK19: -0.0483272439 | AL19: 0.07042339168 | AM19: 0.09316772235 | AN19: -0.07678443163 | AO19: -0.04325325332 | AP19: 0.06761971146 | AQ19: -0.04493178507 | AR19: 0.06803946973 | AS19: -0.09506474505 | AT19: 0.1044807533 | AU19: 0.03070921929 | AV19: -0.003963922425 | AW19: 0.05105666284 | AX19: -0.02670723939 | AY19: 0.01626109573 | AZ19: 0.0115204049 | BA19: 0.1122219632 | BB19: -0.09927241424 | BC19: -0.1513150381 | BD19: 0.1473782141 | BE19: 0.008812807535 | BF19: 0.0188245321 | BG19: 0.03226349539 | BH19: -0.004992636527 | BI19: -0.01134427939 | BJ19: 0.03822870495 | BK19: 0.1055282612 | BL19: -0.09256740542 | BM19: -0.07005207589 | BN19: 0.08916352345 | BO19: -0.02023870145 | BP19: 0.04587911862 | BQ19: 0.08140409236 | BR19: -0.06217755132 | BS19: 0.006458411266 | BT19: 0.02145063573 | BU19: -0.07932654201 | BV19: 0.09578174902 | BW19: -0.007163487899 | BX19: 0.03414682183 | BY19: 0.01502169458 | BZ19: 0.01279344073 | CA19: 0.03653657244 | CB19: -0.0102618217 | CC19: 0.09939479049 | CD19: -0.08524862905 | CE19: 0.04856113176 | CF19: -0.02266885255 | CG19: -0.0790140251 | CH19: 0.09435017784 | CI19: 0.06657548335 | CJ19: -0.04162033762 | CK19: 0.02021304816 | CL19: 0.007456104958 | CM19: 0.05123434709 | CN19: -0.0251042873 | CO19: 0.01122542995 | CP19: 0.01661926997 | CQ19: 0.01702302559 | CR19: 0.01086912101 | CS19: 0.01890082878 | CT19: 0.008874892055 | CU19: 0.0767807205 | CV19: -0.05627247456 | CW19: 0.05878605395 | CX19: -0.03378334935 | CY19: -0.00112040867 | CZ19: 0.02855756237 | DA19: 0.02072004198 | DB19: 0.007259268459 | DC19: 0.02023245759 | DD19: 0.007656461425 | DE19: 0.05185229438 | DF19: -0.02677493809 | DG19: 0.0004847496674 | DH19: 0.02722636538 | DI19: 0.01369482475 | DJ19: 0.01414108363 | DK19: 0.1356283934 | DL19: -0.1395315515 | DM19: -0.05092197742 | DN19: 0.07265348408 | DO19: 0.003629515322 | DP19: 0.02382724132 | DQ19: 0.06634282896 | DR19: -0.04390015147 | DS19: 0.04714444654 | DT19: -0.02251196295 | DU19: 0.03750477916 | DV19: -0.0103154681 | DW19: 0.06114026211 | DX19: -0.03448898004 | DY19: 0.01356961913 | DZ19: 0.01426803106 | EA19: 0.0111946976 | EB19: 0.01670119661 | EC19: -0.03303480693 | ED19: 0.05711518527 | EE19: -0.04679636528 | EF19: 0.06951233813 | EG19: 0.0762302106 | EH19: -0.05316631952 | EI19: 0.009005416511 | EJ19: 0.01892401007 | EK19: -0.09030124045 | EL19: 0.1033960156 | EM19: 0.01771681948 | EN19: 0.01017074773 | EO19: 0.001917493489 | EP19: 0.02550714152 | EQ19: -0.07327871735 | ER19: 0.09280826798 | ES19: 0.09252815095 | ET19: -0.07699944844 | EU19: 0.009762196858 | EV19: 0.01790513441 | EW19: 0.01266761577 | EX19: 0.01521234941 | EY19: 0.07457962356 | EZ19: -0.05394765784 | FA19: -0.02074793164 | FB19: 0.0480180972 | FC19: 0.1061508464 | FD19: -0.09394107384 | FE19: 0.08268953961 | FF19: -0.0617427746 | FG19: 0.01277317915 | FH19: 0.01505207874 | FI19: 0.062732503 | FJ19: -0.03937135319 | FK19: 0.03484286062 | FL19: -0.00714983629 | FM19: 0.1461555717 | FN19: -0.1521040898 | FO19: 0.08846912893 | FP19: -0.07178907686 | FQ19: -0.04211325927 | FR19: 0.06753353692 | FS19: 0.07682667909 | FT19: -0.0567346635 | FU19: 0.08735539938 | FV19: -0.06995671449 | FW19: -0.04583982158 | FX19: 0.06740724599 | FY19: -0.1158846638 | FZ19: 0.1209890616 | GA19: -0.1020181039 | GB19: 0.1140875431 | GC19: 0.05687997857 | GD19: -0.03139873632 | GE19: 0.0222445521 | GF19: 0.00541000081 | GG19: -0.05550279498 | GH19: 0.07468943847 | GI19: -0.07092827333 | GJ19: 0.08879550057 | GK19: -0.1484471434 | GL19: 0.1464360852 | GM19: -0.1140323512 | GN19: 0.1224094379 | GO19: 0.129605319 | GP19: -0.1263359529 | GQ19: -0.1571037202 | GR19: 0.1510358319 | GS19: 0.07297302339 | GT19: -0.0507424462 | GU19: -0.11104901 | GV19: 0.1185167171 | GW19: -0.08187371313 | GX19: 0.09837301118 | GY19: -0.03126789722 | GZ19: 0.05639392971 | HA19: -0.09797377266 | HB19: 0.1075916683 | HC19: 0.05108199058 | HD19: -0.02585272506 | HE19: 0.03840696266 | HF19: -0.01108176499 | HG19: 0.08798684572 | HH19: -0.07192865572 | HI19: -0.035804386 | HJ19: 0.05936744767 | HK19: 0.09818792601 | HL19: -0.0816129443 | HM19: 0.01894309442 | HN19: 0.008890887453 | HO19: -0.02656626101 | HP19: 0.05397793254 | HQ19: 0.02428782212 | HR19: 0.003340691664 | HS19: 0.08610709793 | HT19: -0.0697817468 | HU19: 0.1718183744 | HV19: -0.1924572447 | HW19: -0.03585412521 | HX19: 0.06124008162 | HY19: 0.08758391647 | HZ19: -0.07086448348 | IA19: 0.07039049808 | IB19: -0.04999733087 | IC19: -0.07783395044 | ID19: 0.09312680482 | IE19: -0.05285481674 | IF19: 0.074389683 | IG19: 0.07276148025 | IH19: -0.05005352931 | II19: 0.06467642457 | IJ19: -0.04086738616 | IK19: 0.03117205165 | IL19: -0.004420293614 | IM19: -0.05101413901 | IN19: 0.07199338058 | IO19: 0.004744048283 | IP19: 0.02272480455 | IQ19: -0.01949319823 | IR19: 0.04625309692 | IS19: -0.05671193484 | IT19: 0.0781688736 | IU19: -0.01583290917 | IV19: 0.04264649639 | IW19: -0.04225104366 | IX19: 0.06513237213 | IY19: -0.1042557528 | IZ19: 0.1127322165
B20: Threshold1 | C20: 0 | E20: 2.5 | F20: 0.03353659783 | G20: -0.02236969813 | H20: 0.0111668997 | I20: 0.1188085515 | J20: -0.1095534827 | K20: -0.01511472242 | L20: 0.04421443509 | M20: -0.1396202895 | N20: 0.1363019066 | O20: 0.08310312355 | P20: -0.06242317742 | Q20: 0.07951884917 | R20: -0.05377804875 | S20: 0.05774111713 | T20: -0.02905402887 | U20: -0.0465020254 | V20: 0.07612968178 | W20: -0.02719954812 | X20: 0.05422507865 | Y20: 0.03564770697 | Z20: -0.005929012528 | AA20: 0.02618041745 | AB20: 0.003556605639 | AC20: -0.03401298454 | AD20: 0.06107157918 | AE20: 0.04209308714 | AF20: -0.0132387258 | AG20: -0.04443256189 | AH20: 0.06845462522 | AI20: 0.02946076446 | AJ20: 7.734166803e-05 | AK20: -0.03995700295 | AL20: 0.06489347263 | AM20: 0.07261142482 | AN20: -0.04985483269 | AO20: -0.02494005258 | AP20: 0.05293339522 | AQ20: -0.03898088785 | AR20: 0.06453871606 | AS20: -0.1112762516 | AT20: 0.117057855 | AU20: 0.05616837336 | AV20: -0.0303062208 | AW20: 0.06032616082 | AX20: -0.03537924279 | AY20: -0.01005170959 | AZ20: 0.03973955289 | BA20: 0.1311401558 | BB20: -0.1237055779 | BC20: -0.1770538236 | BD20: 0.1640056738 | BE20: -0.007853335806 | BF20: 0.03647956126 | BG20: 0.01981965383 | BH20: 0.01002821618 | BI20: -0.01620809292 | BJ20: 0.04469189351 | BK20: 0.1049005496 | BL20: -0.09054886062 | BM20: -0.03917309675 | BN20: 0.06460276277 | BO20: -0.04860430839 | BP20: 0.07240889317 | BQ20: 0.05717194867 | BR20: -0.03152842252 | BS20: 0.05104744896 | BT20: -0.02337574426 | BU20: -0.06148231321 | BV20: 0.0826260231 | BW20: 0.01680740796 | BX20: 0.01315252096 | BY20: -0.01013826061 | BZ20: 0.03971373026 | CA20: 0.01317700064 | CB20: 0.01681866631 | CC20: 0.08158827459 | CD20: -0.06128309081 | CE20: 0.02795138388 | CF20: 0.001544042053 | CG20: -0.0496507063 | CH20: 0.07201143853 | CI20: 0.09885812837 | CJ20: -0.07756517348 | CK20: 0.01212410757 | CL20: 0.01784854866 | CM20: 0.01378947966 | CN20: 0.01614396345 | CO20: 0.02888934082 | CP20: 0.0007112463328 | CQ20: 0.01507513757 | CR20: 0.01485453634 | CS20: 0.01934368052 | CT20: 0.01053559698 | CU20: 0.09074507551 | CV20: -0.07170280708 | CW20: 0.09091697969 | CX20: -0.069383967 | CY20: 0.03054049605 | CZ20: -0.0007144334169 | DA20: 0.04081600363 | DB20: -0.01089981831 | DC20: 0.02959335481 | DD20: 0.0003175280011 | DE20: 0.08668791593 | DF20: -0.06561647075 | DG20: -0.03125333825 | DH20: 0.05906441458 | DI20: 0.02097609657 | DJ20: 0.00880123968 | DK20: 0.1629614243 | DL20: -0.1819513872 | DM20: -0.01204250025 | DN20: 0.04027101369 | DO20: 0.02611362465 | DP20: 0.003967585106 | DQ20: 0.06066738481 | DR20: -0.03533554754 | DS20: 0.04224981415 | DT20: -0.0148548543 | DU20: 0.07090053489 | DV20: -0.04493078617 | DW20: 0.08287062228 | DX20: -0.05677922365 | DY20: 0.02799707634 | DZ20: 0.001518989051 | EA20: 0.00857260168 | EB20: 0.02147798634 | EC20: -0.02371911482 | ED20: 0.05069793212 | EE20: -0.02417989355 | EF20: 0.05141837254 | EG20: 0.06577791363 | EH20: -0.03936622223 | EI20: 0.04033399417 | EJ20: -0.01183895206 | EK20: -0.06003084625 | EL20: 0.0806228101 | EM20: 0.01099069067 | EN20: 0.01884596961 | EO20: -0.009759745306 | EP20: 0.0384830023 | EQ20: -0.0909086335 | ER20: 0.1081331922 | ES20: 0.08026865271 | ET20: -0.06001281533 | EU20: -0.02351244675 | EV20: 0.0505543781 | EW20: 0.01920695374 | EX20: 0.010505158 | EY20: 0.03181596455 | EZ20: -0.003038677722 | FA20: -0.02918606335 | FB20: 0.05779065352 | FC20: 0.09538715522 | FD20: -0.07872391613 | FE20: 0.09431387079 | FF20: -0.07423599644 | FG20: 0.0226303367 | FH20: 0.007274253801 | FI20: 0.08677851303 | FJ20: -0.06618645824 | FK20: 0.06352865443 | FL20: -0.03566214422 | FM20: 0.1302625856 | FN20: -0.128950925 | FO20: 0.1084316738 | FP20: -0.0961951696 | FQ20: -0.05067946098 | FR20: 0.07677960232 | FS20: 0.05211730008 | FT20: -0.02575780906 | FU20: 0.04285707372 | FV20: -0.0154102802 | FW20: -0.08173017073 | FX20: 0.09780196926 | FY20: -0.1392468611 | FZ20: 0.1377400248 | GA20: -0.09594137161 | GB20: 0.1102087686 | GC20: 0.03325540188 | GD20: -0.00386189181 | GE20: 0.007246223729 | GF20: 0.02271027227 | GG20: -0.0560038215 | GH20: 0.0765633436 | GI20: -0.07356492088 | GJ20: 0.09215202992 | GK20: -0.1451058019 | GL20: 0.1439704633 | GM20: -0.1053410366 | GN20: 0.1165107121 | GO20: 0.1290639 | GP20: -0.1251596902 | GQ20: -0.1676056945 | GR20: 0.1575662407 | GS20: 0.07347997925 | GT20: -0.04951057837 | GU20: -0.1186056685 | GV20: 0.1245361389 | GW20: -0.106919172 | GX20: 0.1186754109 | GY20: -0.01396899134 | GZ20: 0.04252065194 | HA20: -0.04120173566 | HB20: 0.06417396678 | HC20: 0.06301716671 | HD20: -0.03736873842 | HE20: 0.05123945853 | HF20: -0.02268401661 | HG20: 0.1008558681 | HH20: -0.08706724133 | HI20: 0.01089718662 | HJ20: 0.01884662616 | HK20: 0.07515086309 | HL20: -0.05189710665 | HM20: -0.001474097932 | HN20: 0.0310132125 | HO20: -0.03127229908 | HP20: 0.06023972663 | HQ20: 0.007154266718 | HR20: 0.02277259966 | HS20: 0.1053879435 | HT20: -0.09337626484 | HU20: 0.1842402045 | HV20: -0.2150561071 | HW20: -0.06899093966 | HX20: 0.09154963363 | HY20: 0.07574047636 | HZ20: -0.05447100594 | IA20: 0.05704280854 | IB20: -0.0321353997 | IC20: -0.01334564422 | ID20: 0.0408340902 | IE20: -0.06042350243 | IF20: 0.08217683812 | IG20: 0.07779969937 | IH20: -0.05416219649 | II20: 0.05994140912 | IJ20: -0.03352385208 | IK20: 0.02831747272 | IL20: 0.0008095064396 | IM20: -0.06636877093 | IN20: 0.08602383501 | IO20: -0.0002465454827 | IP20: 0.0294604913 | IQ20: -0.01331234434 | IR20: 0.04239282696 | IS20: -0.04396363159 | IT20: 0.06885282105 | IU20: 0.006310795077 | IV20: 0.02349421581 | IW20: -0.009385676074 | IX20: 0.03780614548 | IY20: -0.06551143515 | IZ20: 0.08405209565
B21: Threshold2 | C21: 0 | E21: 2.75 | F21: 0.03411394815 | G21: -0.02221792998 | H21: 0.01189601817 | I21: 0.1198108882 | J21: -0.1102602708 | K21: -0.06125242866 | L21: 0.08698708483 | M21: -0.1517497269 | N21: 0.1440712463 | O21: 0.09267076056 | P21: -0.07299200213 | Q21: 0.07016769099 | R21: -0.04156801379 | S21: 0.06672183945 | T21: -0.03713290846 | U21: -0.05902867822 | V21: 0.08892926227 | W21: -0.02328806112 | X21: 0.05237290137 | Y21: 0.02154737079 | Z21: 0.01031288122 | AA21: 0.06854720119 | AB21: -0.040410862 | AC21: -0.004205790335 | AD21: 0.03536877772 | AE21: 0.04797654899 | AF21: -0.01771781047 | AG21: -0.01110726376 | AH21: 0.04095142526 | AI21: 0.04501930244 | AJ21: -0.01454544615 | AK21: -0.02684079652 | AL21: 0.0550666023 | AM21: 0.05883838315 | AN21: -0.03180803925 | AO21: -0.008726839844 | AP21: 0.03966063808 | AQ21: -0.02035560065 | AR21: 0.04969632273 | AS21: -0.1458073792 | AT21: 0.1408608053 | AU21: 0.02808637065 | AV21: 0.002936421357 | AW21: 0.01421539731 | AX21: 0.0176966062 | AY21: -0.03071873034 | AZ21: 0.06088215905 | BA21: 0.09588082518 | BB21: -0.07645214284 | BC21: -0.2137986251 | BD21: 0.1853165117 | BE21: -0.04413730043 | BF21: 0.07017816102 | BG21: 0.03626487472 | BH21: -0.005163525971 | BI21: -0.01415484298 | BJ21: 0.0445309577 | BK21: 0.1353916052 | BL21: -0.1316771348 | BM21: -0.04404894866 | BN21: 0.07024782717 | BO21: -0.06135976414 | BP21: 0.08430076092 | BQ21: 0.01292308652 | BR21: 0.01904324362 | BS21: 0.03079438539 | BT21: 0.0004364015987 | BU21: -0.04060272463 | BV21: 0.06659299924 | BW21: 0.03837808519 | BX21: -0.006689979965 | BY21: 0.01932464084 | BZ21: 0.01245310241 | CA21: 0.00764856059 | CB21: 0.02444961978 | CC21: 0.1079202899 | CD21: -0.09385563321 | CE21: -0.02526037644 | CF21: 0.05596877194 | CG21: -0.07406991164 | CH21: 0.09280562006 | CI21: 0.07559022058 | CJ21: -0.04858889063 | CK21: -0.006086934277 | CL21: 0.0377744198 | CM21: 0.04434201366 | CN21: -0.01362084043 | CO21: 0.03117761173 | CP21: 0.0002449299422 | CQ21: 0.02517544287 | CR21: 0.00676959387 | CS21: 0.0168041439 | CT21: 0.01502106018 | CU21: 0.1094759577 | CV21: -0.09466377386 | CW21: 0.05102367612 | CX21: -0.02149232011 | CY21: 0.04293486936 | CZ21: -0.01169650586 | DA21: 0.0691837448 | DB21: -0.03929828055 | DC21: 0.04549475173 | DD21: -0.01427053349 | DE21: 0.06690511818 | DF21: -0.04039286767 | DG21: 0.008426873017 | DH21: 0.02334141816 | DI21: 0.03653999533 | DJ21: -0.005608604276 | DK21: 0.1728400142 | DL21: -0.200252973 | DM21: -0.01036184551 | DN21: 0.04048559194 | DO21: 0.03198240138 | DP21: -3.885901701e-05 | DQ21: 0.07729076179 | DR21: -0.05336149986 | DS21: 0.03275906448 | DT21: -0.00232643199 | DU21: 0.04800408869 | DV21: -0.01768417239 | DW21: 0.07541584926 | DX21: -0.04680254168 | DY21: 0.01799777842 | DZ21: 0.01379162114 | EA21: 0.01966387325 | EB21: 0.0120501796 | EC21: -0.01690184472 | ED21: 0.04629654948 | EE21: -0.04148652918 | EF21: 0.06811697738 | EG21: 0.06808995968 | EH21: -0.04030293386 | EI21: 0.05841808976 | EJ21: -0.03006976491 | EK21: -0.08333430571 | EL21: 0.1000461082 | EM21: 0.03474539827 | EN21: -0.002962174251 | EO21: -0.02788501466 | EP21: 0.05661153995 | EQ21: -0.1092675852 | ER21: 0.1228299384 | ES21: 0.07628807449 | ET21: -0.05353734243 | EU21: -0.004711584818 | EV21: 0.03528817103 | EW21: 0.02897878617 | EX21: 0.002047074177 | EY21: 0.0787582323 | EZ21: -0.05527472168 | FA21: -0.001580652911 | FB21: 0.03331966747 | FC21: 0.08381118819 | FD21: -0.06271198079 | FE21: 0.09918831542 | FF21: -0.07910832239 | FG21: 0.03348243862 | FH21: -0.001925665162 | FI21: 0.08134217786 | FJ21: -0.05807997325 | FK21: 0.09841801089 | FL21: -0.07428888758 | FM21: 0.1115699753 | FN21: -0.1021433509 | FO21: 0.09021207224 | FP21: -0.07129832226 | FQ21: -0.0715188747 | FR21: 0.09582269167 | FS21: 0.06663940279 | FT21: -0.04088392914 | FU21: 0.04015514507 | FV21: -0.01045567072 | FW21: -0.04951073651 | FX21: 0.0732290955 | FY21: -0.1430912885 | FZ21: 0.1401359656 | GA21: -0.07536273444 | GB21: 0.09500432712 | GC21: 0.03620805823 | GD21: -0.00506375357 | GE21: 0.0154830435 | GF21: 0.01635357147 | GG21: -0.08482026972 | GH21: 0.1001451657 | GI21: -0.1087420214 | GJ21: 0.1198108882 | GK21: -0.1083268107 | GL21: 0.1180152467 | GM21: -0.1140583742 | GN21: 0.1233212586 | GO21: 0.1355832891 | GP21: -0.1344848084 | GQ21: -0.1571657484 | GR21: 0.1500455386 | GS21: 0.02643178454 | GT21: 0.004905726435 | GU21: -0.08199270162 | GV21: 0.09803952885 | GW21: -0.1243224186 | GX21: 0.1317329903 | GY21: -0.002453059728 | GZ21: 0.03356091642 | HA21: -0.0393228772 | HB21: 0.06407388395 | HC21: 0.09416407582 | HD21: -0.07313261408 | HE21: 0.04292224096 | HF21: -0.01192105708 | HG21: 0.1184144543 | HH21: -0.1099999727 | HI21: -0.01046033104 | HJ21: 0.04049455922 | HK21: 0.08276368681 | HL21: -0.05953466287 | HM21: -0.02899309656 | HN21: 0.05832239515 | HO21: -0.06439744073 | HP21: 0.09133345169 | HQ21: 0.0227189419 | HR21: 0.009004983107 | HS21: 0.09829420125 | HT21: -0.0829048837 | HU21: 0.1891518026 | HV21: -0.2269301548 | HW21: -0.06500939125 | HX21: 0.08934069635 | HY21: 0.09456589306 | HZ21: -0.07675358575 | IA21: 0.08161810537 | IB21: -0.06026011858 | IC21: -0.00662867638 | ID21: 0.03657817603 | IE21: -0.07391495278 | IF21: 0.09421457754 | IG21: 0.08226722486 | IH21: -0.0579701415 | II21: 0.06076418228 | IJ21: -0.03268858069 | IK21: 0.06809858769 | IL21: -0.04216683425 | IM21: -0.08170788901 | IN21: 0.09911803891 | IO21: 0.006297096768 | IP21: 0.02512278099 | IQ21: 0.01101483978 | IR21: 0.02078248981 | IS21: -0.08070818726 | IT21: 0.1003548185 | IU21: -0.003946632846 | IV21: 0.03522937396 | IW21: 0.006240836873 | IX21: 0.02511211401 | IY21: -0.03756077953 | IZ21: 0.0627311041
B22: Initial Margin | C22: 0 | E22: 3 | F22: 0.03452850469 | G22: -0.02195547651 | H22: 0.01257302818 | I22: 0.1194217497 | J22: -0.1091130043 | K22: -0.1015137197 | L22: 0.1203007014 | M22: -0.1803325363 | N22: 0.1611396873 | O22: 0.1121098714 | P22: -0.09759036065 | Q22: 0.05394620514 | R22: -0.0220772581 | S22: 0.06968708407 | T22: -0.03897882072 | U22: -0.09040906108 | V22: 0.1168312086 | W22: -0.05678184057 | X22: 0.08240731231 | Y22: -0.005427717697 | Z22: 0.03816615741 | AA22: 0.08121598637 | AB22: -0.05369451211 | AC22: 0.03794373936 | AD22: -0.004661116831 | AE22: 0.05523388081 | AF22: -0.02406797571 | AG22: 0.02266092453 | AH22: 0.01110121373 | AI22: 0.03386754371 | AJ22: -0.0009457603688 | AK22: -0.03588122058 | AL22: 0.06423688277 | AM22: 0.06278525783 | AN22: -0.03488896165 | AO22: -0.02025336956 | AP22: 0.05184715188 | AQ22: 0.004006785072 | AR22: 0.02890505654 | AS22: -0.1809314357 | AT22: 0.1623107788 | AU22: 0.03762722834 | AV22: -0.005752083838 | AW22: 0.03381703271 | AX22: -0.001628627634 | AY22: -0.01810885428 | AZ22: 0.05065774016 | BA22: 0.06385065201 | BB22: -0.03593098433 | BC22: -0.2057470016 | BD22: 0.1785457169 | BE22: -0.06716884001 | BF22: 0.09025554506 | BG22: 0.05515024707 | BH22: -0.02397525731 | BI22: 0.0140273769 | BJ22: 0.01943817742 | BK22: 0.1156568002 | BL22: -0.1039785885 | BM22: -0.04328801815 | BN22: 0.07081981786 | BO22: -0.05167207703 | BP22: 0.07739226926 | BQ22: 0.04185617365 | BR22: -0.01044615896 | BS22: -0.01130196847 | BT22: 0.04458645835 | BU22: -0.06277867077 | BV22: 0.08596734412 | BW22: 0.04360985621 | BX22: -0.0104648649 | BY22: 0.002681231003 | BZ22: 0.03078761452 | CA22: -0.002878920101 | CB22: 0.03676339202 | CC22: 0.103012437 | CD22: -0.08662705229 | CE22: -0.02650371771 | CF22: 0.05856368799 | CG22: -0.06283204624 | CH22: 0.08486296719 | CI22: 0.07727027462 | CJ22: -0.04919605532 | CK22: -0.03552369004 | CL22: 0.06685643213 | CM22: 0.06993866088 | CN22: -0.04037679273 | CO22: 0.03815650247 | CP22: -0.005404459014 | CQ22: -0.02132840902 | CR22: 0.05246427166 | CS22: -0.003820134799 | CT22: 0.03700433365 | CU22: 0.1418049588 | CV22: -0.1394942486 | CW22: 0.05334370002 | CX22: -0.02245291508 | CY22: 0.04108992801 | CZ22: -0.008096545007 | DA22: 0.02064052197 | DB22: 0.01294738706 | DC22: 0.05408166918 | DD22: -0.0218088619 | DE22: 0.04209219416 | DF22: -0.0105125578 | DG22: -0.01341154913 | DH22: 0.04589751862 | DI22: 0.007116544589 | DJ22: 0.02650134544 | DK22: 0.1710099757 | DL22: -0.199984199 | DM22: 0.03428424136 | DN22: -0.0004078592091 | DO22: -0.03454883799 | DP22: 0.06408824178 | DQ22: 0.08112490487 | DR22: -0.05674333116 | DS22: 0.01865386885 | DT22: 0.01473421493 | DU22: 0.06483347966 | DV22: -0.03476221094 | DW22: 0.06114321393 | DX22: -0.02949193387 | DY22: 0.0176653776 | DZ22: 0.01584335551 | EA22: 0.01341334614 | EB22: 0.02018715595 | EC22: -0.04626564885 | ED22: 0.07304816717 | EE22: -0.06010590933 | EF22: 0.08482614643 | EG22: 0.08200334004 | EH22: -0.05515755138 | EI22: 0.0610361558 | EJ22: -0.03149773507 | EK22: -0.05918772433 | EL22: 0.0820207404 | EM22: 0.04205337312 | EN22: -0.008839932207 | EO22: -0.0201141517 | EP22: 0.05112012114 | EQ22: -0.1298918315 | ER22: 0.1378733042 | ES22: 0.05915771092 | ET22: -0.03128546651 | EU22: 0.03574526976 | EV22: -0.001849538466 | EW22: 0.02195488491 | EX22: 0.01128875978 | EY22: 0.09557024665 | EZ22: -0.07512365467 | FA22: -0.001462659607 | FB22: 0.03484235973 | FC22: 0.0725417804 | FD22: -0.04740217456 | FE22: 0.1000767691 | FF22: -0.0793494826 | FG22: 0.0006947671326 | FH22: 0.03249365684 | FI22: 0.08878491837 | FJ22: -0.06608458219 | FK22: 0.1035706787 | FL22: -0.07967038103 | FM22: 0.09012871659 | FN22: -0.07227448933 | FO22: 0.07155217166 | FP22: -0.04656737061 | FQ22: -0.07791432352 | FR22: 0.1018562605 | FS22: 0.03531080098 | FT22: -0.003331496007 | FU22: 0.03598543051 | FV22: -0.004089852945 | FW22: -0.0441490961 | FX22: 0.07000097465 | FY22: -0.1075284429 | FZ22: 0.1156120791 | GA22: -0.0283981552 | GB22: 0.05743652029 | GC22: 0.02054854905 | GD22: 0.01291592653 | GE22: 0.01144195462 | GF22: 0.02211378027 | GG22: -0.1018803855 | GH22: 0.113234271 | GI22: -0.08426222836 | GJ22: 0.1019023881 | GK22: -0.1117938648 | GL22: 0.1206779936 | GM22: -0.09092248916 | GN22: 0.1065685481 | GO22: 0.1236275377 | GP22: -0.1174092475 | GQ22: -0.1199731546 | GR22: 0.1246433587 | GS22: 0.01323531784 | GT22: 0.02039529083 | GU22: -0.06348075895 | GV22: 0.08459770154 | GW22: -0.1562262647 | GX22: 0.1533381645 | GY22: -0.008646945498 | GZ22: 0.04093057564 | HA22: -0.08146776812 | HB22: 0.09824733368 | HC22: 0.09825489784 | HD22: -0.07732039686 | HE22: 0.05212736276 | HF22: -0.02017416927 | HG22: 0.1357077002 | HH22: -0.1348786871 | HI22: 0.02464893981 | HJ22: 0.009140920322 | HK22: 0.06363596723 | HL22: -0.03526493805 | HM22: -0.05026240319 | HN22: 0.07825708755 | HO22: -0.04699804209 | HP22: 0.07720062277 | HQ22: 0.03543727844 | HR22: -0.002490252548 | HS22: 0.0976536798 | HT22: -0.08116660417 | HU22: 0.1875890676 | HV22: -0.2283295339 | HW22: -0.09658224338 | HX22: 0.1153775709 | HY22: 0.110844965 | HZ22: -0.09759571739 | IA22: 0.06555494859 | IB22: -0.03907421874 | IC22: -0.002821672662 | ID22: 0.03472152222 | IE22: -0.05338953816 | IF22: 0.07858972296 | IG22: 0.06555790312 | IH22: -0.03683298702 | II22: 0.07512549122 | IJ22: -0.04792482168 | IK22: 0.07681072708 | IL22: -0.05119397951 | IM22: -0.06106664746 | IN22: 0.08377265455 | IO22: 0.01778912953 | IP22: 0.01576612694 | IQ22: 0.01037788362 | IR22: 0.02308929643 | IS22: -0.08604601066 | IT22: 0.105161291 | IU22: 0.003740179512 | IV22: 0.02949632661 | IW22: 0.0148594408 | IX22: 0.01858170785 | IY22: -0.03333055713 | IZ22: 0.06051688937
E23: 3.25 | F23: 0.03507966226 | G23: -0.02200350269 | H23: 0.01307615957 | I23: 0.1196686925 | J23: -0.1085831374 | K23: -0.127875023 | L23: 0.139835844 | M23: -0.1766207653 | N23: 0.157469757 | O23: 0.1023489496 | P23: -0.08417747032 | Q23: 0.05853710216 | R23: -0.02577130505 | S23: 0.03782065313 | T23: -0.003213257974 | U23: -0.05798450767 | V23: 0.089583152 | W23: -0.06733803206 | X23: 0.09173764594 | Y23: 0.02887631512 | Z23: 0.006120813513 | AA23: 0.07713081247 | AB23: -0.04783468183 | AC23: 0.04344643916 | AD23: -0.008965268964 | AE23: 0.05830026832 | AF23: -0.0261429287 | AG23: 0.001702847296 | AH23: 0.03227030332 | AI23: 0.06672606808 | AJ23: -0.03562103268 | AK23: -0.07280740359 | AL23: 0.09532609119 | AM23: 0.05542486155 | AN23: -0.02489642893 | AO23: -0.05233102644 | AP23: 0.08109358299 | AQ23: 0.003457796246 | AR23: 0.03082149838 | AS23: -0.139018284 | AT23: 0.1349488115 | AU23: 0.06236706061 | AV23: -0.03251383267 | AW23: 0.07282815052 | AX23: -0.04521352953 | AY23: -0.02139372387 | AZ23: 0.05498105721 | BA23: 0.08629482463 | BB23: -0.06216231257 | BC23: -0.1845850146 | BD23: 0.1640960595 | BE23: -0.03628045828 | BF23: 0.06566764797 | BG23: 0.04741525365 | BH23: -0.01407692029 | BI23: -0.00887660398 | BJ23: 0.04260153525 | BK23: 0.1414798861 | BL23: -0.1415074069 | BM23: -0.0374666231 | BN23: 0.06691606544 | BO23: -0.06984909271 | BP23: 0.09281166695 | BQ23: 0.04276607669 | BR23: -0.009997971951 | BS23: -0.0005523132063 | BT23: 0.03554064035 | BU23: -0.04874181707 | BV23: 0.07543416728 | BW23: 0.06566258065 | BX23: -0.03278566165 | BY23: -0.0384535658 | BZ23: 0.07057246846 | CA23: 0.01000524745 | CB23: 0.02521504029 | CC23: 0.09452051384 | CD23: -0.07479749996 | CE23: -0.04560492971 | CF23: 0.07685556693 | CG23: -0.02869410079 | CH23: 0.05806513371 | CI23: 0.07146451596 | CJ23: -0.04130435521 | CK23: -0.06121075554 | CL23: 0.09034439719 | CM23: 0.09490840479 | CN23: -0.0688632131 | CO23: 0.04620419299 | CP23: -0.01259048141 | CQ23: -0.002576238283 | CR23: 0.03660865744 | CS23: -0.02436841362 | CT23: 0.05759813068 | CU23: 0.137509009 | CV23: -0.1341302876 | CW23: 0.05820153588 | CX23: -0.02656585018 | CY23: 0.06390518242 | CZ23: -0.03135510915 | DA23: 0.004422945416 | DB23: 0.03011816795 | DC23: 0.03298387775 | DD23: 0.001833358064 | DE23: 0.01140127418 | DF23: 0.02382886739 | DG23: 0.011756885 | DH23: 0.02317779215 | DI23: 0.01647770908 | DJ23: 0.0185358411 | DK23: 0.1664833362 | DL23: -0.1953161478 | DM23: 0.04361383395 | DN23: -0.008403578667 | DO23: -0.05710197924 | DP23: 0.08422691374 | DQ23: 0.1087472189 | DR23: -0.09141942045 | DS23: 0.001317739078 | DT23: 0.03435619887 | DU23: 0.09208956537 | DV23: -0.0656876154 | DW23: 0.09445327234 | DX23: -0.06649566383 | DY23: 0.02396419592 | DZ23: 0.01086406904 | EA23: 0.02598100407 | EB23: 0.008699688683 | EC23: -0.03190300149 | ED23: 0.06194807667 | EE23: -0.07755152061 | EF23: 0.09940727642 | EG23: 0.07699843181 | EH23: -0.04817243375 | EI23: 0.03338275737 | EJ23: 0.0006767429153 | EK23: -0.04706128029 | EL23: 0.07316623438 | EM23: 0.07816945723 | EN23: -0.04681728359 | EO23: -0.03931972369 | EP23: 0.06908278973 | EQ23: -0.1134412078 | ER23: 0.1257061984 | ES23: 0.0581741259 | ET23: -0.02876684146 | EU23: 0.01747439731 | EV23: 0.01751419478 | EW23: 0.01405358956 | EX23: 0.02108097583 | EY23: 0.07495432031 | EZ23: -0.04835586937 | FA23: -0.05454522359 | FB23: 0.08466996775 | FC23: 0.06638979573 | FD23: -0.0386724873 | FE23: 0.09851409505 | FF23: -0.07673584557 | FG23: 0.0118787445 | FH23: 0.02305483778 | FI23: 0.09110506869 | FJ23: -0.06817659306 | FK23: 0.1093727499 | FL23: -0.08642027846 | FM23: 0.06447811568 | FN23: -0.03814759252 | FO23: 0.05977008533 | FP23: -0.030948862 | FQ23: -0.1050102957 | FR23: 0.1234278139 | FS23: 0.03926367637 | FT23: -0.006233707195 | FU23: 0.04297103815 | FV23: -0.01041736645 | FW23: -0.08335851999 | FX23: 0.1015483441 | FY23: -0.1443925879 | FZ23: 0.1401891258 | GA23: -0.001631259606 | GB23: 0.0351234787 | GC23: 0.01381266477 | GD23: 0.0212123587 | GE23: 0.01752286805 | GF23: 0.01747247771 | GG23: -0.0435800867 | GH23: 0.0694829886 | GI23: -0.1122819544 | GJ23: 0.1226792231 | GK23: -0.1279070365 | GL23: 0.1316466133 | GM23: -0.1192464932 | GN23: 0.1270959205 | GO23: 0.131327076 | GP23: -0.1290815349 | GQ23: -0.1118199229 | GR23: 0.1188598167 | GS23: 0.01085517831 | GT23: 0.02431269037 | GU23: -0.06588255582 | GV23: 0.08715914274 | GW23: -0.1534527764 | GX23: 0.1504700356 | GY23: -0.006701267741 | GZ23: 0.04047654771 | HA23: -0.05363639641 | HB23: 0.07752227556 | HC23: 0.1017939553 | HD23: -0.08126719511 | HE23: 0.02018627988 | HF23: 0.01478570907 | HG23: 0.1361650538 | HH23: -0.1363927994 | HI23: 0.03201616709 | HJ23: 0.003350778611 | HK23: 0.07460639061 | HL23: -0.04711702165 | HM23: -0.02040002962 | HN23: 0.05312382215 | HO23: -0.07312599311 | HP23: 0.1003717619 | HQ23: 0.01108971618 | HR23: 0.02392707032 | HS23: 0.1040140207 | HT23: -0.08924936148 | HU23: 0.1997925918 | HV23: -0.2564221886 | HW23: -0.09674277156 | HX23: 0.1156367142 | HY23: 0.1303556851 | HZ23: -0.125184283 | IA23: 0.03090982061 | IB23: 0.002699988545 | IC23: -0.001636976806 | ID23: 0.03500934632 | IE23: -0.05509433154 | IF23: 0.0808267447 | IG23: 0.09639599463 | IH23: -0.07314951322 | II23: 0.09559153134 | IJ23: -0.07197015005 | IK23: 0.07421930225 | IL23: -0.04693379766 | IM23: -0.05168624961 | IN23: 0.07709646258 | IO23: 0.009567080032 | IP23: 0.02509345793 | IQ23: -0.01596271603 | IR23: 0.04961712263 | IS23: -0.08031268184 | IT23: 0.1011216347 | IU23: -0.02318646061 | IV23: 0.05599948503 | IW23: -0.008815704223 | IX23: 0.04201979641 | IY23: -0.05435528392 | IZ23: 0.07851512289
B24: Simulations | C24: 10000 | E24: 3.5 | F24: 0.03540878082 | G24: -0.02193668598 | H24: 0.01347209484 | I24: 0.1203127621 | J24: -0.1098714458 | K24: -0.08715970816 | L24: 0.1089819072 | M24: -0.1798420415 | N24: 0.1577456428 | O24: 0.1192470468 | P24: -0.1073210132 | Q24: 0.07347936417 | R24: -0.04161867499 | S24: 0.01546832561 | T24: 0.02075061908 | U24: -0.02285008396 | V24: 0.05842615899 | W24: -0.04054116114 | X24: 0.07039352513 | Y24: 0.0553657583 | Z24: -0.02035099205 | AA24: 0.06980005702 | AB24: -0.03838373141 | AC24: 0.02768041434 | AD24: 0.008521350494 | AE24: 0.00488026891 | AF24: 0.03145024052 | AG24: 0.003392280889 | AH24: 0.03187630319 | AI24: 0.06366216561 | AJ24: -0.03111839437 | AK24: -0.07048680355 | AL24: 0.09386286042 | AM24: 0.05970516107 | AN24: -0.02882807161 | AO24: 0.0001347956711 | AP24: 0.0353191587 | AQ24: -0.01987749984 | AR24: 0.05316924938 | AS24: -0.1182525795 | AT24: 0.1207801746 | AU24: 0.06060326818 | AV24: -0.02938449719 | AW24: 0.06393060073 | AX24: -0.03357013562 | AY24: -0.00809850345 | AZ24: 0.04363171491 | BA24: 0.07037083731 | BB24: -0.0416688925 | BC24: -0.1369228116 | BD24: 0.1332689569 | BE24: -0.02452360756 | BF24: 0.05653226946 | BG24: 0.01976784574 | BH24: 0.0164245473 | BI24: 0.009698910216 | BJ24: 0.02626718886 | BK24: 0.1480002012 | BL24: -0.1530908375 | BM24: -0.05475855532 | BN24: 0.08200379446 | BO24: -0.06944946204 | BP24: 0.09288499829 | BQ24: 0.04869327013 | BR24: -0.01548778894 | BS24: -0.001584518286 | BT24: 0.03773104219 | BU24: -0.04770828489 | BV24: 0.07528867603 | BW24: 0.03297635924 | BX24: 0.003125046353 | BY24: -0.04719605918 | BZ24: 0.07904921998 | CA24: 0.006187725091 | CB24: 0.0303325796 | CC24: 0.1108730331 | CD24: -0.0967014029 | CE24: -0.04012166972 | CF24: 0.07279915379 | CG24: -0.010148806 | CH24: 0.04327802909 | CI24: 0.08903112975 | CJ24: -0.06141240298 | CK24: -0.06820973344 | CL24: 0.0966737395 | CM24: 0.1019882722 | CN24: -0.0772402772 | CO24: 0.04549175951 | CP24: -0.01063485445 | CQ24: -0.04475032537 | CR24: 0.07507902775 | CS24: -0.006990689577 | CT24: 0.04250512767 | CU24: 0.1496126582 | CV24: -0.1538791149 | CW24: 0.03252314335 | CX24: 0.002933715789 | CY24: 0.08711991257 | CZ24: -0.05705979695 | DA24: 0.01270291608 | DB24: 0.02337900482 | DC24: 0.03041135537 | DD24: 0.005704142833 | DE24: 0.02595243003 | DF24: 0.009827486771 | DG24: 0.01184668021 | DH24: 0.02431200837 | DI24: 0.01782132765 | DJ24: 0.01841668537 | DK24: 0.1448765263 | DL24: -0.1612070798 | DM24: 0.0380925023 | DN24: -0.001614108989 | DO24: -0.05067118674 | DP24: 0.07951529494 | DQ24: 0.07792556927 | DR24: -0.05124131564 | DS24: 0.004969839958 | DT24: 0.03183576497 | DU24: 0.07929600204 | DV24: -0.04962004022 | DW24: 0.107136266 | DX24: -0.08159328572 | DY24: 0.04174514309 | DZ24: -0.006647265762 | EA24: 0.03784451511 | EB24: -0.002642866869 | EC24: 0.02800451336 | ED24: 0.008650598097 | EE24: -0.08218941952 | EF24: 0.1032104575 | EG24: 0.06592596575 | EH24: -0.03428741943 | EI24: 0.02079402197 | EJ24: 0.01531502923 | EK24: -0.05271429857 | EL24: 0.0783588064 | EM24: 0.06747848987 | EN24: -0.0338823362 | EO24: -0.02549648407 | EP24: 0.05802449367 | EQ24: -0.07690526183 | ER24: 0.09842011771 | ES24: 0.06789657725 | ET24: -0.03948894046 | EU24: 0.04096498811 | EV24: -0.00443768123 | EW24: 0.007905513598 | EX24: 0.02866805273 | EY24: 0.0543842098 | EZ24: -0.02266488919 | FA24: -0.03444035643 | FB24: 0.06777194604 | FC24: 0.06049827498 | FD24: -0.03050016773 | FE24: 0.1136029408 | FF24: -0.09642573404 | FG24: 0.01391672241 | FH24: 0.0222744361 | FI24: 0.08231141536 | FJ24: -0.05644443528 | FK24: 0.1019132037 | FL24: -0.07684834995 | FM24: 0.06155693748 | FN24: -0.0334488101 | FO24: 0.06282535129 | FP24: -0.03358616537 | FQ24: -0.1098303927 | FR24: 0.1267229031 | FS24: 0.01289435198 | FT24: 0.02362178459 | FU24: 0.05086121291 | FV24: -0.01821602569 | FW24: -0.04872434455 | FX24: 0.07516696177 | FY24: -0.1468593617 | FZ24: 0.1407957232 | GA24: 0.02657749018 | GB24: 0.01007052464 | GC24: 0.02556592441 | GD24: 0.01051168133 | GE24: 0.01977275746 | GF24: 0.01643892227 | GG24: -0.06353589602 | GH24: 0.08569972539 | GI24: -0.1078741263 | GJ24: 0.1192342437 | GK24: -0.07467756067 | GL24: 0.09367925905 | GM24: -0.1410306078 | GN24: 0.1412167481 | GO24: 0.1056555942 | GP24: -0.0923885017 | GQ24: -0.1251870857 | GR24: 0.1274845563 | GS24: -0.02707753392 | GT24: 0.06245559277 | GU24: -0.1110976085 | GV24: 0.1203350167 | GW24: -0.1626103264 | GX24: 0.1550656676 | GY24: 0.04771862233 | GZ24: -0.01172026207 | HA24: -0.01410814484 | HB24: 0.04619973348 | HC24: 0.09352339706 | HD24: -0.07023272651 | HE24: 0.0398693812 | HF24: -0.00434163106 | HG24: 0.1318223094 | HH24: -0.1309626774 | HI24: -0.01481668688 | HJ24: 0.04855385728 | HK24: 0.09104795483 | HL24: -0.0667827792 | HM24: -0.014885922 | HN24: 0.04917239195 | HO24: -0.0848326383 | HP24: 0.1101257161 | HQ24: 0.04234612031 | HR24: -0.007075277687 | HS24: 0.08045268888 | HT24: -0.05726973149 | HU24: 0.1988354102 | HV24: -0.2614336968 | HW24: -0.09946603508 | HX24: 0.1175667684 | HY24: 0.1201190572 | HZ24: -0.1110389309 | IA24: 0.05415166574 | IB24: -0.02281817318 | IC24: -0.04761273676 | ID24: 0.07522514053 | IE24: -0.06084936977 | IF24: 0.08600011293 | IG24: 0.07613438849 | IH24: -0.04746018181 | II24: 0.1113636389 | IJ24: -0.09207780783 | IK24: 0.07476201792 | IL24: -0.04672471717 | IM24: -0.03545542327 | IN24: 0.06466305513 | IO24: -0.01112959521 | IP24: 0.04544608681 | IQ24: 0.0001881143465 | IR24: 0.03556392243 | IS24: -0.06265569995 | IT24: 0.08765566799 | IU24: -0.01301116957 | IV24: 0.0477502289 | IW24: -0.01139627591 | IX24: 0.0454372327 | IY24: -0.0151830181 | IZ24: 0.04731543741
B25: Seed | C25: 12121212 | E25: 3.75 | F25: 0.03541927485 | G25: -0.02161758297 | H25: 0.01380169188 | I25: 0.1196169705 | J25: -0.1098830916 | K25: -0.1153934306 | L25: 0.1296692866 | M25: -0.1823535282 | N25: 0.1572849368 | O25: 0.1183389791 | P25: -0.1067316605 | Q25: 0.05935000929 | R25: -0.02484927945 | S25: 0.009255609315 | T25: 0.02785559538 | U25: -0.03530414873 | V25: 0.07065361139 | W25: -0.03431614889 | X25: 0.06576291361 | Y25: 0.05266962641 | Z25: -0.01657546908 | AA25: 0.0669611299 | AB25: -0.03437601334 | AC25: 0.0560253414 | AD25: -0.02023932651 | AE25: 0.02952528189 | AF25: 0.007329531191 | AG25: -0.0265198301 | AH25: 0.05934586777 | AI25: 0.03651961036 | AJ25: -0.0001947604627 | AK25: -0.05754188199 | AL25: 0.083921442 | AM25: 0.03341600904 | AN25: 0.002362755983 | AO25: -0.01827935631 | AP25: 0.05309983352 | AQ25: -0.03937870495 | AR25: 0.07073512569 | AS25: -0.1275587325 | AT25: 0.1261176008 | AU25: 0.07324523578 | AV25: -0.04378359063 | AW25: 0.09367990945 | AX25: -0.06994164567 | AY25: 0.01839696291 | AZ25: 0.01884312118 | BA25: 0.07463611428 | BB25: -0.04626612814 | BC25: -0.1499171595 | BD25: 0.1402993689 | BE25: -0.01857883679 | BF25: 0.0521585865 | BG25: 0.06489452618 | BH25: -0.03143981852 | BI25: 0.02733790474 | BJ25: 0.01001398605 | BK25: 0.1421934515 | BL25: -0.1461394211 | BM25: -0.05507452039 | BN25: 0.08263215467 | BO25: -0.1061278809 | BP25: 0.1201984823 | BQ25: 0.07434582801 | BR25: -0.04488569411 | BS25: 0.01254185529 | BT25: 0.0247529807 | BU25: -0.05258602655 | BV25: 0.07965181478 | BW25: 0.01440358491 | BX25: 0.02278685129 | BY25: -0.03249989729 | BZ25: 0.06669530222 | CA25: 0.0324997391 | CB25: 0.003966372793 | CC25: 0.1050980767 | CD25: -0.08899613901 | CE25: -0.005068373548 | CF25: 0.0415834685 | CG25: -0.005718156182 | CH25: 0.04029653075 | CI25: 0.06554498097 | CJ25: -0.032912151 | CK25: -0.1257003881 | CL25: 0.1410974103 | CM25: 0.06286919653 | CN25: -0.02974067019 | CO25: 0.02830824978 | CP25: 0.008623779401 | CQ25: -0.03732271687 | CR25: 0.06931664961 | CS25: 0.01960766416 | CT25: 0.0176342535 | CU25: 0.142646322 | CV25: -0.1452181282 | CW25: 0.06417024042 | CX25: -0.03136881439 | CY25: 0.04998173486 | CZ25: -0.01427521667 | DA25: -0.0210429112 | DB25: 0.05568590971 | DC25: 0.05899354854 | DD25: -0.02362021496 | DE25: 0.007873406753 | DF25: 0.02972726227 | DG25: 0.03103020387 | DH25: 0.006095460422 | DI25: 0.01822510468 | DJ25: 0.01902088176 | DK25: 0.1448569559 | DL25: -0.1636518194 | DM25: 0.05868732214 | DN25: -0.02201554491 | DO25: -0.01593786084 | DP25: 0.05037713323 | DQ25: 0.05953254091 | DR25: -0.02807779296 | DS25: 0.006367419474 | DT25: 0.03139837424 | DU25: 0.06412216609 | DV25: -0.03117942666 | DW25: 0.09569654185 | DX25: -0.06743493744 | DY25: 0.04818123291 | DZ25: -0.01268645816 | EA25: 0.04394950014 | EB25: -0.008288818238 | EC25: 0.04148003702 | ED25: -0.003606509559 | EE25: -0.04202000927 | EF25: 0.07163686012 | EG25: 0.07820108675 | EH25: -0.04811649789 | EI25: -0.006364325666 | EJ25: 0.0438646247 | EK25: -0.02262870381 | EL25: 0.05450945334 | EM25: 0.06713266283 | EN25: -0.03276448753 | EO25: -0.03475703261 | EP25: 0.06669485428 | EQ25: -0.1009568376 | ER25: 0.1161645521 | ES25: 0.06785793064 | ET25: -0.03872909156 | EU25: 0.02900245724 | EV25: 0.008488949202 | EW25: 0.007810207126 | EX25: 0.02976870733 | EY25: 0.04229150584 | EZ25: -0.007720737467 | FA25: -0.001177792098 | FB25: 0.03790879425 | FC25: 0.02497757779 | FD25: 0.01157821429 | FE25: 0.1294214287 | FF25: -0.1190973403 | FG25: 0.007869182144 | FH25: 0.02917505691 | FI25: 0.05585732002 | FJ25: -0.02353540432 | FK25: 0.09270303068 | FL25: -0.06525470342 | FM25: 0.04438963999 | FN25: -0.01149464456 | FO25: 0.07887386037 | FP25: -0.05295124491 | FQ25: -0.09976966069 | FR25: 0.1186917157 | FS25: 0.05315630993 | FT25: -0.01973557594 | FU25: 0.03697747405 | FV25: -0.001486140521 | FW25: -0.008609213748 | FX25: 0.04265700518 | FY25: -0.1485104165 | FZ25: 0.1405893939 | GA25: 0.04630766388 | GB25: -0.00829606477 | GC25: 0.02520708223 | GD25: 0.01189498455 | GE25: 0.002688970558 | GF25: 0.03443350626 | GG25: -0.04970303249 | GH25: 0.07541742576 | GI25: -0.07823289354 | GJ25: 0.09755925977 | GK25: -0.07207681046 | GL25: 0.09187123755 | GM25: -0.1352028573 | GN25: 0.1362539941 | GO25: 0.07625052847 | GP25: -0.05215670426 | GQ25: -0.1830024018 | GR25: 0.1622812662 | GS25: -0.02409805486 | GT25: 0.06042183765 | GU25: -0.1175920828 | GV25: 0.1241859475 | GW25: -0.1459369773 | GX25: 0.1429192716 | GY25: 0.06114641007 | GZ25: -0.02508395587 | HA25: -0.009488891804 | HB25: 0.04312020945 | HC25: 0.09924750089 | HD25: -0.07755782905 | HE25: 0.04227824959 | HF25: -0.005931998818 | HG25: 0.1312104688 | HH25: -0.1314357703 | HI25: 0.008717342836 | HJ25: 0.02796798923 | HK25: 0.08402949526 | HL25: -0.05756373941 | HM25: -0.04614607627 | HN25: 0.07724060289 | HO25: -0.117345583 | HP25: 0.1347345757 | HQ25: 0.05172272738 | HR25: -0.01628536106 | HS25: 0.05529874593 | HT25: -0.02467665572 | HU25: 0.1705186497 | HV25: -0.2128811316 | HW25: -0.1037298576 | HX25: 0.120292779 | HY25: 0.1305030074 | HZ25: -0.1273470753 | IA25: 0.01965098768 | IB25: 0.0174589909 | IC25: -0.04586770481 | ID25: 0.07429751092 | IE25: -0.0463642318 | IF25: 0.07479903643 | IG25: 0.07337413953 | IH25: -0.04351233151 | II25: 0.09878177391 | IJ25: -0.07572455888 | IK25: 0.09233683805 | IL25: -0.06838650751 | IM25: -0.095719541 | IN25: 0.1113803881 | IO25: -0.03542564966 | IP25: 0.06758958861 | IQ25: -0.01720562926 | IR25: 0.05270553893 | IS25: -0.05615682604 | IT25: 0.08280924418 | IU25: -0.02606708215 | IV25: 0.06036379463 | IW25: 0.00156467618 | IX25: 0.0345679574 | IY25: -0.05175205529 | IZ25: 0.0777441502
B26: PFE Quantile | C26: 0.95 | E26: 4 | F26: 0.0352613741 | G26: -0.02118093119 | H26: 0.01408044291 | I26: 0.1186832795 | J26: -0.109197124 | K26: -0.1203715585 | L26: 0.1322001514 | M26: -0.14633965 | N26: 0.134438304 | O26: 0.1217277865 | P26: -0.1127316236 | Q26: 0.08144025098 | R26: -0.04987996643 | S26: 0.0007419087591 | T26: 0.03681539849 | U26: -0.04360005531 | V26: 0.07844535201 | W26: -0.005881220315 | X26: 0.0417114347 | Y26: 0.06691942765 | Z26: -0.03160654902 | AA26: 0.0682373002 | AB26: -0.03539415948 | AC26: 0.05078764009 | AD26: -0.01394381716 | AE26: 0.0305901967 | AF26: 0.00698849937 | AG26: -0.02569720699 | AH26: 0.05913702491 | AI26: 0.03197916175 | AJ26: 0.005420566482 | AK26: -0.08345990196 | AL26: 0.1037533221 | AM26: 0.05762168743 | AN26: -0.02477783307 | AO26: 0.0006929304163 | AP26: 0.03640333459 | AQ26: -0.00878944989 | AR26: 0.044645042 | AS26: -0.1210709999 | AT26: 0.1210121363 | AU26: 0.1031448383 | AV26: -0.08178489842 | AW26: 0.08762778518 | AX26: -0.06216593311 | AY26: -0.0139323748 | AZ26: 0.05071390205 | BA26: 0.09407410755 | BB26: -0.07093247479 | BC26: -0.0821981342 | BD26: 0.09549701482 | BE26: -0.05852804475 | BF26: 0.08565342038 | BG26: 0.08003606802 | BH26: -0.0487109415 | BI26: 0.03373072155 | BJ26: 0.004355744011 | BK26: 0.1335794074 | BL26: -0.134834857 | BM26: -0.02857766732 | BN26: 0.06113861348 | BO26: -0.1162159417 | BP26: 0.1264867705 | BQ26: 0.05657718996 | BR26: -0.02315712576 | BS26: -0.01164958108 | BT26: 0.04904743273 | BU26: -0.05049665653 | BV26: 0.0781872338 | BW26: 0.01834968503 | BX26: 0.0196604608 | BY26: -0.01779914662 | BZ26: 0.05396430468 | CA26: 0.0562409531 | CB26: -0.02153034479 | CC26: 0.07982018257 | CD26: -0.05504347942 | CE26: -0.001347757894 | CF26: 0.03875734774 | CG26: -0.008357770435 | CH26: 0.04322615742 | CI26: 0.03372286719 | CJ26: 0.003380067557 | CK26: -0.06565785805 | CL26: 0.0942187116 | CM26: 0.05607335849 | CN26: -0.021386136 | CO26: 0.05080198402 | CP26: -0.01474034644 | CQ26: -0.004945167686 | CR26: 0.0413423752 | CS26: -0.01034257362 | CT26: 0.04729050872 | CU26: 0.1274226189 | CV26: -0.1238347742 | CW26: 0.08697889192 | CX26: -0.05828560081 | CY26: 0.04446914582 | CZ26: -0.00761784401 | DA26: -0.01141231472 | DB26: 0.04759143008 | DC26: 0.06564529052 | DD26: -0.03043883806 | DE26: 0.02010599091 | DF26: 0.0178472064 | DG26: 0.0284678589 | DH26: 0.009479017529 | DI26: 0.03224340478 | DJ26: 0.005290905215 | DK26: 0.1750337458 | DL26: -0.2226080651 | DM26: 0.05498229704 | DN26: -0.01748605784 | DO26: -0.00247938874 | DP26: 0.03895417243 | DQ26: 0.07958571747 | DR26: -0.05236609767 | DS26: -0.002409171268 | DT26: 0.04107926649 | DU26: 0.06849331325 | DV26: -0.03577894372 | DW26: 0.1187978194 | DX26: -0.09713649263 | DY26: 0.06860260399 | DZ26: -0.03507499603 | EA26: 0.02834325067 | EB26: 0.009246163594 | EC26: 0.07108435729 | ED26: -0.03357289412 | EE26: -0.06873608189 | EF26: 0.09303210066 | EG26: 0.06460162969 | EH26: -0.03157880469 | EI26: 0.02333637758 | EJ26: 0.0144849402 | EK26: -0.02592182811 | EL26: 0.05774924292 | EM26: 0.09699329733 | EN26: -0.06735368172 | EO26: -0.004291126068 | EP26: 0.04055586734 | EQ26: -0.08562010051 | ER26: 0.1045004272 | ES26: 0.07609279463 | ET26: -0.04866806132 | EU26: 0.03918726408 | EV26: -0.0009320520393 | EW26: -0.009119947833 | EX26: 0.04740573083 | EY26: 0.001554975074 | EZ26: 0.0374777165 | FA26: 0.01276070395 | FB26: 0.02517559684 | FC26: 0.05072019387 | FD26: -0.01714902548 | FE26: 0.1025349153 | FF26: -0.08266554341 | FG26: 0.007494811099 | FH26: 0.03028553639 | FI26: 0.05778106142 | FJ26: -0.02521395214 | FK26: 0.09967730775 | FL26: -0.07412764289 | FM26: 0.04123809843 | FN26: -0.006967330416 | FO26: 0.0534732425 | FP26: -0.02094018534 | FQ26: -0.1055508375 | FR26: 0.1222551395 | FS26: 0.05701547907 | FT26: -0.02360127614 | FU26: 0.009038813217 | FV26: 0.02954476938 | FW26: -0.008486704313 | FX26: 0.04318628972 | FY26: -0.1532243578 | FZ26: 0.1419547979 | GA26: 0.008722464727 | GB26: 0.02858702663 | GC26: 0.03162486441 | GD26: 0.00602147022 | GE26: 0.01497267772 | GF26: 0.02306131147 | GG26: -0.05946057509 | GH26: 0.08304782809 | GI26: -0.1093833493 | GJ26: 0.1193213701 | GK26: -0.05726188144 | GL26: 0.08086242405 | GM26: -0.1095299314 | GN26: 0.1180789033 | GO26: 0.09283250392 | GP26: -0.0745208591 | GQ26: -0.1504030651 | GR26: 0.1407934255 | GS26: -0.00561672233 | GT26: 0.04348209159 | GU26: -0.0905225629 | GV26: 0.1048501996 | GW26: -0.1089715142 | GX26: 0.1173844947 | GY26: 0.05673726592 | GZ26: -0.01975628639 | HA26: 0.005046878684 | HB26: 0.03129597225 | HC26: 0.07864311126 | HD26: -0.05099652093 | HE26: 0.04685773876 | HF26: -0.01013610544 | HG26: 0.1680595404 | HH26: -0.1949818812 | HI26: 0.02367278897 | HJ26: 0.01452125369 | HK26: 0.07786963923 | HL26: -0.04962061649 | HM26: -0.06791259449 | HN26: 0.0952450941 | HO26: -0.07993890681 | HP26: 0.1054716531 | HQ26: 0.02361762163 | HR26: 0.01429108843 | HS26: 0.06328457507 | HT26: -0.03407035662 | HU26: 0.1555081107 | HV26: -0.1896008546 | HW26: -0.0934625367 | HX26: 0.1121262968 | HY26: 0.1109063833 | HZ26: -0.09961191718 | IA26: 0.005639205258 | IB26: 0.03331462822 | IC26: -0.07019382054 | ID26: 0.09349366377 | IE26: -0.03209205821 | IF26: 0.06349131537 | IG26: 0.0975111519 | IH26: -0.07366619871 | II26: 0.0813707502 | IJ26: -0.05352396513 | IK26: 0.08076530425 | IL26: -0.0535228987 | IM26: -0.1325183807 | IN26: 0.1360406402 | IO26: -0.02810648031 | IP26: 0.06174014075 | IQ26: -0.03099773968 | IR26: 0.06562683885 | IS26: -0.08409414121 | IT26: 0.1042124623 | IU26: -0.006750059657 | IV26: 0.04345180398 | IW26: 0.02105187691 | IX26: 0.01704637625 | IY26: -0.05583647128 | IZ26: 0.08108265202
E27: 4.25 | F27: 0.03507743525 | G27: -0.02086914222 | H27: 0.01420829302 | I27: 0.1172598762 | J27: -0.1074619367 | K27: -0.0607776084 | L27: 0.08726841042 | M27: -0.1477557723 | N27: 0.1336846924 | O27: 0.1267149552 | P27: -0.1218364673 | Q27: 0.09113673616 | R27: -0.0617324501 | S27: 0.01642341819 | T27: 0.02211234641 | U27: -0.0456667427 | V27: 0.08030251412 | W27: -0.005705153363 | X27: 0.04199664196 | Y27: 0.0597804127 | Z27: -0.02339113595 | AA27: 0.05103732055 | AB27: -0.01528518817 | AC27: 0.06828029875 | AD27: -0.03286194131 | AE27: 0.02282650715 | AF27: 0.01563114875 | AG27: -0.01281530068 | AH27: 0.04832790258 | AI27: 0.02259551277 | AJ27: 0.01584135112 | AK27: -0.0708140296 | AL27: 0.09384339562 | AM27: 0.03814353769 | AN27: -0.00170844547 | AO27: -0.009551309211 | AP27: 0.04627694166 | AQ27: -0.008062085015 | AR27: 0.0444214279 | AS27: -0.1163022687 | AT27: 0.1169143663 | AU27: 0.1086902395 | AV27: -0.09005014244 | AW27: 0.1050557162 | AX27: -0.08571873244 | AY27: -0.02431846813 | AZ27: 0.06056698627 | BA27: 0.09136376235 | BB27: -0.06775052659 | BC27: -0.08843759521 | BD27: 0.09924744972 | BE27: -0.05656600285 | BF27: 0.08398180123 | BG27: 0.09927725304 | BH27: -0.07257044468 | BI27: 0.03216536221 | BJ27: 0.00646355488 | BK27: 0.1337804184 | BL27: -0.1374998772 | BM27: -0.009104683371 | BN27: 0.04478761404 | BO27: -0.1098994598 | BP27: 0.1210064527 | BQ27: 0.04465919319 | BR27: -0.00892392031 | BS27: 0.01785584544 | BT27: 0.02072159011 | BU27: -0.01210556421 | BV27: 0.0468708262 | BW27: -0.006950832033 | BX27: 0.04453155644 | BY27: -0.01994387369 | BZ27: 0.05625854725 | CA27: 0.04679336534 | CB27: -0.01046807665 | CC27: 0.09415729065 | CD27: -0.07457920222 | CE27: 0.008142357427 | CF27: 0.0301769928 | CG27: 0.01610891725 | CH27: 0.02212152352 | CI27: 0.07419481568 | CJ27: -0.04220728283 | CK27: -0.06936833244 | CL27: 0.0969003078 | CM27: 0.0553534094 | CN27: -0.02019239511 | CO27: 0.02555508957 | CP27: 0.01279808319 | CQ27: 0.002166865828 | CR27: 0.03531144279 | CS27: -0.01368729615 | CT27: 0.05080020689 | CU27: 0.1195223115 | CV27: -0.1136260664 | CW27: 0.08462676298 | CX27: -0.05552863586 | CY27: 0.01996666441 | CZ27: 0.01858310569 | DA27: -0.002359202175 | DB27: 0.03973848649 | DC27: 0.05402403165 | DD27: -0.01724639568 | DE27: 0.01281913226 | DF27: 0.02598398748 | DG27: 0.01550598314 | DH27: 0.02303007472 | DI27: 0.01168643626 | DJ27: 0.02696852899 | DK27: 0.171631304 | DL27: -0.2223171331 | DM27: 0.07144543098 | DN27: -0.03497284596 | DO27: -0.01111500227 | DP27: 0.0471411498 | DQ27: 0.1002243196 | DR27: -0.07969786451 | DS27: 0.01883791649 | DT27: 0.01973592013 | DU27: 0.1067004792 | DV27: -0.08325719714 | DW27: 0.1057894497 | DX27: -0.08112453827 | DY27: 0.04206954692 | DZ27: -0.004914435729 | EA27: 0.05254998793 | EB27: -0.01659309456 | EC27: 0.06719319067 | ED27: -0.02918675999 | EE27: -0.03782227654 | EF27: 0.06851254772 | EG27: 0.07826505316 | EH27: -0.0477637078 | EI27: 0.01135696388 | EJ27: 0.02742702153 | EK27: -0.002757193592 | EL27: 0.03863115191 | EM27: 0.1071151188 | EN27: -0.08041616149 | EO27: 0.01810402349 | EP27: 0.02038285517 | EQ27: -0.09485957726 | ER27: 0.1105401388 | ES27: 0.07851267127 | ET27: -0.0517708541 | EU27: 0.02449078009 | EV27: 0.01420841552 | EW27: 0.0009685561182 | EX27: 0.03791704268 | EY27: 0.03199868319 | EZ27: 0.005291281889 | FA27: 0.02697567633 | FB27: 0.01156474841 | FC27: 0.0267488415 | FD27: 0.01095433388 | FE27: 0.1048525198 | FF27: -0.08657373134 | FG27: 0.02994140891 | FH27: 0.008577369602 | FI27: 0.03704848214 | FJ27: -0.0005769551388 | FK27: 0.1024461415 | FL27: -0.07825521258 | FM27: 0.04823392151 | FN27: -0.01494730979 | FO27: 0.04059455199 | FP27: -0.005154653061 | FQ27: -0.1252626671 | FR27: 0.1350595509 | FS27: 0.0413289626 | FT27: -0.005082583387 | FU27: 0.02992376078 | FV27: 0.007709503449 | FW27: 0.00330950358 | FX27: 0.03343725836 | FY27: -0.1785799682 | FZ27: 0.1547896677 | GA27: -0.007120892255 | GB27: 0.04341415011 | GC27: 0.02250164053 | GD27: 0.01599862814 | GE27: -0.006336649392 | GF27: 0.04435944294 | GG27: -0.05366270451 | GH27: 0.07858766051 | GI27: -0.118205241 | GJ27: 0.1242247639 | GK27: -0.0625310197 | GL27: 0.0846586065 | GM27: -0.134029604 | GN27: 0.1330215399 | GO27: 0.07042413624 | GP27: -0.04429024448 | GQ27: -0.1508376059 | GR27: 0.1393048461 | GS27: -0.009960572482 | GT27: 0.04809826771 | GU27: -0.07034029139 | GV27: 0.09002419245 | GW27: -0.08762249179 | GX27: 0.101964433 | GY27: 0.03713261225 | GZ27: 0.001289337365 | HA27: -0.02156159497 | HB27: 0.05421333874 | HC27: 0.1034471824 | HD27: -0.08382833927 | HE27: 0.07416797182 | HF27: -0.04038446946 | HG27: 0.1618084331 | HH27: -0.1887853988 | HI27: 0.001460759498 | HJ27: 0.0359440585 | HK27: 0.07688200762 | HL27: -0.04837283487 | HM27: -0.1065336002 | HN27: 0.1241672726 | HO27: -0.09198334718 | HP27: 0.1141459206 | HQ27: 0.02026936786 | HR27: 0.01827382321 | HS27: 0.06327226553 | HT27: -0.03380608865 | HU27: 0.1398339579 | HV27: -0.1649442179 | HW27: -0.08176300151 | HX27: 0.1028213371 | HY27: 0.1204947043 | HZ27: -0.1151793884 | IA27: -0.03027462524 | IB27: 0.07007358485 | IC27: -0.1002173967 | ID27: 0.1150270927 | IE27: -0.03042271177 | IF27: 0.06233717626 | IG27: 0.09157001373 | IH27: -0.06637402428 | II27: 0.09628563813 | IJ27: -0.07294869273 | IK27: 0.06955151855 | IL27: -0.03942035591 | IM27: -0.1242271374 | IN27: 0.1291260958 | IO27: -0.02323855307 | IP27: 0.05781228021 | IQ27: -0.01875249286 | IR27: 0.0549939799 | IS27: -0.1045063374 | IT27: 0.1182717093 | IU27: 0.005566189006 | IV27: 0.03243357123 | IW27: 0.03193376575 | IX27: 0.007043788312 | IY27: -0.05971534607 | IZ27: 0.08393457636
E28: 4.5 | F28: 0.03464692776 | G28: -0.02031054684 | H28: 0.01433638091 | I28: 0.1148844502 | J28: -0.1038368206 | K28: -0.09060179451 | L28: 0.1091429361 | M28: -0.1414060908 | N28: 0.1282228079 | O28: 0.1274383697 | P28: -0.1252190453 | Q28: 0.09439766703 | R28: -0.06636771123 | S28: 0.04180119765 | T28: -0.003375006932 | U28: -0.04518083261 | V28: 0.079677058 | W28: -0.02400511309 | X28: 0.05801923421 | Y28: 0.03457751603 | Z28: 0.003902806409 | AA28: 0.0504343959 | AB28: -0.0144199884 | AC28: 0.0747485907 | AD28: -0.04031999398 | AE28: 0.021305315 | AF28: 0.01752822021 | AG28: 0.006372975818 | AH28: 0.03146555818 | AI28: -0.01173261192 | AJ28: 0.05046635578 | AK28: -0.06470353711 | AL28: 0.08874103607 | AM28: 0.02623641038 | AN28: 0.01195471926 | AO28: -0.01320972536 | AP28: 0.04976606107 | AQ28: -0.005598987128 | AR28: 0.0424412019 | AS28: -0.115392258 | AT28: 0.1151199208 | AU28: 0.100442656 | AV28: -0.07989740962 | AW28: 0.09740774412 | AX28: -0.07630420371 | AY28: -0.03423217706 | AZ28: 0.06940756384 | BA28: 0.102948408 | BB28: -0.08421360357 | BC28: -0.07703879571 | BD28: 0.0909319808 | BE28: -0.0551082768 | BF28: 0.08252316758 | BG28: 0.08141945893 | BH28: -0.05089389276 | BI28: 0.01092691858 | BJ28: 0.0277156521 | BK28: 0.1279454009 | BL28: -0.1308410028 | BM28: 0.000138189124 | BN28: 0.03689196797 | BO28: -0.09487010483 | BP28: 0.1094280168 | BQ28: 0.07542789747 | BR28: -0.04555489247 | BS28: 0.0562010328 | BT28: -0.01947355123 | BU28: 0.01070718945 | BV28: 0.02725666037 | BW28: 0.005370171801 | BX28: 0.0331351326 | BY28: -0.01616782149 | BZ28: 0.05297782876 | CA28: 0.02151508449 | CB28: 0.01725515808 | CC28: 0.05959745645 | CD28: -0.02917496106 | CE28: 0.007720578362 | CF28: 0.03088466067 | CG28: -0.01819624805 | CH28: 0.05224793422 | CI28: 0.08813909712 | CJ28: -0.05956660692 | CK28: -0.05981341676 | CL28: 0.08876988069 | CM28: 0.08098144227 | CN28: -0.05055570203 | CO28: 0.01987144973 | CP28: 0.01900169031 | CQ28: -0.007535880831 | CR28: 0.04437538117 | CS28: -0.004066700969 | CT28: 0.04206723413 | CU28: 0.1323065245 | CV28: -0.1357659637 | CW28: 0.07905872619 | CX28: -0.04898261329 | CY28: 0.02403258624 | CZ28: 0.01474781023 | DA28: 0.001092487481 | DB28: 0.03680464662 | DC28: 0.05154444419 | DD28: -0.01436532006 | DE28: -0.008937469363 | DF28: 0.04812096406 | DG28: 0.03681673565 | DH28: 0.001760086246 | DI28: 0.02613352982 | DJ28: 0.01255850555 | DK28: 0.1762180034 | DL28: -0.2388808494 | DM28: 0.04985486007 | DN28: -0.0115694625 | DO28: -0.02332601968 | DP28: 0.05795126161 | DQ28: 0.08629342166 | DR28: -0.06179696753 | DS28: -0.005025483713 | DT28: 0.04449851129 | DU28: 0.1209404783 | DV28: -0.1036903734 | DW28: 0.09173223324 | DX28: -0.06398807713 | DY28: 0.03869080193 | DZ28: -0.0009720574105 | EA28: 0.0452615713 | EB28: -0.008273779524 | EC28: 0.09046684411 | ED28: -0.05503394957 | EE28: -0.06259528193 | EF28: 0.08783348378 | EG28: 0.05836930681 | EH28: -0.02405203685 | EI28: 0.009679937291 | EJ28: 0.02944846334 | EK28: -0.01216501805 | EL28: 0.04683846503 | EM28: 0.1078630854 | EN28: -0.08239014968 | EO28: 0.03739743068 | EP28: 0.002058620258 | EQ28: -0.0946120355 | ER28: 0.1094120348 | ES28: 0.07889635278 | ET28: -0.05258724784 | EU28: 0.03112481456 | EV28: 0.007978028974 | EW28: 0.0696171375 | EX28: -0.03606261251 | EY28: 0.01660679924 | EZ28: 0.02247320376 | FA28: 0.06529927255 | FB28: -0.02882397345 | FC28: 0.01741940904 | FD28: 0.02162019935 | FE28: 0.1112167643 | FF28: -0.09673533436 | FG28: 0.037542551 | FH28: 0.001077113905 | FI28: 0.05348385264 | FJ28: -0.01949109627 | FK28: 0.1106902326 | FL28: -0.09023016463 | FM28: 0.06906899484 | FN28: -0.04111229014 | FO28: 0.04833615619 | FP28: -0.01410938432 | FQ28: -0.1295067747 | FR28: 0.1362586395 | FS28: 0.04741882747 | FT28: -0.01180841409 | FU28: 0.02707391181 | FV28: 0.01115672796 | FW28: -0.009553798378 | FX28: 0.04475015867 | FY28: -0.1829016696 | FZ28: 0.1545903611 | GA28: -0.01352046275 | GB28: 0.04924858583 | GC28: 0.01748994886 | GD28: 0.02142285603 | GE28: -0.02201088008 | GF28: 0.05915021358 | GG28: -0.03803425218 | GH28: 0.06648977389 | GI28: -0.1489076299 | GJ28: 0.1422664523 | GK28: -0.04298614243 | GL28: 0.06981048688 | GM28: -0.07796069177 | GN28: 0.09441052226 | GO28: 0.04691233014 | GP28: -0.01395780451 | GQ28: -0.1578088528 | GR28: 0.1413915513 | GS28: 0.02653837814 | GT28: 0.01216924118 | GU28: -0.1036976619 | GV28: 0.1124663064 | GW28: -0.04667037627 | GX28: 0.07202599414 | GY28: 0.005683096194 | GZ28: 0.03283068934 | HA28: -0.02715321304 | HB28: 0.05884280806 | HC28: 0.09111991215 | HD28: -0.0680576863 | HE28: 0.06321448779 | HF28: -0.02784878835 | HG28: 0.1692433172 | HH28: -0.2079333694 | HI28: -0.02696063319 | HJ28: 0.06136432781 | HK28: 0.04584620983 | HL28: -0.01060773079 | HM28: -0.06308222995 | HN28: 0.09033384238 | HO28: -0.07354419028 | HP28: 0.09917214223 | HQ28: 0.01393909265 | HR28: 0.02500946541 | HS28: 0.05588788485 | HT28: -0.02442370624 | HU28: 0.1679741688 | HV28: -0.224003839 | HW28: -0.08927426476 | HX28: 0.1075399736 | HY28: 0.1234977422 | HZ28: -0.1218686833 | IA28: 0.002822328824 | IB28: 0.03703137235 | IC28: -0.05716395368 | ID28: 0.08266150148 | IE28: -0.03513834131 | IF28: 0.06617588496 | IG28: 0.1167019698 | IH28: -0.1012923921 | II28: 0.1201579757 | IJ28: -0.1068578197 | IK28: 0.08058717966 | IL28: -0.05358946007 | IM28: -0.09093164654 | IN28: 0.1052849319 | IO28: -0.01426477149 | IP28: 0.05011675211 | IQ28: -0.02706567129 | IR28: 0.06248082534 | IS28: -0.1036454984 | IT28: 0.1165159521 | IU28: 0.0368740818 | IV28: 0.002125611212 | IW28: 0.05168664214 | IX28: -0.01252298463 | IY28: -0.101223427 | IZ28: 0.1132193925
E29: 4.75 | F29: 0.03424754352 | G29: -0.01993451246 | H29: 0.01431303106 | I29: 0.1117367986 | J29: -0.1001398977 | K29: -0.08755832762 | L29: 0.1058364075 | M29: -0.1279172853 | N29: 0.1185874281 | O29: 0.09508104491 | P29: -0.07895414874 | Q29: 0.09900658105 | R29: -0.07322488283 | S29: 0.04148391522 | T29: -0.003007027711 | U29: -0.02486959082 | V29: 0.06144551253 | W29: -0.02906703319 | X29: 0.06211997273 | Y29: 0.01789957866 | Z29: 0.02110705846 | AA29: 0.03844276998 | AB29: -0.0009936537988 | AC29: 0.09325237388 | AD29: -0.06287811587 | AE29: 0.003432299344 | AF29: 0.03565024976 | AG29: -0.004903880039 | AH29: 0.04162468191 | AI29: -0.009445663044 | AJ29: 0.0482488711 | AK29: -0.05290072756 | AL29: 0.07920503237 | AM29: -0.002869872715 | AN29: 0.04315414423 | AO29: 0.02577445075 | AP29: 0.01341507826 | AQ29: 0.003973015703 | AR29: 0.03385219337 | AS29: -0.08275830633 | AT29: 0.09314123879 | AU29: 0.07328988912 | AV29: -0.04492610545 | AW29: 0.09733745125 | AX29: -0.07736979007 | AY29: -0.04621700725 | AZ29: 0.07941277572 | BA29: 0.08274026781 | BB29: -0.05791789599 | BC29: -0.07083166431 | BD29: 0.08602634252 | BE29: -0.04493623094 | BF29: 0.07407133405 | BG29: 0.06200188122 | BH29: -0.02798713433 | BI29: -0.006837365379 | BJ29: 0.04451679571 | BK29: 0.1139951223 | BL29: -0.1112659068 | BM29: -0.02264347375 | BN29: 0.05654763491 | BO29: -0.1112392398 | BP29: 0.1193392556 | BQ29: 0.06326181022 | BR29: -0.03095623104 | BS29: 0.04804985334 | BT29: -0.01058858552 | BU29: 0.01685176269 | BV29: 0.02184526983 | BW29: 0.03036982444 | BX29: 0.008618690677 | BY29: -0.01516990162 | BZ29: 0.05201653026 | CA29: 0.05474954867 | CB29: -0.01918685955 | CC29: 0.05214893117 | CD29: -0.01992808905 | CE29: 0.002562797287 | CF29: 0.03589429663 | CG29: -0.03182342995 | CH29: 0.06334517113 | CI29: 0.07206958348 | CJ29: -0.0403404478 | CK29: -0.04574265632 | CL29: 0.0768400865 | CM29: 0.07970111496 | CN29: -0.0495468003 | CO29: 0.00623754379 | CP29: 0.03288341887 | CQ29: 0.004618766707 | CR29: 0.03338020131 | CS29: -0.01752504675 | CT29: 0.05445357507 | CU29: 0.1243950252 | CV29: -0.1260492255 | CW29: 0.07468328942 | CX29: -0.04408515794 | CY29: 0.02413651302 | CZ29: 0.01474513452 | DA29: -0.003436014314 | DB29: 0.0410218891 | DC29: 0.07546188919 | DD29: -0.04158291899 | DE29: 0.003114764027 | DF29: 0.03622133143 | DG29: 0.0493799938 | DH29: -0.01147646155 | DI29: 0.01592841321 | DJ29: 0.02312441832 | DK29: 0.1717208546 | DL29: -0.2378334229 | DM29: 0.05220938667 | DN29: -0.01410826545 | DO29: -0.04768690528 | DP29: 0.07804610773 | DQ29: 0.09180139571 | DR29: -0.07005701105 | DS29: -0.007599508255 | DT29: 0.04706270166 | DU29: 0.1262696972 | DV29: -0.1133148438 | DW29: 0.08429888999 | DX29: -0.05541845388 | DY29: 0.06320502107 | DZ29: -0.02847638716 | EA29: 0.04016752969 | EB29: -0.002640438924 | EC29: 0.08137875748 | ED29: -0.04532873711 | EE29: -0.05736536303 | EF29: 0.08324380288 | EG29: 0.07737742275 | EH29: -0.04723531846 | EI29: -0.01908410476 | EJ29: 0.05765737322 | EK29: -0.009647074124 | EL29: 0.04470759552 | EM29: 0.08645012355 | EN29: -0.05648450819 | EO29: 0.05227584142 | EP29: -0.01288849725 | EQ29: -0.1166492561 | ER29: 0.123110015 | ES29: 0.05994346688 | ET29: -0.02875427603 | EU29: 0.02370726037 | EV29: 0.01539162352 | EW29: 0.06345058632 | EX29: -0.0291184377 | EY29: 0.04069869619 | EZ29: -0.004108263555 | FA29: 0.07743819258 | FB29: -0.04288272727 | FC29: 0.0491301471 | FD29: -0.01442176906 | FE29: 0.1049160215 | FF29: -0.08939214349 | FG29: 0.04284122766 | FH29: -0.004410025967 | FI29: 0.05828300201 | FJ29: -0.02539149443 | FK29: 0.07293021767 | FL29: -0.04241689545 | FM29: 0.07737886914 | FN29: -0.05254569389 | FO29: 0.06476839742 | FP29: -0.03447121027 | FQ29: -0.1373040519 | FR29: 0.1393834659 | FS29: 0.06706990039 | FT29: -0.03526783115 | FU29: 0.04640786059 | FV29: -0.0104375231 | FW29: 0.0183370961 | FX29: 0.02048878133 | FY29: -0.1693092107 | FZ29: 0.144330714 | GA29: 0.00362251757 | GB29: 0.03405396278 | GC29: 0.01911696394 | GD29: 0.01988150285 | GE29: -0.02214620942 | GF29: 0.05914978703 | GG29: -0.04811323124 | GH29: 0.07384871842 | GI29: -0.1630105058 | GJ29: 0.1483880167 | GK29: -0.001903249587 | GL29: 0.03732305368 | GM29: -0.09124123085 | GN29: 0.1026053645 | GO29: 0.04546465348 | GP29: -0.01217720425 | GQ29: -0.173155449 | GR29: 0.1476449422 | GS29: 0.00189633205 | GT29: 0.03702626477 | GU29: -0.05922605973 | GV29: 0.08071453774 | GW29: -0.001656311313 | GX29: 0.03691369087 | GY29: 0.02583072264 | GZ29: 0.01319656474 | HA29: -0.04207375604 | HB29: 0.07042405621 | HC29: 0.07047713705 | HD29: -0.04173901905 | HE29: 0.03434854806 | HF29: 0.003922321312 | HG29: 0.1784154302 | HH29: -0.2330490909 | HI29: -0.006372590879 | HJ29: 0.04325876597 | HK29: 0.01013845397 | HL29: 0.02965104836 | HM29: -0.02915140442 | HN29: 0.06238209118 | HO29: -0.08351760546 | HP29: 0.1058652065 | HQ29: -0.0117010333 | HR29: 0.05007094999 | HS29: 0.0619093052 | HT29: -0.03227935474 | HU29: 0.1585163265 | HV29: -0.2118273221 | HW29: -0.0488933605 | HX29: 0.07649981812 | HY29: 0.1087803855 | HZ29: -0.101402692 | IA29: 0.02935733439 | IB29: 0.008689108158 | IC29: -0.05964656306 | ID29: 0.08399538719 | IE29: -0.03405980145 | IF29: 0.06506752632 | IG29: 0.1343942666 | IH29: -0.1293687231 | II29: 0.1388024178 | IJ29: -0.1370295988 | IK29: 0.08625157543 | IL29: -0.0616866592 | IM29: -0.1044463871 | IN29: 0.1133295929 | IO29: -0.01603540199 | IP29: 0.05161303409 | IQ29: -0.01196320576 | IR29: 0.04892353494 | IS29: -0.07785591936 | IT29: 0.0971135661 | IU29: 0.05580582641 | IV29: -0.01751582327 | IW29: 0.01384559776 | IX29: 0.02486462885 | IY29: -0.05905562539 | IZ29: 0.08225426616
E30: 5 | F30: 0.03353217945 | G30: -0.01926199569 | H30: 0.01427018377 | I30: 0.110468551 | J30: -0.09945322259 | K30: -0.08450897027 | L30: 0.1023953444 | M30: -0.09291518217 | N30: 0.09608154069 | O30: 0.0966204252 | P30: -0.08273698898 | Q30: 0.09590901929 | R30: -0.07057008932 | S30: 0.04120600196 | T30: -0.002897184113 | U30: -0.01523746907 | V30: 0.05239809512 | W30: -0.06329230144 | X30: 0.08895772565 | Y30: 0.04600384442 | Z30: -0.008283949417 | AA30: 0.03922510706 | AB30: -0.002038188065 | AC30: 0.06635567839 | AD30: -0.0317293728 | AE30: 0.00770494978 | AF30: 0.03128281411 | AG30: -0.01185350376 | AH30: 0.04751012016 | AI30: -0.008134003843 | AJ30: 0.04677210275 | AK30: -0.04509542503 | AL30: 0.0725920899 | AM30: 0.006694443708 | AN30: 0.0330350102 | AO30: 0.02270098553 | AP30: 0.01629485629 | AQ30: -0.005947622321 | AR30: 0.04261498021 | AS30: -0.07372273515 | AT30: 0.08625836579 | AU30: 0.0751018015 | AV30: -0.04801369475 | AW30: 0.09310754609 | AX30: -0.07296340527 | AY30: -0.04656767352 | AZ30: 0.07906976048 | BA30: 0.08917351029 | BB30: -0.06766342528 | BC30: -0.1359252911 | BD30: 0.1258169073 | BE30: -0.05060865942 | BF30: 0.07790950056 | BG30: 0.05289229401 | BH30: -0.01774273555 | BI30: 0.001964521595 | BJ30: 0.03616044705 | BK30: 0.1157655552 | BL30: -0.1166853933 | BM30: -0.01814716758 | BN30: 0.05246260612 | BO30: -0.1048092764 | BP30: 0.1134010511 | BQ30: 0.06006357603 | BR30: -0.02753597259 | BS30: 0.02620632917 | BT30: 0.01247958762 | BU30: 0.05293639999 | BV30: -0.01218594817 | BW30: 0.03914669839 | BX30: -0.0005147625386 | BY30: -0.03168987399 | BZ30: 0.06628581428 | CA30: 0.09542181023 | CB30: -0.06911462407 | CC30: 0.05042198852 | CD30: -0.01809858751 | CE30: -0.006962599542 | CF30: 0.04466819385 | CG30: -0.04217082713 | CH30: 0.07114274584 | CI30: 0.07879819574 | CJ30: -0.04933730882 | CK30: -0.02012062488 | CL30: 0.05490209958 | CM30: 0.07753283798 | CN30: -0.04766126237 | CO30: 0.02685827024 | CP30: 0.01177731239 | CQ30: 0.01260956017 | CR30: 0.02586119591 | CS30: 0.01257865159 | CT30: 0.02612451681 | CU30: 0.116102653 | CV30: -0.1157143341 | CW30: 0.07462003696 | CX30: -0.04472217718 | CY30: 0.02911579611 | CZ30: 0.009471564337 | DA30: 0.01732922014 | DB30: 0.02146576801 | DC30: 0.06037824688 | DD30: -0.0247586471 | DE30: -0.01018752524 | DF30: 0.0491517033 | DG30: 0.04117461305 | DH30: -0.002951545218 | DI30: -0.017724165 | DJ30: 0.05573435671 | DK30: 0.1555071295 | DL30: -0.2118747682 | DM30: 0.08386660686 | DN30: -0.04984336479 | DO30: -0.05911925237 | DP30: 0.08645779321 | DQ30: 0.08533744705 | DR30: -0.06248726411 | DS30: -0.01320233301 | DT30: 0.05231049235 | DU30: 0.131571473 | DV30: -0.123885018 | DW30: 0.07406239707 | DX30: -0.04352015074 | DY30: 0.05334772107 | DZ30: -0.01755783884 | EA30: 0.0449314775 | EB30: -0.008110014138 | EC30: 0.08014080399 | ED30: -0.0446624162 | EE30: -0.03315387498 | EF30: 0.06374277391 | EG30: 0.1090656507 | EH30: -0.0896132448 | EI30: -0.02300223817 | EJ30: 0.06100913396 | EK30: 0.02063631542 | EL30: 0.01832122804 | EM30: 0.1056401943 | EN30: -0.08214128635 | EO30: 0.04331278771 | EP30: -0.003995339663 | EQ30: -0.1350276622 | ER30: 0.1330062487 | ES30: 0.04687554096 | ET30: -0.0129631511 | EU30: 0.001678839032 | EV30: 0.03630613537 | EW30: 0.05728537857 | EX30: -0.02237683266 | EY30: 0.05107668938 | EZ30: -0.01637104927 | FA30: 0.09948240534 | FB30: -0.07013891698 | FC30: 0.04784401337 | FD30: -0.01317648321 | FE30: 0.08847257168 | FF30: -0.06785399806 | FG30: 0.05073116418 | FH30: -0.01303379872 | FI30: 0.06493534012 | FJ30: -0.0340291254 | FK30: 0.07833518343 | FL30: -0.04992988553 | FM30: 0.04866569016 | FN30: -0.01592718187 | FO30: 0.06169888339 | FP30: -0.03112312622 | FQ30: -0.1321300279 | FR30: 0.1337172785 | FS30: 0.06390670333 | FT30: -0.03194056597 | FU30: 0.05348949891 | FV30: -0.01894765696 | FW30: 0.01525020993 | FX30: 0.02314871534 | FY30: -0.1721970961 | FZ30: 0.1431424991 | GA30: -0.003026354153 | GB30: 0.03985386898 | GC30: 0.02718048838 | GD30: 0.01151174465 | GE30: -0.0196490949 | GF30: 0.056559598 | GG30: -0.06391537744 | GH30: 0.08479176807 | GI30: -0.1715237308 | GJ30: 0.1504434865 | GK30: 0.01372987433 | GL30: 0.02419407409 | GM30: -0.1349353181 | GN30: 0.1290130421 | GO30: 0.05611751137 | GP30: -0.02611113278 | GQ30: -0.1529829166 | GR30: 0.1336976446 | GS30: -0.0186155777 | GT30: 0.05634822368 | GU30: -0.06572094781 | GV30: 0.08456725529 | GW30: 0.03118296533 | GX30: 0.00925858186 | GY30: -0.0158387415 | GZ30: 0.052871393 | HA30: -0.03647090545 | HB30: 0.06557891292 | HC30: 0.09753190302 | HD30: -0.0788482504 | HE30: 0.0562424454 | HF30: -0.02032969716 | HG30: 0.1780839978 | HH30: -0.2414242853 | HI30: 0.00938232662 | HJ30: 0.02881272419 | HK30: -0.01064094785 | HL30: 0.05131691664 | HM30: -0.0130660559 | HN30: 0.0484190243 | HO30: -0.05685622217 | HP30: 0.08436997701 | HQ30: -0.006707436941 | HR30: 0.04511182209 | HS30: 0.03514516236 | HT30: 0.0007506547243 | HU30: 0.15055041 | HV30: -0.2024608938 | HW30: -0.02130621091 | HX30: 0.05409640828 | HY30: 0.1014954221 | HZ30: -0.0923575679 | IA30: 0.04920619242 | IB30: -0.0140272517 | IC30: -0.08673963255 | ID30: 0.1027345933 | IE30: -0.02546390647 | IF30: 0.05772554323 | IG30: 0.1544479375 | IH30: -0.1648902524 | II30: 0.1250031294 | IJ30: -0.1192845172 | IK30: 0.07520991467 | IL30: -0.04814181778 | IM30: -0.1071184649 | IN30: 0.1135471239 | IO30: -0.01043027564 | IP30: 0.04647984268 | IQ30: 0.0121519704 | IR30: 0.02642544252 | IS30: -0.1010238544 | IT30: 0.1121026315 | IU30: 0.03841645819 | IV30: 0.0004129248911 | IW30: -0.01218616899 | IX30: 0.04860383331 | IY30: -0.05728181783 | IZ30: 0.08022075288
E31: 5.25 | F31: 0.03274267759 | G31: -0.01859504906 | H31: 0.01414762853 | I31: 0.1068647212 | J31: -0.09660299516 | K31: -0.120490307 | L31: 0.1253903511 | M31: -0.1203576876 | N31: 0.1108685139 | O31: 0.07406364697 | P31: -0.05198828059 | Q31: 0.07699443723 | R31: -0.04781033837 | S31: 0.01701214028 | T31: 0.02156807922 | U31: 0.005188007298 | V31: 0.03294869458 | W31: -0.04717270826 | X31: 0.0754637531 | Y31: 0.02986920626 | Z31: 0.008419410254 | AA31: 0.04704176156 | AB31: -0.01126052766 | AC31: 0.02530552752 | AD31: 0.01301166853 | AE31: 0.02777250635 | AF31: 0.01053140073 | AG31: 0.008038975363 | AH31: 0.02955009669 | AI31: -0.009981502376 | AJ31: 0.04811781868 | AK31: -0.07043080358 | AL31: 0.09060784777 | AM31: 0.003336922163 | AN31: 0.03620449384 | AO31: 0.003078931884 | AP31: 0.03457344723 | AQ31: -0.01178326815 | AR31: 0.04735554467 | AS31: -0.07512695087 | AT31: 0.08609236461 | AU31: 0.08044959726 | AV31: -0.05617486262 | AW31: 0.07482673047 | AX31: -0.04955844587 | AY31: -0.01429510514 | AZ31: 0.05046835971 | BA31: 0.07131183081 | BB31: -0.04493126952 | BC31: -0.1279966623 | BD31: 0.1189620939 | BE31: -0.0512441227 | BF31: 0.07755070182 | BG31: 0.05491904308 | BH31: -0.02066518223 | BI31: 0.005717989793 | BJ31: 0.03229403558 | BK31: 0.1129914529 | BL31: -0.1152245631 | BM31: -0.02174589778 | BN31: 0.05499802255 | BO31: -0.09831916963 | BP31: 0.1073751712 | BQ31: 0.06200107669 | BR31: -0.03060719966 | BS31: 0.01614277623 | BT31: 0.02249284377 | BU31: 0.06427409042 | BV31: -0.02399348982 | BW31: 0.01525840606 | BX31: 0.02326868733 | BY31: -0.04382113401 | BZ31: 0.0759041867 | CA31: 0.1068647212 | CB31: -0.08589095906 | CC31: 0.09165944961 | CD31: -0.07410625617 | CE31: 0.000911889377 | CF31: 0.03694182105 | CG31: -0.02566420435 | CH31: 0.05735213118 | CI31: 0.08072852788 | CJ31: -0.05286748837 | CK31: 0.01496622869 | CL31: 0.02328377095 | CM31: 0.06550375286 | CN31: -0.03378643078 | CO31: 0.01223888885 | CP31: 0.02645572444 | CQ31: 0.006372580138 | CR31: 0.03132850125 | CS31: -0.007228648785 | CT31: 0.04447178839 | CU31: 0.1214978554 | CV31: -0.1277331374 | CW31: 0.08743354522 | CX31: -0.06218781122 | CY31: 0.02572903866 | CZ31: 0.01266639451 | DA31: 0.0167613586 | DB31: 0.02170603843 | DC31: 0.05308173877 | DD31: -0.01711037173 | DE31: 0.008046179935 | DF31: 0.03076387748 | DG31: 0.01716479718 | DH31: 0.02142389638 | DI31: 9.0166737e-05 | DJ31: 0.03833749171 | DK31: 0.1673558269 | DL31: -0.2463020479 | DM31: 0.06248131353 | DN31: -0.02637380742 | DO31: -0.08274810906 | DP31: 0.1032568594 | DQ31: 0.07974617603 | DR31: -0.05622927334 | DS31: -0.007221542708 | DT31: 0.04604682803 | DU31: 0.1218346203 | DV31: -0.1127391684 | DW31: 0.1036791741 | DX31: -0.08310746204 | DY31: 0.06036856464 | DZ31: -0.02622819928 | EA31: 0.03776590354 | EB31: -0.0005924812734 | EC31: 0.0888663084 | ED31: -0.05581412931 | EE31: -0.02100051713 | EF31: 0.05341094064 | EG31: 0.1176644315 | EH31: -0.1039816031 | EI31: -0.006615280117 | EJ31: 0.0449996344 | EK31: 0.02425113016 | EL31: 0.01478017803 | EM31: 0.08116071754 | EN31: -0.05229828182 | EO31: 0.02466669735 | EP31: 0.01410285525 | EQ31: -0.1029349551 | ER31: 0.1102210009 | ES31: 0.01313213911 | ET31: 0.02617582285 | EU31: -0.004902895453 | EV31: 0.04201857884 | EW31: 0.06029813728 | EX31: -0.02651683252 | EY31: 0.03539376381 | EZ31: 0.0013094525 | FA31: 0.08201118512 | FB31: -0.05023457556 | FC31: 0.03327743252 | FD31: 0.003420636065 | FE31: 0.06633384493 | FF31: -0.03915442812 | FG31: 0.06260221536 | FH31: -0.02660473059 | FI31: 0.06899185932 | FJ31: -0.03995071942 | FK31: 0.06059163826 | FL31: -0.02871868558 | FM31: 0.06598714574 | FN31: -0.03887390784 | FO31: 0.06130216194 | FP31: -0.0313604709 | FQ31: -0.161663788 | FR31: 0.1493967882 | FS31: 0.07097270144 | FT31: -0.04150380018 | FU31: 0.04171487402 | FV31: -0.005770806802 | FW31: -0.00995699022 | FX31: 0.04466428738 | FY31: -0.1432946102 | FZ31: 0.1245834744 | GA31: 0.008318751824 | GB31: 0.02934225659 | GC31: 0.02702534548 | GD31: 0.01134844235 | GE31: -0.04618966782 | GF31: 0.07925320381 | GG31: -0.07404134274 | GH31: 0.0909008492 | GI31: -0.1614521953 | GJ31: 0.1416072624 | GK31: 0.01694556108 | GL31: 0.02118082739 | GM31: -0.1248301183 | GN31: 0.1206083651 | GO31: 0.04690576085 | GP31: -0.01485704779 | GQ31: -0.1141545492 | GR31: 0.109031572 | GS31: -0.01975498994 | GT31: 0.05689222008 | GU31: -0.03308640593 | GV31: 0.06019874783 | GW31: 0.02929136454 | GX31: 0.01060110205 | GY31: -0.009713079883 | GZ31: 0.04682514388 | HA31: -0.0005655166679 | HB31: 0.03614780186 | HC31: 0.1008339521 | HD31: -0.08540196073 | HE31: 0.05074100041 | HF31: -0.01467763087 | HG31: 0.1653111909 | HH31: -0.2242780959 | HI31: 0.004662148952 | HJ31: 0.03282159065 | HK31: -0.02698384928 | HL31: 0.06715744707 | HM31: -0.003503725145 | HN31: 0.03972280971 | HO31: -0.08723220042 | HP31: 0.1061463244 | HQ31: -0.02060732362 | HR31: 0.05766495173 | HS31: 0.01336815395 | HT31: 0.02600532756 | HU31: 0.1222293707 | HV31: -0.1518214257 | HW31: -0.04926083986 | HX31: 0.07554726857 | HY31: 0.09758654137 | HZ31: -0.08854492896 | IA31: 0.05509408064 | IB31: -0.02150812737 | IC31: -0.09904524177 | ID31: 0.1096952498 | IE31: -0.001178454179 | IF31: 0.03707323004 | IG31: 0.1555769678 | IH31: -0.1723753094 | II31: 0.1337288788 | IJ31: -0.1363601245 | IK31: 0.05932814304 | IL31: -0.02869355121 | IM31: -0.1001104442 | IN31: 0.1072434647 | IO31: -0.0003100474823 | IP31: 0.0371509129 | IQ31: 0.03160829871 | IR31: 0.007214087875 | IS31: -0.1020462723 | IT31: 0.1110769972 | IU31: 0.02302203035 | IV31: 0.01560463806 | IW31: -0.002685773124 | IX31: 0.03967736245 | IY31: -0.01508795766 | IZ31: 0.04742308854
E32: 5.5 | F32: 0.03184488074 | G32: -0.01789766486 | H32: 0.01394721588 | I32: 0.103586622 | J32: -0.09474214223 | K32: -0.1132271717 | L32: 0.1183071234 | M32: -0.1079005372 | N32: 0.1017529215 | O32: 0.08934993988 | P32: -0.07558956287 | Q32: 0.06478553966 | R32: -0.03386043305 | S32: 0.03000892862 | T32: 0.00788695901 | U32: 0.01786949862 | V32: 0.02018087893 | W32: -0.04758384248 | X32: 0.0747844617 | Y32: 0.04737666021 | Z32: -0.01080610952 | AA32: 0.01661890378 | AB32: 0.02158691071 | AC32: 0.009010290348 | AD32: 0.0292883519 | AE32: 0.05450076877 | AF32: -0.01892655426 | AG32: -0.007609909443 | AH32: 0.04289376607 | AI32: -0.001081736409 | AJ32: 0.03897837387 | AK32: -0.04885805144 | AL32: 0.0735467783 | AM32: 0.0100806317 | AN32: 0.02858055197 | AO32: 0.005769783597 | AP32: 0.0315531994 | AQ32: 0.03224923532 | AR32: 0.00649066801 | AS32: -0.05723513514 | AT32: 0.07323130102 | AU32: 0.07158897173 | AV32: -0.04579098591 | AW32: 0.0776444343 | AX32: -0.05472887969 | AY32: -0.03611764671 | AZ32: 0.06872413263 | BA32: 0.05877209366 | BB32: -0.02968596507 | BC32: -0.1146564974 | BD32: 0.1089391674 | BE32: -0.06434455894 | BF32: 0.08628296661 | BG32: 0.04314890457 | BH32: -0.007772375639 | BI32: 0.03513793092 | BJ32: 0.003066738034 | BK32: 0.09371802667 | BL32: -0.08718593258 | BM32: -0.006469492277 | BN32: 0.04146794606 | BO32: -0.0988837886 | BP32: 0.1059288141 | BQ32: 0.07457449459 | BR32: -0.04752882679 | BS32: 0.03610912587 | BT32: 0.001209809373 | BU32: 0.06653260827 | BV32: -0.02713292717 | BW32: -0.0247452539 | BX32: 0.06020554587 | BY32: -0.02773441877 | BZ32: 0.06137379105 | CA32: 0.1141821681 | CB32: -0.09845766602 | CC32: 0.0865319009 | CD32: -0.06871325027 | CE32: -0.0194686658 | CF32: 0.05504412701 | CG32: -0.02346396399 | CH32: 0.05486932005 | CI32: 0.05558840359 | CJ32: -0.02293687344 | CK32: 0.01137112271 | CL32: 0.0260989418 | CM32: 0.06322417475 | CN32: -0.03200646881 | CO32: -0.0046797785 | CP32: 0.04262860922 | CQ32: 0.02047302126 | CR32: 0.01766173966 | CS32: -0.002577561435 | CT32: 0.03959387808 | CU32: 0.1170476115 | CV32: -0.1241429329 | CW32: 0.06582117946 | CX32: -0.03597042158 | CY32: 0.01467158835 | CZ32: 0.02346805009 | DA32: 0.02044470006 | DB32: 0.01767408642 | DC32: 0.05450096525 | DD32: -0.01947709579 | DE32: 0.02781511856 | DF32: 0.009857132304 | DG32: -0.006322805342 | DH32: 0.04377468598 | DI32: 0.02217756662 | DJ32: 0.01584221256 | DK32: 0.1750594307 | DL32: -0.2760140575 | DM32: 0.06040178324 | DN32: -0.024917426 | DO32: -0.04398383124 | DP32: 0.07233065217 | DQ32: 0.05442560861 | DR32: -0.02417455304 | DS32: -0.005861755424 | DT32: 0.04410985916 | DU32: 0.1202215953 | DV32: -0.1136883946 | DW32: 0.09689949051 | DX32: -0.07608790233 | DY32: 0.04723966716 | DZ32: -0.01191519195 | EA32: 0.04159270359 | EB32: -0.005444333921 | EC32: 0.07209508703 | ED32: -0.03767551594 | EE32: -0.008667546104 | EF32: 0.04266335425 | EG32: 0.120656516 | EH32: -0.1114350331 | EI32: 0.001032554438 | EJ32: 0.03700316225 | EK32: 0.04486696146 | EL32: -0.004800371111 | EM32: 0.0792461573 | EN32: -0.05127006079 | EO32: 0.03732608951 | EP32: 0.00111553474 | EQ32: -0.1304916105 | ER32: 0.1255952285 | ES32: 0.002418824267 | ET32: 0.0374981225 | EU32: -0.02444465464 | EV32: 0.05882713632 | EW32: 0.06183573363 | EX32: -0.02924173447 | EY32: 0.03249650552 | EZ32: 0.004008032134 | FA32: 0.06462428452 | FB32: -0.03090050511 | FC32: 0.03074852842 | FD32: 0.005743380894 | FE32: 0.06875223895 | FF32: -0.04352983313 | FG32: 0.03700379713 | FH32: 0.0004736873993 | FI32: 0.06290750545 | FJ32: -0.03332863255 | FK32: 0.05894295883 | FL32: -0.02762111872 | FM32: 0.07119618215 | FN32: -0.04702920122 | FO32: 0.06490600495 | FP32: -0.0370062788 | FQ32: -0.1430816696 | FR32: 0.1349943757 | FS32: 0.04535689412 | FT32: -0.01118146397 | FU32: 0.05626991811 | FV32: -0.02356141574 | FW32: -0.02667486212 | FX32: 0.05781782255 | FY32: -0.1730031684 | FZ32: 0.1377616132 | GA32: -0.008059970106 | GB32: 0.04338882064 | GC32: 0.02790548174 | GD32: 0.009905582211 | GE32: -0.02699217632 | GF32: 0.06171631628 | GG32: -0.02766961911 | GH32: 0.05612197896 | GI32: -0.1671157344 | GJ32: 0.1415903561 | GK32: -0.001238662551 | GL32: 0.03585406759 | GM32: -0.1381156832 | GN32: 0.1261422127 | GO32: 0.03935379966 | GP32: -0.006010988116 | GQ32: -0.09913521628 | GR32: 0.09825313849 | GS32: -0.02877474891 | GT32: 0.06433292656 | GU32: -0.03180025478 | GV32: 0.05849452376 | GW32: 0.02181000764 | GX32: 0.01656019959 | GY32: -0.03069190932 | GZ32: 0.06490954307 | HA32: -0.02020163448 | HB32: 0.05160883659 | HC32: 0.08926980209 | HD32: -0.07110514942 | HE32: 0.05851604738 | HF32: -0.02429441181 | HG32: 0.1644994319 | HH32: -0.232101552 | HI32: 0.02310656322 | HJ32: 0.01517396022 | HK32: -0.01907670347 | HL32: 0.05856750711 | HM32: -0.0142405726 | HN32: 0.04841547979 | HO32: -0.07417840399 | HP32: 0.09496595 | HQ32: -0.04045154634 | HR32: 0.07461496197 | HS32: 0.01088302677 | HT32: 0.02829220212 | HU32: 0.1144414434 | HV32: -0.1414116365 | HW32: -0.03870788096 | HX32: 0.06649287365 | HY32: 0.08777828879 | HZ32: -0.07583139924 | IA32: 0.03901669845 | IB32: -0.003416661767 | IC32: -0.1185602843 | ID32: 0.1205169383 | IE32: -0.01019761195 | IF32: 0.04412435554 | IG32: 0.1406337056 | IH32: -0.1529484198 | II32: 0.1245260363 | IJ32: -0.1258812747 | IK32: 0.02895153715 | IL32: 0.007479652296 | IM32: -0.1398292363 | IN32: 0.1299002402 | IO32: 0.006417861213 | IP32: 0.03058473149 | IQ32: 0.007366957611 | IR32: 0.03015877453 | IS32: -0.07932025372 | IT32: 0.09393002735 | IU32: 0.005404006092 | IV32: 0.03221960143 | IW32: 0.002987946145 | IX32: 0.0339732563 | IY32: 0.008822563801 | IZ32: 0.02749730036
E33: 5.75 | F33: 0.03082118192 | G33: -0.01710742139 | H33: 0.01371376053 | I33: 0.09974701877 | J33: -0.08896556846 | K33: -0.07902006701 | L33: 0.09321979405 | M33: -0.07528771031 | N33: 0.08071650508 | O33: 0.09961094944 | P33: -0.09367692081 | Q33: 0.05304391257 | R33: -0.02078071605 | S33: 0.0221072194 | T33: 0.01523407279 | U33: -0.009844004693 | V33: 0.04576954667 | W33: -0.04779515061 | X33: 0.07375709931 | Y33: 0.04655269343 | Z33: -0.01079124097 | AA33: 0.01852181866 | AB33: 0.01883979091 | AC33: 0.009780325195 | AD33: 0.02778777014 | AE33: 0.03443247535 | AF33: 0.002149337181 | AG33: 0.0006014825031 | AH33: 0.0349570398 | AI33: -0.02572393931 | AJ33: 0.06129081058 | AK33: -0.05301288564 | AL33: 0.07543102383 | AM33: 0.0009962041019 | AN33: 0.0373290574 | AO33: -0.02150965733 | AP33: 0.05535092536 | AQ33: 0.03920233855 | AR33: -0.001000564882 | AS33: -0.04563413229 | AT33: 0.0643901524 | AU33: 0.05072946636 | AV33: -0.0201597092 | AW33: 0.07207649843 | AX33: -0.04882377089 | AY33: -0.04586827659 | AZ33: 0.07572410307 | BA33: 0.04766085899 | BB33: -0.01662354544 | BC33: -0.09912151073 | BD33: 0.09764460012 | BE33: -0.071088445 | BF33: 0.08971118986 | BG33: 0.04928516634 | BH33: -0.0157849689 | BI33: 0.03322512918 | BJ33: 0.004253330397 | BK33: 0.09764395628 | BL33: -0.0962660242 | BM33: -0.02260987581 | BN33: 0.05422815674 | BO33: -0.05934088152 | BP33: 0.07753172865 | BQ33: 0.07015435798 | BR33: -0.04333241169 | BS33: 0.01733628218 | BT33: 0.02006197089 | BU33: 0.07495003379 | BV33: -0.03706144403 | BW33: -0.02268524418 | BX33: 0.05742269826 | BY33: -0.001732754734 | BZ33: 0.03759741235 | CA33: 0.1060964893 | CB33: -0.09012392193 | CC33: 0.1063989439 | CD33: -0.1005543679 | CE33: -0.02875300976 | CF33: 0.06231224183 | CG33: -0.00120476405 | CH33: 0.03573668595 | CI33: 0.05981941572 | CJ33: -0.0291810503 | CK33: -0.00140577647 | CL33: 0.0369347593 | CM33: 0.03811859163 | CN33: -0.003227276539 | CO33: -0.006161897073 | CP33: 0.04327177986 | CQ33: 0.03031667924 | CR33: 0.007514264035 | CS33: -0.03987810887 | CT33: 0.0718336636 | CU33: 0.1101620432 | CV33: -0.1165442293 | CW33: 0.05952884055 | CX33: -0.02938554575 | CY33: 0.01688465426 | CZ33: 0.02051649588 | DA33: 0.02431059038 | DB33: 0.01323540899 | DC33: 0.02712599878 | DD33: 0.009773413126 | DE33: 0.004068766141 | DF33: 0.03353223244 | DG33: -0.01398981476 | DH33: 0.0501477944 | DI33: -0.005349645789 | DJ33: 0.04232350282 | DK33: 0.1524324177 | DL33: -0.2342208792 | DM33: 0.04677684632 | DN33: -0.010868273 | DO33: -0.03210174098 | DP33: 0.06178996151 | DQ33: 0.05594212556 | DR33: -0.02724962139 | DS33: -0.0008069437612 | DT33: 0.03836412631 | DU33: 0.1483619007 | DV33: -0.1631572669 | DW33: 0.09558137705 | DX33: -0.0766125309 | DY33: 0.04854215374 | DZ33: -0.01432659737 | EA33: 0.03595360474 | EB33: -8.444851135e-06 | EC33: 0.07296408722 | ED33: -0.03999058524 | EE33: -0.0206635396 | EF33: 0.05168257028 | EG33: 0.1237175929 | EH33: -0.1198086327 | EI33: 0.006619857739 | EJ33: 0.03077760393 | EK33: 0.05366856054 | EL33: -0.01407229587 | EM33: 0.07091449285 | EN33: -0.04233916533 | EO33: 0.03754625684 | EP33: 0.0001356626546 | EQ33: -0.08958127059 | ER33: 0.09738408552 | ES33: -0.002909930929 | ET33: 0.04248502383 | EU33: -0.007582685836 | EV33: 0.04303903916 | EW33: 0.08556835617 | EX33: -0.05995710366 | EY33: 0.02301560961 | EZ33: 0.01386751615 | FA33: 0.04107619558 | FB33: -0.005301802931 | FC33: 0.0205616216 | FD33: 0.01652965431 | FE33: 0.04889637135 | FF33: -0.01872212475 | FG33: 0.0389488557 | FH33: -0.002378933752 | FI33: 0.07849270773 | FJ33: -0.0549537715 | FK33: 0.05704797388 | FL33: -0.02642464488 | FM33: 0.05692273126 | FN33: -0.02933421238 | FO33: 0.0780046558 | FP33: -0.05586712577 | FQ33: -0.1236413867 | FR33: 0.1201987836 | FS33: 0.02406840721 | FT33: 0.01260186523 | FU33: 0.03261262137 | FV33: 0.003109069233 | FW33: -0.006316829527 | FX33: 0.04021581129 | FY33: -0.1787631696 | FZ33: 0.137275899 | GA33: -0.0211421869 | GB33: 0.05381071729 | GC33: 0.008762674285 | GD33: 0.02867373906 | GE33: -0.01627601299 | GF33: 0.0512836375 | GG33: -0.0621463887 | GH33: 0.0802210966 | GI33: -0.1476441079 | GJ33: 0.1275359038 | GK33: -0.03918436702 | GL33: 0.06476768995 | GM33: -0.1302844157 | GN33: 0.1188702978 | GO33: 0.04814002508 | GP33: -0.01818182686 | GQ33: -0.1097102139 | GR33: 0.102575576 | GS33: -0.02753686277 | GT33: 0.06222203935 | GU33: -0.008973377444 | GV33: 0.04045087664 | GW33: 0.0243940633 | GX33: 0.01369571968 | GY33: -0.02472164517 | GZ33: 0.05870264737 | HA33: -0.01952440555 | HB33: 0.05023849004 | HC33: 0.09718813081 | HD33: -0.08482111874 | HE33: 0.06746724808 | HF33: -0.03593210476 | HG33: 0.1397931821 | HH33: -0.1890249728 | HI33: 0.01809537704 | HJ33: 0.01922285299 | HK33: -0.01688872684 | HL33: 0.05546757054 | HM33: -0.02490185698 | HN33: 0.05652035867 | HO33: -0.05304079064 | HP33: 0.07764208572 | HQ33: -0.04649803485 | HR33: 0.07861680321 | HS33: 0.005695129661 | HT33: 0.03338687804 | HU33: 0.0967550623 | HV33: -0.1119296987 | HW33: -0.04995756169 | HX33: 0.07395206478 | HY33: 0.09639149417 | HZ33: -0.09167500493 | IA33: 0.03520862955 | IB33: 0.0001234249814 | IC33: -0.07788016916 | ID33: 0.09147505158 | IE33: -0.00804426625 | IF33: 0.04157317168 | IG33: 0.1268301824 | IH33: -0.1351451912 | II33: 0.1026171106 | IJ33: -0.09542903553 | IK33: 0.02751846838 | IL33: 0.008373028735 | IM33: -0.126632232 | IN33: 0.1192378135 | IO33: -0.01249694457 | IP33: 0.04657982687 | IQ33: 0.0007177865632 | IR33: 0.0356490967 | IS33: -0.04199352464 | IT33: 0.06601995642 | IU33: -0.0123012533 | IV33: 0.04796474169 | IW33: 0.02264114128 | IX33: 0.01490698836 | IY33: 0.02565170613 | IZ33: 0.01261550227
E34: 6 | F34: 0.02965539106 | G34: -0.01628654197 | H34: 0.01336884909 | I34: 0.09561816014 | J34: -0.08494872905 | K34: -0.07935292773 | L34: 0.09159467434 | M34: -0.07122780746 | N34: 0.07672623978 | O34: 0.08647905873 | P34: -0.07642869447 | Q34: 0.03922464515 | R34: -0.00561247091 | S34: 0.0157058938 | T34: 0.02077359635 | U34: 0.01341356337 | V34: 0.02292767574 | W34: -0.04712686884 | X34: 0.07187469703 | Y34: 0.0313821444 | Z34: 0.004527155472 | AA34: -0.001286250186 | AB34: 0.03851853861 | AC34: 0.008085593471 | AD34: 0.02858472127 | AE34: 0.02991352562 | AF34: 0.006005121376 | AG34: 0.02310448099 | AH34: 0.01371157169 | AI34: -0.0002008475811 | AJ34: 0.03635851035 | AK34: -0.05038059269 | AL34: 0.07210822774 | AM34: -0.01195959419 | AN34: 0.04948893527 | AO34: -0.02797204034 | AP34: 0.05981327154 | AQ34: 0.01531807355 | AR34: 0.02094864554 | AS34: -0.05964538975 | AT34: 0.07233834264 | AU34: 0.05863653347 | AV34: -0.03162957016 | AW34: 0.0630092218 | AX34: -0.03833082893 | AY34: -0.0604926898 | AZ34: 0.08598501006 | BA34: 0.02928288073 | BB34: 0.004954881775 | BC34: -0.08737767968 | BD34: 0.08863767849 | BE34: -0.07750633517 | BF34: 0.09247603245 | BG34: 0.02945570135 | BH34: 0.005831987645 | BI34: 0.04237994072 | BJ34: -0.006079880977 | BK34: 0.08478228216 | BL34: -0.07858019055 | BM34: -0.03889440195 | BN34: 0.06622509453 | BO34: -0.06336535242 | BP34: 0.07882398641 | BQ34: 0.06664201196 | BR34: -0.04046262178 | BS34: 0.02353269667 | BT34: 0.01277445764 | BU34: 0.09256032512 | BV34: -0.05794093743 | BW34: -0.02205640791 | BX34: 0.05575185779 | BY34: -0.010165441 | BZ34: 0.0442093675 | CA34: 0.1032482486 | CB34: -0.08920643935 | CC34: 0.08364490041 | CD34: -0.0694302019 | CE34: -0.01723599852 | CF34: 0.05106136047 | CG34: 0.01591755844 | CH34: 0.02019887222 | CI34: 0.03977585035 | CJ34: -0.006383654791 | CK34: -0.008540233765 | CL34: 0.0422928943 | CM34: 0.02146237583 | CN34: 0.01463036546 | CO34: -0.004004494985 | CP34: 0.04022347569 | CQ34: 0.01750500585 | CR34: 0.01891898716 | CS34: -0.0587263767 | CT34: 0.08597441352 | CU34: 0.09876342354 | CV34: -0.1013255952 | CW34: 0.07672359368 | CX34: -0.05292220554 | CY34: 0.01550509697 | CZ34: 0.0210147952 | DA34: 0.04540766697 | DB34: -0.008804638444 | DC34: 0.001789543699 | DD34: 0.03506049386 | DE34: 0.008891496422 | DF34: 0.0277697128 | DG34: -0.01623439599 | DH34: 0.05117404333 | DI34: 0.004676272252 | DJ34: 0.03169364342 | DK34: 0.1350073858 | DL34: -0.203844196 | DM34: 0.03745922576 | DN34: -0.001855791365 | DO34: -0.02442717664 | DP34: 0.05447010238 | DQ34: 0.04336435786 | DR34: -0.01249454991 | DS34: 0.02381393079 | DT34: 0.01244027817 | DU34: 0.1468398228 | DV34: -0.1674034791 | DW34: 0.09146876637 | DX34: -0.07352434681 | DY34: 0.03736155948 | DZ34: -0.002733190746 | EA34: 0.01429651237 | EB34: 0.0223821345 | EC34: 0.07616326085 | ED34: -0.04535584709 | EE34: -0.01038843653 | EF34: 0.04235736862 | EG34: 0.1139446927 | EH34: -0.1091129814 | EI34: 0.007833161342 | EJ34: 0.02866596899 | EK34: 0.05100453451 | EL34: -0.01254126143 | EM34: 0.06281440164 | EN34: -0.03384474928 | EO34: 0.05042941448 | EP34: -0.01406618925 | EQ34: -0.07959100061 | ER34: 0.08894290161 | ES34: 0.001607883131 | ET34: 0.03660259539 | EU34: -0.0250884013 | EV34: 0.05743389389 | EW34: 0.08864977896 | EX34: -0.06612894378 | EY34: 0.02652628388 | EZ34: 0.008998056006 | FA34: 0.04753274812 | FB34: -0.01356864806 | FC34: 0.03239440097 | FD34: 0.002082093739 | FE34: 0.02897709653 | FF34: 0.005121915167 | FG34: 0.03586320253 | FH34: -8.974726527e-05 | FI34: 0.07256987951 | FJ34: -0.04898224129 | FK34: 0.04094746218 | FL34: -0.008123499279 | FM34: 0.04180207984 | FN34: -0.01103747989 | FO34: 0.05844512054 | FP34: -0.03157259875 | FQ34: -0.1029560135 | FR34: 0.1046979752 | FS34: 0.01603990776 | FT34: 0.02062361534 | FU34: 0.03281895051 | FV34: 0.001872217913 | FW34: -0.02999102255 | FX34: 0.05856752536 | FY34: -0.1194656059 | FZ34: 0.1031991275 | GA34: -0.01856266594 | GB34: 0.05058737918 | GC34: 0.02382919609 | GD34: 0.01250511129 | GE34: -0.001329625355 | GF34: 0.03671029098 | GG34: -0.04722730878 | GH34: 0.06823416116 | GI34: -0.1385885894 | GJ34: 0.1194363184 | GK34: -0.05182010445 | GL34: 0.072809919 | GM34: -0.1317150367 | GN34: 0.1169109849 | GO34: 0.06003306458 | GP34: -0.03528953987 | GQ34: -0.1117848327 | GR34: 0.101541622 | GS34: -0.04160031752 | GT34: 0.07327380634 | GU34: 0.02130237036 | GV34: 0.01556361735 | GW34: 0.0238675556 | GX34: 0.01331676229 | GY34: -0.04161246695 | GZ34: 0.0719756012 | HA34: -0.02032302682 | HB34: 0.04986659658 | HC34: 0.08339992353 | HD34: -0.06745715447 | HE34: 0.04407510578 | HF34: -0.01007830734 | HG34: 0.1489716343 | HH34: -0.217505614 | HI34: -0.004753213332 | HJ34: 0.03925469869 | HK34: 0.01402832353 | HL34: 0.02271873117 | HM34: -0.05029481287 | HN34: 0.07568026455 | HO34: -0.05181505678 | HP34: 0.07526712725 | HQ34: -0.03874094582 | HR34: 0.07056171876 | HS34: -0.005952257315 | HT34: 0.04524742608 | HU34: 0.07858796255 | HV34: -0.08190396596 | HW34: -0.05283992263 | HX34: 0.07469710636 | HY34: 0.08746223688 | HZ34: -0.08056914696 | IA34: 0.03684878634 | IB34: -0.002792783137 | IC34: -0.05428601198 | ID34: 0.07344723262 | IE34: 0.003783036049 | IF34: 0.03070455476 | IG34: 0.1372988418 | IH34: -0.158680383 | II34: 0.09684262778 | IJ34: -0.08980138068 | IK34: 0.02229227488 | IL34: 0.01347873223 | IM34: -0.1153869752 | IN34: 0.1098316278 | IO34: -0.01816681796 | IP34: 0.05043873369 | IQ34: 0.03747980609 | IR34: -0.000739309262 | IS34: -0.04987892968 | IT34: 0.07046233424 | IU34: -0.008879302272 | IV34: 0.04384383545 | IW34: 0.03091978958 | IX34: 0.006017207712 | IY34: 0.04284413039 | IZ34: -0.003369938851
